Workbook

Sheet Deckblatt

Sheet Impressum
F1: Grundsicherung für Arbeitsuchende (SGBII)
A4: Impressum
A7: Produktlinie/Reihe: | C7: Tabellen
A9: Produkt-ID: | C9: 1084
A11: Titel: | C11: Kinder in Bedarfsgemeinschaften (Monatszahlen)
A13: Region: | C13: Deutschland, West/Ost, Länder und Kreise
A15: Berichtsmonat: | C15: Juni 2024
A17: Erstellungsdatum: | C17: 2024-10-21
A19: Periodizität: | C19: halbjährlich
A21: Hinweise:
A23: Nächster Veröffentlichungstermin:
C24: 2025-04-22
A26: Herausgeberin: | C26: Bundesagentur für Arbeit
C27: Statistik
A29: Rückfragen an: | C29: Zentraler Statistik-Service
C30: Regensburger Straße 104
C31: 90478 Nürnberg
A32: E-Mail: | C32: Zentraler-Statistik-Service@arbeitsagentur.de
A33: Hotline: | C33: 0911/179-3632
A34: Fax: | C34: 0911/179-1131
A36: Internet: | C36: https://statistik.arbeitsagentur.de
A40: Zitierhinweis: | C40: Statistik der Bundesagentur für Arbeit
C41: Tabellen, Kinder in Bedarfsgemeinschaften (Monatszahlen), Nürnberg, Oktober 2024
A43: Nutzungsbedingungen: | C43: © Statistik der Bundesagentur für Arbeit
C44: Die Produkte unterliegen dem Urheberrecht (siehe Impressum).
C45: Daten und Tabellen dürfen uneingeschränkt verwendet werden. Informationen dürfen (auch auszugsweise) gespeichert und mit Quellenangabe weitergegeben, vervielfältigt und verbreitet werden. Die Inhalte dürfen nicht verändert oder verfälscht werden. Eigene Berechnungen sind erlaubt, jedoch als solche kenntlich zu machen. Im Fall einer Veröffentlichung im Internet soll dies mit einer Verlinkung auf die Homepage der Statistik der Bundesagentur für Arbeit erfolgen.

Sheet Inhalt
F1: Grundsicherung für Arbeitsuchende (SGBII)
A5: Inhaltsverzeichnis
A10: 1. Einführung | F10: 1
A13: 2. Kinder in Bedarfsgemeinschaften
A15: 2.1 Bestand an Kindern in Bedarfsgemeinschaften nach Strukturmerkmalen und Vergleichsmonaten | F15: 2.1
A16: 2.2 Bestand an Kindern unter 18 Jahren in Bedarfsgemeinschaften nach ausgewählten Altersklassen | F16: 2.2
A17: 2.3 Bestand an Kindern nach Alter und BG-Typ | F17: 2.3
A20: 3. Bedarfsgemeinschaften mit Kindern
A22: 3.1 Bestand an Bedarfsgemeinschaften (BG) mit Kindern unter 18 Jahren nach BG-Typ | F22: 3.1
A23: 3.2 Bedarfsgemeinschaften (BG) mit Kindern nach Anzahl der Kinder, BG-Typ | F23: 3.2
B24: und ausgewählten Merkmalen
A25: 3.3 Durchschnittliches Haushaltsbudget von Regelleistungsbedarfsgemeinschaften (RL-BG) | F25: 3.3
B26: mit Kindern unter 18 Jahren nach BG-Typ pro RL-BG in Euro
A29: 4. SGB II-Hilfequoten
A31: 4.1 SGB II-Hilfequote der leistungsberechtigten Kinder unter 18 Jahren in Bedarfsgemeinschaften | F31: 4.1
A32: 4.2 SGB II-Hilfequote der leistungsberechtigten Kinder unter 3 Jahren in Bedarfsgemeinschaften | F32: 4.2
A35: 5. Anteil minderjähriger Kinder in Bedarfsgemeinschaften an der Bevölkerung | F35: 5
A38: Methodische Hinweise 1
A40: Methodische Hinweise 2
A42: Methodische Hinweise 3
A44: Statistik Infoseite
A47: (über das Statistik-Symbol am linken oberen Rand gelangen Sie von jeder Seite auf das Inhaltsverzeichnis zurück)

Sheet 1
F1: Grundsicherung für Arbeitsuchende nach dem SGB II
A4: 1. Einführung
A6: In der vorliegenden Publikation finden Sie Zahlen und Strukturdaten zu den Kindern und Jugendlichen in der Grundsicherung nach dem SGB II. Je nach Fragestellung gibt es unterschiedliche Definitionen des Begriffs "Kind". Grundlegend kann man zwei Ansätze unterscheiden: "Kinder" können definiert werden als Personen in einem frühen Lebensalter und/oder als Personen in einer bestimmten Stellung in einem Haushalt oder einer Bedarfsgemeinschaft (BG). Beide Abgrenzungen finden sich im SGB II.
A12: Kinder nach dem SGB VIII
A13: Im Kinder- und Jugendhilfegesetz gelten alle Bestimmungen, die sich auf die Annahme einer Person als Kind beziehen, nur für Personen, die das 18. Lebensjahr noch nicht vollendet haben (§ 7 Abs.1 (1) SGB VIII). Im Sinne des Jugendschutzgesetzes unterteilen sich diese in Kinder (Personen, die noch nicht 14 Jahre alt sind) und Jugendliche (Personen im Alter von 14 bis unter 18 Jahren) (§ 1 Jugendschutzgesetz).
A17: Im Juni 2024 lebten 1.916.513 Personen unter 18 Jahren in Bedarfsgemeinschaften - darunter 1.518.863 Kinder unter 14 Jahren.
A20: Kinder nach dem SGB II
A21: In der Grundsicherung für Arbeitsuchende wird leistungsrechtlich der Haushaltskontext betrachtet, so dass Kinder (bis unter 25 Jahren) grundsätzlich anhand ihrer Stellung in der Bedarfsgemeinschaft definiert werden. Statistisch können minderjährige und volljährige Kinder nach verschiedenen Altersgrenzen differenziert werden. Kinder unter 15 Jahren gelten als nicht erwerbsfähig.
A25: Im Juni 2024 lebten 1.619.591 Kinder unter 15 Jahren in Bedarfsgemeinschaften.
A27: Kinder in Bedarfsgemeinschaften
A28: Zu einer Bedarfsgemeinschaft gehören grundsätzlich alle erwerbsfähigen Leistungsberechtigten mit deren Ehegatten/Partnern und unverheirateten Kindern, „wenn sie das 25. Lebensjahr noch nicht vollendet haben, soweit sie die Leistungen zur Sicherung ihres Lebensunterhaltes nicht aus eigenem Einkommen oder Vermögen beschaffen können“ (§ 7 Abs. 3 Nr. 4 SGB II).
A32: Im Juni 2024 lebten 2.163.670 unverheiratete Kinder unter 25 Jahren, die Ihren Lebensunterhalt nicht aus eigenem Einkommen oder Vermögen beschaffen konnten, in Bedarfsgemeinschaften.
A34: Zur Typisierung von Bedarfsgemeinschaften werden nur die Informationen über minderjährige, unverheiratete Kinder herangezogen. Volljährige Kinder bis zur Vollendung des 25. Lebensjahres werden bei der Typisierung nicht berücksichtigt, was bedeutet, dass z.B. eine Bedarfsgemeinschaft mit zwei Ehegatten und einem 20jährigen Sohn als Paar ohne Kinder geführt wird. Verheiratete minderjährige Personen oder Personen unter 18 Jahren mit Kind und Partner bilden eigene Bedarfsgemeinschaften, in denen sie selbst nicht als Kind gezählt werden.
A39: Im Juni 2024 lebten 1.906.731 minderjährige unverheiratete Kinder unter 18 Jahren in Bedarfsgemeinschaften.
A40: Bedarfsgemeinschaften mit minderjährigen Kindern können nach alleinerziehenden BG und Partner-BG mit Kindern differenziert werden.
A42: Im Juni 2024 gab es 988.735 Bedarfsgemeinschaften mit Kindern (34% aller BG) - 542.508 davon waren Alleinerziehende-BG und 443.909 Partner-BG mit Kindern.
A45: Regelbedarfssätze von (minderjährigen und unverheirateten) Kindern und Jugendlichen unter 25 Jahren
A46: (nach § 20 SGB II); Stand: 01.01.2024
A47: Regelbedarfsstufe 3 | B47: (Volljährige von 18 bis unter 25 Jahre) | D47: 451 Euro
A48: Regelbedarfsstufe 4 | B48: (Jugendliche von 14 bis unter 18 Jahre): | D48: 471 Euro
A49: Regelbedarfsstufe 5 | B49: (Kinder von 6 bis unter 14 Jahre): | D49: 390 Euro
A50: Regelbedarfsstufe 6 | B50: (Kinder von 0 bis unter 6 Jahre): | D50: 357 Euro
A51: Im Juni 2024 gab es 626.453 Kinder unter 6 Jahren, 892.410 im Alter von 6 bis unter 14 Jahren, 387.868 Jugendliche von 14 bis unter 18 Jahren und 256.939 volljährige Personen von 18 bis unter 25 Jahren, die noch bei den Eltern lebten.
A55: Kinder mit bedarfsdeckendem Einkommen
A56: Es gibt Personen innerhalb von Bedarfsgemeinschaften, die individuell keine Leistungen beziehen, jedoch als Personen einer Bedarfsgemeinschaft gezählt werden. Dabei handelt es sich vor allem um Kinder (bis zum 25. Lebensjahr), die in der Bedarfsgemeinschaft der Eltern leben und deren Einkommen den eigenen Bedarf übersteigt. Nach den Bestimmungen des SGB II verbleibt das Einkommen eines Kindes (z.B. Unterhaltszahlungen oder Einkommen aus Erwerbstätigkeit) beim Kind und muss nicht zur Bedarfsdeckung der übrigen Mitglieder der Bedarfsgemeinschaft eingesetzt werden (Ausnahme: Kindergeld). Die Kinder mit ausreichendem Einkommen haben daher keinen individuellen Leistungsanspruch im SGB II.
A62: Im Juni 2024 gab es 91.719 minderjährige unverheiratete Kinder ohne Leistungsanspruch (KOL).

Sheet 2.1
J1: Grundsicherung für Arbeitsuchende (SGBII)
A3: =CONCATENATE(A5&A4) -> 2.1 Entwicklung des Bestands an Kindern unter 18 Jahren in Bedarfsgemeinschaften - Deutschland
A4: ='2.1 roh'!$A$1 -> Deutschland
A5: 2.1 Entwicklung des Bestands an Kindern unter 18 Jahren in Bedarfsgemeinschaften -
A17: Tabelle 2.1 Bestand an Kindern in Bedarfsgemeinschaften nach Strukturmerkmalen und Vergleichsmonaten
A20: Berichtsmonat Juni 2024
A21: Bund, Länder, Kreise und kreisfreie Städte
A23: Merkmal | C23: Juni 2024 | D23: Juni 2023 | E23: Juni 2022 | F23: Juni 2021 | G23: Juni 2020 | H23: Juni 2019 | I23: Veränder-ung Juni 2024 zu Juni 2023 in % | J23: Veränder-ung Juni 2024 zu Juni 2019 in %
C24: 1 | D24: 2 | E24: 3 | F24: 4 | G24: 5 | H24: 6 | I24: 7 | J24: 8
A25: Personen unter 18 Jahren2) | C25: =IFERROR(IF('Vorl 2.1'!D14=".",".",IF('Vorl 2.1'!D14-'Vorl 2.1'!D15<3,IF('Vorl 2.1'!D14-'Vorl 2.1'!D15>0,"*",'Vorl 2.1'!D14),'Vorl 2.1'!D14)),".") -> 1916513 | D25: =IFERROR(IF('Vorl 2.1'!E14=".",".",IF('Vorl 2.1'!E14-'Vorl 2.1'!E15<3,IF('Vorl 2.1'!E14-'Vorl 2.1'!E15>0,"*",'Vorl 2.1'!E14),'Vorl 2.1'!E14)),".") -> 1955296.922 | E25: =IFERROR(IF('Vorl 2.1'!F14=".",".",IF('Vorl 2.1'!F14-'Vorl 2.1'!F15<3,IF('Vorl 2.1'!F14-'Vorl 2.1'!F15>0,"*",'Vorl 2.1'!F14),'Vorl 2.1'!F14)),".") -> 1917026 | F25: =IFERROR(IF('Vorl 2.1'!G14=".",".",IF('Vorl 2.1'!G14-'Vorl 2.1'!G15<3,IF('Vorl 2.1'!G14-'Vorl 2.1'!G15>0,"*",'Vorl 2.1'!G14),'Vorl 2.1'!G14)),".") -> 1851339 | G25: =IFERROR(IF('Vorl 2.1'!H14=".",".",IF('Vorl 2.1'!H14-'Vorl 2.1'!H15<3,IF('Vorl 2.1'!H14-'Vorl 2.1'!H15>0,"*",'Vorl 2.1'!H14),'Vorl 2.1'!H14)),".") -> 1932432 | H25: =IFERROR(IF('Vorl 2.1'!I14=".",".",IF('Vorl 2.1'!I14-'Vorl 2.1'!I15<3,IF('Vorl 2.1'!I14-'Vorl 2.1'!I15>0,"*",'Vorl 2.1'!I14),'Vorl 2.1'!I14)),".") -> 1935754 | I25: =IF(ISNUMBER((C25-D25)/D25%),((C25-D25)/D25%),"X") -> -1.983531084 | J25: =IF(ISNUMBER((C25-H25)/H25%),((C25-H25)/H25%),"X") -> -0.9939796069
A26: Kinder unter 18 Jahren3) | C26: ='Vorl 2.1'!D15 -> 1906731 | D26: ='Vorl 2.1'!E15 -> 1945914.954 | E26: ='Vorl 2.1'!F15 -> 1908308 | F26: ='Vorl 2.1'!G15 -> 1845907 | G26: ='Vorl 2.1'!H15 -> 1926441 | H26: ='Vorl 2.1'!I15 -> 1928648 | I26: =IF(ISNUMBER((C26-D26)/D26%),((C26-D26)/D26%),"X") -> -2.013651925 | J26: =IF(ISNUMBER((C26-H26)/H26%),((C26-H26)/H26%),"X") -> -1.136391918
A27: dav.
A28: nicht erwerbsfähige Leistungsberechtigte (NEF) | C28: ='Vorl 2.1'!D18 -> 1481597 | D28: ='Vorl 2.1'!E18 -> 1521965.503 | E28: ='Vorl 2.1'!F18 -> 1488180 | F28: ='Vorl 2.1'!G18 -> 1430927 | G28: ='Vorl 2.1'!H18 -> 1522247 | H28: ='Vorl 2.1'!I18 -> 1543081 | I28: =IF(ISNUMBER((C28-D28)/D28%),((C28-D28)/D28%),"X") -> -2.652392771 | J28: =IF(ISNUMBER((C28-H28)/H28%),((C28-H28)/H28%),"X") -> -3.984495953
A29: erwerbsfähige Leistungsberechtigte (ELB) | C29: ='Vorl 2.1'!D19 -> 263226 | D29: ='Vorl 2.1'!E19 -> 255626.7867 | E29: ='Vorl 2.1'!F19 -> 242241 | F29: ='Vorl 2.1'!G19 -> 225115 | G29: ='Vorl 2.1'!H19 -> 224555 | H29: ='Vorl 2.1'!I19 -> 222817 | I29: =IF(ISNUMBER((C29-D29)/D29%),((C29-D29)/D29%),"X") -> 2.972776617 | J29: =IF(ISNUMBER((C29-H29)/H29%),((C29-H29)/H29%),"X") -> 18.13551031
A30: sonstige Leistungsberechtigte (SLB) | C30: =IF(C79="*",IF(C79="-",'Vorl 2.1'!D20,"*"),'Vorl 2.1'!D20) -> 52038 | D30: =IF(D79="*",IF(D79="-",'Vorl 2.1'!E20,"*"),'Vorl 2.1'!E20) -> 53419.2052 | E30: =IF(E79="*",IF(E79="-",'Vorl 2.1'!F20,"*"),'Vorl 2.1'!F20) -> 55008 | F30: =IF(F79="*",IF(F79="-",'Vorl 2.1'!G20,"*"),'Vorl 2.1'!G20) -> 49430 | G30: =IF(G79="*",IF(G79="-",'Vorl 2.1'!H20,"*"),'Vorl 2.1'!H20) -> 39337 | H30: =IF(H79="*",IF(H79="-",'Vorl 2.1'!I20,"*"),'Vorl 2.1'!I20) -> 39636 | I30: =IF(ISNUMBER((C30-D30)/D30%),(IF((C30-D30)/D30%<250,(C30-D30)/D30%,".X")),"X") -> -2.585596696 | J30: =IF(ISNUMBER((C30-H30)/H30%),(IF((C30-H30)/H30%<250,(C30-H30)/H30%,".X")),"X") -> 31.2897366
A31: Kinder ohne Leistungsanspruch (KOL) | C31: ='Vorl 2.1'!D21 -> 91719 | D31: ='Vorl 2.1'!E21 -> 96212.83416 | E31: ='Vorl 2.1'!F21 -> 104102 | F31: ='Vorl 2.1'!G21 -> 122207 | G31: ='Vorl 2.1'!H21 -> 123701 | H31: ='Vorl 2.1'!I21 -> 108731 | I31: =IF(ISNUMBER((C31-D31)/D31%),((C31-D31)/D31%),"X") -> -4.670722154 | J31: =IF(ISNUMBER((C31-H31)/H31%),((C31-H31)/H31%),"X") -> -15.64595194
A32: vom Leistungsanspruch ausgeschlossene Personen (AUS) | C32: =IF(C30="*","*",'Vorl 2.1'!D22) -> 18151 | D32: =IF(D30="*","*",'Vorl 2.1'!E22) -> 18690.62493 | E32: =IF(E30="*","*",'Vorl 2.1'!F22) -> 18777 | F32: =IF(F30="*","*",'Vorl 2.1'!G22) -> 18228 | G32: =IF(G30="*","*",'Vorl 2.1'!H22) -> 16601 | H32: =IF(H30="*","*",'Vorl 2.1'!I22) -> 14383 | I32: =IF(ISNUMBER((C32-D32)/D32%),(IF((C32-D32)/D32%<250,(C32-D32)/D32%,".X")),"X") -> -2.887142253 | J32: =IF(ISNUMBER((C32-H32)/H32%),(IF((C32-H32)/H32%<250,(C32-H32)/H32%,".X")),"X") -> 26.19759438
A33: dar.
A34: männlich | C34: ='Vorl 2.1'!D24 -> 984284 | D34: ='Vorl 2.1'!E24 -> 1003300.323 | E34: ='Vorl 2.1'!F24 -> 982718 | F34: ='Vorl 2.1'!G24 -> 952711 | G34: ='Vorl 2.1'!H24 -> 994627 | H34: ='Vorl 2.1'!I24 -> 996033 | I34: =IF(ISNUMBER((C34-D34)/D34%),((C34-D34)/D34%),"X") -> -1.895376935 | J34: =IF(ISNUMBER((C34-H34)/H34%),((C34-H34)/H34%),"X") -> -1.179579391
A35: weiblich | C35: ='Vorl 2.1'!D25 -> 922447 | D35: ='Vorl 2.1'!E25 -> 942614.631 | E35: ='Vorl 2.1'!F25 -> 925397 | F35: ='Vorl 2.1'!G25 -> 893096 | G35: ='Vorl 2.1'!H25 -> 931707 | H35: ='Vorl 2.1'!I25 -> 932524 | I35: =IF(ISNUMBER((C35-D35)/D35%),((C35-D35)/D35%),"X") -> -2.139541479 | J35: =IF(ISNUMBER((C35-H35)/H35%),((C35-H35)/H35%),"X") -> -1.08061562
A36: dar.
A37: Ausländer1) 5) | C37: ='Vorl 2.1'!D27 -> 918224 | D37: ='Vorl 2.1'!E27 -> 930858.8368 | E37: ='Vorl 2.1'!F27 -> 851084 | F37: ='Vorl 2.1'!G27 -> 679884 | G37: ='Vorl 2.1'!H27 -> 691773 | H37: ='Vorl 2.1'!I27 -> 676898 | I37: =IF(ISNUMBER((C37-D37)/D37%),((C37-D37)/D37%),"X") -> -1.357331135 | J37: =IF(ISNUMBER((C37-H37)/H37%),((C37-H37)/H37%),"X") -> 35.65175255
A38: dar.
A39: unter 15 Jahren | C39: ='Vorl 2.1'!D29 -> 1619591 | D39: ='Vorl 2.1'!E29 -> 1663305.333 | E39: ='Vorl 2.1'!F29 -> 1639344 | F39: ='Vorl 2.1'!G29 -> 1592653 | G39: ='Vorl 2.1'!H29 -> 1668760 | H39: ='Vorl 2.1'!I29 -> 1676287 | I39: =IF(ISNUMBER((C39-D39)/D39%),((C39-D39)/D39%),"X") -> -2.628160432 | J39: =IF(ISNUMBER((C39-H39)/H39%),((C39-H39)/H39%),"X") -> -3.382237051
A40: dav.
A41: unter 3 Jahren | C41: ='Vorl 2.1'!D31 -> 288528 | D41: ='Vorl 2.1'!E31 -> 302608.1315 | E41: ='Vorl 2.1'!F31 -> 309578 | F41: ='Vorl 2.1'!G31 -> 320277 | G41: ='Vorl 2.1'!H31 -> 348730 | H41: ='Vorl 2.1'!I31 -> 365626 | I41: =IF(ISNUMBER((C41-D41)/D41%),((C41-D41)/D41%),"X") -> -4.652925708 | J41: =IF(ISNUMBER((C41-H41)/H41%),((C41-H41)/H41%),"X") -> -21.08657481
A42: 3 bis unter 6 Jahren | C42: ='Vorl 2.1'!D32 -> 337925 | D42: ='Vorl 2.1'!E32 -> 354748.3555 | E42: ='Vorl 2.1'!F32 -> 359502 | F42: ='Vorl 2.1'!G32 -> 353787 | G42: ='Vorl 2.1'!H32 -> 364965 | H42: ='Vorl 2.1'!I32 -> 355335 | I42: =IF(ISNUMBER((C42-D42)/D42%),((C42-D42)/D42%),"X") -> -4.742335017 | J42: =IF(ISNUMBER((C42-H42)/H42%),((C42-H42)/H42%),"X") -> -4.899601784
A43: 6 bis unter 15 Jahren | C43: ='Vorl 2.1'!D33 -> 993138 | D43: ='Vorl 2.1'!E33 -> 1005948.846 | E43: ='Vorl 2.1'!F33 -> 970264 | F43: ='Vorl 2.1'!G33 -> 918589 | G43: ='Vorl 2.1'!H33 -> 955065 | H43: ='Vorl 2.1'!I33 -> 955326 | I43: =IF(ISNUMBER((C43-D43)/D43%),((C43-D43)/D43%),"X") -> -1.273508651 | J43: =IF(ISNUMBER((C43-H43)/H43%),((C43-H43)/H43%),"X") -> 3.958020613
A44: 15 bis unter 18 Jahren3) | C44: ='Vorl 2.1'!D34 -> 287140 | D44: ='Vorl 2.1'!E34 -> 282609.6213 | E44: ='Vorl 2.1'!F34 -> 268964 | F44: ='Vorl 2.1'!G34 -> 253254 | G44: ='Vorl 2.1'!H34 -> 257681 | H44: ='Vorl 2.1'!I34 -> 252361 | I44: =IF(ISNUMBER((C44-D44)/D44%),((C44-D44)/D44%),"X") -> 1.603051822 | J44: =IF(ISNUMBER((C44-H44)/H44%),((C44-H44)/H44%),"X") -> 13.78144801
A45: dar. (nach Regelbedarfsaltersstufen)4)
A46: unter 6 Jahren | C46: ='Vorl 2.1'!D36 -> 626453 | D46: ='Vorl 2.1'!E36 -> 657356.487 | E46: ='Vorl 2.1'!F36 -> 669080 | F46: ='Vorl 2.1'!G36 -> 674064 | G46: ='Vorl 2.1'!H36 -> 713695 | H46: ='Vorl 2.1'!I36 -> 720961 | I46: =IF(ISNUMBER((C46-D46)/D46%),((C46-D46)/D46%),"X") -> -4.701176248 | J46: =IF(ISNUMBER((C46-H46)/H46%),((C46-H46)/H46%),"X") -> -13.10861475
A47: 6 bis unter 14 Jahren | C47: ='Vorl 2.1'!D37 -> 892410 | D47: ='Vorl 2.1'!E37 -> 902989.3829 | E47: ='Vorl 2.1'!F37 -> 870496 | F47: ='Vorl 2.1'!G37 -> 827351 | G47: ='Vorl 2.1'!H37 -> 861236 | H47: ='Vorl 2.1'!I37 -> 861690 | I47: =IF(ISNUMBER((C47-D47)/D47%),((C47-D47)/D47%),"X") -> -1.171595488 | J47: =IF(ISNUMBER((C47-H47)/H47%),((C47-H47)/H47%),"X") -> 3.565087212
A48: 14 bis unter 18 Jahren | C48: ='Vorl 2.1'!D38 -> 387868 | D48: ='Vorl 2.1'!E38 -> 385569.084 | E48: ='Vorl 2.1'!F38 -> 368732 | F48: ='Vorl 2.1'!G38 -> 344492 | G48: ='Vorl 2.1'!H38 -> 351510 | H48: ='Vorl 2.1'!I38 -> 345997 | I48: =IF(ISNUMBER((C48-D48)/D48%),((C48-D48)/D48%),"X") -> 0.5962397073 | J48: =IF(ISNUMBER((C48-H48)/H48%),((C48-H48)/H48%),"X") -> 12.10155001
A49: Nachrichtlich: Personen unter 25 Jahren | C49: ='Vorl 2.1'!D39 -> 2426960 | D49: ='Vorl 2.1'!E39 -> 2412473.54 | E49: ='Vorl 2.1'!F39 -> 2349073 | F49: ='Vorl 2.1'!G39 -> 2309684 | G49: ='Vorl 2.1'!H39 -> 2434315 | H49: ='Vorl 2.1'!I39 -> 2440936 | I49: =IF(ISNUMBER((C49-D49)/D49%),((C49-D49)/D49%),"X") -> 0.6004816069 | J49: =IF(ISNUMBER((C49-H49)/H49%),((C49-H49)/H49%),"X") -> -0.5725672447
A50: Hinweis: Nicht plausible Werte werden mit "." ausgewiesen. | J50: © Statistik der Bundesagentur für Arbeit
A51: Hinweis: Veränderungswerte > 250% werden mit ".X" gekennzeichnet.
A52: 1) Für Kinder unter 18 Jahren, die eine doppelter Staatsangehörigkeit besitzen, kann bei Antragstellung nur eine Staatsbürgerschaft erfasst werden.
A53: 2) alle minderjährigen Personen unter 18 Jahren in Bedarfsgemeinschaften
A54: 3) minderjährige, unverheiratete Kinder unter 18 Jahren in Bedarfsgemeinschaften
A55: 4) Der Regelbedarf der Kinder unter 6 Jahren beträgt 357 Euro, der 6 bis 13-Jährigen 390 Euro und der Jugendlichen von 14 bis unter 18 Jahren 471 Euro (Stand 01.01.2024).
A56: 5) Die Zählweise von Ausländern hat sich im Vergleich zu früheren Publikationen geändert. Staatenlose und Personen ohne Angabe zur Staatsangehörigkeit werden nun mehr unter „Keine Angabe“, sondern zu den Ausländern gezählt.
A58: Details dazu finden Sie in der Hintergrundinfo „Statistiken nach Staatsangehörigkeit – neue Zuordnung von Staatenlosen und Personen ohne Angabe der Staatsangehörigkeit“ auf unserer Internetseite Grundlagen > Methodik und Qualität > Methodenberichte und Hintergrundinfos > Übergreifende Themen.
C79: ='Vorl 2.1'!D22 -> 18151 | D79: ='Vorl 2.1'!E22 -> 18690.62493 | E79: ='Vorl 2.1'!F22 -> 18777 | F79: ='Vorl 2.1'!G22 -> 18228 | G79: ='Vorl 2.1'!H22 -> 16601 | H79: ='Vorl 2.1'!I22 -> 14383

Sheet 2.2
L1: Grundsicherung für Arbeitsuchende (SGBII)
A3: 2.2 Bestand und Veränderung der Anzahl der Kinder unter 18 Jahren in Bedarfsgemeinschaften nach Altersstufen gegenüber dem Vorjahresmonat in %
A24: Tabelle 2.2 Bestand an Kindern unter 18 Jahren in Bedarfsgemeinschaften nach ausgewählten Altersklassen
A27: Berichtsmonat Juni 2024
A28: Bund, Länder, Kreise und kreisfreie Städte
A30: Region | C30: Insgesamt | H30: Veränderung zum Vorjahresmonat
C32: Kinder unter 18 Jahren1) | D32: davon | H32: Kinder unter 18 Jahren1) | I32: davon
D33: unter 3 Jahren | E33: 3 bis unter 6 Jahren | F33: 6 bis unter 15 Jahren | G33: 15 bis unter 18 Jahren | I33: unter 3 Jahren | J33: 3 bis unter 6 Jahren | K33: 6 bis unter 15 Jahren | L33: 15 bis unter 18 Jahren
C34: 1 | D34: 2 | E34: 3 | F34: 4 | G34: 5 | H34: 6 | I34: 7 | J34: 8 | K34: 9 | L34: 10
A35: Deutschland | C35: ='2.2 Daten'!E4 -> 1906731 | D35: ='2.2 Daten'!F4 -> 288528 | E35: ='2.2 Daten'!G4 -> 337925 | F35: ='2.2 Daten'!H4 -> 993138 | G35: ='2.2 Daten'!I4 -> 287140 | H35: ='2.2 Daten'!K4 -> -2.013651925 | I35: ='2.2 Daten'!L4 -> -4.652925708 | J35: ='2.2 Daten'!M4 -> -4.742335017 | K35: ='2.2 Daten'!N4 -> -1.273508651 | L35: ='2.2 Daten'!O4 -> 1.603051822
A36: Westdeutschland | C36: ='2.2 Daten'!E5 -> 1502538 | D36: ='2.2 Daten'!F5 -> 226470 | E36: ='2.2 Daten'!G5 -> 267101 | F36: ='2.2 Daten'!H5 -> 782176 | G36: ='2.2 Daten'!I5 -> 226791 | H36: ='2.2 Daten'!K5 -> -2.013671101 | I36: ='2.2 Daten'!L5 -> -4.474126829 | J36: ='2.2 Daten'!M5 -> -4.742308657 | K36: ='2.2 Daten'!N5 -> -1.296964566 | L36: ='2.2 Daten'!O5 -> 1.478557716
A37: Ostdeutschland | C37: ='2.2 Daten'!E6 -> 404193 | D37: ='2.2 Daten'!F6 -> 62058 | E37: ='2.2 Daten'!G6 -> 70824 | F37: ='2.2 Daten'!H6 -> 210962 | G37: ='2.2 Daten'!I6 -> 60349 | H37: ='2.2 Daten'!K6 -> -2.013580639 | I37: ='2.2 Daten'!L6 -> -5.299781783 | J37: ='2.2 Daten'!M6 -> -4.742434432 | K37: ='2.2 Daten'!N6 -> -1.186444647 | L37: ='2.2 Daten'!O6 -> 2.073643083
A38: =CHOOSE('2.2 Daten'!$A$2,'2.2 Daten'!B460,'2.2 Daten'!B9,'2.2 Daten'!B26,'2.2 Daten'!B43,'2.2 Daten'!B46,'2.2 Daten'!B93,'2.2 Daten'!B97,'2.2 Daten'!B152,'2.2 Daten'!B180,'2.2 Daten'!B218,'2.2 Daten'!B264,'2.2 Daten'!B362,'2.2 Daten'!B370,'2.2 Daten'!B373,'2.2 Daten'!B393,'2.2 Daten'!B403,'2.2 Daten'!B418,'2.2 Daten'!B434,x) -> Schleswig-Holstein | B38: =IF($A38<>0,INDEX('2.2 Daten'!C$9:C$859,MATCH('2.2'!$A38,'2.2 Daten'!$B$9:$B$859,0))," ") -> 01 | C38: =IF($A38<>0,INDEX('2.2 Daten'!E$9:E$859,MATCH('2.2'!$A38,'2.2 Daten'!$B$9:$B$859,0))) -> 67915 | D38: =IF($A38<>0,INDEX('2.2 Daten'!F$9:F$859,MATCH('2.2'!$A38,'2.2 Daten'!$B$9:$B$859,0))) -> 10191 | E38: =IF($A38<>0,INDEX('2.2 Daten'!G$9:G$859,MATCH('2.2'!$A38,'2.2 Daten'!$B$9:$B$859,0))) -> 11878 | F38: =IF($A38<>0,INDEX('2.2 Daten'!H$9:H$859,MATCH('2.2'!$A38,'2.2 Daten'!$B$9:$B$859,0))) -> 35510 | G38: =IF($A38<>0,INDEX('2.2 Daten'!I$9:I$859,MATCH('2.2'!$A38,'2.2 Daten'!$B$9:$B$859,0))) -> 10336 | H38: =IF($A38<>0,INDEX('2.2 Daten'!K$9:K$859,MATCH('2.2'!$A38,'2.2 Daten'!$B$9:$B$859,0))) -> -2.081921596 | I38: =IF($A38<>0,INDEX('2.2 Daten'!L$9:L$859,MATCH('2.2'!$A38,'2.2 Daten'!$B$9:$B$859,0))) -> -3.785876133 | J38: =IF($A38<>0,INDEX('2.2 Daten'!M$9:M$859,MATCH('2.2'!$A38,'2.2 Daten'!$B$9:$B$859,0))) -> -5.894469973 | K38: =IF($A38<>0,INDEX('2.2 Daten'!N$9:N$859,MATCH('2.2'!$A38,'2.2 Daten'!$B$9:$B$859,0))) -> -1.020180622 | L38: =IF($A38<>0,INDEX('2.2 Daten'!O$9:O$859,MATCH('2.2'!$A38,'2.2 Daten'!$B$9:$B$859,0))) -> 0.6524491187
A39: =CHOOSE('2.2 Daten'!$A$2,'2.2 Daten'!B461,'2.2 Daten'!B10,'2.2 Daten'!B27,'2.2 Daten'!B44,'2.2 Daten'!B47,'2.2 Daten'!B94,'2.2 Daten'!B98,'2.2 Daten'!B153,'2.2 Daten'!B181,'2.2 Daten'!B219,'2.2 Daten'!B265,'2.2 Daten'!B363,'2.2 Daten'!B371,'2.2 Daten'!B374,'2.2 Daten'!B394,'2.2 Daten'!B404,'2.2 Daten'!B419,'2.2 Daten'!B435,x) -> Hamburg | B39: =IF($A39<>0,INDEX('2.2 Daten'!C$9:C$859,MATCH('2.2'!$A39,'2.2 Daten'!$B$9:$B$859,0))," ") -> 02 | C39: =IF($A39<>0,INDEX('2.2 Daten'!E$9:E$859,MATCH('2.2'!$A39,'2.2 Daten'!$B$9:$B$859,0))) -> 65161 | D39: =IF($A39<>0,INDEX('2.2 Daten'!F$9:F$859,MATCH('2.2'!$A39,'2.2 Daten'!$B$9:$B$859,0))) -> 10468 | E39: =IF($A39<>0,INDEX('2.2 Daten'!G$9:G$859,MATCH('2.2'!$A39,'2.2 Daten'!$B$9:$B$859,0))) -> 11528 | F39: =IF($A39<>0,INDEX('2.2 Daten'!H$9:H$859,MATCH('2.2'!$A39,'2.2 Daten'!$B$9:$B$859,0))) -> 33387 | G39: =IF($A39<>0,INDEX('2.2 Daten'!I$9:I$859,MATCH('2.2'!$A39,'2.2 Daten'!$B$9:$B$859,0))) -> 9778 | H39: =IF($A39<>0,INDEX('2.2 Daten'!K$9:K$859,MATCH('2.2'!$A39,'2.2 Daten'!$B$9:$B$859,0))) -> -0.3821987128 | I39: =IF($A39<>0,INDEX('2.2 Daten'!L$9:L$859,MATCH('2.2'!$A39,'2.2 Daten'!$B$9:$B$859,0))) -> -1.03053796 | J39: =IF($A39<>0,INDEX('2.2 Daten'!M$9:M$859,MATCH('2.2'!$A39,'2.2 Daten'!$B$9:$B$859,0))) -> -4.133056133 | K39: =IF($A39<>0,INDEX('2.2 Daten'!N$9:N$859,MATCH('2.2'!$A39,'2.2 Daten'!$B$9:$B$859,0))) -> 0.2702946211 | L39: =IF($A39<>0,INDEX('2.2 Daten'!O$9:O$859,MATCH('2.2'!$A39,'2.2 Daten'!$B$9:$B$859,0))) -> 2.79646762
A40: =CHOOSE('2.2 Daten'!$A$2,'2.2 Daten'!B462,'2.2 Daten'!B11,'2.2 Daten'!B28,'2.2 Daten'!B45,'2.2 Daten'!B48,'2.2 Daten'!B95,'2.2 Daten'!B99,'2.2 Daten'!B154,'2.2 Daten'!B182,'2.2 Daten'!B220,'2.2 Daten'!B266,'2.2 Daten'!B364,'2.2 Daten'!B372,'2.2 Daten'!B375,'2.2 Daten'!B395,'2.2 Daten'!B405,'2.2 Daten'!B420,'2.2 Daten'!B436,x) -> Niedersachsen | B40: =IF($A40<>0,INDEX('2.2 Daten'!C$9:C$859,MATCH('2.2'!$A40,'2.2 Daten'!$B$9:$B$859,0))," ") -> 03 | C40: =IF($A40<>0,INDEX('2.2 Daten'!E$9:E$859,MATCH('2.2'!$A40,'2.2 Daten'!$B$9:$B$859,0))) -> 189095 | D40: =IF($A40<>0,INDEX('2.2 Daten'!F$9:F$859,MATCH('2.2'!$A40,'2.2 Daten'!$B$9:$B$859,0))) -> 28558 | E40: =IF($A40<>0,INDEX('2.2 Daten'!G$9:G$859,MATCH('2.2'!$A40,'2.2 Daten'!$B$9:$B$859,0))) -> 33413 | F40: =IF($A40<>0,INDEX('2.2 Daten'!H$9:H$859,MATCH('2.2'!$A40,'2.2 Daten'!$B$9:$B$859,0))) -> 98237 | G40: =IF($A40<>0,INDEX('2.2 Daten'!I$9:I$859,MATCH('2.2'!$A40,'2.2 Daten'!$B$9:$B$859,0))) -> 28887 | H40: =IF($A40<>0,INDEX('2.2 Daten'!K$9:K$859,MATCH('2.2'!$A40,'2.2 Daten'!$B$9:$B$859,0))) -> -4.122195462 | I40: =IF($A40<>0,INDEX('2.2 Daten'!L$9:L$859,MATCH('2.2'!$A40,'2.2 Daten'!$B$9:$B$859,0))) -> -6.828488467 | J40: =IF($A40<>0,INDEX('2.2 Daten'!M$9:M$859,MATCH('2.2'!$A40,'2.2 Daten'!$B$9:$B$859,0))) -> -6.224916505 | K40: =IF($A40<>0,INDEX('2.2 Daten'!N$9:N$859,MATCH('2.2'!$A40,'2.2 Daten'!$B$9:$B$859,0))) -> -3.815575616 | L40: =IF($A40<>0,INDEX('2.2 Daten'!O$9:O$859,MATCH('2.2'!$A40,'2.2 Daten'!$B$9:$B$859,0))) -> 0.2707487244
A41: =CHOOSE('2.2 Daten'!$A$2,'2.2 Daten'!B463,'2.2 Daten'!B12,'2.2 Daten'!B29,'2.2 Daten'!B46,'2.2 Daten'!B49,'2.2 Daten'!B96,'2.2 Daten'!B100,'2.2 Daten'!B155,'2.2 Daten'!B183,'2.2 Daten'!B221,'2.2 Daten'!B267,'2.2 Daten'!B365,'2.2 Daten'!B373,'2.2 Daten'!B376,'2.2 Daten'!B396,'2.2 Daten'!B406,'2.2 Daten'!B421,'2.2 Daten'!B437,x) -> Bremen | B41: =IF($A41<>0,INDEX('2.2 Daten'!C$9:C$859,MATCH('2.2'!$A41,'2.2 Daten'!$B$9:$B$859,0))," ") -> 04 | C41: =IF($A41<>0,INDEX('2.2 Daten'!E$9:E$859,MATCH('2.2'!$A41,'2.2 Daten'!$B$9:$B$859,0))) -> 35303 | D41: =IF($A41<>0,INDEX('2.2 Daten'!F$9:F$859,MATCH('2.2'!$A41,'2.2 Daten'!$B$9:$B$859,0))) -> 5886 | E41: =IF($A41<>0,INDEX('2.2 Daten'!G$9:G$859,MATCH('2.2'!$A41,'2.2 Daten'!$B$9:$B$859,0))) -> 6885 | F41: =IF($A41<>0,INDEX('2.2 Daten'!H$9:H$859,MATCH('2.2'!$A41,'2.2 Daten'!$B$9:$B$859,0))) -> 17681 | G41: =IF($A41<>0,INDEX('2.2 Daten'!I$9:I$859,MATCH('2.2'!$A41,'2.2 Daten'!$B$9:$B$859,0))) -> 4851 | H41: =IF($A41<>0,INDEX('2.2 Daten'!K$9:K$859,MATCH('2.2'!$A41,'2.2 Daten'!$B$9:$B$859,0))) -> -0.8871669615 | I41: =IF($A41<>0,INDEX('2.2 Daten'!L$9:L$859,MATCH('2.2'!$A41,'2.2 Daten'!$B$9:$B$859,0))) -> -1.506024096 | J41: =IF($A41<>0,INDEX('2.2 Daten'!M$9:M$859,MATCH('2.2'!$A41,'2.2 Daten'!$B$9:$B$859,0))) -> -4.705882353 | K41: =IF($A41<>0,INDEX('2.2 Daten'!N$9:N$859,MATCH('2.2'!$A41,'2.2 Daten'!$B$9:$B$859,0))) -> 0.8498745152 | L41: =IF($A41<>0,INDEX('2.2 Daten'!O$9:O$859,MATCH('2.2'!$A41,'2.2 Daten'!$B$9:$B$859,0))) -> -0.7163323782
A42: =CHOOSE('2.2 Daten'!$A$2,'2.2 Daten'!B464,'2.2 Daten'!B13,'2.2 Daten'!B30,'2.2 Daten'!B47,'2.2 Daten'!B50,'2.2 Daten'!B97,'2.2 Daten'!B101,'2.2 Daten'!B156,'2.2 Daten'!B184,'2.2 Daten'!B222,'2.2 Daten'!B268,'2.2 Daten'!B366,'2.2 Daten'!B374,'2.2 Daten'!B377,'2.2 Daten'!B397,'2.2 Daten'!B407,'2.2 Daten'!B422,'2.2 Daten'!B438,x) -> Nordrhein-Westfalen | B42: =IF($A42<>0,INDEX('2.2 Daten'!C$9:C$859,MATCH('2.2'!$A42,'2.2 Daten'!$B$9:$B$859,0))," ") -> 05 | C42: =IF($A42<>0,INDEX('2.2 Daten'!E$9:E$859,MATCH('2.2'!$A42,'2.2 Daten'!$B$9:$B$859,0))) -> 549521 | D42: =IF($A42<>0,INDEX('2.2 Daten'!F$9:F$859,MATCH('2.2'!$A42,'2.2 Daten'!$B$9:$B$859,0))) -> 81706 | E42: =IF($A42<>0,INDEX('2.2 Daten'!G$9:G$859,MATCH('2.2'!$A42,'2.2 Daten'!$B$9:$B$859,0))) -> 96165 | F42: =IF($A42<>0,INDEX('2.2 Daten'!H$9:H$859,MATCH('2.2'!$A42,'2.2 Daten'!$B$9:$B$859,0))) -> 286649 | G42: =IF($A42<>0,INDEX('2.2 Daten'!I$9:I$859,MATCH('2.2'!$A42,'2.2 Daten'!$B$9:$B$859,0))) -> 85001 | H42: =IF($A42<>0,INDEX('2.2 Daten'!K$9:K$859,MATCH('2.2'!$A42,'2.2 Daten'!$B$9:$B$859,0))) -> -2.506005542 | I42: =IF($A42<>0,INDEX('2.2 Daten'!L$9:L$859,MATCH('2.2'!$A42,'2.2 Daten'!$B$9:$B$859,0))) -> -5.122101327 | J42: =IF($A42<>0,INDEX('2.2 Daten'!M$9:M$859,MATCH('2.2'!$A42,'2.2 Daten'!$B$9:$B$859,0))) -> -5.377349208 | K42: =IF($A42<>0,INDEX('2.2 Daten'!N$9:N$859,MATCH('2.2'!$A42,'2.2 Daten'!$B$9:$B$859,0))) -> -1.655716614 | L42: =IF($A42<>0,INDEX('2.2 Daten'!O$9:O$859,MATCH('2.2'!$A42,'2.2 Daten'!$B$9:$B$859,0))) -> 0.6834549417
A43: =CHOOSE('2.2 Daten'!$A$2,'2.2 Daten'!B465,'2.2 Daten'!B14,'2.2 Daten'!B31,'2.2 Daten'!B48,'2.2 Daten'!B51,'2.2 Daten'!B98,'2.2 Daten'!B102,'2.2 Daten'!B157,'2.2 Daten'!B185,'2.2 Daten'!B223,'2.2 Daten'!B269,'2.2 Daten'!B367,'2.2 Daten'!B375,'2.2 Daten'!B378,'2.2 Daten'!B398,'2.2 Daten'!B408,'2.2 Daten'!B423,'2.2 Daten'!B439,x) -> Hessen | B43: =IF($A43<>0,INDEX('2.2 Daten'!C$9:C$859,MATCH('2.2'!$A43,'2.2 Daten'!$B$9:$B$859,0))," ") -> 06 | C43: =IF($A43<>0,INDEX('2.2 Daten'!E$9:E$859,MATCH('2.2'!$A43,'2.2 Daten'!$B$9:$B$859,0))) -> 150602 | D43: =IF($A43<>0,INDEX('2.2 Daten'!F$9:F$859,MATCH('2.2'!$A43,'2.2 Daten'!$B$9:$B$859,0))) -> 22208 | E43: =IF($A43<>0,INDEX('2.2 Daten'!G$9:G$859,MATCH('2.2'!$A43,'2.2 Daten'!$B$9:$B$859,0))) -> 26680 | F43: =IF($A43<>0,INDEX('2.2 Daten'!H$9:H$859,MATCH('2.2'!$A43,'2.2 Daten'!$B$9:$B$859,0))) -> 78790 | G43: =IF($A43<>0,INDEX('2.2 Daten'!I$9:I$859,MATCH('2.2'!$A43,'2.2 Daten'!$B$9:$B$859,0))) -> 22924 | H43: =IF($A43<>0,INDEX('2.2 Daten'!K$9:K$859,MATCH('2.2'!$A43,'2.2 Daten'!$B$9:$B$859,0))) -> -1.681061778 | I43: =IF($A43<>0,INDEX('2.2 Daten'!L$9:L$859,MATCH('2.2'!$A43,'2.2 Daten'!$B$9:$B$859,0))) -> -5.385139741 | J43: =IF($A43<>0,INDEX('2.2 Daten'!M$9:M$859,MATCH('2.2'!$A43,'2.2 Daten'!$B$9:$B$859,0))) -> -4.738101189 | K43: =IF($A43<>0,INDEX('2.2 Daten'!N$9:N$859,MATCH('2.2'!$A43,'2.2 Daten'!$B$9:$B$859,0))) -> -0.8007453479 | L43: =IF($A43<>0,INDEX('2.2 Daten'!O$9:O$859,MATCH('2.2'!$A43,'2.2 Daten'!$B$9:$B$859,0))) -> 2.927442529
A44: =CHOOSE('2.2 Daten'!$A$2,'2.2 Daten'!B466,'2.2 Daten'!B15,'2.2 Daten'!B32,'2.2 Daten'!B49,'2.2 Daten'!B52,'2.2 Daten'!B99,'2.2 Daten'!B103,'2.2 Daten'!B158,'2.2 Daten'!B186,'2.2 Daten'!B224,'2.2 Daten'!B270,'2.2 Daten'!B368,'2.2 Daten'!B376,'2.2 Daten'!B379,'2.2 Daten'!B399,'2.2 Daten'!B409,'2.2 Daten'!B424,'2.2 Daten'!B440,x) -> Rheinland-Pfalz | B44: =IF($A44<>0,INDEX('2.2 Daten'!C$9:C$859,MATCH('2.2'!$A44,'2.2 Daten'!$B$9:$B$859,0))," ") -> 07 | C44: =IF($A44<>0,INDEX('2.2 Daten'!E$9:E$859,MATCH('2.2'!$A44,'2.2 Daten'!$B$9:$B$859,0))) -> 80248 | D44: =IF($A44<>0,INDEX('2.2 Daten'!F$9:F$859,MATCH('2.2'!$A44,'2.2 Daten'!$B$9:$B$859,0))) -> 12492 | E44: =IF($A44<>0,INDEX('2.2 Daten'!G$9:G$859,MATCH('2.2'!$A44,'2.2 Daten'!$B$9:$B$859,0))) -> 14461 | F44: =IF($A44<>0,INDEX('2.2 Daten'!H$9:H$859,MATCH('2.2'!$A44,'2.2 Daten'!$B$9:$B$859,0))) -> 41591 | G44: =IF($A44<>0,INDEX('2.2 Daten'!I$9:I$859,MATCH('2.2'!$A44,'2.2 Daten'!$B$9:$B$859,0))) -> 11704 | H44: =IF($A44<>0,INDEX('2.2 Daten'!K$9:K$859,MATCH('2.2'!$A44,'2.2 Daten'!$B$9:$B$859,0))) -> -1.476961609 | I44: =IF($A44<>0,INDEX('2.2 Daten'!L$9:L$859,MATCH('2.2'!$A44,'2.2 Daten'!$B$9:$B$859,0))) -> -3.663144906 | J44: =IF($A44<>0,INDEX('2.2 Daten'!M$9:M$859,MATCH('2.2'!$A44,'2.2 Daten'!$B$9:$B$859,0))) -> -4.181023059 | K44: =IF($A44<>0,INDEX('2.2 Daten'!N$9:N$859,MATCH('2.2'!$A44,'2.2 Daten'!$B$9:$B$859,0))) -> -0.7635227029 | L44: =IF($A44<>0,INDEX('2.2 Daten'!O$9:O$859,MATCH('2.2'!$A44,'2.2 Daten'!$B$9:$B$859,0))) -> 1.942339517
A45: =CHOOSE('2.2 Daten'!$A$2,'2.2 Daten'!B467,'2.2 Daten'!B16,'2.2 Daten'!B33,'2.2 Daten'!B50,'2.2 Daten'!B53,'2.2 Daten'!B100,'2.2 Daten'!B104,'2.2 Daten'!B159,'2.2 Daten'!B187,'2.2 Daten'!B225,'2.2 Daten'!B271,'2.2 Daten'!B369,'2.2 Daten'!B377,'2.2 Daten'!B380,'2.2 Daten'!B400,'2.2 Daten'!B410,'2.2 Daten'!B425,'2.2 Daten'!B441,x) -> Baden-Württemberg | B45: =IF($A45<>0,INDEX('2.2 Daten'!C$9:C$859,MATCH('2.2'!$A45,'2.2 Daten'!$B$9:$B$859,0))," ") -> 08 | C45: =IF($A45<>0,INDEX('2.2 Daten'!E$9:E$859,MATCH('2.2'!$A45,'2.2 Daten'!$B$9:$B$859,0))) -> 176892 | D45: =IF($A45<>0,INDEX('2.2 Daten'!F$9:F$859,MATCH('2.2'!$A45,'2.2 Daten'!$B$9:$B$859,0))) -> 26401 | E45: =IF($A45<>0,INDEX('2.2 Daten'!G$9:G$859,MATCH('2.2'!$A45,'2.2 Daten'!$B$9:$B$859,0))) -> 31825 | F45: =IF($A45<>0,INDEX('2.2 Daten'!H$9:H$859,MATCH('2.2'!$A45,'2.2 Daten'!$B$9:$B$859,0))) -> 92623 | G45: =IF($A45<>0,INDEX('2.2 Daten'!I$9:I$859,MATCH('2.2'!$A45,'2.2 Daten'!$B$9:$B$859,0))) -> 26043 | H45: =IF($A45<>0,INDEX('2.2 Daten'!K$9:K$859,MATCH('2.2'!$A45,'2.2 Daten'!$B$9:$B$859,0))) -> -0.5106603832 | I45: =IF($A45<>0,INDEX('2.2 Daten'!L$9:L$859,MATCH('2.2'!$A45,'2.2 Daten'!$B$9:$B$859,0))) -> -2.701879537 | J45: =IF($A45<>0,INDEX('2.2 Daten'!M$9:M$859,MATCH('2.2'!$A45,'2.2 Daten'!$B$9:$B$859,0))) -> -2.783924697 | K45: =IF($A45<>0,INDEX('2.2 Daten'!N$9:N$859,MATCH('2.2'!$A45,'2.2 Daten'!$B$9:$B$859,0))) -> -0.04407930348 | L45: =IF($A45<>0,INDEX('2.2 Daten'!O$9:O$859,MATCH('2.2'!$A45,'2.2 Daten'!$B$9:$B$859,0))) -> 3.076823938
A46: =CHOOSE('2.2 Daten'!$A$2,'2.2 Daten'!B468,'2.2 Daten'!B17,'2.2 Daten'!B34,'2.2 Daten'!B51,'2.2 Daten'!B54,'2.2 Daten'!B101,'2.2 Daten'!B105,'2.2 Daten'!B160,'2.2 Daten'!B188,'2.2 Daten'!B226,'2.2 Daten'!B272,'2.2 Daten'!B370,'2.2 Daten'!B378,'2.2 Daten'!B381,'2.2 Daten'!B401,'2.2 Daten'!B411,'2.2 Daten'!B426,'2.2 Daten'!B442,x) -> Bayern | B46: =IF($A46<>0,INDEX('2.2 Daten'!C$9:C$859,MATCH('2.2'!$A46,'2.2 Daten'!$B$9:$B$859,0))," ") -> 09 | C46: =IF($A46<>0,INDEX('2.2 Daten'!E$9:E$859,MATCH('2.2'!$A46,'2.2 Daten'!$B$9:$B$859,0))) -> 159742 | D46: =IF($A46<>0,INDEX('2.2 Daten'!F$9:F$859,MATCH('2.2'!$A46,'2.2 Daten'!$B$9:$B$859,0))) -> 24275 | E46: =IF($A46<>0,INDEX('2.2 Daten'!G$9:G$859,MATCH('2.2'!$A46,'2.2 Daten'!$B$9:$B$859,0))) -> 29227 | F46: =IF($A46<>0,INDEX('2.2 Daten'!H$9:H$859,MATCH('2.2'!$A46,'2.2 Daten'!$B$9:$B$859,0))) -> 83228 | G46: =IF($A46<>0,INDEX('2.2 Daten'!I$9:I$859,MATCH('2.2'!$A46,'2.2 Daten'!$B$9:$B$859,0))) -> 23012 | H46: =IF($A46<>0,INDEX('2.2 Daten'!K$9:K$859,MATCH('2.2'!$A46,'2.2 Daten'!$B$9:$B$859,0))) -> -0.8121701335 | I46: =IF($A46<>0,INDEX('2.2 Daten'!L$9:L$859,MATCH('2.2'!$A46,'2.2 Daten'!$B$9:$B$859,0))) -> -3.221305267 | J46: =IF($A46<>0,INDEX('2.2 Daten'!M$9:M$859,MATCH('2.2'!$A46,'2.2 Daten'!$B$9:$B$859,0))) -> -3.160929061 | K46: =IF($A46<>0,INDEX('2.2 Daten'!N$9:N$859,MATCH('2.2'!$A46,'2.2 Daten'!$B$9:$B$859,0))) -> -0.2552701909 | L46: =IF($A46<>0,INDEX('2.2 Daten'!O$9:O$859,MATCH('2.2'!$A46,'2.2 Daten'!$B$9:$B$859,0))) -> 2.985007832
A47: =CHOOSE('2.2 Daten'!$A$2,'2.2 Daten'!B469,'2.2 Daten'!B18,'2.2 Daten'!B35,'2.2 Daten'!B52,'2.2 Daten'!B55,'2.2 Daten'!B102,'2.2 Daten'!B106,'2.2 Daten'!B161,'2.2 Daten'!B189,'2.2 Daten'!B227,'2.2 Daten'!B273,'2.2 Daten'!B371,'2.2 Daten'!B379,'2.2 Daten'!B382,'2.2 Daten'!B402,'2.2 Daten'!B412,'2.2 Daten'!B427,'2.2 Daten'!B443,x) -> Saarland | B47: =IF($A47<>0,INDEX('2.2 Daten'!C$9:C$859,MATCH('2.2'!$A47,'2.2 Daten'!$B$9:$B$859,0))," ") -> 10 | C47: =IF($A47<>0,INDEX('2.2 Daten'!E$9:E$859,MATCH('2.2'!$A47,'2.2 Daten'!$B$9:$B$859,0))) -> 28059 | D47: =IF($A47<>0,INDEX('2.2 Daten'!F$9:F$859,MATCH('2.2'!$A47,'2.2 Daten'!$B$9:$B$859,0))) -> 4285 | E47: =IF($A47<>0,INDEX('2.2 Daten'!G$9:G$859,MATCH('2.2'!$A47,'2.2 Daten'!$B$9:$B$859,0))) -> 5039 | F47: =IF($A47<>0,INDEX('2.2 Daten'!H$9:H$859,MATCH('2.2'!$A47,'2.2 Daten'!$B$9:$B$859,0))) -> 14480 | G47: =IF($A47<>0,INDEX('2.2 Daten'!I$9:I$859,MATCH('2.2'!$A47,'2.2 Daten'!$B$9:$B$859,0))) -> 4255 | H47: =IF($A47<>0,INDEX('2.2 Daten'!K$9:K$859,MATCH('2.2'!$A47,'2.2 Daten'!$B$9:$B$859,0))) -> -2.158448985 | I47: =IF($A47<>0,INDEX('2.2 Daten'!L$9:L$859,MATCH('2.2'!$A47,'2.2 Daten'!$B$9:$B$859,0))) -> -4.946761313 | J47: =IF($A47<>0,INDEX('2.2 Daten'!M$9:M$859,MATCH('2.2'!$A47,'2.2 Daten'!$B$9:$B$859,0))) -> -4.00076205 | K47: =IF($A47<>0,INDEX('2.2 Daten'!N$9:N$859,MATCH('2.2'!$A47,'2.2 Daten'!$B$9:$B$859,0))) -> -1.483194993 | L47: =IF($A47<>0,INDEX('2.2 Daten'!O$9:O$859,MATCH('2.2'!$A47,'2.2 Daten'!$B$9:$B$859,0))) -> 0.7577551504
A48: =CHOOSE('2.2 Daten'!$A$2,'2.2 Daten'!B470,'2.2 Daten'!B19,'2.2 Daten'!B36,'2.2 Daten'!B53,'2.2 Daten'!B56,'2.2 Daten'!B103,'2.2 Daten'!B107,'2.2 Daten'!B162,'2.2 Daten'!B190,'2.2 Daten'!B228,'2.2 Daten'!B274,'2.2 Daten'!B372,'2.2 Daten'!B380,'2.2 Daten'!B383,'2.2 Daten'!B403,'2.2 Daten'!B413,'2.2 Daten'!B428,'2.2 Daten'!B444,x) -> Berlin | B48: =IF($A48<>0,INDEX('2.2 Daten'!C$9:C$859,MATCH('2.2'!$A48,'2.2 Daten'!$B$9:$B$859,0))," ") -> 11 | C48: =IF($A48<>0,INDEX('2.2 Daten'!E$9:E$859,MATCH('2.2'!$A48,'2.2 Daten'!$B$9:$B$859,0))) -> 150747 | D48: =IF($A48<>0,INDEX('2.2 Daten'!F$9:F$859,MATCH('2.2'!$A48,'2.2 Daten'!$B$9:$B$859,0))) -> 24057 | E48: =IF($A48<>0,INDEX('2.2 Daten'!G$9:G$859,MATCH('2.2'!$A48,'2.2 Daten'!$B$9:$B$859,0))) -> 26639 | F48: =IF($A48<>0,INDEX('2.2 Daten'!H$9:H$859,MATCH('2.2'!$A48,'2.2 Daten'!$B$9:$B$859,0))) -> 76892 | G48: =IF($A48<>0,INDEX('2.2 Daten'!I$9:I$859,MATCH('2.2'!$A48,'2.2 Daten'!$B$9:$B$859,0))) -> 23159 | H48: =IF($A48<>0,INDEX('2.2 Daten'!K$9:K$859,MATCH('2.2'!$A48,'2.2 Daten'!$B$9:$B$859,0))) -> -2.173955366 | I48: =IF($A48<>0,INDEX('2.2 Daten'!L$9:L$859,MATCH('2.2'!$A48,'2.2 Daten'!$B$9:$B$859,0))) -> -4.307875895 | J48: =IF($A48<>0,INDEX('2.2 Daten'!M$9:M$859,MATCH('2.2'!$A48,'2.2 Daten'!$B$9:$B$859,0))) -> -4.351728843 | K48: =IF($A48<>0,INDEX('2.2 Daten'!N$9:N$859,MATCH('2.2'!$A48,'2.2 Daten'!$B$9:$B$859,0))) -> -1.306635862 | L48: =IF($A48<>0,INDEX('2.2 Daten'!O$9:O$859,MATCH('2.2'!$A48,'2.2 Daten'!$B$9:$B$859,0))) -> -0.1595102604
A49: =CHOOSE('2.2 Daten'!$A$2,'2.2 Daten'!B471,'2.2 Daten'!B20,'2.2 Daten'!B37,'2.2 Daten'!B54,'2.2 Daten'!B57,'2.2 Daten'!B104,'2.2 Daten'!B108,'2.2 Daten'!B163,'2.2 Daten'!B191,'2.2 Daten'!B229,'2.2 Daten'!B275,'2.2 Daten'!B373,'2.2 Daten'!B381,'2.2 Daten'!B384,'2.2 Daten'!B404,'2.2 Daten'!B414,'2.2 Daten'!B429,'2.2 Daten'!B445,x) -> Brandenburg | B49: =IF($A49<>0,INDEX('2.2 Daten'!C$9:C$859,MATCH('2.2'!$A49,'2.2 Daten'!$B$9:$B$859,0))," ") -> 12 | C49: =IF($A49<>0,INDEX('2.2 Daten'!E$9:E$859,MATCH('2.2'!$A49,'2.2 Daten'!$B$9:$B$859,0))) -> 46558 | D49: =IF($A49<>0,INDEX('2.2 Daten'!F$9:F$859,MATCH('2.2'!$A49,'2.2 Daten'!$B$9:$B$859,0))) -> 6847 | E49: =IF($A49<>0,INDEX('2.2 Daten'!G$9:G$859,MATCH('2.2'!$A49,'2.2 Daten'!$B$9:$B$859,0))) -> 8091 | F49: =IF($A49<>0,INDEX('2.2 Daten'!H$9:H$859,MATCH('2.2'!$A49,'2.2 Daten'!$B$9:$B$859,0))) -> 24691 | G49: =IF($A49<>0,INDEX('2.2 Daten'!I$9:I$859,MATCH('2.2'!$A49,'2.2 Daten'!$B$9:$B$859,0))) -> 6929 | H49: =IF($A49<>0,INDEX('2.2 Daten'!K$9:K$859,MATCH('2.2'!$A49,'2.2 Daten'!$B$9:$B$859,0))) -> -1.604074645 | I49: =IF($A49<>0,INDEX('2.2 Daten'!L$9:L$859,MATCH('2.2'!$A49,'2.2 Daten'!$B$9:$B$859,0))) -> -7.134138071 | J49: =IF($A49<>0,INDEX('2.2 Daten'!M$9:M$859,MATCH('2.2'!$A49,'2.2 Daten'!$B$9:$B$859,0))) -> -5.05749824 | K49: =IF($A49<>0,INDEX('2.2 Daten'!N$9:N$859,MATCH('2.2'!$A49,'2.2 Daten'!$B$9:$B$859,0))) -> -0.5117253606 | L49: =IF($A49<>0,INDEX('2.2 Daten'!O$9:O$859,MATCH('2.2'!$A49,'2.2 Daten'!$B$9:$B$859,0))) -> 4.921259843
A50: =CHOOSE('2.2 Daten'!$A$2,'2.2 Daten'!B472,'2.2 Daten'!B21,'2.2 Daten'!B38,'2.2 Daten'!B55,'2.2 Daten'!B58,'2.2 Daten'!B105,'2.2 Daten'!B109,'2.2 Daten'!B164,'2.2 Daten'!B192,'2.2 Daten'!B230,'2.2 Daten'!B276,'2.2 Daten'!B374,'2.2 Daten'!B382,'2.2 Daten'!B385,'2.2 Daten'!B405,'2.2 Daten'!B415,'2.2 Daten'!B430,'2.2 Daten'!B446,x) -> Mecklenburg-Vorpommern | B50: =IF($A50<>0,INDEX('2.2 Daten'!C$9:C$859,MATCH('2.2'!$A50,'2.2 Daten'!$B$9:$B$859,0))," ") -> 13 | C50: =IF($A50<>0,INDEX('2.2 Daten'!E$9:E$859,MATCH('2.2'!$A50,'2.2 Daten'!$B$9:$B$859,0))) -> 34388 | D50: =IF($A50<>0,INDEX('2.2 Daten'!F$9:F$859,MATCH('2.2'!$A50,'2.2 Daten'!$B$9:$B$859,0))) -> 5020 | E50: =IF($A50<>0,INDEX('2.2 Daten'!G$9:G$859,MATCH('2.2'!$A50,'2.2 Daten'!$B$9:$B$859,0))) -> 5835 | F50: =IF($A50<>0,INDEX('2.2 Daten'!H$9:H$859,MATCH('2.2'!$A50,'2.2 Daten'!$B$9:$B$859,0))) -> 18404 | G50: =IF($A50<>0,INDEX('2.2 Daten'!I$9:I$859,MATCH('2.2'!$A50,'2.2 Daten'!$B$9:$B$859,0))) -> 5129 | H50: =IF($A50<>0,INDEX('2.2 Daten'!K$9:K$859,MATCH('2.2'!$A50,'2.2 Daten'!$B$9:$B$859,0))) -> -2.373381785 | I50: =IF($A50<>0,INDEX('2.2 Daten'!L$9:L$859,MATCH('2.2'!$A50,'2.2 Daten'!$B$9:$B$859,0))) -> -6.22081076 | J50: =IF($A50<>0,INDEX('2.2 Daten'!M$9:M$859,MATCH('2.2'!$A50,'2.2 Daten'!$B$9:$B$859,0))) -> -3.217780726 | K50: =IF($A50<>0,INDEX('2.2 Daten'!N$9:N$859,MATCH('2.2'!$A50,'2.2 Daten'!$B$9:$B$859,0))) -> -1.840098139 | L50: =IF($A50<>0,INDEX('2.2 Daten'!O$9:O$859,MATCH('2.2'!$A50,'2.2 Daten'!$B$9:$B$859,0))) -> 0.7068525427
A51: =CHOOSE('2.2 Daten'!$A$2,'2.2 Daten'!B473,'2.2 Daten'!B22,'2.2 Daten'!B39,'2.2 Daten'!B56,'2.2 Daten'!B59,'2.2 Daten'!B106,'2.2 Daten'!B110,'2.2 Daten'!B165,'2.2 Daten'!B193,'2.2 Daten'!B231,'2.2 Daten'!B277,'2.2 Daten'!B375,'2.2 Daten'!B383,'2.2 Daten'!B386,'2.2 Daten'!B406,'2.2 Daten'!B416,'2.2 Daten'!B431,'2.2 Daten'!B447,x) -> Sachsen | B51: =IF($A51<>0,INDEX('2.2 Daten'!C$9:C$859,MATCH('2.2'!$A51,'2.2 Daten'!$B$9:$B$859,0))," ") -> 14 | C51: =IF($A51<>0,INDEX('2.2 Daten'!E$9:E$859,MATCH('2.2'!$A51,'2.2 Daten'!$B$9:$B$859,0))) -> 78813 | D51: =IF($A51<>0,INDEX('2.2 Daten'!F$9:F$859,MATCH('2.2'!$A51,'2.2 Daten'!$B$9:$B$859,0))) -> 11810 | E51: =IF($A51<>0,INDEX('2.2 Daten'!G$9:G$859,MATCH('2.2'!$A51,'2.2 Daten'!$B$9:$B$859,0))) -> 13755 | F51: =IF($A51<>0,INDEX('2.2 Daten'!H$9:H$859,MATCH('2.2'!$A51,'2.2 Daten'!$B$9:$B$859,0))) -> 41685 | G51: =IF($A51<>0,INDEX('2.2 Daten'!I$9:I$859,MATCH('2.2'!$A51,'2.2 Daten'!$B$9:$B$859,0))) -> 11563 | H51: =IF($A51<>0,INDEX('2.2 Daten'!K$9:K$859,MATCH('2.2'!$A51,'2.2 Daten'!$B$9:$B$859,0))) -> -0.730542995 | I51: =IF($A51<>0,INDEX('2.2 Daten'!L$9:L$859,MATCH('2.2'!$A51,'2.2 Daten'!$B$9:$B$859,0))) -> -5.731162197 | J51: =IF($A51<>0,INDEX('2.2 Daten'!M$9:M$859,MATCH('2.2'!$A51,'2.2 Daten'!$B$9:$B$859,0))) -> -4.239766082 | K51: =IF($A51<>0,INDEX('2.2 Daten'!N$9:N$859,MATCH('2.2'!$A51,'2.2 Daten'!$B$9:$B$859,0))) -> 0.1321162623 | L51: =IF($A51<>0,INDEX('2.2 Daten'!O$9:O$859,MATCH('2.2'!$A51,'2.2 Daten'!$B$9:$B$859,0))) -> 6.365559746
A52: =CHOOSE('2.2 Daten'!$A$2,'2.2 Daten'!B474,'2.2 Daten'!B23,'2.2 Daten'!B40,'2.2 Daten'!B57,'2.2 Daten'!B60,'2.2 Daten'!B107,'2.2 Daten'!B111,'2.2 Daten'!B166,'2.2 Daten'!B194,'2.2 Daten'!B232,'2.2 Daten'!B278,'2.2 Daten'!B376,'2.2 Daten'!B384,'2.2 Daten'!B387,'2.2 Daten'!B407,'2.2 Daten'!B417,'2.2 Daten'!B432,'2.2 Daten'!B448,x) -> Sachsen-Anhalt | B52: =IF($A52<>0,INDEX('2.2 Daten'!C$9:C$859,MATCH('2.2'!$A52,'2.2 Daten'!$B$9:$B$859,0))," ") -> 15 | C52: =IF($A52<>0,INDEX('2.2 Daten'!E$9:E$859,MATCH('2.2'!$A52,'2.2 Daten'!$B$9:$B$859,0))) -> 53948 | D52: =IF($A52<>0,INDEX('2.2 Daten'!F$9:F$859,MATCH('2.2'!$A52,'2.2 Daten'!$B$9:$B$859,0))) -> 8338 | E52: =IF($A52<>0,INDEX('2.2 Daten'!G$9:G$859,MATCH('2.2'!$A52,'2.2 Daten'!$B$9:$B$859,0))) -> 9667 | F52: =IF($A52<>0,INDEX('2.2 Daten'!H$9:H$859,MATCH('2.2'!$A52,'2.2 Daten'!$B$9:$B$859,0))) -> 28162 | G52: =IF($A52<>0,INDEX('2.2 Daten'!I$9:I$859,MATCH('2.2'!$A52,'2.2 Daten'!$B$9:$B$859,0))) -> 7781 | H52: =IF($A52<>0,INDEX('2.2 Daten'!K$9:K$859,MATCH('2.2'!$A52,'2.2 Daten'!$B$9:$B$859,0))) -> -3.533366712 | I52: =IF($A52<>0,INDEX('2.2 Daten'!L$9:L$859,MATCH('2.2'!$A52,'2.2 Daten'!$B$9:$B$859,0))) -> -5.18535365 | J52: =IF($A52<>0,INDEX('2.2 Daten'!M$9:M$859,MATCH('2.2'!$A52,'2.2 Daten'!$B$9:$B$859,0))) -> -6.127403379 | K52: =IF($A52<>0,INDEX('2.2 Daten'!N$9:N$859,MATCH('2.2'!$A52,'2.2 Daten'!$B$9:$B$859,0))) -> -3.146817072 | L52: =IF($A52<>0,INDEX('2.2 Daten'!O$9:O$859,MATCH('2.2'!$A52,'2.2 Daten'!$B$9:$B$859,0))) -> 0.3352675693
A53: =CHOOSE('2.2 Daten'!$A$2,'2.2 Daten'!B475,'2.2 Daten'!B24,'2.2 Daten'!B41,'2.2 Daten'!B58,'2.2 Daten'!B61,'2.2 Daten'!B108,'2.2 Daten'!B112,'2.2 Daten'!B167,'2.2 Daten'!B195,'2.2 Daten'!B233,'2.2 Daten'!B279,'2.2 Daten'!B377,'2.2 Daten'!B385,'2.2 Daten'!B388,'2.2 Daten'!B408,'2.2 Daten'!B418,'2.2 Daten'!B433,'2.2 Daten'!B449,x) -> Thüringen | B53: =IF($A53<>0,INDEX('2.2 Daten'!C$9:C$859,MATCH('2.2'!$A53,'2.2 Daten'!$B$9:$B$859,0))," ") -> 16 | C53: =IF($A53<>0,INDEX('2.2 Daten'!E$9:E$859,MATCH('2.2'!$A53,'2.2 Daten'!$B$9:$B$859,0))) -> 39739 | D53: =IF($A53<>0,INDEX('2.2 Daten'!F$9:F$859,MATCH('2.2'!$A53,'2.2 Daten'!$B$9:$B$859,0))) -> 5986 | E53: =IF($A53<>0,INDEX('2.2 Daten'!G$9:G$859,MATCH('2.2'!$A53,'2.2 Daten'!$B$9:$B$859,0))) -> 6837 | F53: =IF($A53<>0,INDEX('2.2 Daten'!H$9:H$859,MATCH('2.2'!$A53,'2.2 Daten'!$B$9:$B$859,0))) -> 21128 | G53: =IF($A53<>0,INDEX('2.2 Daten'!I$9:I$859,MATCH('2.2'!$A53,'2.2 Daten'!$B$9:$B$859,0))) -> 5788 | H53: =IF($A53<>0,INDEX('2.2 Daten'!K$9:K$859,MATCH('2.2'!$A53,'2.2 Daten'!$B$9:$B$859,0))) -> -1.985497238 | I53: =IF($A53<>0,INDEX('2.2 Daten'!L$9:L$859,MATCH('2.2'!$A53,'2.2 Daten'!$B$9:$B$859,0))) -> -5.628251616 | J53: =IF($A53<>0,INDEX('2.2 Daten'!M$9:M$859,MATCH('2.2'!$A53,'2.2 Daten'!$B$9:$B$859,0))) -> -6.162503431 | K53: =IF($A53<>0,INDEX('2.2 Daten'!N$9:N$859,MATCH('2.2'!$A53,'2.2 Daten'!$B$9:$B$859,0))) -> -0.8587114636 | L53: =IF($A53<>0,INDEX('2.2 Daten'!O$9:O$859,MATCH('2.2'!$A53,'2.2 Daten'!$B$9:$B$859,0))) -> 3.283369022
A54: =CHOOSE('2.2 Daten'!$A$2,'2.2 Daten'!B476,'2.2 Daten'!B25,'2.2 Daten'!B42,'2.2 Daten'!B59,'2.2 Daten'!B62,'2.2 Daten'!B109,'2.2 Daten'!B113,'2.2 Daten'!B168,'2.2 Daten'!B196,'2.2 Daten'!B234,'2.2 Daten'!B280,'2.2 Daten'!B378,'2.2 Daten'!B386,'2.2 Daten'!B389,'2.2 Daten'!B409,'2.2 Daten'!B419,'2.2 Daten'!B434,'2.2 Daten'!B450,x) -> 0 | B54: =IF($A54<>0,INDEX('2.2 Daten'!C$9:C$859,MATCH('2.2'!$A54,'2.2 Daten'!$B$9:$B$859,0))," ") ->  | C54: =IF($A54<>0,INDEX('2.2 Daten'!E$9:E$859,MATCH('2.2'!$A54,'2.2 Daten'!$B$9:$B$859,0))) -> FALSE | D54: =IF($A54<>0,INDEX('2.2 Daten'!F$9:F$859,MATCH('2.2'!$A54,'2.2 Daten'!$B$9:$B$859,0))) -> FALSE | E54: =IF($A54<>0,INDEX('2.2 Daten'!G$9:G$859,MATCH('2.2'!$A54,'2.2 Daten'!$B$9:$B$859,0))) -> FALSE | F54: =IF($A54<>0,INDEX('2.2 Daten'!H$9:H$859,MATCH('2.2'!$A54,'2.2 Daten'!$B$9:$B$859,0))) -> FALSE | G54: =IF($A54<>0,INDEX('2.2 Daten'!I$9:I$859,MATCH('2.2'!$A54,'2.2 Daten'!$B$9:$B$859,0))) -> FALSE | H54: =IF($A54<>0,INDEX('2.2 Daten'!K$9:K$859,MATCH('2.2'!$A54,'2.2 Daten'!$B$9:$B$859,0))) -> FALSE | I54: =IF($A54<>0,INDEX('2.2 Daten'!L$9:L$859,MATCH('2.2'!$A54,'2.2 Daten'!$B$9:$B$859,0))) -> FALSE | J54: =IF($A54<>0,INDEX('2.2 Daten'!M$9:M$859,MATCH('2.2'!$A54,'2.2 Daten'!$B$9:$B$859,0))) -> FALSE | K54: =IF($A54<>0,INDEX('2.2 Daten'!N$9:N$859,MATCH('2.2'!$A54,'2.2 Daten'!$B$9:$B$859,0))) -> FALSE | L54: =IF($A54<>0,INDEX('2.2 Daten'!O$9:O$859,MATCH('2.2'!$A54,'2.2 Daten'!$B$9:$B$859,0))) -> FALSE
A55: =CHOOSE('2.2 Daten'!$A$2,'2.2 Daten'!B477,'2.2 Daten'!B26,'2.2 Daten'!B43,'2.2 Daten'!B60,'2.2 Daten'!B63,'2.2 Daten'!B110,'2.2 Daten'!B114,'2.2 Daten'!B169,'2.2 Daten'!B197,'2.2 Daten'!B235,'2.2 Daten'!B281,'2.2 Daten'!B379,'2.2 Daten'!B387,'2.2 Daten'!B390,'2.2 Daten'!B410,'2.2 Daten'!B420,'2.2 Daten'!B435,'2.2 Daten'!B451,x) -> Schleswig-Holstein | B55: =IF($A55<>0,INDEX('2.2 Daten'!C$9:C$859,MATCH('2.2'!$A55,'2.2 Daten'!$B$9:$B$859,0))," ") -> 01 | C55: =IF($A55<>0,INDEX('2.2 Daten'!E$9:E$859,MATCH('2.2'!$A55,'2.2 Daten'!$B$9:$B$859,0))) -> 67915 | D55: =IF($A55<>0,INDEX('2.2 Daten'!F$9:F$859,MATCH('2.2'!$A55,'2.2 Daten'!$B$9:$B$859,0))) -> 10191 | E55: =IF($A55<>0,INDEX('2.2 Daten'!G$9:G$859,MATCH('2.2'!$A55,'2.2 Daten'!$B$9:$B$859,0))) -> 11878 | F55: =IF($A55<>0,INDEX('2.2 Daten'!H$9:H$859,MATCH('2.2'!$A55,'2.2 Daten'!$B$9:$B$859,0))) -> 35510 | G55: =IF($A55<>0,INDEX('2.2 Daten'!I$9:I$859,MATCH('2.2'!$A55,'2.2 Daten'!$B$9:$B$859,0))) -> 10336 | H55: =IF($A55<>0,INDEX('2.2 Daten'!K$9:K$859,MATCH('2.2'!$A55,'2.2 Daten'!$B$9:$B$859,0))) -> -2.081921596 | I55: =IF($A55<>0,INDEX('2.2 Daten'!L$9:L$859,MATCH('2.2'!$A55,'2.2 Daten'!$B$9:$B$859,0))) -> -3.785876133 | J55: =IF($A55<>0,INDEX('2.2 Daten'!M$9:M$859,MATCH('2.2'!$A55,'2.2 Daten'!$B$9:$B$859,0))) -> -5.894469973 | K55: =IF($A55<>0,INDEX('2.2 Daten'!N$9:N$859,MATCH('2.2'!$A55,'2.2 Daten'!$B$9:$B$859,0))) -> -1.020180622 | L55: =IF($A55<>0,INDEX('2.2 Daten'!O$9:O$859,MATCH('2.2'!$A55,'2.2 Daten'!$B$9:$B$859,0))) -> 0.6524491187
A56: =CHOOSE('2.2 Daten'!$A$2,'2.2 Daten'!B478,'2.2 Daten'!B27,'2.2 Daten'!B44,'2.2 Daten'!B61,'2.2 Daten'!B64,'2.2 Daten'!B111,'2.2 Daten'!B115,'2.2 Daten'!B170,'2.2 Daten'!B198,'2.2 Daten'!B236,'2.2 Daten'!B282,'2.2 Daten'!B380,'2.2 Daten'!B388,'2.2 Daten'!B391,'2.2 Daten'!B411,'2.2 Daten'!B421,'2.2 Daten'!B436,'2.2 Daten'!B452,x) -> Flensburg, Stadt | B56: =IF($A56<>0,INDEX('2.2 Daten'!C$9:C$859,MATCH('2.2'!$A56,'2.2 Daten'!$B$9:$B$859,0))," ") -> 01001000 | C56: =IF($A56<>0,INDEX('2.2 Daten'!E$9:E$859,MATCH('2.2'!$A56,'2.2 Daten'!$B$9:$B$859,0))) -> 3304 | D56: =IF($A56<>0,INDEX('2.2 Daten'!F$9:F$859,MATCH('2.2'!$A56,'2.2 Daten'!$B$9:$B$859,0))) -> 534 | E56: =IF($A56<>0,INDEX('2.2 Daten'!G$9:G$859,MATCH('2.2'!$A56,'2.2 Daten'!$B$9:$B$859,0))) -> 647 | F56: =IF($A56<>0,INDEX('2.2 Daten'!H$9:H$859,MATCH('2.2'!$A56,'2.2 Daten'!$B$9:$B$859,0))) -> 1640 | G56: =IF($A56<>0,INDEX('2.2 Daten'!I$9:I$859,MATCH('2.2'!$A56,'2.2 Daten'!$B$9:$B$859,0))) -> 483 | H56: =IF($A56<>0,INDEX('2.2 Daten'!K$9:K$859,MATCH('2.2'!$A56,'2.2 Daten'!$B$9:$B$859,0))) -> -6.029579067 | I56: =IF($A56<>0,INDEX('2.2 Daten'!L$9:L$859,MATCH('2.2'!$A56,'2.2 Daten'!$B$9:$B$859,0))) -> -6.479859895 | J56: =IF($A56<>0,INDEX('2.2 Daten'!M$9:M$859,MATCH('2.2'!$A56,'2.2 Daten'!$B$9:$B$859,0))) -> -7.173601148 | K56: =IF($A56<>0,INDEX('2.2 Daten'!N$9:N$859,MATCH('2.2'!$A56,'2.2 Daten'!$B$9:$B$859,0))) -> -6.552706553 | L56: =IF($A56<>0,INDEX('2.2 Daten'!O$9:O$859,MATCH('2.2'!$A56,'2.2 Daten'!$B$9:$B$859,0))) -> -2.028397566
A57: =CHOOSE('2.2 Daten'!$A$2,'2.2 Daten'!B479,'2.2 Daten'!B28,'2.2 Daten'!B45,'2.2 Daten'!B62,'2.2 Daten'!B65,'2.2 Daten'!B112,'2.2 Daten'!B116,'2.2 Daten'!B171,'2.2 Daten'!B199,'2.2 Daten'!B237,'2.2 Daten'!B283,'2.2 Daten'!B381,'2.2 Daten'!B389,'2.2 Daten'!B392,'2.2 Daten'!B412,'2.2 Daten'!B422,'2.2 Daten'!B437,'2.2 Daten'!B453,x) -> Kiel, Landeshauptstadt | B57: =IF($A57<>0,INDEX('2.2 Daten'!C$9:C$859,MATCH('2.2'!$A57,'2.2 Daten'!$B$9:$B$859,0))," ") -> 01002000 | C57: =IF($A57<>0,INDEX('2.2 Daten'!E$9:E$859,MATCH('2.2'!$A57,'2.2 Daten'!$B$9:$B$859,0))) -> 9246 | D57: =IF($A57<>0,INDEX('2.2 Daten'!F$9:F$859,MATCH('2.2'!$A57,'2.2 Daten'!$B$9:$B$859,0))) -> 1378 | E57: =IF($A57<>0,INDEX('2.2 Daten'!G$9:G$859,MATCH('2.2'!$A57,'2.2 Daten'!$B$9:$B$859,0))) -> 1588 | F57: =IF($A57<>0,INDEX('2.2 Daten'!H$9:H$859,MATCH('2.2'!$A57,'2.2 Daten'!$B$9:$B$859,0))) -> 4805 | G57: =IF($A57<>0,INDEX('2.2 Daten'!I$9:I$859,MATCH('2.2'!$A57,'2.2 Daten'!$B$9:$B$859,0))) -> 1475 | H57: =IF($A57<>0,INDEX('2.2 Daten'!K$9:K$859,MATCH('2.2'!$A57,'2.2 Daten'!$B$9:$B$859,0))) -> -3.937662338 | I57: =IF($A57<>0,INDEX('2.2 Daten'!L$9:L$859,MATCH('2.2'!$A57,'2.2 Daten'!$B$9:$B$859,0))) -> -7.142857143 | J57: =IF($A57<>0,INDEX('2.2 Daten'!M$9:M$859,MATCH('2.2'!$A57,'2.2 Daten'!$B$9:$B$859,0))) -> -11.82676291 | K57: =IF($A57<>0,INDEX('2.2 Daten'!N$9:N$859,MATCH('2.2'!$A57,'2.2 Daten'!$B$9:$B$859,0))) -> -0.9074035884 | L57: =IF($A57<>0,INDEX('2.2 Daten'!O$9:O$859,MATCH('2.2'!$A57,'2.2 Daten'!$B$9:$B$859,0))) -> -1.073105298
A58: =CHOOSE('2.2 Daten'!$A$2,'2.2 Daten'!B480,'2.2 Daten'!B29,'2.2 Daten'!B46,'2.2 Daten'!B63,'2.2 Daten'!B66,'2.2 Daten'!B113,'2.2 Daten'!B117,'2.2 Daten'!B172,'2.2 Daten'!B200,'2.2 Daten'!B238,'2.2 Daten'!B284,'2.2 Daten'!B382,'2.2 Daten'!B390,'2.2 Daten'!B393,'2.2 Daten'!B413,'2.2 Daten'!B423,'2.2 Daten'!B438,'2.2 Daten'!B454,x) -> Lübeck, Hansestadt | B58: =IF($A58<>0,INDEX('2.2 Daten'!C$9:C$859,MATCH('2.2'!$A58,'2.2 Daten'!$B$9:$B$859,0))," ") -> 01003000 | C58: =IF($A58<>0,INDEX('2.2 Daten'!E$9:E$859,MATCH('2.2'!$A58,'2.2 Daten'!$B$9:$B$859,0))) -> 7042 | D58: =IF($A58<>0,INDEX('2.2 Daten'!F$9:F$859,MATCH('2.2'!$A58,'2.2 Daten'!$B$9:$B$859,0))) -> 1011 | E58: =IF($A58<>0,INDEX('2.2 Daten'!G$9:G$859,MATCH('2.2'!$A58,'2.2 Daten'!$B$9:$B$859,0))) -> 1158 | F58: =IF($A58<>0,INDEX('2.2 Daten'!H$9:H$859,MATCH('2.2'!$A58,'2.2 Daten'!$B$9:$B$859,0))) -> 3727 | G58: =IF($A58<>0,INDEX('2.2 Daten'!I$9:I$859,MATCH('2.2'!$A58,'2.2 Daten'!$B$9:$B$859,0))) -> 1146 | H58: =IF($A58<>0,INDEX('2.2 Daten'!K$9:K$859,MATCH('2.2'!$A58,'2.2 Daten'!$B$9:$B$859,0))) -> -3.837225181 | I58: =IF($A58<>0,INDEX('2.2 Daten'!L$9:L$859,MATCH('2.2'!$A58,'2.2 Daten'!$B$9:$B$859,0))) -> 0.8982035928 | J58: =IF($A58<>0,INDEX('2.2 Daten'!M$9:M$859,MATCH('2.2'!$A58,'2.2 Daten'!$B$9:$B$859,0))) -> -12.00607903 | K58: =IF($A58<>0,INDEX('2.2 Daten'!N$9:N$859,MATCH('2.2'!$A58,'2.2 Daten'!$B$9:$B$859,0))) -> -2.917426413 | L58: =IF($A58<>0,INDEX('2.2 Daten'!O$9:O$859,MATCH('2.2'!$A58,'2.2 Daten'!$B$9:$B$859,0))) -> -1.715265866
A59: =CHOOSE('2.2 Daten'!$A$2,'2.2 Daten'!B481,'2.2 Daten'!B30,'2.2 Daten'!B47,'2.2 Daten'!B64,'2.2 Daten'!B67,'2.2 Daten'!B114,'2.2 Daten'!B118,'2.2 Daten'!B173,'2.2 Daten'!B201,'2.2 Daten'!B239,'2.2 Daten'!B285,'2.2 Daten'!B383,'2.2 Daten'!B391,'2.2 Daten'!B394,'2.2 Daten'!B414,'2.2 Daten'!B424,'2.2 Daten'!B439,'2.2 Daten'!B455,x) -> Neumünster, Stadt | B59: =IF($A59<>0,INDEX('2.2 Daten'!C$9:C$859,MATCH('2.2'!$A59,'2.2 Daten'!$B$9:$B$859,0))," ") -> 01004000 | C59: =IF($A59<>0,INDEX('2.2 Daten'!E$9:E$859,MATCH('2.2'!$A59,'2.2 Daten'!$B$9:$B$859,0))) -> 2990 | D59: =IF($A59<>0,INDEX('2.2 Daten'!F$9:F$859,MATCH('2.2'!$A59,'2.2 Daten'!$B$9:$B$859,0))) -> 490 | E59: =IF($A59<>0,INDEX('2.2 Daten'!G$9:G$859,MATCH('2.2'!$A59,'2.2 Daten'!$B$9:$B$859,0))) -> 543 | F59: =IF($A59<>0,INDEX('2.2 Daten'!H$9:H$859,MATCH('2.2'!$A59,'2.2 Daten'!$B$9:$B$859,0))) -> 1518 | G59: =IF($A59<>0,INDEX('2.2 Daten'!I$9:I$859,MATCH('2.2'!$A59,'2.2 Daten'!$B$9:$B$859,0))) -> 439 | H59: =IF($A59<>0,INDEX('2.2 Daten'!K$9:K$859,MATCH('2.2'!$A59,'2.2 Daten'!$B$9:$B$859,0))) -> -2.700943703 | I59: =IF($A59<>0,INDEX('2.2 Daten'!L$9:L$859,MATCH('2.2'!$A59,'2.2 Daten'!$B$9:$B$859,0))) -> -6.488549618 | J59: =IF($A59<>0,INDEX('2.2 Daten'!M$9:M$859,MATCH('2.2'!$A59,'2.2 Daten'!$B$9:$B$859,0))) -> -3.035714286 | K59: =IF($A59<>0,INDEX('2.2 Daten'!N$9:N$859,MATCH('2.2'!$A59,'2.2 Daten'!$B$9:$B$859,0))) -> -2.064516129 | L59: =IF($A59<>0,INDEX('2.2 Daten'!O$9:O$859,MATCH('2.2'!$A59,'2.2 Daten'!$B$9:$B$859,0))) -> 0
A60: =CHOOSE('2.2 Daten'!$A$2,'2.2 Daten'!B482,'2.2 Daten'!B31,'2.2 Daten'!B48,'2.2 Daten'!B65,'2.2 Daten'!B68,'2.2 Daten'!B115,'2.2 Daten'!B119,'2.2 Daten'!B174,'2.2 Daten'!B202,'2.2 Daten'!B240,'2.2 Daten'!B286,'2.2 Daten'!B384,'2.2 Daten'!B392,'2.2 Daten'!B395,'2.2 Daten'!B415,'2.2 Daten'!B425,'2.2 Daten'!B440,'2.2 Daten'!B456,x) -> Dithmarschen | B60: =IF($A60<>0,INDEX('2.2 Daten'!C$9:C$859,MATCH('2.2'!$A60,'2.2 Daten'!$B$9:$B$859,0))," ") -> 01051000 | C60: =IF($A60<>0,INDEX('2.2 Daten'!E$9:E$859,MATCH('2.2'!$A60,'2.2 Daten'!$B$9:$B$859,0))) -> 3364 | D60: =IF($A60<>0,INDEX('2.2 Daten'!F$9:F$859,MATCH('2.2'!$A60,'2.2 Daten'!$B$9:$B$859,0))) -> 523 | E60: =IF($A60<>0,INDEX('2.2 Daten'!G$9:G$859,MATCH('2.2'!$A60,'2.2 Daten'!$B$9:$B$859,0))) -> 589 | F60: =IF($A60<>0,INDEX('2.2 Daten'!H$9:H$859,MATCH('2.2'!$A60,'2.2 Daten'!$B$9:$B$859,0))) -> 1762 | G60: =IF($A60<>0,INDEX('2.2 Daten'!I$9:I$859,MATCH('2.2'!$A60,'2.2 Daten'!$B$9:$B$859,0))) -> 490 | H60: =IF($A60<>0,INDEX('2.2 Daten'!K$9:K$859,MATCH('2.2'!$A60,'2.2 Daten'!$B$9:$B$859,0))) -> -3.803259937 | I60: =IF($A60<>0,INDEX('2.2 Daten'!L$9:L$859,MATCH('2.2'!$A60,'2.2 Daten'!$B$9:$B$859,0))) -> -2.788104089 | J60: =IF($A60<>0,INDEX('2.2 Daten'!M$9:M$859,MATCH('2.2'!$A60,'2.2 Daten'!$B$9:$B$859,0))) -> -8.112324493 | K60: =IF($A60<>0,INDEX('2.2 Daten'!N$9:N$859,MATCH('2.2'!$A60,'2.2 Daten'!$B$9:$B$859,0))) -> -4.653679654 | L60: =IF($A60<>0,INDEX('2.2 Daten'!O$9:O$859,MATCH('2.2'!$A60,'2.2 Daten'!$B$9:$B$859,0))) -> 4.255319149
A61: =CHOOSE('2.2 Daten'!$A$2,'2.2 Daten'!B483,'2.2 Daten'!B32,'2.2 Daten'!B49,'2.2 Daten'!B66,'2.2 Daten'!B69,'2.2 Daten'!B116,'2.2 Daten'!B120,'2.2 Daten'!B175,'2.2 Daten'!B203,'2.2 Daten'!B241,'2.2 Daten'!B287,'2.2 Daten'!B385,'2.2 Daten'!B393,'2.2 Daten'!B396,'2.2 Daten'!B416,'2.2 Daten'!B426,'2.2 Daten'!B441,'2.2 Daten'!B457,x) -> Herzogtum Lauenburg | B61: =IF($A61<>0,INDEX('2.2 Daten'!C$9:C$859,MATCH('2.2'!$A61,'2.2 Daten'!$B$9:$B$859,0))," ") -> 01053000 | C61: =IF($A61<>0,INDEX('2.2 Daten'!E$9:E$859,MATCH('2.2'!$A61,'2.2 Daten'!$B$9:$B$859,0))) -> 4500 | D61: =IF($A61<>0,INDEX('2.2 Daten'!F$9:F$859,MATCH('2.2'!$A61,'2.2 Daten'!$B$9:$B$859,0))) -> 663 | E61: =IF($A61<>0,INDEX('2.2 Daten'!G$9:G$859,MATCH('2.2'!$A61,'2.2 Daten'!$B$9:$B$859,0))) -> 829 | F61: =IF($A61<>0,INDEX('2.2 Daten'!H$9:H$859,MATCH('2.2'!$A61,'2.2 Daten'!$B$9:$B$859,0))) -> 2317 | G61: =IF($A61<>0,INDEX('2.2 Daten'!I$9:I$859,MATCH('2.2'!$A61,'2.2 Daten'!$B$9:$B$859,0))) -> 691 | H61: =IF($A61<>0,INDEX('2.2 Daten'!K$9:K$859,MATCH('2.2'!$A61,'2.2 Daten'!$B$9:$B$859,0))) -> -1.510177282 | I61: =IF($A61<>0,INDEX('2.2 Daten'!L$9:L$859,MATCH('2.2'!$A61,'2.2 Daten'!$B$9:$B$859,0))) -> 0.1510574018 | J61: =IF($A61<>0,INDEX('2.2 Daten'!M$9:M$859,MATCH('2.2'!$A61,'2.2 Daten'!$B$9:$B$859,0))) -> 0.1207729469 | K61: =IF($A61<>0,INDEX('2.2 Daten'!N$9:N$859,MATCH('2.2'!$A61,'2.2 Daten'!$B$9:$B$859,0))) -> -2.524190156 | L61: =IF($A61<>0,INDEX('2.2 Daten'!O$9:O$859,MATCH('2.2'!$A61,'2.2 Daten'!$B$9:$B$859,0))) -> -1.566951567
A62: =CHOOSE('2.2 Daten'!$A$2,'2.2 Daten'!B484,'2.2 Daten'!B33,'2.2 Daten'!B50,'2.2 Daten'!B67,'2.2 Daten'!B70,'2.2 Daten'!B117,'2.2 Daten'!B121,'2.2 Daten'!B176,'2.2 Daten'!B204,'2.2 Daten'!B242,'2.2 Daten'!B288,'2.2 Daten'!B386,'2.2 Daten'!B394,'2.2 Daten'!B397,'2.2 Daten'!B417,'2.2 Daten'!B427,'2.2 Daten'!B442,'2.2 Daten'!B458,x) -> Nordfriesland | B62: =IF($A62<>0,INDEX('2.2 Daten'!C$9:C$859,MATCH('2.2'!$A62,'2.2 Daten'!$B$9:$B$859,0))," ") -> 01054000 | C62: =IF($A62<>0,INDEX('2.2 Daten'!E$9:E$859,MATCH('2.2'!$A62,'2.2 Daten'!$B$9:$B$859,0))) -> 2889 | D62: =IF($A62<>0,INDEX('2.2 Daten'!F$9:F$859,MATCH('2.2'!$A62,'2.2 Daten'!$B$9:$B$859,0))) -> 443 | E62: =IF($A62<>0,INDEX('2.2 Daten'!G$9:G$859,MATCH('2.2'!$A62,'2.2 Daten'!$B$9:$B$859,0))) -> 533 | F62: =IF($A62<>0,INDEX('2.2 Daten'!H$9:H$859,MATCH('2.2'!$A62,'2.2 Daten'!$B$9:$B$859,0))) -> 1505 | G62: =IF($A62<>0,INDEX('2.2 Daten'!I$9:I$859,MATCH('2.2'!$A62,'2.2 Daten'!$B$9:$B$859,0))) -> 408 | H62: =IF($A62<>0,INDEX('2.2 Daten'!K$9:K$859,MATCH('2.2'!$A62,'2.2 Daten'!$B$9:$B$859,0))) -> -1.701258932 | I62: =IF($A62<>0,INDEX('2.2 Daten'!L$9:L$859,MATCH('2.2'!$A62,'2.2 Daten'!$B$9:$B$859,0))) -> -8.281573499 | J62: =IF($A62<>0,INDEX('2.2 Daten'!M$9:M$859,MATCH('2.2'!$A62,'2.2 Daten'!$B$9:$B$859,0))) -> 2.303262956 | K62: =IF($A62<>0,INDEX('2.2 Daten'!N$9:N$859,MATCH('2.2'!$A62,'2.2 Daten'!$B$9:$B$859,0))) -> -1.181877873 | L62: =IF($A62<>0,INDEX('2.2 Daten'!O$9:O$859,MATCH('2.2'!$A62,'2.2 Daten'!$B$9:$B$859,0))) -> -0.9708737864
A63: =CHOOSE('2.2 Daten'!$A$2,'2.2 Daten'!B485,'2.2 Daten'!B34,'2.2 Daten'!B51,'2.2 Daten'!B68,'2.2 Daten'!B71,'2.2 Daten'!B118,'2.2 Daten'!B122,'2.2 Daten'!B177,'2.2 Daten'!B205,'2.2 Daten'!B243,'2.2 Daten'!B289,'2.2 Daten'!B387,'2.2 Daten'!B395,'2.2 Daten'!B398,'2.2 Daten'!B418,'2.2 Daten'!B428,'2.2 Daten'!B443,'2.2 Daten'!B459,x) -> Ostholstein | B63: =IF($A63<>0,INDEX('2.2 Daten'!C$9:C$859,MATCH('2.2'!$A63,'2.2 Daten'!$B$9:$B$859,0))," ") -> 01055000 | C63: =IF($A63<>0,INDEX('2.2 Daten'!E$9:E$859,MATCH('2.2'!$A63,'2.2 Daten'!$B$9:$B$859,0))) -> 3173 | D63: =IF($A63<>0,INDEX('2.2 Daten'!F$9:F$859,MATCH('2.2'!$A63,'2.2 Daten'!$B$9:$B$859,0))) -> 468 | E63: =IF($A63<>0,INDEX('2.2 Daten'!G$9:G$859,MATCH('2.2'!$A63,'2.2 Daten'!$B$9:$B$859,0))) -> 548 | F63: =IF($A63<>0,INDEX('2.2 Daten'!H$9:H$859,MATCH('2.2'!$A63,'2.2 Daten'!$B$9:$B$859,0))) -> 1676 | G63: =IF($A63<>0,INDEX('2.2 Daten'!I$9:I$859,MATCH('2.2'!$A63,'2.2 Daten'!$B$9:$B$859,0))) -> 481 | H63: =IF($A63<>0,INDEX('2.2 Daten'!K$9:K$859,MATCH('2.2'!$A63,'2.2 Daten'!$B$9:$B$859,0))) -> -3.025672372 | I63: =IF($A63<>0,INDEX('2.2 Daten'!L$9:L$859,MATCH('2.2'!$A63,'2.2 Daten'!$B$9:$B$859,0))) -> -6.024096386 | J63: =IF($A63<>0,INDEX('2.2 Daten'!M$9:M$859,MATCH('2.2'!$A63,'2.2 Daten'!$B$9:$B$859,0))) -> -6.003430532 | K63: =IF($A63<>0,INDEX('2.2 Daten'!N$9:N$859,MATCH('2.2'!$A63,'2.2 Daten'!$B$9:$B$859,0))) -> -1.179245283 | L63: =IF($A63<>0,INDEX('2.2 Daten'!O$9:O$859,MATCH('2.2'!$A63,'2.2 Daten'!$B$9:$B$859,0))) -> -2.828282828
A64: =CHOOSE('2.2 Daten'!$A$2,'2.2 Daten'!B486,'2.2 Daten'!B35,'2.2 Daten'!B52,'2.2 Daten'!B69,'2.2 Daten'!B72,'2.2 Daten'!B119,'2.2 Daten'!B123,'2.2 Daten'!B178,'2.2 Daten'!B206,'2.2 Daten'!B244,'2.2 Daten'!B290,'2.2 Daten'!B388,'2.2 Daten'!B396,'2.2 Daten'!B399,'2.2 Daten'!B419,'2.2 Daten'!B429,'2.2 Daten'!B444,'2.2 Daten'!B460,x) -> Pinneberg | B64: =IF($A64<>0,INDEX('2.2 Daten'!C$9:C$859,MATCH('2.2'!$A64,'2.2 Daten'!$B$9:$B$859,0))," ") -> 01056000 | C64: =IF($A64<>0,INDEX('2.2 Daten'!E$9:E$859,MATCH('2.2'!$A64,'2.2 Daten'!$B$9:$B$859,0))) -> 7726 | D64: =IF($A64<>0,INDEX('2.2 Daten'!F$9:F$859,MATCH('2.2'!$A64,'2.2 Daten'!$B$9:$B$859,0))) -> 1176 | E64: =IF($A64<>0,INDEX('2.2 Daten'!G$9:G$859,MATCH('2.2'!$A64,'2.2 Daten'!$B$9:$B$859,0))) -> 1380 | F64: =IF($A64<>0,INDEX('2.2 Daten'!H$9:H$859,MATCH('2.2'!$A64,'2.2 Daten'!$B$9:$B$859,0))) -> 4053 | G64: =IF($A64<>0,INDEX('2.2 Daten'!I$9:I$859,MATCH('2.2'!$A64,'2.2 Daten'!$B$9:$B$859,0))) -> 1117 | H64: =IF($A64<>0,INDEX('2.2 Daten'!K$9:K$859,MATCH('2.2'!$A64,'2.2 Daten'!$B$9:$B$859,0))) -> -3.31623076 | I64: =IF($A64<>0,INDEX('2.2 Daten'!L$9:L$859,MATCH('2.2'!$A64,'2.2 Daten'!$B$9:$B$859,0))) -> -9.885057471 | J64: =IF($A64<>0,INDEX('2.2 Daten'!M$9:M$859,MATCH('2.2'!$A64,'2.2 Daten'!$B$9:$B$859,0))) -> -8.669755129 | K64: =IF($A64<>0,INDEX('2.2 Daten'!N$9:N$859,MATCH('2.2'!$A64,'2.2 Daten'!$B$9:$B$859,0))) -> 0.2225519288 | L64: =IF($A64<>0,INDEX('2.2 Daten'!O$9:O$859,MATCH('2.2'!$A64,'2.2 Daten'!$B$9:$B$859,0))) -> -1.237842617
A65: =CHOOSE('2.2 Daten'!$A$2,'2.2 Daten'!B487,'2.2 Daten'!B36,'2.2 Daten'!B53,'2.2 Daten'!B70,'2.2 Daten'!B73,'2.2 Daten'!B120,'2.2 Daten'!B124,'2.2 Daten'!B179,'2.2 Daten'!B207,'2.2 Daten'!B245,'2.2 Daten'!B291,'2.2 Daten'!B389,'2.2 Daten'!B397,'2.2 Daten'!B400,'2.2 Daten'!B420,'2.2 Daten'!B430,'2.2 Daten'!B445,'2.2 Daten'!B461,x) -> Plön | B65: =IF($A65<>0,INDEX('2.2 Daten'!C$9:C$859,MATCH('2.2'!$A65,'2.2 Daten'!$B$9:$B$859,0))," ") -> 01057000 | C65: =IF($A65<>0,INDEX('2.2 Daten'!E$9:E$859,MATCH('2.2'!$A65,'2.2 Daten'!$B$9:$B$859,0))) -> 2419 | D65: =IF($A65<>0,INDEX('2.2 Daten'!F$9:F$859,MATCH('2.2'!$A65,'2.2 Daten'!$B$9:$B$859,0))) -> 377 | E65: =IF($A65<>0,INDEX('2.2 Daten'!G$9:G$859,MATCH('2.2'!$A65,'2.2 Daten'!$B$9:$B$859,0))) -> 414 | F65: =IF($A65<>0,INDEX('2.2 Daten'!H$9:H$859,MATCH('2.2'!$A65,'2.2 Daten'!$B$9:$B$859,0))) -> 1259 | G65: =IF($A65<>0,INDEX('2.2 Daten'!I$9:I$859,MATCH('2.2'!$A65,'2.2 Daten'!$B$9:$B$859,0))) -> 369 | H65: =IF($A65<>0,INDEX('2.2 Daten'!K$9:K$859,MATCH('2.2'!$A65,'2.2 Daten'!$B$9:$B$859,0))) -> -2.89040546 | I65: =IF($A65<>0,INDEX('2.2 Daten'!L$9:L$859,MATCH('2.2'!$A65,'2.2 Daten'!$B$9:$B$859,0))) -> 5.30726257 | J65: =IF($A65<>0,INDEX('2.2 Daten'!M$9:M$859,MATCH('2.2'!$A65,'2.2 Daten'!$B$9:$B$859,0))) -> -4.608294931 | K65: =IF($A65<>0,INDEX('2.2 Daten'!N$9:N$859,MATCH('2.2'!$A65,'2.2 Daten'!$B$9:$B$859,0))) -> -5.338345865 | L65: =IF($A65<>0,INDEX('2.2 Daten'!O$9:O$859,MATCH('2.2'!$A65,'2.2 Daten'!$B$9:$B$859,0))) -> 0
A66: =CHOOSE('2.2 Daten'!$A$2,'2.2 Daten'!B488,'2.2 Daten'!B37,'2.2 Daten'!B54,'2.2 Daten'!B71,'2.2 Daten'!B74,'2.2 Daten'!B121,'2.2 Daten'!B125,'2.2 Daten'!B180,'2.2 Daten'!B208,'2.2 Daten'!B246,'2.2 Daten'!B292,'2.2 Daten'!B390,'2.2 Daten'!B398,'2.2 Daten'!B401,'2.2 Daten'!B421,'2.2 Daten'!B431,'2.2 Daten'!B446,'2.2 Daten'!B462,x) -> Rendsburg-Eckernförde | B66: =IF($A66<>0,INDEX('2.2 Daten'!C$9:C$859,MATCH('2.2'!$A66,'2.2 Daten'!$B$9:$B$859,0))," ") -> 01058000 | C66: =IF($A66<>0,INDEX('2.2 Daten'!E$9:E$859,MATCH('2.2'!$A66,'2.2 Daten'!$B$9:$B$859,0))) -> 5014 | D66: =IF($A66<>0,INDEX('2.2 Daten'!F$9:F$859,MATCH('2.2'!$A66,'2.2 Daten'!$B$9:$B$859,0))) -> 717 | E66: =IF($A66<>0,INDEX('2.2 Daten'!G$9:G$859,MATCH('2.2'!$A66,'2.2 Daten'!$B$9:$B$859,0))) -> 875 | F66: =IF($A66<>0,INDEX('2.2 Daten'!H$9:H$859,MATCH('2.2'!$A66,'2.2 Daten'!$B$9:$B$859,0))) -> 2665 | G66: =IF($A66<>0,INDEX('2.2 Daten'!I$9:I$859,MATCH('2.2'!$A66,'2.2 Daten'!$B$9:$B$859,0))) -> 757 | H66: =IF($A66<>0,INDEX('2.2 Daten'!K$9:K$859,MATCH('2.2'!$A66,'2.2 Daten'!$B$9:$B$859,0))) -> 1.786439302 | I66: =IF($A66<>0,INDEX('2.2 Daten'!L$9:L$859,MATCH('2.2'!$A66,'2.2 Daten'!$B$9:$B$859,0))) -> -0.2781641168 | J66: =IF($A66<>0,INDEX('2.2 Daten'!M$9:M$859,MATCH('2.2'!$A66,'2.2 Daten'!$B$9:$B$859,0))) -> -2.234636872 | K66: =IF($A66<>0,INDEX('2.2 Daten'!N$9:N$859,MATCH('2.2'!$A66,'2.2 Daten'!$B$9:$B$859,0))) -> 2.029096478 | L66: =IF($A66<>0,INDEX('2.2 Daten'!O$9:O$859,MATCH('2.2'!$A66,'2.2 Daten'!$B$9:$B$859,0))) -> 8.142857143
A67: =CHOOSE('2.2 Daten'!$A$2,'2.2 Daten'!B489,'2.2 Daten'!B38,'2.2 Daten'!B55,'2.2 Daten'!B72,'2.2 Daten'!B75,'2.2 Daten'!B122,'2.2 Daten'!B126,'2.2 Daten'!B181,'2.2 Daten'!B209,'2.2 Daten'!B247,'2.2 Daten'!B293,'2.2 Daten'!B391,'2.2 Daten'!B399,'2.2 Daten'!B402,'2.2 Daten'!B422,'2.2 Daten'!B432,'2.2 Daten'!B447,'2.2 Daten'!B463,x) -> Schleswig-Flensburg | B67: =IF($A67<>0,INDEX('2.2 Daten'!C$9:C$859,MATCH('2.2'!$A67,'2.2 Daten'!$B$9:$B$859,0))," ") -> 01059000 | C67: =IF($A67<>0,INDEX('2.2 Daten'!E$9:E$859,MATCH('2.2'!$A67,'2.2 Daten'!$B$9:$B$859,0))) -> 3924 | D67: =IF($A67<>0,INDEX('2.2 Daten'!F$9:F$859,MATCH('2.2'!$A67,'2.2 Daten'!$B$9:$B$859,0))) -> 588 | E67: =IF($A67<>0,INDEX('2.2 Daten'!G$9:G$859,MATCH('2.2'!$A67,'2.2 Daten'!$B$9:$B$859,0))) -> 679 | F67: =IF($A67<>0,INDEX('2.2 Daten'!H$9:H$859,MATCH('2.2'!$A67,'2.2 Daten'!$B$9:$B$859,0))) -> 2063 | G67: =IF($A67<>0,INDEX('2.2 Daten'!I$9:I$859,MATCH('2.2'!$A67,'2.2 Daten'!$B$9:$B$859,0))) -> 594 | H67: =IF($A67<>0,INDEX('2.2 Daten'!K$9:K$859,MATCH('2.2'!$A67,'2.2 Daten'!$B$9:$B$859,0))) -> 2.803248625 | I67: =IF($A67<>0,INDEX('2.2 Daten'!L$9:L$859,MATCH('2.2'!$A67,'2.2 Daten'!$B$9:$B$859,0))) -> 0.3412969283 | J67: =IF($A67<>0,INDEX('2.2 Daten'!M$9:M$859,MATCH('2.2'!$A67,'2.2 Daten'!$B$9:$B$859,0))) -> 1.192250373 | K67: =IF($A67<>0,INDEX('2.2 Daten'!N$9:N$859,MATCH('2.2'!$A67,'2.2 Daten'!$B$9:$B$859,0))) -> 2.229930624 | L67: =IF($A67<>0,INDEX('2.2 Daten'!O$9:O$859,MATCH('2.2'!$A67,'2.2 Daten'!$B$9:$B$859,0))) -> 9.594095941
A68: =CHOOSE('2.2 Daten'!$A$2,'2.2 Daten'!B490,'2.2 Daten'!B39,'2.2 Daten'!B56,'2.2 Daten'!B73,'2.2 Daten'!B76,'2.2 Daten'!B123,'2.2 Daten'!B127,'2.2 Daten'!B182,'2.2 Daten'!B210,'2.2 Daten'!B248,'2.2 Daten'!B294,'2.2 Daten'!B392,'2.2 Daten'!B400,'2.2 Daten'!B403,'2.2 Daten'!B423,'2.2 Daten'!B433,'2.2 Daten'!B448,'2.2 Daten'!B464,x) -> Segeberg | B68: =IF($A68<>0,INDEX('2.2 Daten'!C$9:C$859,MATCH('2.2'!$A68,'2.2 Daten'!$B$9:$B$859,0))," ") -> 01060000 | C68: =IF($A68<>0,INDEX('2.2 Daten'!E$9:E$859,MATCH('2.2'!$A68,'2.2 Daten'!$B$9:$B$859,0))) -> 5287 | D68: =IF($A68<>0,INDEX('2.2 Daten'!F$9:F$859,MATCH('2.2'!$A68,'2.2 Daten'!$B$9:$B$859,0))) -> 778 | E68: =IF($A68<>0,INDEX('2.2 Daten'!G$9:G$859,MATCH('2.2'!$A68,'2.2 Daten'!$B$9:$B$859,0))) -> 897 | F68: =IF($A68<>0,INDEX('2.2 Daten'!H$9:H$859,MATCH('2.2'!$A68,'2.2 Daten'!$B$9:$B$859,0))) -> 2823 | G68: =IF($A68<>0,INDEX('2.2 Daten'!I$9:I$859,MATCH('2.2'!$A68,'2.2 Daten'!$B$9:$B$859,0))) -> 789 | H68: =IF($A68<>0,INDEX('2.2 Daten'!K$9:K$859,MATCH('2.2'!$A68,'2.2 Daten'!$B$9:$B$859,0))) -> 2.282840008 | I68: =IF($A68<>0,INDEX('2.2 Daten'!L$9:L$859,MATCH('2.2'!$A68,'2.2 Daten'!$B$9:$B$859,0))) -> -3.233830846 | J68: =IF($A68<>0,INDEX('2.2 Daten'!M$9:M$859,MATCH('2.2'!$A68,'2.2 Daten'!$B$9:$B$859,0))) -> -0.4439511654 | K68: =IF($A68<>0,INDEX('2.2 Daten'!N$9:N$859,MATCH('2.2'!$A68,'2.2 Daten'!$B$9:$B$859,0))) -> 3.74862183 | L68: =IF($A68<>0,INDEX('2.2 Daten'!O$9:O$859,MATCH('2.2'!$A68,'2.2 Daten'!$B$9:$B$859,0))) -> 6.191117093
A69: =CHOOSE('2.2 Daten'!$A$2,'2.2 Daten'!B491,'2.2 Daten'!B40,'2.2 Daten'!B57,'2.2 Daten'!B74,'2.2 Daten'!B77,'2.2 Daten'!B124,'2.2 Daten'!B128,'2.2 Daten'!B183,'2.2 Daten'!B211,'2.2 Daten'!B249,'2.2 Daten'!B295,'2.2 Daten'!B393,'2.2 Daten'!B401,'2.2 Daten'!B404,'2.2 Daten'!B424,'2.2 Daten'!B434,'2.2 Daten'!B449,'2.2 Daten'!B465,x) -> Steinburg | B69: =IF($A69<>0,INDEX('2.2 Daten'!C$9:C$859,MATCH('2.2'!$A69,'2.2 Daten'!$B$9:$B$859,0))," ") -> 01061000 | C69: =IF($A69<>0,INDEX('2.2 Daten'!E$9:E$859,MATCH('2.2'!$A69,'2.2 Daten'!$B$9:$B$859,0))) -> 2817 | D69: =IF($A69<>0,INDEX('2.2 Daten'!F$9:F$859,MATCH('2.2'!$A69,'2.2 Daten'!$B$9:$B$859,0))) -> 454 | E69: =IF($A69<>0,INDEX('2.2 Daten'!G$9:G$859,MATCH('2.2'!$A69,'2.2 Daten'!$B$9:$B$859,0))) -> 458 | F69: =IF($A69<>0,INDEX('2.2 Daten'!H$9:H$859,MATCH('2.2'!$A69,'2.2 Daten'!$B$9:$B$859,0))) -> 1497 | G69: =IF($A69<>0,INDEX('2.2 Daten'!I$9:I$859,MATCH('2.2'!$A69,'2.2 Daten'!$B$9:$B$859,0))) -> 408 | H69: =IF($A69<>0,INDEX('2.2 Daten'!K$9:K$859,MATCH('2.2'!$A69,'2.2 Daten'!$B$9:$B$859,0))) -> -1.983298539 | I69: =IF($A69<>0,INDEX('2.2 Daten'!L$9:L$859,MATCH('2.2'!$A69,'2.2 Daten'!$B$9:$B$859,0))) -> 1.793721973 | J69: =IF($A69<>0,INDEX('2.2 Daten'!M$9:M$859,MATCH('2.2'!$A69,'2.2 Daten'!$B$9:$B$859,0))) -> -7.099391481 | K69: =IF($A69<>0,INDEX('2.2 Daten'!N$9:N$859,MATCH('2.2'!$A69,'2.2 Daten'!$B$9:$B$859,0))) -> -1.771653543 | L69: =IF($A69<>0,INDEX('2.2 Daten'!O$9:O$859,MATCH('2.2'!$A69,'2.2 Daten'!$B$9:$B$859,0))) -> -0.7299270073
A70: =CHOOSE('2.2 Daten'!$A$2,'2.2 Daten'!B492,'2.2 Daten'!B41,'2.2 Daten'!B58,'2.2 Daten'!B75,'2.2 Daten'!B78,'2.2 Daten'!B125,'2.2 Daten'!B129,'2.2 Daten'!B184,'2.2 Daten'!B212,'2.2 Daten'!B250,'2.2 Daten'!B296,'2.2 Daten'!B394,'2.2 Daten'!B402,'2.2 Daten'!B405,'2.2 Daten'!B425,'2.2 Daten'!B435,'2.2 Daten'!B450,'2.2 Daten'!B466,x) -> Stormarn | B70: =IF($A70<>0,INDEX('2.2 Daten'!C$9:C$859,MATCH('2.2'!$A70,'2.2 Daten'!$B$9:$B$859,0))," ") -> 01062000 | C70: =IF($A70<>0,INDEX('2.2 Daten'!E$9:E$859,MATCH('2.2'!$A70,'2.2 Daten'!$B$9:$B$859,0))) -> 4220 | D70: =IF($A70<>0,INDEX('2.2 Daten'!F$9:F$859,MATCH('2.2'!$A70,'2.2 Daten'!$B$9:$B$859,0))) -> 591 | E70: =IF($A70<>0,INDEX('2.2 Daten'!G$9:G$859,MATCH('2.2'!$A70,'2.2 Daten'!$B$9:$B$859,0))) -> 740 | F70: =IF($A70<>0,INDEX('2.2 Daten'!H$9:H$859,MATCH('2.2'!$A70,'2.2 Daten'!$B$9:$B$859,0))) -> 2200 | G70: =IF($A70<>0,INDEX('2.2 Daten'!I$9:I$859,MATCH('2.2'!$A70,'2.2 Daten'!$B$9:$B$859,0))) -> 689 | H70: =IF($A70<>0,INDEX('2.2 Daten'!K$9:K$859,MATCH('2.2'!$A70,'2.2 Daten'!$B$9:$B$859,0))) -> -1.332709843 | I70: =IF($A70<>0,INDEX('2.2 Daten'!L$9:L$859,MATCH('2.2'!$A70,'2.2 Daten'!$B$9:$B$859,0))) -> -3.431372549 | J70: =IF($A70<>0,INDEX('2.2 Daten'!M$9:M$859,MATCH('2.2'!$A70,'2.2 Daten'!$B$9:$B$859,0))) -> -3.896103896 | K70: =IF($A70<>0,INDEX('2.2 Daten'!N$9:N$859,MATCH('2.2'!$A70,'2.2 Daten'!$B$9:$B$859,0))) -> 0.4566210046 | L70: =IF($A70<>0,INDEX('2.2 Daten'!O$9:O$859,MATCH('2.2'!$A70,'2.2 Daten'!$B$9:$B$859,0))) -> -2.269503546
A71: =CHOOSE('2.2 Daten'!$A$2,'2.2 Daten'!B493,'2.2 Daten'!B42,'2.2 Daten'!B59,'2.2 Daten'!B76,'2.2 Daten'!B79,'2.2 Daten'!B126,'2.2 Daten'!B130,'2.2 Daten'!B185,'2.2 Daten'!B213,'2.2 Daten'!B251,'2.2 Daten'!B297,'2.2 Daten'!B395,'2.2 Daten'!B403,'2.2 Daten'!B406,'2.2 Daten'!B426,'2.2 Daten'!B436,'2.2 Daten'!B451,'2.2 Daten'!B467,x) -> 0 | B71: =IF($A71<>0,INDEX('2.2 Daten'!C$9:C$859,MATCH('2.2'!$A71,'2.2 Daten'!$B$9:$B$859,0))," ") ->  | C71: =IF($A71<>0,INDEX('2.2 Daten'!E$9:E$859,MATCH('2.2'!$A71,'2.2 Daten'!$B$9:$B$859,0))) -> FALSE | D71: =IF($A71<>0,INDEX('2.2 Daten'!F$9:F$859,MATCH('2.2'!$A71,'2.2 Daten'!$B$9:$B$859,0))) -> FALSE | E71: =IF($A71<>0,INDEX('2.2 Daten'!G$9:G$859,MATCH('2.2'!$A71,'2.2 Daten'!$B$9:$B$859,0))) -> FALSE | F71: =IF($A71<>0,INDEX('2.2 Daten'!H$9:H$859,MATCH('2.2'!$A71,'2.2 Daten'!$B$9:$B$859,0))) -> FALSE | G71: =IF($A71<>0,INDEX('2.2 Daten'!I$9:I$859,MATCH('2.2'!$A71,'2.2 Daten'!$B$9:$B$859,0))) -> FALSE | H71: =IF($A71<>0,INDEX('2.2 Daten'!K$9:K$859,MATCH('2.2'!$A71,'2.2 Daten'!$B$9:$B$859,0))) -> FALSE | I71: =IF($A71<>0,INDEX('2.2 Daten'!L$9:L$859,MATCH('2.2'!$A71,'2.2 Daten'!$B$9:$B$859,0))) -> FALSE | J71: =IF($A71<>0,INDEX('2.2 Daten'!M$9:M$859,MATCH('2.2'!$A71,'2.2 Daten'!$B$9:$B$859,0))) -> FALSE | K71: =IF($A71<>0,INDEX('2.2 Daten'!N$9:N$859,MATCH('2.2'!$A71,'2.2 Daten'!$B$9:$B$859,0))) -> FALSE | L71: =IF($A71<>0,INDEX('2.2 Daten'!O$9:O$859,MATCH('2.2'!$A71,'2.2 Daten'!$B$9:$B$859,0))) -> FALSE
A72: =CHOOSE('2.2 Daten'!$A$2,'2.2 Daten'!B494,'2.2 Daten'!B43,'2.2 Daten'!B60,'2.2 Daten'!B77,'2.2 Daten'!B80,'2.2 Daten'!B127,'2.2 Daten'!B131,'2.2 Daten'!B186,'2.2 Daten'!B214,'2.2 Daten'!B252,'2.2 Daten'!B298,'2.2 Daten'!B396,'2.2 Daten'!B404,'2.2 Daten'!B407,'2.2 Daten'!B427,'2.2 Daten'!B437,'2.2 Daten'!B452,'2.2 Daten'!B468,x) -> Hamburg | B72: =IF($A72<>0,INDEX('2.2 Daten'!C$9:C$859,MATCH('2.2'!$A72,'2.2 Daten'!$B$9:$B$859,0))," ") -> 02 | C72: =IF($A72<>0,INDEX('2.2 Daten'!E$9:E$859,MATCH('2.2'!$A72,'2.2 Daten'!$B$9:$B$859,0))) -> 65161 | D72: =IF($A72<>0,INDEX('2.2 Daten'!F$9:F$859,MATCH('2.2'!$A72,'2.2 Daten'!$B$9:$B$859,0))) -> 10468 | E72: =IF($A72<>0,INDEX('2.2 Daten'!G$9:G$859,MATCH('2.2'!$A72,'2.2 Daten'!$B$9:$B$859,0))) -> 11528 | F72: =IF($A72<>0,INDEX('2.2 Daten'!H$9:H$859,MATCH('2.2'!$A72,'2.2 Daten'!$B$9:$B$859,0))) -> 33387 | G72: =IF($A72<>0,INDEX('2.2 Daten'!I$9:I$859,MATCH('2.2'!$A72,'2.2 Daten'!$B$9:$B$859,0))) -> 9778 | H72: =IF($A72<>0,INDEX('2.2 Daten'!K$9:K$859,MATCH('2.2'!$A72,'2.2 Daten'!$B$9:$B$859,0))) -> -0.3821987128 | I72: =IF($A72<>0,INDEX('2.2 Daten'!L$9:L$859,MATCH('2.2'!$A72,'2.2 Daten'!$B$9:$B$859,0))) -> -1.03053796 | J72: =IF($A72<>0,INDEX('2.2 Daten'!M$9:M$859,MATCH('2.2'!$A72,'2.2 Daten'!$B$9:$B$859,0))) -> -4.133056133 | K72: =IF($A72<>0,INDEX('2.2 Daten'!N$9:N$859,MATCH('2.2'!$A72,'2.2 Daten'!$B$9:$B$859,0))) -> 0.2702946211 | L72: =IF($A72<>0,INDEX('2.2 Daten'!O$9:O$859,MATCH('2.2'!$A72,'2.2 Daten'!$B$9:$B$859,0))) -> 2.79646762
A73: =CHOOSE('2.2 Daten'!$A$2,'2.2 Daten'!B495,'2.2 Daten'!B44,'2.2 Daten'!B61,'2.2 Daten'!B78,'2.2 Daten'!B81,'2.2 Daten'!B128,'2.2 Daten'!B132,'2.2 Daten'!B187,'2.2 Daten'!B215,'2.2 Daten'!B253,'2.2 Daten'!B299,'2.2 Daten'!B397,'2.2 Daten'!B405,'2.2 Daten'!B408,'2.2 Daten'!B428,'2.2 Daten'!B438,'2.2 Daten'!B453,'2.2 Daten'!B469,x) -> Hamburg, Freie und Hansestadt | B73: =IF($A73<>0,INDEX('2.2 Daten'!C$9:C$859,MATCH('2.2'!$A73,'2.2 Daten'!$B$9:$B$859,0))," ") -> 02000000 | C73: =IF($A73<>0,INDEX('2.2 Daten'!E$9:E$859,MATCH('2.2'!$A73,'2.2 Daten'!$B$9:$B$859,0))) -> 65161 | D73: =IF($A73<>0,INDEX('2.2 Daten'!F$9:F$859,MATCH('2.2'!$A73,'2.2 Daten'!$B$9:$B$859,0))) -> 10468 | E73: =IF($A73<>0,INDEX('2.2 Daten'!G$9:G$859,MATCH('2.2'!$A73,'2.2 Daten'!$B$9:$B$859,0))) -> 11528 | F73: =IF($A73<>0,INDEX('2.2 Daten'!H$9:H$859,MATCH('2.2'!$A73,'2.2 Daten'!$B$9:$B$859,0))) -> 33387 | G73: =IF($A73<>0,INDEX('2.2 Daten'!I$9:I$859,MATCH('2.2'!$A73,'2.2 Daten'!$B$9:$B$859,0))) -> 9778 | H73: =IF($A73<>0,INDEX('2.2 Daten'!K$9:K$859,MATCH('2.2'!$A73,'2.2 Daten'!$B$9:$B$859,0))) -> -0.3821987128 | I73: =IF($A73<>0,INDEX('2.2 Daten'!L$9:L$859,MATCH('2.2'!$A73,'2.2 Daten'!$B$9:$B$859,0))) -> -1.03053796 | J73: =IF($A73<>0,INDEX('2.2 Daten'!M$9:M$859,MATCH('2.2'!$A73,'2.2 Daten'!$B$9:$B$859,0))) -> -4.133056133 | K73: =IF($A73<>0,INDEX('2.2 Daten'!N$9:N$859,MATCH('2.2'!$A73,'2.2 Daten'!$B$9:$B$859,0))) -> 0.2702946211 | L73: =IF($A73<>0,INDEX('2.2 Daten'!O$9:O$859,MATCH('2.2'!$A73,'2.2 Daten'!$B$9:$B$859,0))) -> 2.79646762
A74: =CHOOSE('2.2 Daten'!$A$2,'2.2 Daten'!B496,'2.2 Daten'!B45,'2.2 Daten'!B62,'2.2 Daten'!B79,'2.2 Daten'!B82,'2.2 Daten'!B129,'2.2 Daten'!B133,'2.2 Daten'!B188,'2.2 Daten'!B216,'2.2 Daten'!B254,'2.2 Daten'!B300,'2.2 Daten'!B398,'2.2 Daten'!B406,'2.2 Daten'!B409,'2.2 Daten'!B429,'2.2 Daten'!B439,'2.2 Daten'!B454,'2.2 Daten'!B470,x) -> 0 | B74: =IF($A74<>0,INDEX('2.2 Daten'!C$9:C$859,MATCH('2.2'!$A74,'2.2 Daten'!$B$9:$B$859,0))," ") ->  | C74: =IF($A74<>0,INDEX('2.2 Daten'!E$9:E$859,MATCH('2.2'!$A74,'2.2 Daten'!$B$9:$B$859,0))) -> FALSE | D74: =IF($A74<>0,INDEX('2.2 Daten'!F$9:F$859,MATCH('2.2'!$A74,'2.2 Daten'!$B$9:$B$859,0))) -> FALSE | E74: =IF($A74<>0,INDEX('2.2 Daten'!G$9:G$859,MATCH('2.2'!$A74,'2.2 Daten'!$B$9:$B$859,0))) -> FALSE | F74: =IF($A74<>0,INDEX('2.2 Daten'!H$9:H$859,MATCH('2.2'!$A74,'2.2 Daten'!$B$9:$B$859,0))) -> FALSE | G74: =IF($A74<>0,INDEX('2.2 Daten'!I$9:I$859,MATCH('2.2'!$A74,'2.2 Daten'!$B$9:$B$859,0))) -> FALSE | H74: =IF($A74<>0,INDEX('2.2 Daten'!K$9:K$859,MATCH('2.2'!$A74,'2.2 Daten'!$B$9:$B$859,0))) -> FALSE | I74: =IF($A74<>0,INDEX('2.2 Daten'!L$9:L$859,MATCH('2.2'!$A74,'2.2 Daten'!$B$9:$B$859,0))) -> FALSE | J74: =IF($A74<>0,INDEX('2.2 Daten'!M$9:M$859,MATCH('2.2'!$A74,'2.2 Daten'!$B$9:$B$859,0))) -> FALSE | K74: =IF($A74<>0,INDEX('2.2 Daten'!N$9:N$859,MATCH('2.2'!$A74,'2.2 Daten'!$B$9:$B$859,0))) -> FALSE | L74: =IF($A74<>0,INDEX('2.2 Daten'!O$9:O$859,MATCH('2.2'!$A74,'2.2 Daten'!$B$9:$B$859,0))) -> FALSE
A75: =CHOOSE('2.2 Daten'!$A$2,'2.2 Daten'!B497,'2.2 Daten'!B46,'2.2 Daten'!B63,'2.2 Daten'!B80,'2.2 Daten'!B83,'2.2 Daten'!B130,'2.2 Daten'!B134,'2.2 Daten'!B189,'2.2 Daten'!B217,'2.2 Daten'!B255,'2.2 Daten'!B301,'2.2 Daten'!B399,'2.2 Daten'!B407,'2.2 Daten'!B410,'2.2 Daten'!B430,'2.2 Daten'!B440,'2.2 Daten'!B455,'2.2 Daten'!B471,x) -> Niedersachsen | B75: =IF($A75<>0,INDEX('2.2 Daten'!C$9:C$859,MATCH('2.2'!$A75,'2.2 Daten'!$B$9:$B$859,0))," ") -> 03 | C75: =IF($A75<>0,INDEX('2.2 Daten'!E$9:E$859,MATCH('2.2'!$A75,'2.2 Daten'!$B$9:$B$859,0))) -> 189095 | D75: =IF($A75<>0,INDEX('2.2 Daten'!F$9:F$859,MATCH('2.2'!$A75,'2.2 Daten'!$B$9:$B$859,0))) -> 28558 | E75: =IF($A75<>0,INDEX('2.2 Daten'!G$9:G$859,MATCH('2.2'!$A75,'2.2 Daten'!$B$9:$B$859,0))) -> 33413 | F75: =IF($A75<>0,INDEX('2.2 Daten'!H$9:H$859,MATCH('2.2'!$A75,'2.2 Daten'!$B$9:$B$859,0))) -> 98237 | G75: =IF($A75<>0,INDEX('2.2 Daten'!I$9:I$859,MATCH('2.2'!$A75,'2.2 Daten'!$B$9:$B$859,0))) -> 28887 | H75: =IF($A75<>0,INDEX('2.2 Daten'!K$9:K$859,MATCH('2.2'!$A75,'2.2 Daten'!$B$9:$B$859,0))) -> -4.122195462 | I75: =IF($A75<>0,INDEX('2.2 Daten'!L$9:L$859,MATCH('2.2'!$A75,'2.2 Daten'!$B$9:$B$859,0))) -> -6.828488467 | J75: =IF($A75<>0,INDEX('2.2 Daten'!M$9:M$859,MATCH('2.2'!$A75,'2.2 Daten'!$B$9:$B$859,0))) -> -6.224916505 | K75: =IF($A75<>0,INDEX('2.2 Daten'!N$9:N$859,MATCH('2.2'!$A75,'2.2 Daten'!$B$9:$B$859,0))) -> -3.815575616 | L75: =IF($A75<>0,INDEX('2.2 Daten'!O$9:O$859,MATCH('2.2'!$A75,'2.2 Daten'!$B$9:$B$859,0))) -> 0.2707487244
A76: =CHOOSE('2.2 Daten'!$A$2,'2.2 Daten'!B498,'2.2 Daten'!B47,'2.2 Daten'!B64,'2.2 Daten'!B81,'2.2 Daten'!B84,'2.2 Daten'!B131,'2.2 Daten'!B135,'2.2 Daten'!B190,'2.2 Daten'!B218,'2.2 Daten'!B256,'2.2 Daten'!B302,'2.2 Daten'!B400,'2.2 Daten'!B408,'2.2 Daten'!B411,'2.2 Daten'!B431,'2.2 Daten'!B441,'2.2 Daten'!B456,'2.2 Daten'!B472,x) -> Braunschweig, Stadt | B76: =IF($A76<>0,INDEX('2.2 Daten'!C$9:C$859,MATCH('2.2'!$A76,'2.2 Daten'!$B$9:$B$859,0))," ") -> 03101000 | C76: =IF($A76<>0,INDEX('2.2 Daten'!E$9:E$859,MATCH('2.2'!$A76,'2.2 Daten'!$B$9:$B$859,0))) -> 5381 | D76: =IF($A76<>0,INDEX('2.2 Daten'!F$9:F$859,MATCH('2.2'!$A76,'2.2 Daten'!$B$9:$B$859,0))) -> 785 | E76: =IF($A76<>0,INDEX('2.2 Daten'!G$9:G$859,MATCH('2.2'!$A76,'2.2 Daten'!$B$9:$B$859,0))) -> 939 | F76: =IF($A76<>0,INDEX('2.2 Daten'!H$9:H$859,MATCH('2.2'!$A76,'2.2 Daten'!$B$9:$B$859,0))) -> 2823 | G76: =IF($A76<>0,INDEX('2.2 Daten'!I$9:I$859,MATCH('2.2'!$A76,'2.2 Daten'!$B$9:$B$859,0))) -> 834 | H76: =IF($A76<>0,INDEX('2.2 Daten'!K$9:K$859,MATCH('2.2'!$A76,'2.2 Daten'!$B$9:$B$859,0))) -> -4.642920432 | I76: =IF($A76<>0,INDEX('2.2 Daten'!L$9:L$859,MATCH('2.2'!$A76,'2.2 Daten'!$B$9:$B$859,0))) -> -9.038238702 | J76: =IF($A76<>0,INDEX('2.2 Daten'!M$9:M$859,MATCH('2.2'!$A76,'2.2 Daten'!$B$9:$B$859,0))) -> -7.850834151 | K76: =IF($A76<>0,INDEX('2.2 Daten'!N$9:N$859,MATCH('2.2'!$A76,'2.2 Daten'!$B$9:$B$859,0))) -> -4.272634791 | L76: =IF($A76<>0,INDEX('2.2 Daten'!O$9:O$859,MATCH('2.2'!$A76,'2.2 Daten'!$B$9:$B$859,0))) -> 2.709359606
A77: =CHOOSE('2.2 Daten'!$A$2,'2.2 Daten'!B499,'2.2 Daten'!B48,'2.2 Daten'!B65,'2.2 Daten'!B82,'2.2 Daten'!B85,'2.2 Daten'!B132,'2.2 Daten'!B136,'2.2 Daten'!B191,'2.2 Daten'!B219,'2.2 Daten'!B257,'2.2 Daten'!B303,'2.2 Daten'!B401,'2.2 Daten'!B409,'2.2 Daten'!B412,'2.2 Daten'!B432,'2.2 Daten'!B442,'2.2 Daten'!B457,'2.2 Daten'!B473,x) -> Salzgitter, Stadt | B77: =IF($A77<>0,INDEX('2.2 Daten'!C$9:C$859,MATCH('2.2'!$A77,'2.2 Daten'!$B$9:$B$859,0))," ") -> 03102000 | C77: =IF($A77<>0,INDEX('2.2 Daten'!E$9:E$859,MATCH('2.2'!$A77,'2.2 Daten'!$B$9:$B$859,0))) -> 4851 | D77: =IF($A77<>0,INDEX('2.2 Daten'!F$9:F$859,MATCH('2.2'!$A77,'2.2 Daten'!$B$9:$B$859,0))) -> 769 | E77: =IF($A77<>0,INDEX('2.2 Daten'!G$9:G$859,MATCH('2.2'!$A77,'2.2 Daten'!$B$9:$B$859,0))) -> 897 | F77: =IF($A77<>0,INDEX('2.2 Daten'!H$9:H$859,MATCH('2.2'!$A77,'2.2 Daten'!$B$9:$B$859,0))) -> 2498 | G77: =IF($A77<>0,INDEX('2.2 Daten'!I$9:I$859,MATCH('2.2'!$A77,'2.2 Daten'!$B$9:$B$859,0))) -> 687 | H77: =IF($A77<>0,INDEX('2.2 Daten'!K$9:K$859,MATCH('2.2'!$A77,'2.2 Daten'!$B$9:$B$859,0))) -> -4.432624113 | I77: =IF($A77<>0,INDEX('2.2 Daten'!L$9:L$859,MATCH('2.2'!$A77,'2.2 Daten'!$B$9:$B$859,0))) -> -6.561360875 | J77: =IF($A77<>0,INDEX('2.2 Daten'!M$9:M$859,MATCH('2.2'!$A77,'2.2 Daten'!$B$9:$B$859,0))) -> -8.841463415 | K77: =IF($A77<>0,INDEX('2.2 Daten'!N$9:N$859,MATCH('2.2'!$A77,'2.2 Daten'!$B$9:$B$859,0))) -> -3.10318076 | L77: =IF($A77<>0,INDEX('2.2 Daten'!O$9:O$859,MATCH('2.2'!$A77,'2.2 Daten'!$B$9:$B$859,0))) -> -0.5788712012
A78: =CHOOSE('2.2 Daten'!$A$2,'2.2 Daten'!B500,'2.2 Daten'!B49,'2.2 Daten'!B66,'2.2 Daten'!B83,'2.2 Daten'!B86,'2.2 Daten'!B133,'2.2 Daten'!B137,'2.2 Daten'!B192,'2.2 Daten'!B220,'2.2 Daten'!B258,'2.2 Daten'!B304,'2.2 Daten'!B402,'2.2 Daten'!B410,'2.2 Daten'!B413,'2.2 Daten'!B433,'2.2 Daten'!B443,'2.2 Daten'!B458,'2.2 Daten'!B474,x) -> Wolfsburg, Stadt | B78: =IF($A78<>0,INDEX('2.2 Daten'!C$9:C$859,MATCH('2.2'!$A78,'2.2 Daten'!$B$9:$B$859,0))," ") -> 03103000 | C78: =IF($A78<>0,INDEX('2.2 Daten'!E$9:E$859,MATCH('2.2'!$A78,'2.2 Daten'!$B$9:$B$859,0))) -> 3645 | D78: =IF($A78<>0,INDEX('2.2 Daten'!F$9:F$859,MATCH('2.2'!$A78,'2.2 Daten'!$B$9:$B$859,0))) -> 580 | E78: =IF($A78<>0,INDEX('2.2 Daten'!G$9:G$859,MATCH('2.2'!$A78,'2.2 Daten'!$B$9:$B$859,0))) -> 699 | F78: =IF($A78<>0,INDEX('2.2 Daten'!H$9:H$859,MATCH('2.2'!$A78,'2.2 Daten'!$B$9:$B$859,0))) -> 1811 | G78: =IF($A78<>0,INDEX('2.2 Daten'!I$9:I$859,MATCH('2.2'!$A78,'2.2 Daten'!$B$9:$B$859,0))) -> 555 | H78: =IF($A78<>0,INDEX('2.2 Daten'!K$9:K$859,MATCH('2.2'!$A78,'2.2 Daten'!$B$9:$B$859,0))) -> -4.154614778 | I78: =IF($A78<>0,INDEX('2.2 Daten'!L$9:L$859,MATCH('2.2'!$A78,'2.2 Daten'!$B$9:$B$859,0))) -> -8.227848101 | J78: =IF($A78<>0,INDEX('2.2 Daten'!M$9:M$859,MATCH('2.2'!$A78,'2.2 Daten'!$B$9:$B$859,0))) -> -4.115226337 | K78: =IF($A78<>0,INDEX('2.2 Daten'!N$9:N$859,MATCH('2.2'!$A78,'2.2 Daten'!$B$9:$B$859,0))) -> -5.627931214 | L78: =IF($A78<>0,INDEX('2.2 Daten'!O$9:O$859,MATCH('2.2'!$A78,'2.2 Daten'!$B$9:$B$859,0))) -> 6.118546845
A79: =CHOOSE('2.2 Daten'!$A$2,'2.2 Daten'!B501,'2.2 Daten'!B50,'2.2 Daten'!B67,'2.2 Daten'!B84,'2.2 Daten'!B87,'2.2 Daten'!B134,'2.2 Daten'!B138,'2.2 Daten'!B193,'2.2 Daten'!B221,'2.2 Daten'!B259,'2.2 Daten'!B305,'2.2 Daten'!B403,'2.2 Daten'!B411,'2.2 Daten'!B414,'2.2 Daten'!B434,'2.2 Daten'!B444,'2.2 Daten'!B459,'2.2 Daten'!B475,x) -> Gifhorn | B79: =IF($A79<>0,INDEX('2.2 Daten'!C$9:C$859,MATCH('2.2'!$A79,'2.2 Daten'!$B$9:$B$859,0))," ") -> 03151000 | C79: =IF($A79<>0,INDEX('2.2 Daten'!E$9:E$859,MATCH('2.2'!$A79,'2.2 Daten'!$B$9:$B$859,0))) -> 3066 | D79: =IF($A79<>0,INDEX('2.2 Daten'!F$9:F$859,MATCH('2.2'!$A79,'2.2 Daten'!$B$9:$B$859,0))) -> 447 | E79: =IF($A79<>0,INDEX('2.2 Daten'!G$9:G$859,MATCH('2.2'!$A79,'2.2 Daten'!$B$9:$B$859,0))) -> 561 | F79: =IF($A79<>0,INDEX('2.2 Daten'!H$9:H$859,MATCH('2.2'!$A79,'2.2 Daten'!$B$9:$B$859,0))) -> 1595 | G79: =IF($A79<>0,INDEX('2.2 Daten'!I$9:I$859,MATCH('2.2'!$A79,'2.2 Daten'!$B$9:$B$859,0))) -> 463 | H79: =IF($A79<>0,INDEX('2.2 Daten'!K$9:K$859,MATCH('2.2'!$A79,'2.2 Daten'!$B$9:$B$859,0))) -> -5.806451613 | I79: =IF($A79<>0,INDEX('2.2 Daten'!L$9:L$859,MATCH('2.2'!$A79,'2.2 Daten'!$B$9:$B$859,0))) -> -11.1332008 | J79: =IF($A79<>0,INDEX('2.2 Daten'!M$9:M$859,MATCH('2.2'!$A79,'2.2 Daten'!$B$9:$B$859,0))) -> -6.030150754 | K79: =IF($A79<>0,INDEX('2.2 Daten'!N$9:N$859,MATCH('2.2'!$A79,'2.2 Daten'!$B$9:$B$859,0))) -> -6.010606953 | L79: =IF($A79<>0,INDEX('2.2 Daten'!O$9:O$859,MATCH('2.2'!$A79,'2.2 Daten'!$B$9:$B$859,0))) -> 1.091703057
A80: =CHOOSE('2.2 Daten'!$A$2,'2.2 Daten'!B502,'2.2 Daten'!B51,'2.2 Daten'!B68,'2.2 Daten'!B85,'2.2 Daten'!B88,'2.2 Daten'!B135,'2.2 Daten'!B139,'2.2 Daten'!B194,'2.2 Daten'!B222,'2.2 Daten'!B260,'2.2 Daten'!B306,'2.2 Daten'!B404,'2.2 Daten'!B412,'2.2 Daten'!B415,'2.2 Daten'!B435,'2.2 Daten'!B445,'2.2 Daten'!B460,'2.2 Daten'!B476,x) -> Goslar | B80: =IF($A80<>0,INDEX('2.2 Daten'!C$9:C$859,MATCH('2.2'!$A80,'2.2 Daten'!$B$9:$B$859,0))," ") -> 03153000 | C80: =IF($A80<>0,INDEX('2.2 Daten'!E$9:E$859,MATCH('2.2'!$A80,'2.2 Daten'!$B$9:$B$859,0))) -> 3417 | D80: =IF($A80<>0,INDEX('2.2 Daten'!F$9:F$859,MATCH('2.2'!$A80,'2.2 Daten'!$B$9:$B$859,0))) -> 509 | E80: =IF($A80<>0,INDEX('2.2 Daten'!G$9:G$859,MATCH('2.2'!$A80,'2.2 Daten'!$B$9:$B$859,0))) -> 599 | F80: =IF($A80<>0,INDEX('2.2 Daten'!H$9:H$859,MATCH('2.2'!$A80,'2.2 Daten'!$B$9:$B$859,0))) -> 1791 | G80: =IF($A80<>0,INDEX('2.2 Daten'!I$9:I$859,MATCH('2.2'!$A80,'2.2 Daten'!$B$9:$B$859,0))) -> 518 | H80: =IF($A80<>0,INDEX('2.2 Daten'!K$9:K$859,MATCH('2.2'!$A80,'2.2 Daten'!$B$9:$B$859,0))) -> -2.538505419 | I80: =IF($A80<>0,INDEX('2.2 Daten'!L$9:L$859,MATCH('2.2'!$A80,'2.2 Daten'!$B$9:$B$859,0))) -> -10.70175439 | J80: =IF($A80<>0,INDEX('2.2 Daten'!M$9:M$859,MATCH('2.2'!$A80,'2.2 Daten'!$B$9:$B$859,0))) -> -3.387096774 | K80: =IF($A80<>0,INDEX('2.2 Daten'!N$9:N$859,MATCH('2.2'!$A80,'2.2 Daten'!$B$9:$B$859,0))) -> -1.104362231 | L80: =IF($A80<>0,INDEX('2.2 Daten'!O$9:O$859,MATCH('2.2'!$A80,'2.2 Daten'!$B$9:$B$859,0))) -> 2.574257426
A81: =CHOOSE('2.2 Daten'!$A$2,'2.2 Daten'!B503,'2.2 Daten'!B52,'2.2 Daten'!B69,'2.2 Daten'!B86,'2.2 Daten'!B89,'2.2 Daten'!B136,'2.2 Daten'!B140,'2.2 Daten'!B195,'2.2 Daten'!B223,'2.2 Daten'!B261,'2.2 Daten'!B307,'2.2 Daten'!B405,'2.2 Daten'!B413,'2.2 Daten'!B416,'2.2 Daten'!B436,'2.2 Daten'!B446,'2.2 Daten'!B461,'2.2 Daten'!B477,x) -> Helmstedt | B81: =IF($A81<>0,INDEX('2.2 Daten'!C$9:C$859,MATCH('2.2'!$A81,'2.2 Daten'!$B$9:$B$859,0))," ") -> 03154000 | C81: =IF($A81<>0,INDEX('2.2 Daten'!E$9:E$859,MATCH('2.2'!$A81,'2.2 Daten'!$B$9:$B$859,0))) -> 2228 | D81: =IF($A81<>0,INDEX('2.2 Daten'!F$9:F$859,MATCH('2.2'!$A81,'2.2 Daten'!$B$9:$B$859,0))) -> 317 | E81: =IF($A81<>0,INDEX('2.2 Daten'!G$9:G$859,MATCH('2.2'!$A81,'2.2 Daten'!$B$9:$B$859,0))) -> 416 | F81: =IF($A81<>0,INDEX('2.2 Daten'!H$9:H$859,MATCH('2.2'!$A81,'2.2 Daten'!$B$9:$B$859,0))) -> 1151 | G81: =IF($A81<>0,INDEX('2.2 Daten'!I$9:I$859,MATCH('2.2'!$A81,'2.2 Daten'!$B$9:$B$859,0))) -> 344 | H81: =IF($A81<>0,INDEX('2.2 Daten'!K$9:K$859,MATCH('2.2'!$A81,'2.2 Daten'!$B$9:$B$859,0))) -> -1.676963813 | I81: =IF($A81<>0,INDEX('2.2 Daten'!L$9:L$859,MATCH('2.2'!$A81,'2.2 Daten'!$B$9:$B$859,0))) -> -10.19830028 | J81: =IF($A81<>0,INDEX('2.2 Daten'!M$9:M$859,MATCH('2.2'!$A81,'2.2 Daten'!$B$9:$B$859,0))) -> 1.960784314 | K81: =IF($A81<>0,INDEX('2.2 Daten'!N$9:N$859,MATCH('2.2'!$A81,'2.2 Daten'!$B$9:$B$859,0))) -> -3.601340034 | L81: =IF($A81<>0,INDEX('2.2 Daten'!O$9:O$859,MATCH('2.2'!$A81,'2.2 Daten'!$B$9:$B$859,0))) -> 10.61093248
A82: =CHOOSE('2.2 Daten'!$A$2,'2.2 Daten'!B504,'2.2 Daten'!B53,'2.2 Daten'!B70,'2.2 Daten'!B87,'2.2 Daten'!B90,'2.2 Daten'!B137,'2.2 Daten'!B141,'2.2 Daten'!B196,'2.2 Daten'!B224,'2.2 Daten'!B262,'2.2 Daten'!B308,'2.2 Daten'!B406,'2.2 Daten'!B414,'2.2 Daten'!B417,'2.2 Daten'!B437,'2.2 Daten'!B447,'2.2 Daten'!B462,'2.2 Daten'!B478,x) -> Northeim | B82: =IF($A82<>0,INDEX('2.2 Daten'!C$9:C$859,MATCH('2.2'!$A82,'2.2 Daten'!$B$9:$B$859,0))," ") -> 03155000 | C82: =IF($A82<>0,INDEX('2.2 Daten'!E$9:E$859,MATCH('2.2'!$A82,'2.2 Daten'!$B$9:$B$859,0))) -> 3072 | D82: =IF($A82<>0,INDEX('2.2 Daten'!F$9:F$859,MATCH('2.2'!$A82,'2.2 Daten'!$B$9:$B$859,0))) -> 464 | E82: =IF($A82<>0,INDEX('2.2 Daten'!G$9:G$859,MATCH('2.2'!$A82,'2.2 Daten'!$B$9:$B$859,0))) -> 532 | F82: =IF($A82<>0,INDEX('2.2 Daten'!H$9:H$859,MATCH('2.2'!$A82,'2.2 Daten'!$B$9:$B$859,0))) -> 1596 | G82: =IF($A82<>0,INDEX('2.2 Daten'!I$9:I$859,MATCH('2.2'!$A82,'2.2 Daten'!$B$9:$B$859,0))) -> 480 | H82: =IF($A82<>0,INDEX('2.2 Daten'!K$9:K$859,MATCH('2.2'!$A82,'2.2 Daten'!$B$9:$B$859,0))) -> -4.507304942 | I82: =IF($A82<>0,INDEX('2.2 Daten'!L$9:L$859,MATCH('2.2'!$A82,'2.2 Daten'!$B$9:$B$859,0))) -> -8.118811881 | J82: =IF($A82<>0,INDEX('2.2 Daten'!M$9:M$859,MATCH('2.2'!$A82,'2.2 Daten'!$B$9:$B$859,0))) -> -10.88777219 | K82: =IF($A82<>0,INDEX('2.2 Daten'!N$9:N$859,MATCH('2.2'!$A82,'2.2 Daten'!$B$9:$B$859,0))) -> -4.086538462 | L82: =IF($A82<>0,INDEX('2.2 Daten'!O$9:O$859,MATCH('2.2'!$A82,'2.2 Daten'!$B$9:$B$859,0))) -> 6.430155211
A83: =CHOOSE('2.2 Daten'!$A$2,'2.2 Daten'!B505,'2.2 Daten'!B54,'2.2 Daten'!B71,'2.2 Daten'!B88,'2.2 Daten'!B91,'2.2 Daten'!B138,'2.2 Daten'!B142,'2.2 Daten'!B197,'2.2 Daten'!B225,'2.2 Daten'!B263,'2.2 Daten'!B309,'2.2 Daten'!B407,'2.2 Daten'!B415,'2.2 Daten'!B418,'2.2 Daten'!B438,'2.2 Daten'!B448,'2.2 Daten'!B463,'2.2 Daten'!B479,x) -> Peine | B83: =IF($A83<>0,INDEX('2.2 Daten'!C$9:C$859,MATCH('2.2'!$A83,'2.2 Daten'!$B$9:$B$859,0))," ") -> 03157000 | C83: =IF($A83<>0,INDEX('2.2 Daten'!E$9:E$859,MATCH('2.2'!$A83,'2.2 Daten'!$B$9:$B$859,0))) -> 3767 | D83: =IF($A83<>0,INDEX('2.2 Daten'!F$9:F$859,MATCH('2.2'!$A83,'2.2 Daten'!$B$9:$B$859,0))) -> 520 | E83: =IF($A83<>0,INDEX('2.2 Daten'!G$9:G$859,MATCH('2.2'!$A83,'2.2 Daten'!$B$9:$B$859,0))) -> 676 | F83: =IF($A83<>0,INDEX('2.2 Daten'!H$9:H$859,MATCH('2.2'!$A83,'2.2 Daten'!$B$9:$B$859,0))) -> 1995 | G83: =IF($A83<>0,INDEX('2.2 Daten'!I$9:I$859,MATCH('2.2'!$A83,'2.2 Daten'!$B$9:$B$859,0))) -> 576 | H83: =IF($A83<>0,INDEX('2.2 Daten'!K$9:K$859,MATCH('2.2'!$A83,'2.2 Daten'!$B$9:$B$859,0))) -> -4.415123065 | I83: =IF($A83<>0,INDEX('2.2 Daten'!L$9:L$859,MATCH('2.2'!$A83,'2.2 Daten'!$B$9:$B$859,0))) -> -9.878682842 | J83: =IF($A83<>0,INDEX('2.2 Daten'!M$9:M$859,MATCH('2.2'!$A83,'2.2 Daten'!$B$9:$B$859,0))) -> -1.457725948 | K83: =IF($A83<>0,INDEX('2.2 Daten'!N$9:N$859,MATCH('2.2'!$A83,'2.2 Daten'!$B$9:$B$859,0))) -> -3.855421687 | L83: =IF($A83<>0,INDEX('2.2 Daten'!O$9:O$859,MATCH('2.2'!$A83,'2.2 Daten'!$B$9:$B$859,0))) -> -4.47761194
A84: =CHOOSE('2.2 Daten'!$A$2,'2.2 Daten'!B506,'2.2 Daten'!B55,'2.2 Daten'!B72,'2.2 Daten'!B89,'2.2 Daten'!B92,'2.2 Daten'!B139,'2.2 Daten'!B143,'2.2 Daten'!B198,'2.2 Daten'!B226,'2.2 Daten'!B264,'2.2 Daten'!B310,'2.2 Daten'!B408,'2.2 Daten'!B416,'2.2 Daten'!B419,'2.2 Daten'!B439,'2.2 Daten'!B449,'2.2 Daten'!B464,'2.2 Daten'!B480,x) -> Wolfenbüttel | B84: =IF($A84<>0,INDEX('2.2 Daten'!C$9:C$859,MATCH('2.2'!$A84,'2.2 Daten'!$B$9:$B$859,0))," ") -> 03158000 | C84: =IF($A84<>0,INDEX('2.2 Daten'!E$9:E$859,MATCH('2.2'!$A84,'2.2 Daten'!$B$9:$B$859,0))) -> 2505 | D84: =IF($A84<>0,INDEX('2.2 Daten'!F$9:F$859,MATCH('2.2'!$A84,'2.2 Daten'!$B$9:$B$859,0))) -> 361 | E84: =IF($A84<>0,INDEX('2.2 Daten'!G$9:G$859,MATCH('2.2'!$A84,'2.2 Daten'!$B$9:$B$859,0))) -> 455 | F84: =IF($A84<>0,INDEX('2.2 Daten'!H$9:H$859,MATCH('2.2'!$A84,'2.2 Daten'!$B$9:$B$859,0))) -> 1323 | G84: =IF($A84<>0,INDEX('2.2 Daten'!I$9:I$859,MATCH('2.2'!$A84,'2.2 Daten'!$B$9:$B$859,0))) -> 366 | H84: =IF($A84<>0,INDEX('2.2 Daten'!K$9:K$859,MATCH('2.2'!$A84,'2.2 Daten'!$B$9:$B$859,0))) -> -4.316271963 | I84: =IF($A84<>0,INDEX('2.2 Daten'!L$9:L$859,MATCH('2.2'!$A84,'2.2 Daten'!$B$9:$B$859,0))) -> -12.37864078 | J84: =IF($A84<>0,INDEX('2.2 Daten'!M$9:M$859,MATCH('2.2'!$A84,'2.2 Daten'!$B$9:$B$859,0))) -> 0 | K84: =IF($A84<>0,INDEX('2.2 Daten'!N$9:N$859,MATCH('2.2'!$A84,'2.2 Daten'!$B$9:$B$859,0))) -> -3.289473684 | L84: =IF($A84<>0,INDEX('2.2 Daten'!O$9:O$859,MATCH('2.2'!$A84,'2.2 Daten'!$B$9:$B$859,0))) -> -4.438642298
A85: =CHOOSE('2.2 Daten'!$A$2,'2.2 Daten'!B507,'2.2 Daten'!B56,'2.2 Daten'!B73,'2.2 Daten'!B90,'2.2 Daten'!B93,'2.2 Daten'!B140,'2.2 Daten'!B144,'2.2 Daten'!B199,'2.2 Daten'!B227,'2.2 Daten'!B265,'2.2 Daten'!B311,'2.2 Daten'!B409,'2.2 Daten'!B417,'2.2 Daten'!B420,'2.2 Daten'!B440,'2.2 Daten'!B450,'2.2 Daten'!B465,'2.2 Daten'!B481,x) -> Göttingen | B85: =IF($A85<>0,INDEX('2.2 Daten'!C$9:C$859,MATCH('2.2'!$A85,'2.2 Daten'!$B$9:$B$859,0))," ") -> 03159000 | C85: =IF($A85<>0,INDEX('2.2 Daten'!E$9:E$859,MATCH('2.2'!$A85,'2.2 Daten'!$B$9:$B$859,0))) -> 7002 | D85: =IF($A85<>0,INDEX('2.2 Daten'!F$9:F$859,MATCH('2.2'!$A85,'2.2 Daten'!$B$9:$B$859,0))) -> 1160 | E85: =IF($A85<>0,INDEX('2.2 Daten'!G$9:G$859,MATCH('2.2'!$A85,'2.2 Daten'!$B$9:$B$859,0))) -> 1299 | F85: =IF($A85<>0,INDEX('2.2 Daten'!H$9:H$859,MATCH('2.2'!$A85,'2.2 Daten'!$B$9:$B$859,0))) -> 3498 | G85: =IF($A85<>0,INDEX('2.2 Daten'!I$9:I$859,MATCH('2.2'!$A85,'2.2 Daten'!$B$9:$B$859,0))) -> 1045 | H85: =IF($A85<>0,INDEX('2.2 Daten'!K$9:K$859,MATCH('2.2'!$A85,'2.2 Daten'!$B$9:$B$859,0))) -> 0.6323656223 | I85: =IF($A85<>0,INDEX('2.2 Daten'!L$9:L$859,MATCH('2.2'!$A85,'2.2 Daten'!$B$9:$B$859,0))) -> -0.08613264427 | J85: =IF($A85<>0,INDEX('2.2 Daten'!M$9:M$859,MATCH('2.2'!$A85,'2.2 Daten'!$B$9:$B$859,0))) -> -3.420074349 | K85: =IF($A85<>0,INDEX('2.2 Daten'!N$9:N$859,MATCH('2.2'!$A85,'2.2 Daten'!$B$9:$B$859,0))) -> 0.2579535684 | L85: =IF($A85<>0,INDEX('2.2 Daten'!O$9:O$859,MATCH('2.2'!$A85,'2.2 Daten'!$B$9:$B$859,0))) -> 8.515057113
A86: =CHOOSE('2.2 Daten'!$A$2,'2.2 Daten'!B508,'2.2 Daten'!B57,'2.2 Daten'!B74,'2.2 Daten'!B91,'2.2 Daten'!B94,'2.2 Daten'!B141,'2.2 Daten'!B145,'2.2 Daten'!B200,'2.2 Daten'!B228,'2.2 Daten'!B266,'2.2 Daten'!B312,'2.2 Daten'!B410,'2.2 Daten'!B418,'2.2 Daten'!B421,'2.2 Daten'!B441,'2.2 Daten'!B451,'2.2 Daten'!B466,'2.2 Daten'!B482,x) -> Region Hannover | B86: =IF($A86<>0,INDEX('2.2 Daten'!C$9:C$859,MATCH('2.2'!$A86,'2.2 Daten'!$B$9:$B$859,0))," ") -> 03241000 | C86: =IF($A86<>0,INDEX('2.2 Daten'!E$9:E$859,MATCH('2.2'!$A86,'2.2 Daten'!$B$9:$B$859,0))) -> 37421 | D86: =IF($A86<>0,INDEX('2.2 Daten'!F$9:F$859,MATCH('2.2'!$A86,'2.2 Daten'!$B$9:$B$859,0))) -> 5573 | E86: =IF($A86<>0,INDEX('2.2 Daten'!G$9:G$859,MATCH('2.2'!$A86,'2.2 Daten'!$B$9:$B$859,0))) -> 6478 | F86: =IF($A86<>0,INDEX('2.2 Daten'!H$9:H$859,MATCH('2.2'!$A86,'2.2 Daten'!$B$9:$B$859,0))) -> 19464 | G86: =IF($A86<>0,INDEX('2.2 Daten'!I$9:I$859,MATCH('2.2'!$A86,'2.2 Daten'!$B$9:$B$859,0))) -> 5906 | H86: =IF($A86<>0,INDEX('2.2 Daten'!K$9:K$859,MATCH('2.2'!$A86,'2.2 Daten'!$B$9:$B$859,0))) -> -5.039713756 | I86: =IF($A86<>0,INDEX('2.2 Daten'!L$9:L$859,MATCH('2.2'!$A86,'2.2 Daten'!$B$9:$B$859,0))) -> -7.747061745 | J86: =IF($A86<>0,INDEX('2.2 Daten'!M$9:M$859,MATCH('2.2'!$A86,'2.2 Daten'!$B$9:$B$859,0))) -> -7.575973748 | K86: =IF($A86<>0,INDEX('2.2 Daten'!N$9:N$859,MATCH('2.2'!$A86,'2.2 Daten'!$B$9:$B$859,0))) -> -4.74699031 | L86: =IF($A86<>0,INDEX('2.2 Daten'!O$9:O$859,MATCH('2.2'!$A86,'2.2 Daten'!$B$9:$B$859,0))) -> -0.2870167145
A87: =CHOOSE('2.2 Daten'!$A$2,'2.2 Daten'!B509,'2.2 Daten'!B58,'2.2 Daten'!B75,'2.2 Daten'!B92,'2.2 Daten'!B95,'2.2 Daten'!B142,'2.2 Daten'!B146,'2.2 Daten'!B201,'2.2 Daten'!B229,'2.2 Daten'!B267,'2.2 Daten'!B313,'2.2 Daten'!B411,'2.2 Daten'!B419,'2.2 Daten'!B422,'2.2 Daten'!B442,'2.2 Daten'!B452,'2.2 Daten'!B467,'2.2 Daten'!B483,x) -> Diepholz | B87: =IF($A87<>0,INDEX('2.2 Daten'!C$9:C$859,MATCH('2.2'!$A87,'2.2 Daten'!$B$9:$B$859,0))," ") -> 03251000 | C87: =IF($A87<>0,INDEX('2.2 Daten'!E$9:E$859,MATCH('2.2'!$A87,'2.2 Daten'!$B$9:$B$859,0))) -> 4340 | D87: =IF($A87<>0,INDEX('2.2 Daten'!F$9:F$859,MATCH('2.2'!$A87,'2.2 Daten'!$B$9:$B$859,0))) -> 593 | E87: =IF($A87<>0,INDEX('2.2 Daten'!G$9:G$859,MATCH('2.2'!$A87,'2.2 Daten'!$B$9:$B$859,0))) -> 759 | F87: =IF($A87<>0,INDEX('2.2 Daten'!H$9:H$859,MATCH('2.2'!$A87,'2.2 Daten'!$B$9:$B$859,0))) -> 2328 | G87: =IF($A87<>0,INDEX('2.2 Daten'!I$9:I$859,MATCH('2.2'!$A87,'2.2 Daten'!$B$9:$B$859,0))) -> 660 | H87: =IF($A87<>0,INDEX('2.2 Daten'!K$9:K$859,MATCH('2.2'!$A87,'2.2 Daten'!$B$9:$B$859,0))) -> -6.162162162 | I87: =IF($A87<>0,INDEX('2.2 Daten'!L$9:L$859,MATCH('2.2'!$A87,'2.2 Daten'!$B$9:$B$859,0))) -> -15.04297994 | J87: =IF($A87<>0,INDEX('2.2 Daten'!M$9:M$859,MATCH('2.2'!$A87,'2.2 Daten'!$B$9:$B$859,0))) -> -8 | K87: =IF($A87<>0,INDEX('2.2 Daten'!N$9:N$859,MATCH('2.2'!$A87,'2.2 Daten'!$B$9:$B$859,0))) -> -4.472712351 | L87: =IF($A87<>0,INDEX('2.2 Daten'!O$9:O$859,MATCH('2.2'!$A87,'2.2 Daten'!$B$9:$B$859,0))) -> -0.7518796992
A88: =CHOOSE('2.2 Daten'!$A$2,'2.2 Daten'!B510,'2.2 Daten'!B59,'2.2 Daten'!B76,'2.2 Daten'!B93,'2.2 Daten'!B96,'2.2 Daten'!B143,'2.2 Daten'!B147,'2.2 Daten'!B202,'2.2 Daten'!B230,'2.2 Daten'!B268,'2.2 Daten'!B314,'2.2 Daten'!B412,'2.2 Daten'!B420,'2.2 Daten'!B423,'2.2 Daten'!B443,'2.2 Daten'!B453,'2.2 Daten'!B468,'2.2 Daten'!B484,x) -> Hameln-Pyrmont | B88: =IF($A88<>0,INDEX('2.2 Daten'!C$9:C$859,MATCH('2.2'!$A88,'2.2 Daten'!$B$9:$B$859,0))," ") -> 03252000 | C88: =IF($A88<>0,INDEX('2.2 Daten'!E$9:E$859,MATCH('2.2'!$A88,'2.2 Daten'!$B$9:$B$859,0))) -> 4812 | D88: =IF($A88<>0,INDEX('2.2 Daten'!F$9:F$859,MATCH('2.2'!$A88,'2.2 Daten'!$B$9:$B$859,0))) -> 777 | E88: =IF($A88<>0,INDEX('2.2 Daten'!G$9:G$859,MATCH('2.2'!$A88,'2.2 Daten'!$B$9:$B$859,0))) -> 872 | F88: =IF($A88<>0,INDEX('2.2 Daten'!H$9:H$859,MATCH('2.2'!$A88,'2.2 Daten'!$B$9:$B$859,0))) -> 2468 | G88: =IF($A88<>0,INDEX('2.2 Daten'!I$9:I$859,MATCH('2.2'!$A88,'2.2 Daten'!$B$9:$B$859,0))) -> 695 | H88: =IF($A88<>0,INDEX('2.2 Daten'!K$9:K$859,MATCH('2.2'!$A88,'2.2 Daten'!$B$9:$B$859,0))) -> -4.863582444 | I88: =IF($A88<>0,INDEX('2.2 Daten'!L$9:L$859,MATCH('2.2'!$A88,'2.2 Daten'!$B$9:$B$859,0))) -> -3.955500618 | J88: =IF($A88<>0,INDEX('2.2 Daten'!M$9:M$859,MATCH('2.2'!$A88,'2.2 Daten'!$B$9:$B$859,0))) -> -8.403361345 | K88: =IF($A88<>0,INDEX('2.2 Daten'!N$9:N$859,MATCH('2.2'!$A88,'2.2 Daten'!$B$9:$B$859,0))) -> -4.229724486 | L88: =IF($A88<>0,INDEX('2.2 Daten'!O$9:O$859,MATCH('2.2'!$A88,'2.2 Daten'!$B$9:$B$859,0))) -> -3.472222222
A89: =CHOOSE('2.2 Daten'!$A$2,'2.2 Daten'!B511,'2.2 Daten'!B60,'2.2 Daten'!B77,'2.2 Daten'!B94,'2.2 Daten'!B97,'2.2 Daten'!B144,'2.2 Daten'!B148,'2.2 Daten'!B203,'2.2 Daten'!B231,'2.2 Daten'!B269,'2.2 Daten'!B315,'2.2 Daten'!B413,'2.2 Daten'!B421,'2.2 Daten'!B424,'2.2 Daten'!B444,'2.2 Daten'!B454,'2.2 Daten'!B469,'2.2 Daten'!B485,x) -> Hildesheim | B89: =IF($A89<>0,INDEX('2.2 Daten'!C$9:C$859,MATCH('2.2'!$A89,'2.2 Daten'!$B$9:$B$859,0))," ") -> 03254000 | C89: =IF($A89<>0,INDEX('2.2 Daten'!E$9:E$859,MATCH('2.2'!$A89,'2.2 Daten'!$B$9:$B$859,0))) -> 6943 | D89: =IF($A89<>0,INDEX('2.2 Daten'!F$9:F$859,MATCH('2.2'!$A89,'2.2 Daten'!$B$9:$B$859,0))) -> 1078 | E89: =IF($A89<>0,INDEX('2.2 Daten'!G$9:G$859,MATCH('2.2'!$A89,'2.2 Daten'!$B$9:$B$859,0))) -> 1250 | F89: =IF($A89<>0,INDEX('2.2 Daten'!H$9:H$859,MATCH('2.2'!$A89,'2.2 Daten'!$B$9:$B$859,0))) -> 3526 | G89: =IF($A89<>0,INDEX('2.2 Daten'!I$9:I$859,MATCH('2.2'!$A89,'2.2 Daten'!$B$9:$B$859,0))) -> 1089 | H89: =IF($A89<>0,INDEX('2.2 Daten'!K$9:K$859,MATCH('2.2'!$A89,'2.2 Daten'!$B$9:$B$859,0))) -> -4.062456819 | I89: =IF($A89<>0,INDEX('2.2 Daten'!L$9:L$859,MATCH('2.2'!$A89,'2.2 Daten'!$B$9:$B$859,0))) -> -4.938271605 | J89: =IF($A89<>0,INDEX('2.2 Daten'!M$9:M$859,MATCH('2.2'!$A89,'2.2 Daten'!$B$9:$B$859,0))) -> -5.589123867 | K89: =IF($A89<>0,INDEX('2.2 Daten'!N$9:N$859,MATCH('2.2'!$A89,'2.2 Daten'!$B$9:$B$859,0))) -> -4.676939713 | L89: =IF($A89<>0,INDEX('2.2 Daten'!O$9:O$859,MATCH('2.2'!$A89,'2.2 Daten'!$B$9:$B$859,0))) -> 0.8333333333
A90: =CHOOSE('2.2 Daten'!$A$2,'2.2 Daten'!B512,'2.2 Daten'!B61,'2.2 Daten'!B78,'2.2 Daten'!B95,'2.2 Daten'!B98,'2.2 Daten'!B145,'2.2 Daten'!B149,'2.2 Daten'!B204,'2.2 Daten'!B232,'2.2 Daten'!B270,'2.2 Daten'!B316,'2.2 Daten'!B414,'2.2 Daten'!B422,'2.2 Daten'!B425,'2.2 Daten'!B445,'2.2 Daten'!B455,'2.2 Daten'!B470,'2.2 Daten'!B486,x) -> Holzminden | B90: =IF($A90<>0,INDEX('2.2 Daten'!C$9:C$859,MATCH('2.2'!$A90,'2.2 Daten'!$B$9:$B$859,0))," ") -> 03255000 | C90: =IF($A90<>0,INDEX('2.2 Daten'!E$9:E$859,MATCH('2.2'!$A90,'2.2 Daten'!$B$9:$B$859,0))) -> 1776 | D90: =IF($A90<>0,INDEX('2.2 Daten'!F$9:F$859,MATCH('2.2'!$A90,'2.2 Daten'!$B$9:$B$859,0))) -> 270 | E90: =IF($A90<>0,INDEX('2.2 Daten'!G$9:G$859,MATCH('2.2'!$A90,'2.2 Daten'!$B$9:$B$859,0))) -> 310 | F90: =IF($A90<>0,INDEX('2.2 Daten'!H$9:H$859,MATCH('2.2'!$A90,'2.2 Daten'!$B$9:$B$859,0))) -> 949 | G90: =IF($A90<>0,INDEX('2.2 Daten'!I$9:I$859,MATCH('2.2'!$A90,'2.2 Daten'!$B$9:$B$859,0))) -> 247 | H90: =IF($A90<>0,INDEX('2.2 Daten'!K$9:K$859,MATCH('2.2'!$A90,'2.2 Daten'!$B$9:$B$859,0))) -> -0.5042016807 | I90: =IF($A90<>0,INDEX('2.2 Daten'!L$9:L$859,MATCH('2.2'!$A90,'2.2 Daten'!$B$9:$B$859,0))) -> 0 | J90: =IF($A90<>0,INDEX('2.2 Daten'!M$9:M$859,MATCH('2.2'!$A90,'2.2 Daten'!$B$9:$B$859,0))) -> 4.377104377 | K90: =IF($A90<>0,INDEX('2.2 Daten'!N$9:N$859,MATCH('2.2'!$A90,'2.2 Daten'!$B$9:$B$859,0))) -> -1.556016598 | L90: =IF($A90<>0,INDEX('2.2 Daten'!O$9:O$859,MATCH('2.2'!$A90,'2.2 Daten'!$B$9:$B$859,0))) -> -2.755905512
A91: =CHOOSE('2.2 Daten'!$A$2,'2.2 Daten'!B513,'2.2 Daten'!B62,'2.2 Daten'!B79,'2.2 Daten'!B96,'2.2 Daten'!B99,'2.2 Daten'!B146,'2.2 Daten'!B150,'2.2 Daten'!B205,'2.2 Daten'!B233,'2.2 Daten'!B271,'2.2 Daten'!B317,'2.2 Daten'!B415,'2.2 Daten'!B423,'2.2 Daten'!B426,'2.2 Daten'!B446,'2.2 Daten'!B456,'2.2 Daten'!B471,'2.2 Daten'!B487,x) -> Nienburg (Weser) | B91: =IF($A91<>0,INDEX('2.2 Daten'!C$9:C$859,MATCH('2.2'!$A91,'2.2 Daten'!$B$9:$B$859,0))," ") -> 03256000 | C91: =IF($A91<>0,INDEX('2.2 Daten'!E$9:E$859,MATCH('2.2'!$A91,'2.2 Daten'!$B$9:$B$859,0))) -> 3715 | D91: =IF($A91<>0,INDEX('2.2 Daten'!F$9:F$859,MATCH('2.2'!$A91,'2.2 Daten'!$B$9:$B$859,0))) -> 492 | E91: =IF($A91<>0,INDEX('2.2 Daten'!G$9:G$859,MATCH('2.2'!$A91,'2.2 Daten'!$B$9:$B$859,0))) -> 607 | F91: =IF($A91<>0,INDEX('2.2 Daten'!H$9:H$859,MATCH('2.2'!$A91,'2.2 Daten'!$B$9:$B$859,0))) -> 1990 | G91: =IF($A91<>0,INDEX('2.2 Daten'!I$9:I$859,MATCH('2.2'!$A91,'2.2 Daten'!$B$9:$B$859,0))) -> 626 | H91: =IF($A91<>0,INDEX('2.2 Daten'!K$9:K$859,MATCH('2.2'!$A91,'2.2 Daten'!$B$9:$B$859,0))) -> -0.8804695838 | I91: =IF($A91<>0,INDEX('2.2 Daten'!L$9:L$859,MATCH('2.2'!$A91,'2.2 Daten'!$B$9:$B$859,0))) -> -5.927342256 | J91: =IF($A91<>0,INDEX('2.2 Daten'!M$9:M$859,MATCH('2.2'!$A91,'2.2 Daten'!$B$9:$B$859,0))) -> -8.3081571 | K91: =IF($A91<>0,INDEX('2.2 Daten'!N$9:N$859,MATCH('2.2'!$A91,'2.2 Daten'!$B$9:$B$859,0))) -> 0.6066734075 | L91: =IF($A91<>0,INDEX('2.2 Daten'!O$9:O$859,MATCH('2.2'!$A91,'2.2 Daten'!$B$9:$B$859,0))) -> 7.008547009
A92: =CHOOSE('2.2 Daten'!$A$2,'2.2 Daten'!B514,'2.2 Daten'!B63,'2.2 Daten'!B80,'2.2 Daten'!B97,'2.2 Daten'!B100,'2.2 Daten'!B147,'2.2 Daten'!B151,'2.2 Daten'!B206,'2.2 Daten'!B234,'2.2 Daten'!B272,'2.2 Daten'!B318,'2.2 Daten'!B416,'2.2 Daten'!B424,'2.2 Daten'!B427,'2.2 Daten'!B447,'2.2 Daten'!B457,'2.2 Daten'!B472,'2.2 Daten'!B488,x) -> Schaumburg | B92: =IF($A92<>0,INDEX('2.2 Daten'!C$9:C$859,MATCH('2.2'!$A92,'2.2 Daten'!$B$9:$B$859,0))," ") -> 03257000 | C92: =IF($A92<>0,INDEX('2.2 Daten'!E$9:E$859,MATCH('2.2'!$A92,'2.2 Daten'!$B$9:$B$859,0))) -> 3229 | D92: =IF($A92<>0,INDEX('2.2 Daten'!F$9:F$859,MATCH('2.2'!$A92,'2.2 Daten'!$B$9:$B$859,0))) -> 495 | E92: =IF($A92<>0,INDEX('2.2 Daten'!G$9:G$859,MATCH('2.2'!$A92,'2.2 Daten'!$B$9:$B$859,0))) -> 611 | F92: =IF($A92<>0,INDEX('2.2 Daten'!H$9:H$859,MATCH('2.2'!$A92,'2.2 Daten'!$B$9:$B$859,0))) -> 1620 | G92: =IF($A92<>0,INDEX('2.2 Daten'!I$9:I$859,MATCH('2.2'!$A92,'2.2 Daten'!$B$9:$B$859,0))) -> 503 | H92: =IF($A92<>0,INDEX('2.2 Daten'!K$9:K$859,MATCH('2.2'!$A92,'2.2 Daten'!$B$9:$B$859,0))) -> -2.299546142 | I92: =IF($A92<>0,INDEX('2.2 Daten'!L$9:L$859,MATCH('2.2'!$A92,'2.2 Daten'!$B$9:$B$859,0))) -> -7.476635514 | J92: =IF($A92<>0,INDEX('2.2 Daten'!M$9:M$859,MATCH('2.2'!$A92,'2.2 Daten'!$B$9:$B$859,0))) -> 2.345058626 | K92: =IF($A92<>0,INDEX('2.2 Daten'!N$9:N$859,MATCH('2.2'!$A92,'2.2 Daten'!$B$9:$B$859,0))) -> -0.2463054187 | L92: =IF($A92<>0,INDEX('2.2 Daten'!O$9:O$859,MATCH('2.2'!$A92,'2.2 Daten'!$B$9:$B$859,0))) -> -8.378870674
A93: =CHOOSE('2.2 Daten'!$A$2,'2.2 Daten'!B515,'2.2 Daten'!B64,'2.2 Daten'!B81,'2.2 Daten'!B98,'2.2 Daten'!B101,'2.2 Daten'!B148,'2.2 Daten'!B152,'2.2 Daten'!B207,'2.2 Daten'!B235,'2.2 Daten'!B273,'2.2 Daten'!B319,'2.2 Daten'!B417,'2.2 Daten'!B425,'2.2 Daten'!B428,'2.2 Daten'!B448,'2.2 Daten'!B458,'2.2 Daten'!B473,'2.2 Daten'!B489,x) -> Celle | B93: =IF($A93<>0,INDEX('2.2 Daten'!C$9:C$859,MATCH('2.2'!$A93,'2.2 Daten'!$B$9:$B$859,0))," ") -> 03351000 | C93: =IF($A93<>0,INDEX('2.2 Daten'!E$9:E$859,MATCH('2.2'!$A93,'2.2 Daten'!$B$9:$B$859,0))) -> 4292 | D93: =IF($A93<>0,INDEX('2.2 Daten'!F$9:F$859,MATCH('2.2'!$A93,'2.2 Daten'!$B$9:$B$859,0))) -> 626 | E93: =IF($A93<>0,INDEX('2.2 Daten'!G$9:G$859,MATCH('2.2'!$A93,'2.2 Daten'!$B$9:$B$859,0))) -> 742 | F93: =IF($A93<>0,INDEX('2.2 Daten'!H$9:H$859,MATCH('2.2'!$A93,'2.2 Daten'!$B$9:$B$859,0))) -> 2265 | G93: =IF($A93<>0,INDEX('2.2 Daten'!I$9:I$859,MATCH('2.2'!$A93,'2.2 Daten'!$B$9:$B$859,0))) -> 659 | H93: =IF($A93<>0,INDEX('2.2 Daten'!K$9:K$859,MATCH('2.2'!$A93,'2.2 Daten'!$B$9:$B$859,0))) -> -9.183241642 | I93: =IF($A93<>0,INDEX('2.2 Daten'!L$9:L$859,MATCH('2.2'!$A93,'2.2 Daten'!$B$9:$B$859,0))) -> -11.95499297 | J93: =IF($A93<>0,INDEX('2.2 Daten'!M$9:M$859,MATCH('2.2'!$A93,'2.2 Daten'!$B$9:$B$859,0))) -> -7.25 | K93: =IF($A93<>0,INDEX('2.2 Daten'!N$9:N$859,MATCH('2.2'!$A93,'2.2 Daten'!$B$9:$B$859,0))) -> -9.036144578 | L93: =IF($A93<>0,INDEX('2.2 Daten'!O$9:O$859,MATCH('2.2'!$A93,'2.2 Daten'!$B$9:$B$859,0))) -> -9.103448276
A94: =CHOOSE('2.2 Daten'!$A$2,'2.2 Daten'!B516,'2.2 Daten'!B65,'2.2 Daten'!B82,'2.2 Daten'!B99,'2.2 Daten'!B102,'2.2 Daten'!B149,'2.2 Daten'!B153,'2.2 Daten'!B208,'2.2 Daten'!B236,'2.2 Daten'!B274,'2.2 Daten'!B320,'2.2 Daten'!B418,'2.2 Daten'!B426,'2.2 Daten'!B429,'2.2 Daten'!B449,'2.2 Daten'!B459,'2.2 Daten'!B474,'2.2 Daten'!B490,x) -> Cuxhaven | B94: =IF($A94<>0,INDEX('2.2 Daten'!C$9:C$859,MATCH('2.2'!$A94,'2.2 Daten'!$B$9:$B$859,0))," ") -> 03352000 | C94: =IF($A94<>0,INDEX('2.2 Daten'!E$9:E$859,MATCH('2.2'!$A94,'2.2 Daten'!$B$9:$B$859,0))) -> 4220 | D94: =IF($A94<>0,INDEX('2.2 Daten'!F$9:F$859,MATCH('2.2'!$A94,'2.2 Daten'!$B$9:$B$859,0))) -> 634 | E94: =IF($A94<>0,INDEX('2.2 Daten'!G$9:G$859,MATCH('2.2'!$A94,'2.2 Daten'!$B$9:$B$859,0))) -> 732 | F94: =IF($A94<>0,INDEX('2.2 Daten'!H$9:H$859,MATCH('2.2'!$A94,'2.2 Daten'!$B$9:$B$859,0))) -> 2240 | G94: =IF($A94<>0,INDEX('2.2 Daten'!I$9:I$859,MATCH('2.2'!$A94,'2.2 Daten'!$B$9:$B$859,0))) -> 614 | H94: =IF($A94<>0,INDEX('2.2 Daten'!K$9:K$859,MATCH('2.2'!$A94,'2.2 Daten'!$B$9:$B$859,0))) -> -5.168539326 | I94: =IF($A94<>0,INDEX('2.2 Daten'!L$9:L$859,MATCH('2.2'!$A94,'2.2 Daten'!$B$9:$B$859,0))) -> -10.70422535 | J94: =IF($A94<>0,INDEX('2.2 Daten'!M$9:M$859,MATCH('2.2'!$A94,'2.2 Daten'!$B$9:$B$859,0))) -> -1.347708895 | K94: =IF($A94<>0,INDEX('2.2 Daten'!N$9:N$859,MATCH('2.2'!$A94,'2.2 Daten'!$B$9:$B$859,0))) -> -5.644481887 | L94: =IF($A94<>0,INDEX('2.2 Daten'!O$9:O$859,MATCH('2.2'!$A94,'2.2 Daten'!$B$9:$B$859,0))) -> -1.602564103
A95: =CHOOSE('2.2 Daten'!$A$2,'2.2 Daten'!B517,'2.2 Daten'!B66,'2.2 Daten'!B83,'2.2 Daten'!B100,'2.2 Daten'!B103,'2.2 Daten'!B150,'2.2 Daten'!B154,'2.2 Daten'!B209,'2.2 Daten'!B237,'2.2 Daten'!B275,'2.2 Daten'!B321,'2.2 Daten'!B419,'2.2 Daten'!B427,'2.2 Daten'!B430,'2.2 Daten'!B450,'2.2 Daten'!B460,'2.2 Daten'!B475,'2.2 Daten'!B491,x) -> Harburg | B95: =IF($A95<>0,INDEX('2.2 Daten'!C$9:C$859,MATCH('2.2'!$A95,'2.2 Daten'!$B$9:$B$859,0))," ") -> 03353000 | C95: =IF($A95<>0,INDEX('2.2 Daten'!E$9:E$859,MATCH('2.2'!$A95,'2.2 Daten'!$B$9:$B$859,0))) -> 4355 | D95: =IF($A95<>0,INDEX('2.2 Daten'!F$9:F$859,MATCH('2.2'!$A95,'2.2 Daten'!$B$9:$B$859,0))) -> 645 | E95: =IF($A95<>0,INDEX('2.2 Daten'!G$9:G$859,MATCH('2.2'!$A95,'2.2 Daten'!$B$9:$B$859,0))) -> 760 | F95: =IF($A95<>0,INDEX('2.2 Daten'!H$9:H$859,MATCH('2.2'!$A95,'2.2 Daten'!$B$9:$B$859,0))) -> 2274 | G95: =IF($A95<>0,INDEX('2.2 Daten'!I$9:I$859,MATCH('2.2'!$A95,'2.2 Daten'!$B$9:$B$859,0))) -> 676 | H95: =IF($A95<>0,INDEX('2.2 Daten'!K$9:K$859,MATCH('2.2'!$A95,'2.2 Daten'!$B$9:$B$859,0))) -> -3.372531617 | I95: =IF($A95<>0,INDEX('2.2 Daten'!L$9:L$859,MATCH('2.2'!$A95,'2.2 Daten'!$B$9:$B$859,0))) -> -2.861445783 | J95: =IF($A95<>0,INDEX('2.2 Daten'!M$9:M$859,MATCH('2.2'!$A95,'2.2 Daten'!$B$9:$B$859,0))) -> -7.878787879 | K95: =IF($A95<>0,INDEX('2.2 Daten'!N$9:N$859,MATCH('2.2'!$A95,'2.2 Daten'!$B$9:$B$859,0))) -> -2.77896537 | L95: =IF($A95<>0,INDEX('2.2 Daten'!O$9:O$859,MATCH('2.2'!$A95,'2.2 Daten'!$B$9:$B$859,0))) -> -0.441826215
A96: =CHOOSE('2.2 Daten'!$A$2,'2.2 Daten'!B518,'2.2 Daten'!B67,'2.2 Daten'!B84,'2.2 Daten'!B101,'2.2 Daten'!B104,'2.2 Daten'!B151,'2.2 Daten'!B155,'2.2 Daten'!B210,'2.2 Daten'!B238,'2.2 Daten'!B276,'2.2 Daten'!B322,'2.2 Daten'!B420,'2.2 Daten'!B428,'2.2 Daten'!B431,'2.2 Daten'!B451,'2.2 Daten'!B461,'2.2 Daten'!B476,'2.2 Daten'!B492,x) -> Lüchow-Dannenberg | B96: =IF($A96<>0,INDEX('2.2 Daten'!C$9:C$859,MATCH('2.2'!$A96,'2.2 Daten'!$B$9:$B$859,0))," ") -> 03354000 | C96: =IF($A96<>0,INDEX('2.2 Daten'!E$9:E$859,MATCH('2.2'!$A96,'2.2 Daten'!$B$9:$B$859,0))) -> 1006 | D96: =IF($A96<>0,INDEX('2.2 Daten'!F$9:F$859,MATCH('2.2'!$A96,'2.2 Daten'!$B$9:$B$859,0))) -> 152 | E96: =IF($A96<>0,INDEX('2.2 Daten'!G$9:G$859,MATCH('2.2'!$A96,'2.2 Daten'!$B$9:$B$859,0))) -> 155 | F96: =IF($A96<>0,INDEX('2.2 Daten'!H$9:H$859,MATCH('2.2'!$A96,'2.2 Daten'!$B$9:$B$859,0))) -> 550 | G96: =IF($A96<>0,INDEX('2.2 Daten'!I$9:I$859,MATCH('2.2'!$A96,'2.2 Daten'!$B$9:$B$859,0))) -> 149 | H96: =IF($A96<>0,INDEX('2.2 Daten'!K$9:K$859,MATCH('2.2'!$A96,'2.2 Daten'!$B$9:$B$859,0))) -> -7.281105991 | I96: =IF($A96<>0,INDEX('2.2 Daten'!L$9:L$859,MATCH('2.2'!$A96,'2.2 Daten'!$B$9:$B$859,0))) -> -6.172839506 | J96: =IF($A96<>0,INDEX('2.2 Daten'!M$9:M$859,MATCH('2.2'!$A96,'2.2 Daten'!$B$9:$B$859,0))) -> -13.40782123 | K96: =IF($A96<>0,INDEX('2.2 Daten'!N$9:N$859,MATCH('2.2'!$A96,'2.2 Daten'!$B$9:$B$859,0))) -> -4.347826087 | L96: =IF($A96<>0,INDEX('2.2 Daten'!O$9:O$859,MATCH('2.2'!$A96,'2.2 Daten'!$B$9:$B$859,0))) -> -11.83431953
A97: =CHOOSE('2.2 Daten'!$A$2,'2.2 Daten'!B519,'2.2 Daten'!B68,'2.2 Daten'!B85,'2.2 Daten'!B102,'2.2 Daten'!B105,'2.2 Daten'!B152,'2.2 Daten'!B156,'2.2 Daten'!B211,'2.2 Daten'!B239,'2.2 Daten'!B277,'2.2 Daten'!B323,'2.2 Daten'!B421,'2.2 Daten'!B429,'2.2 Daten'!B432,'2.2 Daten'!B452,'2.2 Daten'!B462,'2.2 Daten'!B477,'2.2 Daten'!B493,x) -> Lüneburg | B97: =IF($A97<>0,INDEX('2.2 Daten'!C$9:C$859,MATCH('2.2'!$A97,'2.2 Daten'!$B$9:$B$859,0))," ") -> 03355000 | C97: =IF($A97<>0,INDEX('2.2 Daten'!E$9:E$859,MATCH('2.2'!$A97,'2.2 Daten'!$B$9:$B$859,0))) -> 3794 | D97: =IF($A97<>0,INDEX('2.2 Daten'!F$9:F$859,MATCH('2.2'!$A97,'2.2 Daten'!$B$9:$B$859,0))) -> 590 | E97: =IF($A97<>0,INDEX('2.2 Daten'!G$9:G$859,MATCH('2.2'!$A97,'2.2 Daten'!$B$9:$B$859,0))) -> 651 | F97: =IF($A97<>0,INDEX('2.2 Daten'!H$9:H$859,MATCH('2.2'!$A97,'2.2 Daten'!$B$9:$B$859,0))) -> 1970 | G97: =IF($A97<>0,INDEX('2.2 Daten'!I$9:I$859,MATCH('2.2'!$A97,'2.2 Daten'!$B$9:$B$859,0))) -> 583 | H97: =IF($A97<>0,INDEX('2.2 Daten'!K$9:K$859,MATCH('2.2'!$A97,'2.2 Daten'!$B$9:$B$859,0))) -> -5.926109596 | I97: =IF($A97<>0,INDEX('2.2 Daten'!L$9:L$859,MATCH('2.2'!$A97,'2.2 Daten'!$B$9:$B$859,0))) -> -3.436988543 | J97: =IF($A97<>0,INDEX('2.2 Daten'!M$9:M$859,MATCH('2.2'!$A97,'2.2 Daten'!$B$9:$B$859,0))) -> -7.920792079 | K97: =IF($A97<>0,INDEX('2.2 Daten'!N$9:N$859,MATCH('2.2'!$A97,'2.2 Daten'!$B$9:$B$859,0))) -> -7.42481203 | L97: =IF($A97<>0,INDEX('2.2 Daten'!O$9:O$859,MATCH('2.2'!$A97,'2.2 Daten'!$B$9:$B$859,0))) -> -0.6814310051
A98: =CHOOSE('2.2 Daten'!$A$2,'2.2 Daten'!B520,'2.2 Daten'!B69,'2.2 Daten'!B86,'2.2 Daten'!B103,'2.2 Daten'!B106,'2.2 Daten'!B153,'2.2 Daten'!B157,'2.2 Daten'!B212,'2.2 Daten'!B240,'2.2 Daten'!B278,'2.2 Daten'!B324,'2.2 Daten'!B422,'2.2 Daten'!B430,'2.2 Daten'!B433,'2.2 Daten'!B453,'2.2 Daten'!B463,'2.2 Daten'!B478,'2.2 Daten'!B494,x) -> Osterholz | B98: =IF($A98<>0,INDEX('2.2 Daten'!C$9:C$859,MATCH('2.2'!$A98,'2.2 Daten'!$B$9:$B$859,0))," ") -> 03356000 | C98: =IF($A98<>0,INDEX('2.2 Daten'!E$9:E$859,MATCH('2.2'!$A98,'2.2 Daten'!$B$9:$B$859,0))) -> 1750 | D98: =IF($A98<>0,INDEX('2.2 Daten'!F$9:F$859,MATCH('2.2'!$A98,'2.2 Daten'!$B$9:$B$859,0))) -> 255 | E98: =IF($A98<>0,INDEX('2.2 Daten'!G$9:G$859,MATCH('2.2'!$A98,'2.2 Daten'!$B$9:$B$859,0))) -> 302 | F98: =IF($A98<>0,INDEX('2.2 Daten'!H$9:H$859,MATCH('2.2'!$A98,'2.2 Daten'!$B$9:$B$859,0))) -> 960 | G98: =IF($A98<>0,INDEX('2.2 Daten'!I$9:I$859,MATCH('2.2'!$A98,'2.2 Daten'!$B$9:$B$859,0))) -> 233 | H98: =IF($A98<>0,INDEX('2.2 Daten'!K$9:K$859,MATCH('2.2'!$A98,'2.2 Daten'!$B$9:$B$859,0))) -> -1.630129286 | I98: =IF($A98<>0,INDEX('2.2 Daten'!L$9:L$859,MATCH('2.2'!$A98,'2.2 Daten'!$B$9:$B$859,0))) -> 4.938271605 | J98: =IF($A98<>0,INDEX('2.2 Daten'!M$9:M$859,MATCH('2.2'!$A98,'2.2 Daten'!$B$9:$B$859,0))) -> -7.36196319 | K98: =IF($A98<>0,INDEX('2.2 Daten'!N$9:N$859,MATCH('2.2'!$A98,'2.2 Daten'!$B$9:$B$859,0))) -> -0.4149377593 | L98: =IF($A98<>0,INDEX('2.2 Daten'!O$9:O$859,MATCH('2.2'!$A98,'2.2 Daten'!$B$9:$B$859,0))) -> -5.284552846
A99: =CHOOSE('2.2 Daten'!$A$2,'2.2 Daten'!B521,'2.2 Daten'!B70,'2.2 Daten'!B87,'2.2 Daten'!B104,'2.2 Daten'!B107,'2.2 Daten'!B154,'2.2 Daten'!B158,'2.2 Daten'!B213,'2.2 Daten'!B241,'2.2 Daten'!B279,'2.2 Daten'!B325,'2.2 Daten'!B423,'2.2 Daten'!B431,'2.2 Daten'!B434,'2.2 Daten'!B454,'2.2 Daten'!B464,'2.2 Daten'!B479,'2.2 Daten'!B495,x) -> Rotenburg (Wümme) | B99: =IF($A99<>0,INDEX('2.2 Daten'!C$9:C$859,MATCH('2.2'!$A99,'2.2 Daten'!$B$9:$B$859,0))," ") -> 03357000 | C99: =IF($A99<>0,INDEX('2.2 Daten'!E$9:E$859,MATCH('2.2'!$A99,'2.2 Daten'!$B$9:$B$859,0))) -> 2250 | D99: =IF($A99<>0,INDEX('2.2 Daten'!F$9:F$859,MATCH('2.2'!$A99,'2.2 Daten'!$B$9:$B$859,0))) -> 357 | E99: =IF($A99<>0,INDEX('2.2 Daten'!G$9:G$859,MATCH('2.2'!$A99,'2.2 Daten'!$B$9:$B$859,0))) -> 411 | F99: =IF($A99<>0,INDEX('2.2 Daten'!H$9:H$859,MATCH('2.2'!$A99,'2.2 Daten'!$B$9:$B$859,0))) -> 1166 | G99: =IF($A99<>0,INDEX('2.2 Daten'!I$9:I$859,MATCH('2.2'!$A99,'2.2 Daten'!$B$9:$B$859,0))) -> 316 | H99: =IF($A99<>0,INDEX('2.2 Daten'!K$9:K$859,MATCH('2.2'!$A99,'2.2 Daten'!$B$9:$B$859,0))) -> -7.483552632 | I99: =IF($A99<>0,INDEX('2.2 Daten'!L$9:L$859,MATCH('2.2'!$A99,'2.2 Daten'!$B$9:$B$859,0))) -> -11.19402985 | J99: =IF($A99<>0,INDEX('2.2 Daten'!M$9:M$859,MATCH('2.2'!$A99,'2.2 Daten'!$B$9:$B$859,0))) -> -4.861111111 | K99: =IF($A99<>0,INDEX('2.2 Daten'!N$9:N$859,MATCH('2.2'!$A99,'2.2 Daten'!$B$9:$B$859,0))) -> -8.692247455 | L99: =IF($A99<>0,INDEX('2.2 Daten'!O$9:O$859,MATCH('2.2'!$A99,'2.2 Daten'!$B$9:$B$859,0))) -> -1.557632399
A100: =CHOOSE('2.2 Daten'!$A$2,'2.2 Daten'!B522,'2.2 Daten'!B71,'2.2 Daten'!B88,'2.2 Daten'!B105,'2.2 Daten'!B108,'2.2 Daten'!B155,'2.2 Daten'!B159,'2.2 Daten'!B214,'2.2 Daten'!B242,'2.2 Daten'!B280,'2.2 Daten'!B326,'2.2 Daten'!B424,'2.2 Daten'!B432,'2.2 Daten'!B435,'2.2 Daten'!B455,'2.2 Daten'!B465,'2.2 Daten'!B480,'2.2 Daten'!B496,x) -> Heidekreis | B100: =IF($A100<>0,INDEX('2.2 Daten'!C$9:C$859,MATCH('2.2'!$A100,'2.2 Daten'!$B$9:$B$859,0))," ") -> 03358000 | C100: =IF($A100<>0,INDEX('2.2 Daten'!E$9:E$859,MATCH('2.2'!$A100,'2.2 Daten'!$B$9:$B$859,0))) -> 3143 | D100: =IF($A100<>0,INDEX('2.2 Daten'!F$9:F$859,MATCH('2.2'!$A100,'2.2 Daten'!$B$9:$B$859,0))) -> 486 | E100: =IF($A100<>0,INDEX('2.2 Daten'!G$9:G$859,MATCH('2.2'!$A100,'2.2 Daten'!$B$9:$B$859,0))) -> 534 | F100: =IF($A100<>0,INDEX('2.2 Daten'!H$9:H$859,MATCH('2.2'!$A100,'2.2 Daten'!$B$9:$B$859,0))) -> 1622 | G100: =IF($A100<>0,INDEX('2.2 Daten'!I$9:I$859,MATCH('2.2'!$A100,'2.2 Daten'!$B$9:$B$859,0))) -> 501 | H100: =IF($A100<>0,INDEX('2.2 Daten'!K$9:K$859,MATCH('2.2'!$A100,'2.2 Daten'!$B$9:$B$859,0))) -> -1.504230649 | I100: =IF($A100<>0,INDEX('2.2 Daten'!L$9:L$859,MATCH('2.2'!$A100,'2.2 Daten'!$B$9:$B$859,0))) -> 0.6211180124 | J100: =IF($A100<>0,INDEX('2.2 Daten'!M$9:M$859,MATCH('2.2'!$A100,'2.2 Daten'!$B$9:$B$859,0))) -> -6.968641115 | K100: =IF($A100<>0,INDEX('2.2 Daten'!N$9:N$859,MATCH('2.2'!$A100,'2.2 Daten'!$B$9:$B$859,0))) -> -2.757793765 | L100: =IF($A100<>0,INDEX('2.2 Daten'!O$9:O$859,MATCH('2.2'!$A100,'2.2 Daten'!$B$9:$B$859,0))) -> 7.510729614
A101: =CHOOSE('2.2 Daten'!$A$2,'2.2 Daten'!B523,'2.2 Daten'!B72,'2.2 Daten'!B89,'2.2 Daten'!B106,'2.2 Daten'!B109,'2.2 Daten'!B156,'2.2 Daten'!B160,'2.2 Daten'!B215,'2.2 Daten'!B243,'2.2 Daten'!B281,'2.2 Daten'!B327,'2.2 Daten'!B425,'2.2 Daten'!B433,'2.2 Daten'!B436,'2.2 Daten'!B456,'2.2 Daten'!B466,'2.2 Daten'!B481,'2.2 Daten'!B497,x) -> Stade | B101: =IF($A101<>0,INDEX('2.2 Daten'!C$9:C$859,MATCH('2.2'!$A101,'2.2 Daten'!$B$9:$B$859,0))," ") -> 03359000 | C101: =IF($A101<>0,INDEX('2.2 Daten'!E$9:E$859,MATCH('2.2'!$A101,'2.2 Daten'!$B$9:$B$859,0))) -> 5685 | D101: =IF($A101<>0,INDEX('2.2 Daten'!F$9:F$859,MATCH('2.2'!$A101,'2.2 Daten'!$B$9:$B$859,0))) -> 874 | E101: =IF($A101<>0,INDEX('2.2 Daten'!G$9:G$859,MATCH('2.2'!$A101,'2.2 Daten'!$B$9:$B$859,0))) -> 995 | F101: =IF($A101<>0,INDEX('2.2 Daten'!H$9:H$859,MATCH('2.2'!$A101,'2.2 Daten'!$B$9:$B$859,0))) -> 2955 | G101: =IF($A101<>0,INDEX('2.2 Daten'!I$9:I$859,MATCH('2.2'!$A101,'2.2 Daten'!$B$9:$B$859,0))) -> 861 | H101: =IF($A101<>0,INDEX('2.2 Daten'!K$9:K$859,MATCH('2.2'!$A101,'2.2 Daten'!$B$9:$B$859,0))) -> -2.604077437 | I101: =IF($A101<>0,INDEX('2.2 Daten'!L$9:L$859,MATCH('2.2'!$A101,'2.2 Daten'!$B$9:$B$859,0))) -> -1.797752809 | J101: =IF($A101<>0,INDEX('2.2 Daten'!M$9:M$859,MATCH('2.2'!$A101,'2.2 Daten'!$B$9:$B$859,0))) -> -6.308851224 | K101: =IF($A101<>0,INDEX('2.2 Daten'!N$9:N$859,MATCH('2.2'!$A101,'2.2 Daten'!$B$9:$B$859,0))) -> -3.019363308 | L101: =IF($A101<>0,INDEX('2.2 Daten'!O$9:O$859,MATCH('2.2'!$A101,'2.2 Daten'!$B$9:$B$859,0))) -> 2.744630072
A102: =CHOOSE('2.2 Daten'!$A$2,'2.2 Daten'!B524,'2.2 Daten'!B73,'2.2 Daten'!B90,'2.2 Daten'!B107,'2.2 Daten'!B110,'2.2 Daten'!B157,'2.2 Daten'!B161,'2.2 Daten'!B216,'2.2 Daten'!B244,'2.2 Daten'!B282,'2.2 Daten'!B328,'2.2 Daten'!B426,'2.2 Daten'!B434,'2.2 Daten'!B437,'2.2 Daten'!B457,'2.2 Daten'!B467,'2.2 Daten'!B482,'2.2 Daten'!B498,x) -> Uelzen | B102: =IF($A102<>0,INDEX('2.2 Daten'!C$9:C$859,MATCH('2.2'!$A102,'2.2 Daten'!$B$9:$B$859,0))," ") -> 03360000 | C102: =IF($A102<>0,INDEX('2.2 Daten'!E$9:E$859,MATCH('2.2'!$A102,'2.2 Daten'!$B$9:$B$859,0))) -> 1963 | D102: =IF($A102<>0,INDEX('2.2 Daten'!F$9:F$859,MATCH('2.2'!$A102,'2.2 Daten'!$B$9:$B$859,0))) -> 311 | E102: =IF($A102<>0,INDEX('2.2 Daten'!G$9:G$859,MATCH('2.2'!$A102,'2.2 Daten'!$B$9:$B$859,0))) -> 358 | F102: =IF($A102<>0,INDEX('2.2 Daten'!H$9:H$859,MATCH('2.2'!$A102,'2.2 Daten'!$B$9:$B$859,0))) -> 1033 | G102: =IF($A102<>0,INDEX('2.2 Daten'!I$9:I$859,MATCH('2.2'!$A102,'2.2 Daten'!$B$9:$B$859,0))) -> 261 | H102: =IF($A102<>0,INDEX('2.2 Daten'!K$9:K$859,MATCH('2.2'!$A102,'2.2 Daten'!$B$9:$B$859,0))) -> -5.57960558 | I102: =IF($A102<>0,INDEX('2.2 Daten'!L$9:L$859,MATCH('2.2'!$A102,'2.2 Daten'!$B$9:$B$859,0))) -> -7.164179104 | J102: =IF($A102<>0,INDEX('2.2 Daten'!M$9:M$859,MATCH('2.2'!$A102,'2.2 Daten'!$B$9:$B$859,0))) -> 0 | K102: =IF($A102<>0,INDEX('2.2 Daten'!N$9:N$859,MATCH('2.2'!$A102,'2.2 Daten'!$B$9:$B$859,0))) -> -6.261343013 | L102: =IF($A102<>0,INDEX('2.2 Daten'!O$9:O$859,MATCH('2.2'!$A102,'2.2 Daten'!$B$9:$B$859,0))) -> -8.098591549
A103: =CHOOSE('2.2 Daten'!$A$2,'2.2 Daten'!B525,'2.2 Daten'!B74,'2.2 Daten'!B91,'2.2 Daten'!B108,'2.2 Daten'!B111,'2.2 Daten'!B158,'2.2 Daten'!B162,'2.2 Daten'!B217,'2.2 Daten'!B245,'2.2 Daten'!B283,'2.2 Daten'!B329,'2.2 Daten'!B427,'2.2 Daten'!B435,'2.2 Daten'!B438,'2.2 Daten'!B458,'2.2 Daten'!B468,'2.2 Daten'!B483,'2.2 Daten'!B499,x) -> Verden | B103: =IF($A103<>0,INDEX('2.2 Daten'!C$9:C$859,MATCH('2.2'!$A103,'2.2 Daten'!$B$9:$B$859,0))," ") -> 03361000 | C103: =IF($A103<>0,INDEX('2.2 Daten'!E$9:E$859,MATCH('2.2'!$A103,'2.2 Daten'!$B$9:$B$859,0))) -> 2542 | D103: =IF($A103<>0,INDEX('2.2 Daten'!F$9:F$859,MATCH('2.2'!$A103,'2.2 Daten'!$B$9:$B$859,0))) -> 371 | E103: =IF($A103<>0,INDEX('2.2 Daten'!G$9:G$859,MATCH('2.2'!$A103,'2.2 Daten'!$B$9:$B$859,0))) -> 448 | F103: =IF($A103<>0,INDEX('2.2 Daten'!H$9:H$859,MATCH('2.2'!$A103,'2.2 Daten'!$B$9:$B$859,0))) -> 1370 | G103: =IF($A103<>0,INDEX('2.2 Daten'!I$9:I$859,MATCH('2.2'!$A103,'2.2 Daten'!$B$9:$B$859,0))) -> 353 | H103: =IF($A103<>0,INDEX('2.2 Daten'!K$9:K$859,MATCH('2.2'!$A103,'2.2 Daten'!$B$9:$B$859,0))) -> -2.642665645 | I103: =IF($A103<>0,INDEX('2.2 Daten'!L$9:L$859,MATCH('2.2'!$A103,'2.2 Daten'!$B$9:$B$859,0))) -> -7.481296758 | J103: =IF($A103<>0,INDEX('2.2 Daten'!M$9:M$859,MATCH('2.2'!$A103,'2.2 Daten'!$B$9:$B$859,0))) -> -8.757637475 | K103: =IF($A103<>0,INDEX('2.2 Daten'!N$9:N$859,MATCH('2.2'!$A103,'2.2 Daten'!$B$9:$B$859,0))) -> 2.086438152 | L103: =IF($A103<>0,INDEX('2.2 Daten'!O$9:O$859,MATCH('2.2'!$A103,'2.2 Daten'!$B$9:$B$859,0))) -> -6.366047745
A104: =CHOOSE('2.2 Daten'!$A$2,'2.2 Daten'!B526,'2.2 Daten'!B75,'2.2 Daten'!B92,'2.2 Daten'!B109,'2.2 Daten'!B112,'2.2 Daten'!B159,'2.2 Daten'!B163,'2.2 Daten'!B218,'2.2 Daten'!B246,'2.2 Daten'!B284,'2.2 Daten'!B330,'2.2 Daten'!B428,'2.2 Daten'!B436,'2.2 Daten'!B439,'2.2 Daten'!B459,'2.2 Daten'!B469,'2.2 Daten'!B484,'2.2 Daten'!B500,x) -> Delmenhorst, Stadt | B104: =IF($A104<>0,INDEX('2.2 Daten'!C$9:C$859,MATCH('2.2'!$A104,'2.2 Daten'!$B$9:$B$859,0))," ") -> 03401000 | C104: =IF($A104<>0,INDEX('2.2 Daten'!E$9:E$859,MATCH('2.2'!$A104,'2.2 Daten'!$B$9:$B$859,0))) -> 3308 | D104: =IF($A104<>0,INDEX('2.2 Daten'!F$9:F$859,MATCH('2.2'!$A104,'2.2 Daten'!$B$9:$B$859,0))) -> 491 | E104: =IF($A104<>0,INDEX('2.2 Daten'!G$9:G$859,MATCH('2.2'!$A104,'2.2 Daten'!$B$9:$B$859,0))) -> 575 | F104: =IF($A104<>0,INDEX('2.2 Daten'!H$9:H$859,MATCH('2.2'!$A104,'2.2 Daten'!$B$9:$B$859,0))) -> 1699 | G104: =IF($A104<>0,INDEX('2.2 Daten'!I$9:I$859,MATCH('2.2'!$A104,'2.2 Daten'!$B$9:$B$859,0))) -> 543 | H104: =IF($A104<>0,INDEX('2.2 Daten'!K$9:K$859,MATCH('2.2'!$A104,'2.2 Daten'!$B$9:$B$859,0))) -> -7.364883786 | I104: =IF($A104<>0,INDEX('2.2 Daten'!L$9:L$859,MATCH('2.2'!$A104,'2.2 Daten'!$B$9:$B$859,0))) -> -7.183364839 | J104: =IF($A104<>0,INDEX('2.2 Daten'!M$9:M$859,MATCH('2.2'!$A104,'2.2 Daten'!$B$9:$B$859,0))) -> -5.115511551 | K104: =IF($A104<>0,INDEX('2.2 Daten'!N$9:N$859,MATCH('2.2'!$A104,'2.2 Daten'!$B$9:$B$859,0))) -> -9.723698193 | L104: =IF($A104<>0,INDEX('2.2 Daten'!O$9:O$859,MATCH('2.2'!$A104,'2.2 Daten'!$B$9:$B$859,0))) -> -1.985559567
A105: =CHOOSE('2.2 Daten'!$A$2,'2.2 Daten'!B527,'2.2 Daten'!B76,'2.2 Daten'!B93,'2.2 Daten'!B110,'2.2 Daten'!B113,'2.2 Daten'!B160,'2.2 Daten'!B164,'2.2 Daten'!B219,'2.2 Daten'!B247,'2.2 Daten'!B285,'2.2 Daten'!B331,'2.2 Daten'!B429,'2.2 Daten'!B437,'2.2 Daten'!B440,'2.2 Daten'!B460,'2.2 Daten'!B470,'2.2 Daten'!B485,'2.2 Daten'!B501,x) -> Emden, Stadt | B105: =IF($A105<>0,INDEX('2.2 Daten'!C$9:C$859,MATCH('2.2'!$A105,'2.2 Daten'!$B$9:$B$859,0))," ") -> 03402000 | C105: =IF($A105<>0,INDEX('2.2 Daten'!E$9:E$859,MATCH('2.2'!$A105,'2.2 Daten'!$B$9:$B$859,0))) -> 1847 | D105: =IF($A105<>0,INDEX('2.2 Daten'!F$9:F$859,MATCH('2.2'!$A105,'2.2 Daten'!$B$9:$B$859,0))) -> 298 | E105: =IF($A105<>0,INDEX('2.2 Daten'!G$9:G$859,MATCH('2.2'!$A105,'2.2 Daten'!$B$9:$B$859,0))) -> 304 | F105: =IF($A105<>0,INDEX('2.2 Daten'!H$9:H$859,MATCH('2.2'!$A105,'2.2 Daten'!$B$9:$B$859,0))) -> 985 | G105: =IF($A105<>0,INDEX('2.2 Daten'!I$9:I$859,MATCH('2.2'!$A105,'2.2 Daten'!$B$9:$B$859,0))) -> 260 | H105: =IF($A105<>0,INDEX('2.2 Daten'!K$9:K$859,MATCH('2.2'!$A105,'2.2 Daten'!$B$9:$B$859,0))) -> -3.70177268 | I105: =IF($A105<>0,INDEX('2.2 Daten'!L$9:L$859,MATCH('2.2'!$A105,'2.2 Daten'!$B$9:$B$859,0))) -> 2.75862069 | J105: =IF($A105<>0,INDEX('2.2 Daten'!M$9:M$859,MATCH('2.2'!$A105,'2.2 Daten'!$B$9:$B$859,0))) -> -13.88101983 | K105: =IF($A105<>0,INDEX('2.2 Daten'!N$9:N$859,MATCH('2.2'!$A105,'2.2 Daten'!$B$9:$B$859,0))) -> -1.794616152 | L105: =IF($A105<>0,INDEX('2.2 Daten'!O$9:O$859,MATCH('2.2'!$A105,'2.2 Daten'!$B$9:$B$859,0))) -> -4.411764706
A106: =CHOOSE('2.2 Daten'!$A$2,'2.2 Daten'!B528,'2.2 Daten'!B77,'2.2 Daten'!B94,'2.2 Daten'!B111,'2.2 Daten'!B114,'2.2 Daten'!B161,'2.2 Daten'!B165,'2.2 Daten'!B220,'2.2 Daten'!B248,'2.2 Daten'!B286,'2.2 Daten'!B332,'2.2 Daten'!B430,'2.2 Daten'!B438,'2.2 Daten'!B441,'2.2 Daten'!B461,'2.2 Daten'!B471,'2.2 Daten'!B486,'2.2 Daten'!B502,x) -> Oldenburg (Oldenburg), Stadt | B106: =IF($A106<>0,INDEX('2.2 Daten'!C$9:C$859,MATCH('2.2'!$A106,'2.2 Daten'!$B$9:$B$859,0))," ") -> 03403000 | C106: =IF($A106<>0,INDEX('2.2 Daten'!E$9:E$859,MATCH('2.2'!$A106,'2.2 Daten'!$B$9:$B$859,0))) -> 4961 | D106: =IF($A106<>0,INDEX('2.2 Daten'!F$9:F$859,MATCH('2.2'!$A106,'2.2 Daten'!$B$9:$B$859,0))) -> 809 | E106: =IF($A106<>0,INDEX('2.2 Daten'!G$9:G$859,MATCH('2.2'!$A106,'2.2 Daten'!$B$9:$B$859,0))) -> 837 | F106: =IF($A106<>0,INDEX('2.2 Daten'!H$9:H$859,MATCH('2.2'!$A106,'2.2 Daten'!$B$9:$B$859,0))) -> 2556 | G106: =IF($A106<>0,INDEX('2.2 Daten'!I$9:I$859,MATCH('2.2'!$A106,'2.2 Daten'!$B$9:$B$859,0))) -> 759 | H106: =IF($A106<>0,INDEX('2.2 Daten'!K$9:K$859,MATCH('2.2'!$A106,'2.2 Daten'!$B$9:$B$859,0))) -> -6.607680723 | I106: =IF($A106<>0,INDEX('2.2 Daten'!L$9:L$859,MATCH('2.2'!$A106,'2.2 Daten'!$B$9:$B$859,0))) -> -5.046948357 | J106: =IF($A106<>0,INDEX('2.2 Daten'!M$9:M$859,MATCH('2.2'!$A106,'2.2 Daten'!$B$9:$B$859,0))) -> -10.19313305 | K106: =IF($A106<>0,INDEX('2.2 Daten'!N$9:N$859,MATCH('2.2'!$A106,'2.2 Daten'!$B$9:$B$859,0))) -> -5.647840532 | L106: =IF($A106<>0,INDEX('2.2 Daten'!O$9:O$859,MATCH('2.2'!$A106,'2.2 Daten'!$B$9:$B$859,0))) -> -7.326007326
A107: =CHOOSE('2.2 Daten'!$A$2,'2.2 Daten'!B529,'2.2 Daten'!B78,'2.2 Daten'!B95,'2.2 Daten'!B112,'2.2 Daten'!B115,'2.2 Daten'!B162,'2.2 Daten'!B166,'2.2 Daten'!B221,'2.2 Daten'!B249,'2.2 Daten'!B287,'2.2 Daten'!B333,'2.2 Daten'!B431,'2.2 Daten'!B439,'2.2 Daten'!B442,'2.2 Daten'!B462,'2.2 Daten'!B472,'2.2 Daten'!B487,'2.2 Daten'!B503,x) -> Osnabrück, Stadt | B107: =IF($A107<>0,INDEX('2.2 Daten'!C$9:C$859,MATCH('2.2'!$A107,'2.2 Daten'!$B$9:$B$859,0))," ") -> 03404000 | C107: =IF($A107<>0,INDEX('2.2 Daten'!E$9:E$859,MATCH('2.2'!$A107,'2.2 Daten'!$B$9:$B$859,0))) -> 4707 | D107: =IF($A107<>0,INDEX('2.2 Daten'!F$9:F$859,MATCH('2.2'!$A107,'2.2 Daten'!$B$9:$B$859,0))) -> 753 | E107: =IF($A107<>0,INDEX('2.2 Daten'!G$9:G$859,MATCH('2.2'!$A107,'2.2 Daten'!$B$9:$B$859,0))) -> 838 | F107: =IF($A107<>0,INDEX('2.2 Daten'!H$9:H$859,MATCH('2.2'!$A107,'2.2 Daten'!$B$9:$B$859,0))) -> 2427 | G107: =IF($A107<>0,INDEX('2.2 Daten'!I$9:I$859,MATCH('2.2'!$A107,'2.2 Daten'!$B$9:$B$859,0))) -> 689 | H107: =IF($A107<>0,INDEX('2.2 Daten'!K$9:K$859,MATCH('2.2'!$A107,'2.2 Daten'!$B$9:$B$859,0))) -> -3.068369028 | I107: =IF($A107<>0,INDEX('2.2 Daten'!L$9:L$859,MATCH('2.2'!$A107,'2.2 Daten'!$B$9:$B$859,0))) -> -7.151664612 | J107: =IF($A107<>0,INDEX('2.2 Daten'!M$9:M$859,MATCH('2.2'!$A107,'2.2 Daten'!$B$9:$B$859,0))) -> -7.095343681 | K107: =IF($A107<>0,INDEX('2.2 Daten'!N$9:N$859,MATCH('2.2'!$A107,'2.2 Daten'!$B$9:$B$859,0))) -> -0.7767784137 | L107: =IF($A107<>0,INDEX('2.2 Daten'!O$9:O$859,MATCH('2.2'!$A107,'2.2 Daten'!$B$9:$B$859,0))) -> -1.147776184
A108: =CHOOSE('2.2 Daten'!$A$2,'2.2 Daten'!B530,'2.2 Daten'!B79,'2.2 Daten'!B96,'2.2 Daten'!B113,'2.2 Daten'!B116,'2.2 Daten'!B163,'2.2 Daten'!B167,'2.2 Daten'!B222,'2.2 Daten'!B250,'2.2 Daten'!B288,'2.2 Daten'!B334,'2.2 Daten'!B432,'2.2 Daten'!B440,'2.2 Daten'!B443,'2.2 Daten'!B463,'2.2 Daten'!B473,'2.2 Daten'!B488,'2.2 Daten'!B504,x) -> Wilhelmshaven, Stadt | B108: =IF($A108<>0,INDEX('2.2 Daten'!C$9:C$859,MATCH('2.2'!$A108,'2.2 Daten'!$B$9:$B$859,0))," ") -> 03405000 | C108: =IF($A108<>0,INDEX('2.2 Daten'!E$9:E$859,MATCH('2.2'!$A108,'2.2 Daten'!$B$9:$B$859,0))) -> 3461 | D108: =IF($A108<>0,INDEX('2.2 Daten'!F$9:F$859,MATCH('2.2'!$A108,'2.2 Daten'!$B$9:$B$859,0))) -> 557 | E108: =IF($A108<>0,INDEX('2.2 Daten'!G$9:G$859,MATCH('2.2'!$A108,'2.2 Daten'!$B$9:$B$859,0))) -> 661 | F108: =IF($A108<>0,INDEX('2.2 Daten'!H$9:H$859,MATCH('2.2'!$A108,'2.2 Daten'!$B$9:$B$859,0))) -> 1754 | G108: =IF($A108<>0,INDEX('2.2 Daten'!I$9:I$859,MATCH('2.2'!$A108,'2.2 Daten'!$B$9:$B$859,0))) -> 489 | H108: =IF($A108<>0,INDEX('2.2 Daten'!K$9:K$859,MATCH('2.2'!$A108,'2.2 Daten'!$B$9:$B$859,0))) -> -3.539576366 | I108: =IF($A108<>0,INDEX('2.2 Daten'!L$9:L$859,MATCH('2.2'!$A108,'2.2 Daten'!$B$9:$B$859,0))) -> -3.466204506 | J108: =IF($A108<>0,INDEX('2.2 Daten'!M$9:M$859,MATCH('2.2'!$A108,'2.2 Daten'!$B$9:$B$859,0))) -> -10.31207598 | K108: =IF($A108<>0,INDEX('2.2 Daten'!N$9:N$859,MATCH('2.2'!$A108,'2.2 Daten'!$B$9:$B$859,0))) -> -0.9599096556 | L108: =IF($A108<>0,INDEX('2.2 Daten'!O$9:O$859,MATCH('2.2'!$A108,'2.2 Daten'!$B$9:$B$859,0))) -> -2.783300199
A109: =CHOOSE('2.2 Daten'!$A$2,'2.2 Daten'!B531,'2.2 Daten'!B80,'2.2 Daten'!B97,'2.2 Daten'!B114,'2.2 Daten'!B117,'2.2 Daten'!B164,'2.2 Daten'!B168,'2.2 Daten'!B223,'2.2 Daten'!B251,'2.2 Daten'!B289,'2.2 Daten'!B335,'2.2 Daten'!B433,'2.2 Daten'!B441,'2.2 Daten'!B444,'2.2 Daten'!B464,'2.2 Daten'!B474,'2.2 Daten'!B489,'2.2 Daten'!B505,x) -> Ammerland | B109: =IF($A109<>0,INDEX('2.2 Daten'!C$9:C$859,MATCH('2.2'!$A109,'2.2 Daten'!$B$9:$B$859,0))," ") -> 03451000 | C109: =IF($A109<>0,INDEX('2.2 Daten'!E$9:E$859,MATCH('2.2'!$A109,'2.2 Daten'!$B$9:$B$859,0))) -> 2194 | D109: =IF($A109<>0,INDEX('2.2 Daten'!F$9:F$859,MATCH('2.2'!$A109,'2.2 Daten'!$B$9:$B$859,0))) -> 309 | E109: =IF($A109<>0,INDEX('2.2 Daten'!G$9:G$859,MATCH('2.2'!$A109,'2.2 Daten'!$B$9:$B$859,0))) -> 343 | F109: =IF($A109<>0,INDEX('2.2 Daten'!H$9:H$859,MATCH('2.2'!$A109,'2.2 Daten'!$B$9:$B$859,0))) -> 1190 | G109: =IF($A109<>0,INDEX('2.2 Daten'!I$9:I$859,MATCH('2.2'!$A109,'2.2 Daten'!$B$9:$B$859,0))) -> 352 | H109: =IF($A109<>0,INDEX('2.2 Daten'!K$9:K$859,MATCH('2.2'!$A109,'2.2 Daten'!$B$9:$B$859,0))) -> -1.702508961 | I109: =IF($A109<>0,INDEX('2.2 Daten'!L$9:L$859,MATCH('2.2'!$A109,'2.2 Daten'!$B$9:$B$859,0))) -> 3.691275168 | J109: =IF($A109<>0,INDEX('2.2 Daten'!M$9:M$859,MATCH('2.2'!$A109,'2.2 Daten'!$B$9:$B$859,0))) -> -6.02739726 | K109: =IF($A109<>0,INDEX('2.2 Daten'!N$9:N$859,MATCH('2.2'!$A109,'2.2 Daten'!$B$9:$B$859,0))) -> -1.244813278 | L109: =IF($A109<>0,INDEX('2.2 Daten'!O$9:O$859,MATCH('2.2'!$A109,'2.2 Daten'!$B$9:$B$859,0))) -> -3.296703297
A110: =CHOOSE('2.2 Daten'!$A$2,'2.2 Daten'!B532,'2.2 Daten'!B81,'2.2 Daten'!B98,'2.2 Daten'!B115,'2.2 Daten'!B118,'2.2 Daten'!B165,'2.2 Daten'!B169,'2.2 Daten'!B224,'2.2 Daten'!B252,'2.2 Daten'!B290,'2.2 Daten'!B336,'2.2 Daten'!B434,'2.2 Daten'!B442,'2.2 Daten'!B445,'2.2 Daten'!B465,'2.2 Daten'!B475,'2.2 Daten'!B490,'2.2 Daten'!B506,x) -> Aurich | B110: =IF($A110<>0,INDEX('2.2 Daten'!C$9:C$859,MATCH('2.2'!$A110,'2.2 Daten'!$B$9:$B$859,0))," ") -> 03452000 | C110: =IF($A110<>0,INDEX('2.2 Daten'!E$9:E$859,MATCH('2.2'!$A110,'2.2 Daten'!$B$9:$B$859,0))) -> 4261 | D110: =IF($A110<>0,INDEX('2.2 Daten'!F$9:F$859,MATCH('2.2'!$A110,'2.2 Daten'!$B$9:$B$859,0))) -> 691 | E110: =IF($A110<>0,INDEX('2.2 Daten'!G$9:G$859,MATCH('2.2'!$A110,'2.2 Daten'!$B$9:$B$859,0))) -> 781 | F110: =IF($A110<>0,INDEX('2.2 Daten'!H$9:H$859,MATCH('2.2'!$A110,'2.2 Daten'!$B$9:$B$859,0))) -> 2159 | G110: =IF($A110<>0,INDEX('2.2 Daten'!I$9:I$859,MATCH('2.2'!$A110,'2.2 Daten'!$B$9:$B$859,0))) -> 630 | H110: =IF($A110<>0,INDEX('2.2 Daten'!K$9:K$859,MATCH('2.2'!$A110,'2.2 Daten'!$B$9:$B$859,0))) -> -1.684356253 | I110: =IF($A110<>0,INDEX('2.2 Daten'!L$9:L$859,MATCH('2.2'!$A110,'2.2 Daten'!$B$9:$B$859,0))) -> -4.426002766 | J110: =IF($A110<>0,INDEX('2.2 Daten'!M$9:M$859,MATCH('2.2'!$A110,'2.2 Daten'!$B$9:$B$859,0))) -> -1.139240506 | K110: =IF($A110<>0,INDEX('2.2 Daten'!N$9:N$859,MATCH('2.2'!$A110,'2.2 Daten'!$B$9:$B$859,0))) -> -2.0861678 | L110: =IF($A110<>0,INDEX('2.2 Daten'!O$9:O$859,MATCH('2.2'!$A110,'2.2 Daten'!$B$9:$B$859,0))) -> 2.272727273
A111: =CHOOSE('2.2 Daten'!$A$2,'2.2 Daten'!B533,'2.2 Daten'!B82,'2.2 Daten'!B99,'2.2 Daten'!B116,'2.2 Daten'!B119,'2.2 Daten'!B166,'2.2 Daten'!B170,'2.2 Daten'!B225,'2.2 Daten'!B253,'2.2 Daten'!B291,'2.2 Daten'!B337,'2.2 Daten'!B435,'2.2 Daten'!B443,'2.2 Daten'!B446,'2.2 Daten'!B466,'2.2 Daten'!B476,'2.2 Daten'!B491,'2.2 Daten'!B507,x) -> Cloppenburg | B111: =IF($A111<>0,INDEX('2.2 Daten'!C$9:C$859,MATCH('2.2'!$A111,'2.2 Daten'!$B$9:$B$859,0))," ") -> 03453000 | C111: =IF($A111<>0,INDEX('2.2 Daten'!E$9:E$859,MATCH('2.2'!$A111,'2.2 Daten'!$B$9:$B$859,0))) -> 3265 | D111: =IF($A111<>0,INDEX('2.2 Daten'!F$9:F$859,MATCH('2.2'!$A111,'2.2 Daten'!$B$9:$B$859,0))) -> 474 | E111: =IF($A111<>0,INDEX('2.2 Daten'!G$9:G$859,MATCH('2.2'!$A111,'2.2 Daten'!$B$9:$B$859,0))) -> 568 | F111: =IF($A111<>0,INDEX('2.2 Daten'!H$9:H$859,MATCH('2.2'!$A111,'2.2 Daten'!$B$9:$B$859,0))) -> 1715 | G111: =IF($A111<>0,INDEX('2.2 Daten'!I$9:I$859,MATCH('2.2'!$A111,'2.2 Daten'!$B$9:$B$859,0))) -> 508 | H111: =IF($A111<>0,INDEX('2.2 Daten'!K$9:K$859,MATCH('2.2'!$A111,'2.2 Daten'!$B$9:$B$859,0))) -> -2.682563338 | I111: =IF($A111<>0,INDEX('2.2 Daten'!L$9:L$859,MATCH('2.2'!$A111,'2.2 Daten'!$B$9:$B$859,0))) -> -10.73446328 | J111: =IF($A111<>0,INDEX('2.2 Daten'!M$9:M$859,MATCH('2.2'!$A111,'2.2 Daten'!$B$9:$B$859,0))) -> -4.697986577 | K111: =IF($A111<>0,INDEX('2.2 Daten'!N$9:N$859,MATCH('2.2'!$A111,'2.2 Daten'!$B$9:$B$859,0))) -> -2.777777778 | L111: =IF($A111<>0,INDEX('2.2 Daten'!O$9:O$859,MATCH('2.2'!$A111,'2.2 Daten'!$B$9:$B$859,0))) -> 9.482758621
A112: =CHOOSE('2.2 Daten'!$A$2,'2.2 Daten'!B534,'2.2 Daten'!B83,'2.2 Daten'!B100,'2.2 Daten'!B117,'2.2 Daten'!B120,'2.2 Daten'!B167,'2.2 Daten'!B171,'2.2 Daten'!B226,'2.2 Daten'!B254,'2.2 Daten'!B292,'2.2 Daten'!B338,'2.2 Daten'!B436,'2.2 Daten'!B444,'2.2 Daten'!B447,'2.2 Daten'!B467,'2.2 Daten'!B477,'2.2 Daten'!B492,'2.2 Daten'!B508,x) -> Emsland | B112: =IF($A112<>0,INDEX('2.2 Daten'!C$9:C$859,MATCH('2.2'!$A112,'2.2 Daten'!$B$9:$B$859,0))," ") -> 03454000 | C112: =IF($A112<>0,INDEX('2.2 Daten'!E$9:E$859,MATCH('2.2'!$A112,'2.2 Daten'!$B$9:$B$859,0))) -> 4650 | D112: =IF($A112<>0,INDEX('2.2 Daten'!F$9:F$859,MATCH('2.2'!$A112,'2.2 Daten'!$B$9:$B$859,0))) -> 637 | E112: =IF($A112<>0,INDEX('2.2 Daten'!G$9:G$859,MATCH('2.2'!$A112,'2.2 Daten'!$B$9:$B$859,0))) -> 840 | F112: =IF($A112<>0,INDEX('2.2 Daten'!H$9:H$859,MATCH('2.2'!$A112,'2.2 Daten'!$B$9:$B$859,0))) -> 2454 | G112: =IF($A112<>0,INDEX('2.2 Daten'!I$9:I$859,MATCH('2.2'!$A112,'2.2 Daten'!$B$9:$B$859,0))) -> 719 | H112: =IF($A112<>0,INDEX('2.2 Daten'!K$9:K$859,MATCH('2.2'!$A112,'2.2 Daten'!$B$9:$B$859,0))) -> -4.985696772 | I112: =IF($A112<>0,INDEX('2.2 Daten'!L$9:L$859,MATCH('2.2'!$A112,'2.2 Daten'!$B$9:$B$859,0))) -> -12.62002743 | J112: =IF($A112<>0,INDEX('2.2 Daten'!M$9:M$859,MATCH('2.2'!$A112,'2.2 Daten'!$B$9:$B$859,0))) -> -5.298759865 | K112: =IF($A112<>0,INDEX('2.2 Daten'!N$9:N$859,MATCH('2.2'!$A112,'2.2 Daten'!$B$9:$B$859,0))) -> -3.04227578 | L112: =IF($A112<>0,INDEX('2.2 Daten'!O$9:O$859,MATCH('2.2'!$A112,'2.2 Daten'!$B$9:$B$859,0))) -> -3.74832664
A113: =CHOOSE('2.2 Daten'!$A$2,'2.2 Daten'!B535,'2.2 Daten'!B84,'2.2 Daten'!B101,'2.2 Daten'!B118,'2.2 Daten'!B121,'2.2 Daten'!B168,'2.2 Daten'!B172,'2.2 Daten'!B227,'2.2 Daten'!B255,'2.2 Daten'!B293,'2.2 Daten'!B339,'2.2 Daten'!B437,'2.2 Daten'!B445,'2.2 Daten'!B448,'2.2 Daten'!B468,'2.2 Daten'!B478,'2.2 Daten'!B493,'2.2 Daten'!B509,x) -> Friesland | B113: =IF($A113<>0,INDEX('2.2 Daten'!C$9:C$859,MATCH('2.2'!$A113,'2.2 Daten'!$B$9:$B$859,0))," ") -> 03455000 | C113: =IF($A113<>0,INDEX('2.2 Daten'!E$9:E$859,MATCH('2.2'!$A113,'2.2 Daten'!$B$9:$B$859,0))) -> 1773 | D113: =IF($A113<>0,INDEX('2.2 Daten'!F$9:F$859,MATCH('2.2'!$A113,'2.2 Daten'!$B$9:$B$859,0))) -> 240 | E113: =IF($A113<>0,INDEX('2.2 Daten'!G$9:G$859,MATCH('2.2'!$A113,'2.2 Daten'!$B$9:$B$859,0))) -> 291 | F113: =IF($A113<>0,INDEX('2.2 Daten'!H$9:H$859,MATCH('2.2'!$A113,'2.2 Daten'!$B$9:$B$859,0))) -> 961 | G113: =IF($A113<>0,INDEX('2.2 Daten'!I$9:I$859,MATCH('2.2'!$A113,'2.2 Daten'!$B$9:$B$859,0))) -> 281 | H113: =IF($A113<>0,INDEX('2.2 Daten'!K$9:K$859,MATCH('2.2'!$A113,'2.2 Daten'!$B$9:$B$859,0))) -> -1.935840708 | I113: =IF($A113<>0,INDEX('2.2 Daten'!L$9:L$859,MATCH('2.2'!$A113,'2.2 Daten'!$B$9:$B$859,0))) -> -10.44776119 | J113: =IF($A113<>0,INDEX('2.2 Daten'!M$9:M$859,MATCH('2.2'!$A113,'2.2 Daten'!$B$9:$B$859,0))) -> -9.907120743 | K113: =IF($A113<>0,INDEX('2.2 Daten'!N$9:N$859,MATCH('2.2'!$A113,'2.2 Daten'!$B$9:$B$859,0))) -> -0.5175983437 | L113: =IF($A113<>0,INDEX('2.2 Daten'!O$9:O$859,MATCH('2.2'!$A113,'2.2 Daten'!$B$9:$B$859,0))) -> 11.95219124
A114: =CHOOSE('2.2 Daten'!$A$2,'2.2 Daten'!B536,'2.2 Daten'!B85,'2.2 Daten'!B102,'2.2 Daten'!B119,'2.2 Daten'!B122,'2.2 Daten'!B169,'2.2 Daten'!B173,'2.2 Daten'!B228,'2.2 Daten'!B256,'2.2 Daten'!B294,'2.2 Daten'!B340,'2.2 Daten'!B438,'2.2 Daten'!B446,'2.2 Daten'!B449,'2.2 Daten'!B469,'2.2 Daten'!B479,'2.2 Daten'!B494,'2.2 Daten'!B510,x) -> Grafschaft Bentheim | B114: =IF($A114<>0,INDEX('2.2 Daten'!C$9:C$859,MATCH('2.2'!$A114,'2.2 Daten'!$B$9:$B$859,0))," ") -> 03456000 | C114: =IF($A114<>0,INDEX('2.2 Daten'!E$9:E$859,MATCH('2.2'!$A114,'2.2 Daten'!$B$9:$B$859,0))) -> 2400 | D114: =IF($A114<>0,INDEX('2.2 Daten'!F$9:F$859,MATCH('2.2'!$A114,'2.2 Daten'!$B$9:$B$859,0))) -> 369 | E114: =IF($A114<>0,INDEX('2.2 Daten'!G$9:G$859,MATCH('2.2'!$A114,'2.2 Daten'!$B$9:$B$859,0))) -> 430 | F114: =IF($A114<>0,INDEX('2.2 Daten'!H$9:H$859,MATCH('2.2'!$A114,'2.2 Daten'!$B$9:$B$859,0))) -> 1225 | G114: =IF($A114<>0,INDEX('2.2 Daten'!I$9:I$859,MATCH('2.2'!$A114,'2.2 Daten'!$B$9:$B$859,0))) -> 376 | H114: =IF($A114<>0,INDEX('2.2 Daten'!K$9:K$859,MATCH('2.2'!$A114,'2.2 Daten'!$B$9:$B$859,0))) -> -3.691813804 | I114: =IF($A114<>0,INDEX('2.2 Daten'!L$9:L$859,MATCH('2.2'!$A114,'2.2 Daten'!$B$9:$B$859,0))) -> -8.436724566 | J114: =IF($A114<>0,INDEX('2.2 Daten'!M$9:M$859,MATCH('2.2'!$A114,'2.2 Daten'!$B$9:$B$859,0))) -> -7.52688172 | K114: =IF($A114<>0,INDEX('2.2 Daten'!N$9:N$859,MATCH('2.2'!$A114,'2.2 Daten'!$B$9:$B$859,0))) -> -2.468152866 | L114: =IF($A114<>0,INDEX('2.2 Daten'!O$9:O$859,MATCH('2.2'!$A114,'2.2 Daten'!$B$9:$B$859,0))) -> 2.173913043
A115: =CHOOSE('2.2 Daten'!$A$2,'2.2 Daten'!B537,'2.2 Daten'!B86,'2.2 Daten'!B103,'2.2 Daten'!B120,'2.2 Daten'!B123,'2.2 Daten'!B170,'2.2 Daten'!B174,'2.2 Daten'!B229,'2.2 Daten'!B257,'2.2 Daten'!B295,'2.2 Daten'!B341,'2.2 Daten'!B439,'2.2 Daten'!B447,'2.2 Daten'!B450,'2.2 Daten'!B470,'2.2 Daten'!B480,'2.2 Daten'!B495,'2.2 Daten'!B511,x) -> Leer | B115: =IF($A115<>0,INDEX('2.2 Daten'!C$9:C$859,MATCH('2.2'!$A115,'2.2 Daten'!$B$9:$B$859,0))," ") -> 03457000 | C115: =IF($A115<>0,INDEX('2.2 Daten'!E$9:E$859,MATCH('2.2'!$A115,'2.2 Daten'!$B$9:$B$859,0))) -> 3352 | D115: =IF($A115<>0,INDEX('2.2 Daten'!F$9:F$859,MATCH('2.2'!$A115,'2.2 Daten'!$B$9:$B$859,0))) -> 524 | E115: =IF($A115<>0,INDEX('2.2 Daten'!G$9:G$859,MATCH('2.2'!$A115,'2.2 Daten'!$B$9:$B$859,0))) -> 627 | F115: =IF($A115<>0,INDEX('2.2 Daten'!H$9:H$859,MATCH('2.2'!$A115,'2.2 Daten'!$B$9:$B$859,0))) -> 1708 | G115: =IF($A115<>0,INDEX('2.2 Daten'!I$9:I$859,MATCH('2.2'!$A115,'2.2 Daten'!$B$9:$B$859,0))) -> 493 | H115: =IF($A115<>0,INDEX('2.2 Daten'!K$9:K$859,MATCH('2.2'!$A115,'2.2 Daten'!$B$9:$B$859,0))) -> -2.102803738 | I115: =IF($A115<>0,INDEX('2.2 Daten'!L$9:L$859,MATCH('2.2'!$A115,'2.2 Daten'!$B$9:$B$859,0))) -> -4.553734062 | J115: =IF($A115<>0,INDEX('2.2 Daten'!M$9:M$859,MATCH('2.2'!$A115,'2.2 Daten'!$B$9:$B$859,0))) -> -4.27480916 | K115: =IF($A115<>0,INDEX('2.2 Daten'!N$9:N$859,MATCH('2.2'!$A115,'2.2 Daten'!$B$9:$B$859,0))) -> -2.344196684 | L115: =IF($A115<>0,INDEX('2.2 Daten'!O$9:O$859,MATCH('2.2'!$A115,'2.2 Daten'!$B$9:$B$859,0))) -> 4.670912951
A116: =CHOOSE('2.2 Daten'!$A$2,'2.2 Daten'!B538,'2.2 Daten'!B87,'2.2 Daten'!B104,'2.2 Daten'!B121,'2.2 Daten'!B124,'2.2 Daten'!B171,'2.2 Daten'!B175,'2.2 Daten'!B230,'2.2 Daten'!B258,'2.2 Daten'!B296,'2.2 Daten'!B342,'2.2 Daten'!B440,'2.2 Daten'!B448,'2.2 Daten'!B451,'2.2 Daten'!B471,'2.2 Daten'!B481,'2.2 Daten'!B496,'2.2 Daten'!B512,x) -> Oldenburg | B116: =IF($A116<>0,INDEX('2.2 Daten'!C$9:C$859,MATCH('2.2'!$A116,'2.2 Daten'!$B$9:$B$859,0))," ") -> 03458000 | C116: =IF($A116<>0,INDEX('2.2 Daten'!E$9:E$859,MATCH('2.2'!$A116,'2.2 Daten'!$B$9:$B$859,0))) -> 2068 | D116: =IF($A116<>0,INDEX('2.2 Daten'!F$9:F$859,MATCH('2.2'!$A116,'2.2 Daten'!$B$9:$B$859,0))) -> 272 | E116: =IF($A116<>0,INDEX('2.2 Daten'!G$9:G$859,MATCH('2.2'!$A116,'2.2 Daten'!$B$9:$B$859,0))) -> 343 | F116: =IF($A116<>0,INDEX('2.2 Daten'!H$9:H$859,MATCH('2.2'!$A116,'2.2 Daten'!$B$9:$B$859,0))) -> 1101 | G116: =IF($A116<>0,INDEX('2.2 Daten'!I$9:I$859,MATCH('2.2'!$A116,'2.2 Daten'!$B$9:$B$859,0))) -> 352 | H116: =IF($A116<>0,INDEX('2.2 Daten'!K$9:K$859,MATCH('2.2'!$A116,'2.2 Daten'!$B$9:$B$859,0))) -> -0.6724303554 | I116: =IF($A116<>0,INDEX('2.2 Daten'!L$9:L$859,MATCH('2.2'!$A116,'2.2 Daten'!$B$9:$B$859,0))) -> -8.417508418 | J116: =IF($A116<>0,INDEX('2.2 Daten'!M$9:M$859,MATCH('2.2'!$A116,'2.2 Daten'!$B$9:$B$859,0))) -> -5.509641873 | K116: =IF($A116<>0,INDEX('2.2 Daten'!N$9:N$859,MATCH('2.2'!$A116,'2.2 Daten'!$B$9:$B$859,0))) -> -0.3619909502 | L116: =IF($A116<>0,INDEX('2.2 Daten'!O$9:O$859,MATCH('2.2'!$A116,'2.2 Daten'!$B$9:$B$859,0))) -> 11.04100946
A117: =CHOOSE('2.2 Daten'!$A$2,'2.2 Daten'!B539,'2.2 Daten'!B88,'2.2 Daten'!B105,'2.2 Daten'!B122,'2.2 Daten'!B125,'2.2 Daten'!B172,'2.2 Daten'!B176,'2.2 Daten'!B231,'2.2 Daten'!B259,'2.2 Daten'!B297,'2.2 Daten'!B343,'2.2 Daten'!B441,'2.2 Daten'!B449,'2.2 Daten'!B452,'2.2 Daten'!B472,'2.2 Daten'!B482,'2.2 Daten'!B497,'2.2 Daten'!B513,x) -> Osnabrück | B117: =IF($A117<>0,INDEX('2.2 Daten'!C$9:C$859,MATCH('2.2'!$A117,'2.2 Daten'!$B$9:$B$859,0))," ") -> 03459000 | C117: =IF($A117<>0,INDEX('2.2 Daten'!E$9:E$859,MATCH('2.2'!$A117,'2.2 Daten'!$B$9:$B$859,0))) -> 4672 | D117: =IF($A117<>0,INDEX('2.2 Daten'!F$9:F$859,MATCH('2.2'!$A117,'2.2 Daten'!$B$9:$B$859,0))) -> 740 | E117: =IF($A117<>0,INDEX('2.2 Daten'!G$9:G$859,MATCH('2.2'!$A117,'2.2 Daten'!$B$9:$B$859,0))) -> 856 | F117: =IF($A117<>0,INDEX('2.2 Daten'!H$9:H$859,MATCH('2.2'!$A117,'2.2 Daten'!$B$9:$B$859,0))) -> 2401 | G117: =IF($A117<>0,INDEX('2.2 Daten'!I$9:I$859,MATCH('2.2'!$A117,'2.2 Daten'!$B$9:$B$859,0))) -> 675 | H117: =IF($A117<>0,INDEX('2.2 Daten'!K$9:K$859,MATCH('2.2'!$A117,'2.2 Daten'!$B$9:$B$859,0))) -> -3.371251293 | I117: =IF($A117<>0,INDEX('2.2 Daten'!L$9:L$859,MATCH('2.2'!$A117,'2.2 Daten'!$B$9:$B$859,0))) -> -5.128205128 | J117: =IF($A117<>0,INDEX('2.2 Daten'!M$9:M$859,MATCH('2.2'!$A117,'2.2 Daten'!$B$9:$B$859,0))) -> -7.258938245 | K117: =IF($A117<>0,INDEX('2.2 Daten'!N$9:N$859,MATCH('2.2'!$A117,'2.2 Daten'!$B$9:$B$859,0))) -> -3.457981504 | L117: =IF($A117<>0,INDEX('2.2 Daten'!O$9:O$859,MATCH('2.2'!$A117,'2.2 Daten'!$B$9:$B$859,0))) -> 4.651162791
A118: =CHOOSE('2.2 Daten'!$A$2,'2.2 Daten'!B540,'2.2 Daten'!B89,'2.2 Daten'!B106,'2.2 Daten'!B123,'2.2 Daten'!B126,'2.2 Daten'!B173,'2.2 Daten'!B177,'2.2 Daten'!B232,'2.2 Daten'!B260,'2.2 Daten'!B298,'2.2 Daten'!B344,'2.2 Daten'!B442,'2.2 Daten'!B450,'2.2 Daten'!B453,'2.2 Daten'!B473,'2.2 Daten'!B483,'2.2 Daten'!B498,'2.2 Daten'!B514,x) -> Vechta | B118: =IF($A118<>0,INDEX('2.2 Daten'!C$9:C$859,MATCH('2.2'!$A118,'2.2 Daten'!$B$9:$B$859,0))," ") -> 03460000 | C118: =IF($A118<>0,INDEX('2.2 Daten'!E$9:E$859,MATCH('2.2'!$A118,'2.2 Daten'!$B$9:$B$859,0))) -> 2459 | D118: =IF($A118<>0,INDEX('2.2 Daten'!F$9:F$859,MATCH('2.2'!$A118,'2.2 Daten'!$B$9:$B$859,0))) -> 365 | E118: =IF($A118<>0,INDEX('2.2 Daten'!G$9:G$859,MATCH('2.2'!$A118,'2.2 Daten'!$B$9:$B$859,0))) -> 443 | F118: =IF($A118<>0,INDEX('2.2 Daten'!H$9:H$859,MATCH('2.2'!$A118,'2.2 Daten'!$B$9:$B$859,0))) -> 1236 | G118: =IF($A118<>0,INDEX('2.2 Daten'!I$9:I$859,MATCH('2.2'!$A118,'2.2 Daten'!$B$9:$B$859,0))) -> 415 | H118: =IF($A118<>0,INDEX('2.2 Daten'!K$9:K$859,MATCH('2.2'!$A118,'2.2 Daten'!$B$9:$B$859,0))) -> -3.074497438 | I118: =IF($A118<>0,INDEX('2.2 Daten'!L$9:L$859,MATCH('2.2'!$A118,'2.2 Daten'!$B$9:$B$859,0))) -> -7.124681934 | J118: =IF($A118<>0,INDEX('2.2 Daten'!M$9:M$859,MATCH('2.2'!$A118,'2.2 Daten'!$B$9:$B$859,0))) -> 0.2262443439 | K118: =IF($A118<>0,INDEX('2.2 Daten'!N$9:N$859,MATCH('2.2'!$A118,'2.2 Daten'!$B$9:$B$859,0))) -> -4.703161141 | L118: =IF($A118<>0,INDEX('2.2 Daten'!O$9:O$859,MATCH('2.2'!$A118,'2.2 Daten'!$B$9:$B$859,0))) -> 2.469135802
A119: =CHOOSE('2.2 Daten'!$A$2,'2.2 Daten'!B541,'2.2 Daten'!B90,'2.2 Daten'!B107,'2.2 Daten'!B124,'2.2 Daten'!B127,'2.2 Daten'!B174,'2.2 Daten'!B178,'2.2 Daten'!B233,'2.2 Daten'!B261,'2.2 Daten'!B299,'2.2 Daten'!B345,'2.2 Daten'!B443,'2.2 Daten'!B451,'2.2 Daten'!B454,'2.2 Daten'!B474,'2.2 Daten'!B484,'2.2 Daten'!B499,'2.2 Daten'!B515,x) -> Wesermarsch | B119: =IF($A119<>0,INDEX('2.2 Daten'!C$9:C$859,MATCH('2.2'!$A119,'2.2 Daten'!$B$9:$B$859,0))," ") -> 03461000 | C119: =IF($A119<>0,INDEX('2.2 Daten'!E$9:E$859,MATCH('2.2'!$A119,'2.2 Daten'!$B$9:$B$859,0))) -> 2265 | D119: =IF($A119<>0,INDEX('2.2 Daten'!F$9:F$859,MATCH('2.2'!$A119,'2.2 Daten'!$B$9:$B$859,0))) -> 350 | E119: =IF($A119<>0,INDEX('2.2 Daten'!G$9:G$859,MATCH('2.2'!$A119,'2.2 Daten'!$B$9:$B$859,0))) -> 407 | F119: =IF($A119<>0,INDEX('2.2 Daten'!H$9:H$859,MATCH('2.2'!$A119,'2.2 Daten'!$B$9:$B$859,0))) -> 1167 | G119: =IF($A119<>0,INDEX('2.2 Daten'!I$9:I$859,MATCH('2.2'!$A119,'2.2 Daten'!$B$9:$B$859,0))) -> 341 | H119: =IF($A119<>0,INDEX('2.2 Daten'!K$9:K$859,MATCH('2.2'!$A119,'2.2 Daten'!$B$9:$B$859,0))) -> -7.926829268 | I119: =IF($A119<>0,INDEX('2.2 Daten'!L$9:L$859,MATCH('2.2'!$A119,'2.2 Daten'!$B$9:$B$859,0))) -> -9.090909091 | J119: =IF($A119<>0,INDEX('2.2 Daten'!M$9:M$859,MATCH('2.2'!$A119,'2.2 Daten'!$B$9:$B$859,0))) -> -12.28448276 | K119: =IF($A119<>0,INDEX('2.2 Daten'!N$9:N$859,MATCH('2.2'!$A119,'2.2 Daten'!$B$9:$B$859,0))) -> -8.970358814 | L119: =IF($A119<>0,INDEX('2.2 Daten'!O$9:O$859,MATCH('2.2'!$A119,'2.2 Daten'!$B$9:$B$859,0))) -> 3.647416413
A120: =CHOOSE('2.2 Daten'!$A$2,'2.2 Daten'!B542,'2.2 Daten'!B91,'2.2 Daten'!B108,'2.2 Daten'!B125,'2.2 Daten'!B128,'2.2 Daten'!B175,'2.2 Daten'!B179,'2.2 Daten'!B234,'2.2 Daten'!B262,'2.2 Daten'!B300,'2.2 Daten'!B346,'2.2 Daten'!B444,'2.2 Daten'!B452,'2.2 Daten'!B455,'2.2 Daten'!B475,'2.2 Daten'!B485,'2.2 Daten'!B500,'2.2 Daten'!B516,x) -> Wittmund | B120: =IF($A120<>0,INDEX('2.2 Daten'!C$9:C$859,MATCH('2.2'!$A120,'2.2 Daten'!$B$9:$B$859,0))," ") -> 03462000 | C120: =IF($A120<>0,INDEX('2.2 Daten'!E$9:E$859,MATCH('2.2'!$A120,'2.2 Daten'!$B$9:$B$859,0))) -> 1282 | D120: =IF($A120<>0,INDEX('2.2 Daten'!F$9:F$859,MATCH('2.2'!$A120,'2.2 Daten'!$B$9:$B$859,0))) -> 188 | E120: =IF($A120<>0,INDEX('2.2 Daten'!G$9:G$859,MATCH('2.2'!$A120,'2.2 Daten'!$B$9:$B$859,0))) -> 221 | F120: =IF($A120<>0,INDEX('2.2 Daten'!H$9:H$859,MATCH('2.2'!$A120,'2.2 Daten'!$B$9:$B$859,0))) -> 668 | G120: =IF($A120<>0,INDEX('2.2 Daten'!I$9:I$859,MATCH('2.2'!$A120,'2.2 Daten'!$B$9:$B$859,0))) -> 205 | H120: =IF($A120<>0,INDEX('2.2 Daten'!K$9:K$859,MATCH('2.2'!$A120,'2.2 Daten'!$B$9:$B$859,0))) -> -4.966641957 | I120: =IF($A120<>0,INDEX('2.2 Daten'!L$9:L$859,MATCH('2.2'!$A120,'2.2 Daten'!$B$9:$B$859,0))) -> -12.55813953 | J120: =IF($A120<>0,INDEX('2.2 Daten'!M$9:M$859,MATCH('2.2'!$A120,'2.2 Daten'!$B$9:$B$859,0))) -> -2.212389381 | K120: =IF($A120<>0,INDEX('2.2 Daten'!N$9:N$859,MATCH('2.2'!$A120,'2.2 Daten'!$B$9:$B$859,0))) -> -6.311360449 | L120: =IF($A120<>0,INDEX('2.2 Daten'!O$9:O$859,MATCH('2.2'!$A120,'2.2 Daten'!$B$9:$B$859,0))) -> 5.128205128
A121: =CHOOSE('2.2 Daten'!$A$2,'2.2 Daten'!B543,'2.2 Daten'!B92,'2.2 Daten'!B109,'2.2 Daten'!B126,'2.2 Daten'!B129,'2.2 Daten'!B176,'2.2 Daten'!B180,'2.2 Daten'!B235,'2.2 Daten'!B263,'2.2 Daten'!B301,'2.2 Daten'!B347,'2.2 Daten'!B445,'2.2 Daten'!B453,'2.2 Daten'!B456,'2.2 Daten'!B476,'2.2 Daten'!B486,'2.2 Daten'!B501,'2.2 Daten'!B517,x) -> 0 | B121: =IF($A121<>0,INDEX('2.2 Daten'!C$9:C$859,MATCH('2.2'!$A121,'2.2 Daten'!$B$9:$B$859,0))," ") ->  | C121: =IF($A121<>0,INDEX('2.2 Daten'!E$9:E$859,MATCH('2.2'!$A121,'2.2 Daten'!$B$9:$B$859,0))) -> FALSE | D121: =IF($A121<>0,INDEX('2.2 Daten'!F$9:F$859,MATCH('2.2'!$A121,'2.2 Daten'!$B$9:$B$859,0))) -> FALSE | E121: =IF($A121<>0,INDEX('2.2 Daten'!G$9:G$859,MATCH('2.2'!$A121,'2.2 Daten'!$B$9:$B$859,0))) -> FALSE | F121: =IF($A121<>0,INDEX('2.2 Daten'!H$9:H$859,MATCH('2.2'!$A121,'2.2 Daten'!$B$9:$B$859,0))) -> FALSE | G121: =IF($A121<>0,INDEX('2.2 Daten'!I$9:I$859,MATCH('2.2'!$A121,'2.2 Daten'!$B$9:$B$859,0))) -> FALSE | H121: =IF($A121<>0,INDEX('2.2 Daten'!K$9:K$859,MATCH('2.2'!$A121,'2.2 Daten'!$B$9:$B$859,0))) -> FALSE | I121: =IF($A121<>0,INDEX('2.2 Daten'!L$9:L$859,MATCH('2.2'!$A121,'2.2 Daten'!$B$9:$B$859,0))) -> FALSE | J121: =IF($A121<>0,INDEX('2.2 Daten'!M$9:M$859,MATCH('2.2'!$A121,'2.2 Daten'!$B$9:$B$859,0))) -> FALSE | K121: =IF($A121<>0,INDEX('2.2 Daten'!N$9:N$859,MATCH('2.2'!$A121,'2.2 Daten'!$B$9:$B$859,0))) -> FALSE | L121: =IF($A121<>0,INDEX('2.2 Daten'!O$9:O$859,MATCH('2.2'!$A121,'2.2 Daten'!$B$9:$B$859,0))) -> FALSE
A122: =CHOOSE('2.2 Daten'!$A$2,'2.2 Daten'!B544,'2.2 Daten'!B93,'2.2 Daten'!B110,'2.2 Daten'!B127,'2.2 Daten'!B130,'2.2 Daten'!B177,'2.2 Daten'!B181,'2.2 Daten'!B236,'2.2 Daten'!B264,'2.2 Daten'!B302,'2.2 Daten'!B348,'2.2 Daten'!B446,'2.2 Daten'!B454,'2.2 Daten'!B457,'2.2 Daten'!B477,'2.2 Daten'!B487,'2.2 Daten'!B502,'2.2 Daten'!B518,x) -> Bremen | B122: =IF($A122<>0,INDEX('2.2 Daten'!C$9:C$859,MATCH('2.2'!$A122,'2.2 Daten'!$B$9:$B$859,0))," ") -> 04 | C122: =IF($A122<>0,INDEX('2.2 Daten'!E$9:E$859,MATCH('2.2'!$A122,'2.2 Daten'!$B$9:$B$859,0))) -> 35303 | D122: =IF($A122<>0,INDEX('2.2 Daten'!F$9:F$859,MATCH('2.2'!$A122,'2.2 Daten'!$B$9:$B$859,0))) -> 5886 | E122: =IF($A122<>0,INDEX('2.2 Daten'!G$9:G$859,MATCH('2.2'!$A122,'2.2 Daten'!$B$9:$B$859,0))) -> 6885 | F122: =IF($A122<>0,INDEX('2.2 Daten'!H$9:H$859,MATCH('2.2'!$A122,'2.2 Daten'!$B$9:$B$859,0))) -> 17681 | G122: =IF($A122<>0,INDEX('2.2 Daten'!I$9:I$859,MATCH('2.2'!$A122,'2.2 Daten'!$B$9:$B$859,0))) -> 4851 | H122: =IF($A122<>0,INDEX('2.2 Daten'!K$9:K$859,MATCH('2.2'!$A122,'2.2 Daten'!$B$9:$B$859,0))) -> -0.8871669615 | I122: =IF($A122<>0,INDEX('2.2 Daten'!L$9:L$859,MATCH('2.2'!$A122,'2.2 Daten'!$B$9:$B$859,0))) -> -1.506024096 | J122: =IF($A122<>0,INDEX('2.2 Daten'!M$9:M$859,MATCH('2.2'!$A122,'2.2 Daten'!$B$9:$B$859,0))) -> -4.705882353 | K122: =IF($A122<>0,INDEX('2.2 Daten'!N$9:N$859,MATCH('2.2'!$A122,'2.2 Daten'!$B$9:$B$859,0))) -> 0.8498745152 | L122: =IF($A122<>0,INDEX('2.2 Daten'!O$9:O$859,MATCH('2.2'!$A122,'2.2 Daten'!$B$9:$B$859,0))) -> -0.7163323782
A123: =CHOOSE('2.2 Daten'!$A$2,'2.2 Daten'!B545,'2.2 Daten'!B94,'2.2 Daten'!B111,'2.2 Daten'!B128,'2.2 Daten'!B131,'2.2 Daten'!B178,'2.2 Daten'!B182,'2.2 Daten'!B237,'2.2 Daten'!B265,'2.2 Daten'!B303,'2.2 Daten'!B349,'2.2 Daten'!B447,'2.2 Daten'!B455,'2.2 Daten'!B458,'2.2 Daten'!B478,'2.2 Daten'!B488,'2.2 Daten'!B503,'2.2 Daten'!B519,x) -> Bremen, Stadt | B123: =IF($A123<>0,INDEX('2.2 Daten'!C$9:C$859,MATCH('2.2'!$A123,'2.2 Daten'!$B$9:$B$859,0))," ") -> 04011000 | C123: =IF($A123<>0,INDEX('2.2 Daten'!E$9:E$859,MATCH('2.2'!$A123,'2.2 Daten'!$B$9:$B$859,0))) -> 27907 | D123: =IF($A123<>0,INDEX('2.2 Daten'!F$9:F$859,MATCH('2.2'!$A123,'2.2 Daten'!$B$9:$B$859,0))) -> 4684 | E123: =IF($A123<>0,INDEX('2.2 Daten'!G$9:G$859,MATCH('2.2'!$A123,'2.2 Daten'!$B$9:$B$859,0))) -> 5573 | F123: =IF($A123<>0,INDEX('2.2 Daten'!H$9:H$859,MATCH('2.2'!$A123,'2.2 Daten'!$B$9:$B$859,0))) -> 13859 | G123: =IF($A123<>0,INDEX('2.2 Daten'!I$9:I$859,MATCH('2.2'!$A123,'2.2 Daten'!$B$9:$B$859,0))) -> 3791 | H123: =IF($A123<>0,INDEX('2.2 Daten'!K$9:K$859,MATCH('2.2'!$A123,'2.2 Daten'!$B$9:$B$859,0))) -> -1.067073171 | I123: =IF($A123<>0,INDEX('2.2 Daten'!L$9:L$859,MATCH('2.2'!$A123,'2.2 Daten'!$B$9:$B$859,0))) -> -1.347935973 | J123: =IF($A123<>0,INDEX('2.2 Daten'!M$9:M$859,MATCH('2.2'!$A123,'2.2 Daten'!$B$9:$B$859,0))) -> -4.881379075 | K123: =IF($A123<>0,INDEX('2.2 Daten'!N$9:N$859,MATCH('2.2'!$A123,'2.2 Daten'!$B$9:$B$859,0))) -> 0.4639362088 | L123: =IF($A123<>0,INDEX('2.2 Daten'!O$9:O$859,MATCH('2.2'!$A123,'2.2 Daten'!$B$9:$B$859,0))) -> -0.394114556
A124: =CHOOSE('2.2 Daten'!$A$2,'2.2 Daten'!B546,'2.2 Daten'!B95,'2.2 Daten'!B112,'2.2 Daten'!B129,'2.2 Daten'!B132,'2.2 Daten'!B179,'2.2 Daten'!B183,'2.2 Daten'!B238,'2.2 Daten'!B266,'2.2 Daten'!B304,'2.2 Daten'!B350,'2.2 Daten'!B448,'2.2 Daten'!B456,'2.2 Daten'!B459,'2.2 Daten'!B479,'2.2 Daten'!B489,'2.2 Daten'!B504,'2.2 Daten'!B520,x) -> Bremerhaven, Stadt | B124: =IF($A124<>0,INDEX('2.2 Daten'!C$9:C$859,MATCH('2.2'!$A124,'2.2 Daten'!$B$9:$B$859,0))," ") -> 04012000 | C124: =IF($A124<>0,INDEX('2.2 Daten'!E$9:E$859,MATCH('2.2'!$A124,'2.2 Daten'!$B$9:$B$859,0))) -> 7396 | D124: =IF($A124<>0,INDEX('2.2 Daten'!F$9:F$859,MATCH('2.2'!$A124,'2.2 Daten'!$B$9:$B$859,0))) -> 1202 | E124: =IF($A124<>0,INDEX('2.2 Daten'!G$9:G$859,MATCH('2.2'!$A124,'2.2 Daten'!$B$9:$B$859,0))) -> 1312 | F124: =IF($A124<>0,INDEX('2.2 Daten'!H$9:H$859,MATCH('2.2'!$A124,'2.2 Daten'!$B$9:$B$859,0))) -> 3822 | G124: =IF($A124<>0,INDEX('2.2 Daten'!I$9:I$859,MATCH('2.2'!$A124,'2.2 Daten'!$B$9:$B$859,0))) -> 1060 | H124: =IF($A124<>0,INDEX('2.2 Daten'!K$9:K$859,MATCH('2.2'!$A124,'2.2 Daten'!$B$9:$B$859,0))) -> -0.2024018351 | I124: =IF($A124<>0,INDEX('2.2 Daten'!L$9:L$859,MATCH('2.2'!$A124,'2.2 Daten'!$B$9:$B$859,0))) -> -2.117263844 | J124: =IF($A124<>0,INDEX('2.2 Daten'!M$9:M$859,MATCH('2.2'!$A124,'2.2 Daten'!$B$9:$B$859,0))) -> -3.953147877 | K124: =IF($A124<>0,INDEX('2.2 Daten'!N$9:N$859,MATCH('2.2'!$A124,'2.2 Daten'!$B$9:$B$859,0))) -> 2.27455178 | L124: =IF($A124<>0,INDEX('2.2 Daten'!O$9:O$859,MATCH('2.2'!$A124,'2.2 Daten'!$B$9:$B$859,0))) -> -1.851851852
A125: =CHOOSE('2.2 Daten'!$A$2,'2.2 Daten'!B547,'2.2 Daten'!B96,'2.2 Daten'!B113,'2.2 Daten'!B130,'2.2 Daten'!B133,'2.2 Daten'!B180,'2.2 Daten'!B184,'2.2 Daten'!B239,'2.2 Daten'!B267,'2.2 Daten'!B305,'2.2 Daten'!B351,'2.2 Daten'!B449,'2.2 Daten'!B457,'2.2 Daten'!B460,'2.2 Daten'!B480,'2.2 Daten'!B490,'2.2 Daten'!B505,'2.2 Daten'!B521,x) -> 0 | B125: =IF($A125<>0,INDEX('2.2 Daten'!C$9:C$859,MATCH('2.2'!$A125,'2.2 Daten'!$B$9:$B$859,0))," ") ->  | C125: =IF($A125<>0,INDEX('2.2 Daten'!E$9:E$859,MATCH('2.2'!$A125,'2.2 Daten'!$B$9:$B$859,0))) -> FALSE | D125: =IF($A125<>0,INDEX('2.2 Daten'!F$9:F$859,MATCH('2.2'!$A125,'2.2 Daten'!$B$9:$B$859,0))) -> FALSE | E125: =IF($A125<>0,INDEX('2.2 Daten'!G$9:G$859,MATCH('2.2'!$A125,'2.2 Daten'!$B$9:$B$859,0))) -> FALSE | F125: =IF($A125<>0,INDEX('2.2 Daten'!H$9:H$859,MATCH('2.2'!$A125,'2.2 Daten'!$B$9:$B$859,0))) -> FALSE | G125: =IF($A125<>0,INDEX('2.2 Daten'!I$9:I$859,MATCH('2.2'!$A125,'2.2 Daten'!$B$9:$B$859,0))) -> FALSE | H125: =IF($A125<>0,INDEX('2.2 Daten'!K$9:K$859,MATCH('2.2'!$A125,'2.2 Daten'!$B$9:$B$859,0))) -> FALSE | I125: =IF($A125<>0,INDEX('2.2 Daten'!L$9:L$859,MATCH('2.2'!$A125,'2.2 Daten'!$B$9:$B$859,0))) -> FALSE | J125: =IF($A125<>0,INDEX('2.2 Daten'!M$9:M$859,MATCH('2.2'!$A125,'2.2 Daten'!$B$9:$B$859,0))) -> FALSE | K125: =IF($A125<>0,INDEX('2.2 Daten'!N$9:N$859,MATCH('2.2'!$A125,'2.2 Daten'!$B$9:$B$859,0))) -> FALSE | L125: =IF($A125<>0,INDEX('2.2 Daten'!O$9:O$859,MATCH('2.2'!$A125,'2.2 Daten'!$B$9:$B$859,0))) -> FALSE
A126: =CHOOSE('2.2 Daten'!$A$2,'2.2 Daten'!B548,'2.2 Daten'!B97,'2.2 Daten'!B114,'2.2 Daten'!B131,'2.2 Daten'!B134,'2.2 Daten'!B181,'2.2 Daten'!B185,'2.2 Daten'!B240,'2.2 Daten'!B268,'2.2 Daten'!B306,'2.2 Daten'!B352,'2.2 Daten'!B450,'2.2 Daten'!B458,'2.2 Daten'!B461,'2.2 Daten'!B481,'2.2 Daten'!B491,'2.2 Daten'!B506,'2.2 Daten'!B522,x) -> Nordrhein-Westfalen | B126: =IF($A126<>0,INDEX('2.2 Daten'!C$9:C$859,MATCH('2.2'!$A126,'2.2 Daten'!$B$9:$B$859,0))," ") -> 05 | C126: =IF($A126<>0,INDEX('2.2 Daten'!E$9:E$859,MATCH('2.2'!$A126,'2.2 Daten'!$B$9:$B$859,0))) -> 549521 | D126: =IF($A126<>0,INDEX('2.2 Daten'!F$9:F$859,MATCH('2.2'!$A126,'2.2 Daten'!$B$9:$B$859,0))) -> 81706 | E126: =IF($A126<>0,INDEX('2.2 Daten'!G$9:G$859,MATCH('2.2'!$A126,'2.2 Daten'!$B$9:$B$859,0))) -> 96165 | F126: =IF($A126<>0,INDEX('2.2 Daten'!H$9:H$859,MATCH('2.2'!$A126,'2.2 Daten'!$B$9:$B$859,0))) -> 286649 | G126: =IF($A126<>0,INDEX('2.2 Daten'!I$9:I$859,MATCH('2.2'!$A126,'2.2 Daten'!$B$9:$B$859,0))) -> 85001 | H126: =IF($A126<>0,INDEX('2.2 Daten'!K$9:K$859,MATCH('2.2'!$A126,'2.2 Daten'!$B$9:$B$859,0))) -> -2.506005542 | I126: =IF($A126<>0,INDEX('2.2 Daten'!L$9:L$859,MATCH('2.2'!$A126,'2.2 Daten'!$B$9:$B$859,0))) -> -5.122101327 | J126: =IF($A126<>0,INDEX('2.2 Daten'!M$9:M$859,MATCH('2.2'!$A126,'2.2 Daten'!$B$9:$B$859,0))) -> -5.377349208 | K126: =IF($A126<>0,INDEX('2.2 Daten'!N$9:N$859,MATCH('2.2'!$A126,'2.2 Daten'!$B$9:$B$859,0))) -> -1.655716614 | L126: =IF($A126<>0,INDEX('2.2 Daten'!O$9:O$859,MATCH('2.2'!$A126,'2.2 Daten'!$B$9:$B$859,0))) -> 0.6834549417
A127: =CHOOSE('2.2 Daten'!$A$2,'2.2 Daten'!B549,'2.2 Daten'!B98,'2.2 Daten'!B115,'2.2 Daten'!B132,'2.2 Daten'!B135,'2.2 Daten'!B182,'2.2 Daten'!B186,'2.2 Daten'!B241,'2.2 Daten'!B269,'2.2 Daten'!B307,'2.2 Daten'!B353,'2.2 Daten'!B451,'2.2 Daten'!B459,'2.2 Daten'!B462,'2.2 Daten'!B482,'2.2 Daten'!B492,'2.2 Daten'!B507,'2.2 Daten'!B523,x) -> Düsseldorf, Stadt | B127: =IF($A127<>0,INDEX('2.2 Daten'!C$9:C$859,MATCH('2.2'!$A127,'2.2 Daten'!$B$9:$B$859,0))," ") -> 05111000 | C127: =IF($A127<>0,INDEX('2.2 Daten'!E$9:E$859,MATCH('2.2'!$A127,'2.2 Daten'!$B$9:$B$859,0))) -> 16481 | D127: =IF($A127<>0,INDEX('2.2 Daten'!F$9:F$859,MATCH('2.2'!$A127,'2.2 Daten'!$B$9:$B$859,0))) -> 2120 | E127: =IF($A127<>0,INDEX('2.2 Daten'!G$9:G$859,MATCH('2.2'!$A127,'2.2 Daten'!$B$9:$B$859,0))) -> 2691 | F127: =IF($A127<>0,INDEX('2.2 Daten'!H$9:H$859,MATCH('2.2'!$A127,'2.2 Daten'!$B$9:$B$859,0))) -> 8893 | G127: =IF($A127<>0,INDEX('2.2 Daten'!I$9:I$859,MATCH('2.2'!$A127,'2.2 Daten'!$B$9:$B$859,0))) -> 2777 | H127: =IF($A127<>0,INDEX('2.2 Daten'!K$9:K$859,MATCH('2.2'!$A127,'2.2 Daten'!$B$9:$B$859,0))) -> -7.4465098 | I127: =IF($A127<>0,INDEX('2.2 Daten'!L$9:L$859,MATCH('2.2'!$A127,'2.2 Daten'!$B$9:$B$859,0))) -> -11.0365086 | J127: =IF($A127<>0,INDEX('2.2 Daten'!M$9:M$859,MATCH('2.2'!$A127,'2.2 Daten'!$B$9:$B$859,0))) -> -11.7704918 | K127: =IF($A127<>0,INDEX('2.2 Daten'!N$9:N$859,MATCH('2.2'!$A127,'2.2 Daten'!$B$9:$B$859,0))) -> -7.083899279 | L127: =IF($A127<>0,INDEX('2.2 Daten'!O$9:O$859,MATCH('2.2'!$A127,'2.2 Daten'!$B$9:$B$859,0))) -> -0.9275775954
A128: =CHOOSE('2.2 Daten'!$A$2,'2.2 Daten'!B550,'2.2 Daten'!B99,'2.2 Daten'!B116,'2.2 Daten'!B133,'2.2 Daten'!B136,'2.2 Daten'!B183,'2.2 Daten'!B187,'2.2 Daten'!B242,'2.2 Daten'!B270,'2.2 Daten'!B308,'2.2 Daten'!B354,'2.2 Daten'!B452,'2.2 Daten'!B460,'2.2 Daten'!B463,'2.2 Daten'!B483,'2.2 Daten'!B493,'2.2 Daten'!B508,'2.2 Daten'!B524,x) -> Duisburg, Stadt | B128: =IF($A128<>0,INDEX('2.2 Daten'!C$9:C$859,MATCH('2.2'!$A128,'2.2 Daten'!$B$9:$B$859,0))," ") -> 05112000 | C128: =IF($A128<>0,INDEX('2.2 Daten'!E$9:E$859,MATCH('2.2'!$A128,'2.2 Daten'!$B$9:$B$859,0))) -> 26923 | D128: =IF($A128<>0,INDEX('2.2 Daten'!F$9:F$859,MATCH('2.2'!$A128,'2.2 Daten'!$B$9:$B$859,0))) -> 4064 | E128: =IF($A128<>0,INDEX('2.2 Daten'!G$9:G$859,MATCH('2.2'!$A128,'2.2 Daten'!$B$9:$B$859,0))) -> 4706 | F128: =IF($A128<>0,INDEX('2.2 Daten'!H$9:H$859,MATCH('2.2'!$A128,'2.2 Daten'!$B$9:$B$859,0))) -> 14149 | G128: =IF($A128<>0,INDEX('2.2 Daten'!I$9:I$859,MATCH('2.2'!$A128,'2.2 Daten'!$B$9:$B$859,0))) -> 4004 | H128: =IF($A128<>0,INDEX('2.2 Daten'!K$9:K$859,MATCH('2.2'!$A128,'2.2 Daten'!$B$9:$B$859,0))) -> -2.713738527 | I128: =IF($A128<>0,INDEX('2.2 Daten'!L$9:L$859,MATCH('2.2'!$A128,'2.2 Daten'!$B$9:$B$859,0))) -> -4.488836663 | J128: =IF($A128<>0,INDEX('2.2 Daten'!M$9:M$859,MATCH('2.2'!$A128,'2.2 Daten'!$B$9:$B$859,0))) -> -4.115729421 | K128: =IF($A128<>0,INDEX('2.2 Daten'!N$9:N$859,MATCH('2.2'!$A128,'2.2 Daten'!$B$9:$B$859,0))) -> -2.008449339 | L128: =IF($A128<>0,INDEX('2.2 Daten'!O$9:O$859,MATCH('2.2'!$A128,'2.2 Daten'!$B$9:$B$859,0))) -> -1.669941061
A129: =CHOOSE('2.2 Daten'!$A$2,'2.2 Daten'!B551,'2.2 Daten'!B100,'2.2 Daten'!B117,'2.2 Daten'!B134,'2.2 Daten'!B137,'2.2 Daten'!B184,'2.2 Daten'!B188,'2.2 Daten'!B243,'2.2 Daten'!B271,'2.2 Daten'!B309,'2.2 Daten'!B355,'2.2 Daten'!B453,'2.2 Daten'!B461,'2.2 Daten'!B464,'2.2 Daten'!B484,'2.2 Daten'!B494,'2.2 Daten'!B509,'2.2 Daten'!B525,x) -> Essen, Stadt | B129: =IF($A129<>0,INDEX('2.2 Daten'!C$9:C$859,MATCH('2.2'!$A129,'2.2 Daten'!$B$9:$B$859,0))," ") -> 05113000 | C129: =IF($A129<>0,INDEX('2.2 Daten'!E$9:E$859,MATCH('2.2'!$A129,'2.2 Daten'!$B$9:$B$859,0))) -> 30066 | D129: =IF($A129<>0,INDEX('2.2 Daten'!F$9:F$859,MATCH('2.2'!$A129,'2.2 Daten'!$B$9:$B$859,0))) -> 4564 | E129: =IF($A129<>0,INDEX('2.2 Daten'!G$9:G$859,MATCH('2.2'!$A129,'2.2 Daten'!$B$9:$B$859,0))) -> 5400 | F129: =IF($A129<>0,INDEX('2.2 Daten'!H$9:H$859,MATCH('2.2'!$A129,'2.2 Daten'!$B$9:$B$859,0))) -> 15516 | G129: =IF($A129<>0,INDEX('2.2 Daten'!I$9:I$859,MATCH('2.2'!$A129,'2.2 Daten'!$B$9:$B$859,0))) -> 4586 | H129: =IF($A129<>0,INDEX('2.2 Daten'!K$9:K$859,MATCH('2.2'!$A129,'2.2 Daten'!$B$9:$B$859,0))) -> -0.2256587244 | I129: =IF($A129<>0,INDEX('2.2 Daten'!L$9:L$859,MATCH('2.2'!$A129,'2.2 Daten'!$B$9:$B$859,0))) -> -3.936013471 | J129: =IF($A129<>0,INDEX('2.2 Daten'!M$9:M$859,MATCH('2.2'!$A129,'2.2 Daten'!$B$9:$B$859,0))) -> -3.416204615 | K129: =IF($A129<>0,INDEX('2.2 Daten'!N$9:N$859,MATCH('2.2'!$A129,'2.2 Daten'!$B$9:$B$859,0))) -> 1.332288401 | L129: =IF($A129<>0,INDEX('2.2 Daten'!O$9:O$859,MATCH('2.2'!$A129,'2.2 Daten'!$B$9:$B$859,0))) -> 2.366071429
A130: =CHOOSE('2.2 Daten'!$A$2,'2.2 Daten'!B552,'2.2 Daten'!B101,'2.2 Daten'!B118,'2.2 Daten'!B135,'2.2 Daten'!B138,'2.2 Daten'!B185,'2.2 Daten'!B189,'2.2 Daten'!B244,'2.2 Daten'!B272,'2.2 Daten'!B310,'2.2 Daten'!B356,'2.2 Daten'!B454,'2.2 Daten'!B462,'2.2 Daten'!B465,'2.2 Daten'!B485,'2.2 Daten'!B495,'2.2 Daten'!B510,'2.2 Daten'!B526,x) -> Krefeld, Stadt | B130: =IF($A130<>0,INDEX('2.2 Daten'!C$9:C$859,MATCH('2.2'!$A130,'2.2 Daten'!$B$9:$B$859,0))," ") -> 05114000 | C130: =IF($A130<>0,INDEX('2.2 Daten'!E$9:E$859,MATCH('2.2'!$A130,'2.2 Daten'!$B$9:$B$859,0))) -> 8777 | D130: =IF($A130<>0,INDEX('2.2 Daten'!F$9:F$859,MATCH('2.2'!$A130,'2.2 Daten'!$B$9:$B$859,0))) -> 1342 | E130: =IF($A130<>0,INDEX('2.2 Daten'!G$9:G$859,MATCH('2.2'!$A130,'2.2 Daten'!$B$9:$B$859,0))) -> 1488 | F130: =IF($A130<>0,INDEX('2.2 Daten'!H$9:H$859,MATCH('2.2'!$A130,'2.2 Daten'!$B$9:$B$859,0))) -> 4596 | G130: =IF($A130<>0,INDEX('2.2 Daten'!I$9:I$859,MATCH('2.2'!$A130,'2.2 Daten'!$B$9:$B$859,0))) -> 1351 | H130: =IF($A130<>0,INDEX('2.2 Daten'!K$9:K$859,MATCH('2.2'!$A130,'2.2 Daten'!$B$9:$B$859,0))) -> -3.528247967 | I130: =IF($A130<>0,INDEX('2.2 Daten'!L$9:L$859,MATCH('2.2'!$A130,'2.2 Daten'!$B$9:$B$859,0))) -> -5.225988701 | J130: =IF($A130<>0,INDEX('2.2 Daten'!M$9:M$859,MATCH('2.2'!$A130,'2.2 Daten'!$B$9:$B$859,0))) -> -9.378806334 | K130: =IF($A130<>0,INDEX('2.2 Daten'!N$9:N$859,MATCH('2.2'!$A130,'2.2 Daten'!$B$9:$B$859,0))) -> -1.878736123 | L130: =IF($A130<>0,INDEX('2.2 Daten'!O$9:O$859,MATCH('2.2'!$A130,'2.2 Daten'!$B$9:$B$859,0))) -> -0.3687315634
A131: =CHOOSE('2.2 Daten'!$A$2,'2.2 Daten'!B553,'2.2 Daten'!B102,'2.2 Daten'!B119,'2.2 Daten'!B136,'2.2 Daten'!B139,'2.2 Daten'!B186,'2.2 Daten'!B190,'2.2 Daten'!B245,'2.2 Daten'!B273,'2.2 Daten'!B311,'2.2 Daten'!B357,'2.2 Daten'!B455,'2.2 Daten'!B463,'2.2 Daten'!B466,'2.2 Daten'!B486,'2.2 Daten'!B496,'2.2 Daten'!B511,'2.2 Daten'!B527,x) -> Mönchengladbach, Stadt | B131: =IF($A131<>0,INDEX('2.2 Daten'!C$9:C$859,MATCH('2.2'!$A131,'2.2 Daten'!$B$9:$B$859,0))," ") -> 05116000 | C131: =IF($A131<>0,INDEX('2.2 Daten'!E$9:E$859,MATCH('2.2'!$A131,'2.2 Daten'!$B$9:$B$859,0))) -> 12124 | D131: =IF($A131<>0,INDEX('2.2 Daten'!F$9:F$859,MATCH('2.2'!$A131,'2.2 Daten'!$B$9:$B$859,0))) -> 1912 | E131: =IF($A131<>0,INDEX('2.2 Daten'!G$9:G$859,MATCH('2.2'!$A131,'2.2 Daten'!$B$9:$B$859,0))) -> 2132 | F131: =IF($A131<>0,INDEX('2.2 Daten'!H$9:H$859,MATCH('2.2'!$A131,'2.2 Daten'!$B$9:$B$859,0))) -> 6219 | G131: =IF($A131<>0,INDEX('2.2 Daten'!I$9:I$859,MATCH('2.2'!$A131,'2.2 Daten'!$B$9:$B$859,0))) -> 1861 | H131: =IF($A131<>0,INDEX('2.2 Daten'!K$9:K$859,MATCH('2.2'!$A131,'2.2 Daten'!$B$9:$B$859,0))) -> -3.054533824 | I131: =IF($A131<>0,INDEX('2.2 Daten'!L$9:L$859,MATCH('2.2'!$A131,'2.2 Daten'!$B$9:$B$859,0))) -> -3.822937626 | J131: =IF($A131<>0,INDEX('2.2 Daten'!M$9:M$859,MATCH('2.2'!$A131,'2.2 Daten'!$B$9:$B$859,0))) -> -7.505422993 | K131: =IF($A131<>0,INDEX('2.2 Daten'!N$9:N$859,MATCH('2.2'!$A131,'2.2 Daten'!$B$9:$B$859,0))) -> -2.462358846 | L131: =IF($A131<>0,INDEX('2.2 Daten'!O$9:O$859,MATCH('2.2'!$A131,'2.2 Daten'!$B$9:$B$859,0))) -> 1.306477953
A132: =CHOOSE('2.2 Daten'!$A$2,'2.2 Daten'!B554,'2.2 Daten'!B103,'2.2 Daten'!B120,'2.2 Daten'!B137,'2.2 Daten'!B140,'2.2 Daten'!B187,'2.2 Daten'!B191,'2.2 Daten'!B246,'2.2 Daten'!B274,'2.2 Daten'!B312,'2.2 Daten'!B358,'2.2 Daten'!B456,'2.2 Daten'!B464,'2.2 Daten'!B467,'2.2 Daten'!B487,'2.2 Daten'!B497,'2.2 Daten'!B512,'2.2 Daten'!B528,x) -> Mülheim an der Ruhr, Stadt | B132: =IF($A132<>0,INDEX('2.2 Daten'!C$9:C$859,MATCH('2.2'!$A132,'2.2 Daten'!$B$9:$B$859,0))," ") -> 05117000 | C132: =IF($A132<>0,INDEX('2.2 Daten'!E$9:E$859,MATCH('2.2'!$A132,'2.2 Daten'!$B$9:$B$859,0))) -> 7158 | D132: =IF($A132<>0,INDEX('2.2 Daten'!F$9:F$859,MATCH('2.2'!$A132,'2.2 Daten'!$B$9:$B$859,0))) -> 1063 | E132: =IF($A132<>0,INDEX('2.2 Daten'!G$9:G$859,MATCH('2.2'!$A132,'2.2 Daten'!$B$9:$B$859,0))) -> 1237 | F132: =IF($A132<>0,INDEX('2.2 Daten'!H$9:H$859,MATCH('2.2'!$A132,'2.2 Daten'!$B$9:$B$859,0))) -> 3781 | G132: =IF($A132<>0,INDEX('2.2 Daten'!I$9:I$859,MATCH('2.2'!$A132,'2.2 Daten'!$B$9:$B$859,0))) -> 1077 | H132: =IF($A132<>0,INDEX('2.2 Daten'!K$9:K$859,MATCH('2.2'!$A132,'2.2 Daten'!$B$9:$B$859,0))) -> -3.919463087 | I132: =IF($A132<>0,INDEX('2.2 Daten'!L$9:L$859,MATCH('2.2'!$A132,'2.2 Daten'!$B$9:$B$859,0))) -> -6.754385965 | J132: =IF($A132<>0,INDEX('2.2 Daten'!M$9:M$859,MATCH('2.2'!$A132,'2.2 Daten'!$B$9:$B$859,0))) -> -7.479431563 | K132: =IF($A132<>0,INDEX('2.2 Daten'!N$9:N$859,MATCH('2.2'!$A132,'2.2 Daten'!$B$9:$B$859,0))) -> -1.817709686 | L132: =IF($A132<>0,INDEX('2.2 Daten'!O$9:O$859,MATCH('2.2'!$A132,'2.2 Daten'!$B$9:$B$859,0))) -> -4.010695187
A133: =CHOOSE('2.2 Daten'!$A$2,'2.2 Daten'!B555,'2.2 Daten'!B104,'2.2 Daten'!B121,'2.2 Daten'!B138,'2.2 Daten'!B141,'2.2 Daten'!B188,'2.2 Daten'!B192,'2.2 Daten'!B247,'2.2 Daten'!B275,'2.2 Daten'!B313,'2.2 Daten'!B359,'2.2 Daten'!B457,'2.2 Daten'!B465,'2.2 Daten'!B468,'2.2 Daten'!B488,'2.2 Daten'!B498,'2.2 Daten'!B513,'2.2 Daten'!B529,x) -> Oberhausen, Stadt | B133: =IF($A133<>0,INDEX('2.2 Daten'!C$9:C$859,MATCH('2.2'!$A133,'2.2 Daten'!$B$9:$B$859,0))," ") -> 05119000 | C133: =IF($A133<>0,INDEX('2.2 Daten'!E$9:E$859,MATCH('2.2'!$A133,'2.2 Daten'!$B$9:$B$859,0))) -> 9487 | D133: =IF($A133<>0,INDEX('2.2 Daten'!F$9:F$859,MATCH('2.2'!$A133,'2.2 Daten'!$B$9:$B$859,0))) -> 1477 | E133: =IF($A133<>0,INDEX('2.2 Daten'!G$9:G$859,MATCH('2.2'!$A133,'2.2 Daten'!$B$9:$B$859,0))) -> 1747 | F133: =IF($A133<>0,INDEX('2.2 Daten'!H$9:H$859,MATCH('2.2'!$A133,'2.2 Daten'!$B$9:$B$859,0))) -> 4862 | G133: =IF($A133<>0,INDEX('2.2 Daten'!I$9:I$859,MATCH('2.2'!$A133,'2.2 Daten'!$B$9:$B$859,0))) -> 1401 | H133: =IF($A133<>0,INDEX('2.2 Daten'!K$9:K$859,MATCH('2.2'!$A133,'2.2 Daten'!$B$9:$B$859,0))) -> -4.268415742 | I133: =IF($A133<>0,INDEX('2.2 Daten'!L$9:L$859,MATCH('2.2'!$A133,'2.2 Daten'!$B$9:$B$859,0))) -> -5.803571429 | J133: =IF($A133<>0,INDEX('2.2 Daten'!M$9:M$859,MATCH('2.2'!$A133,'2.2 Daten'!$B$9:$B$859,0))) -> -8.725182863 | K133: =IF($A133<>0,INDEX('2.2 Daten'!N$9:N$859,MATCH('2.2'!$A133,'2.2 Daten'!$B$9:$B$859,0))) -> -3.10880829 | L133: =IF($A133<>0,INDEX('2.2 Daten'!O$9:O$859,MATCH('2.2'!$A133,'2.2 Daten'!$B$9:$B$859,0))) -> -0.6382978723
A134: =CHOOSE('2.2 Daten'!$A$2,'2.2 Daten'!B556,'2.2 Daten'!B105,'2.2 Daten'!B122,'2.2 Daten'!B139,'2.2 Daten'!B142,'2.2 Daten'!B189,'2.2 Daten'!B193,'2.2 Daten'!B248,'2.2 Daten'!B276,'2.2 Daten'!B314,'2.2 Daten'!B360,'2.2 Daten'!B458,'2.2 Daten'!B466,'2.2 Daten'!B469,'2.2 Daten'!B489,'2.2 Daten'!B499,'2.2 Daten'!B514,'2.2 Daten'!B530,x) -> Remscheid, Stadt | B134: =IF($A134<>0,INDEX('2.2 Daten'!C$9:C$859,MATCH('2.2'!$A134,'2.2 Daten'!$B$9:$B$859,0))," ") -> 05120000 | C134: =IF($A134<>0,INDEX('2.2 Daten'!E$9:E$859,MATCH('2.2'!$A134,'2.2 Daten'!$B$9:$B$859,0))) -> 4008 | D134: =IF($A134<>0,INDEX('2.2 Daten'!F$9:F$859,MATCH('2.2'!$A134,'2.2 Daten'!$B$9:$B$859,0))) -> 575 | E134: =IF($A134<>0,INDEX('2.2 Daten'!G$9:G$859,MATCH('2.2'!$A134,'2.2 Daten'!$B$9:$B$859,0))) -> 693 | F134: =IF($A134<>0,INDEX('2.2 Daten'!H$9:H$859,MATCH('2.2'!$A134,'2.2 Daten'!$B$9:$B$859,0))) -> 2125 | G134: =IF($A134<>0,INDEX('2.2 Daten'!I$9:I$859,MATCH('2.2'!$A134,'2.2 Daten'!$B$9:$B$859,0))) -> 615 | H134: =IF($A134<>0,INDEX('2.2 Daten'!K$9:K$859,MATCH('2.2'!$A134,'2.2 Daten'!$B$9:$B$859,0))) -> -2.718446602 | I134: =IF($A134<>0,INDEX('2.2 Daten'!L$9:L$859,MATCH('2.2'!$A134,'2.2 Daten'!$B$9:$B$859,0))) -> -9.305993691 | J134: =IF($A134<>0,INDEX('2.2 Daten'!M$9:M$859,MATCH('2.2'!$A134,'2.2 Daten'!$B$9:$B$859,0))) -> -2.941176471 | K134: =IF($A134<>0,INDEX('2.2 Daten'!N$9:N$859,MATCH('2.2'!$A134,'2.2 Daten'!$B$9:$B$859,0))) -> -2.298850575 | L134: =IF($A134<>0,INDEX('2.2 Daten'!O$9:O$859,MATCH('2.2'!$A134,'2.2 Daten'!$B$9:$B$859,0))) -> 3.015075377
A135: =CHOOSE('2.2 Daten'!$A$2,'2.2 Daten'!B557,'2.2 Daten'!B106,'2.2 Daten'!B123,'2.2 Daten'!B140,'2.2 Daten'!B143,'2.2 Daten'!B190,'2.2 Daten'!B194,'2.2 Daten'!B249,'2.2 Daten'!B277,'2.2 Daten'!B315,'2.2 Daten'!B361,'2.2 Daten'!B459,'2.2 Daten'!B467,'2.2 Daten'!B470,'2.2 Daten'!B490,'2.2 Daten'!B500,'2.2 Daten'!B515,'2.2 Daten'!B531,x) -> Solingen, Klingenstadt | B135: =IF($A135<>0,INDEX('2.2 Daten'!C$9:C$859,MATCH('2.2'!$A135,'2.2 Daten'!$B$9:$B$859,0))," ") -> 05122000 | C135: =IF($A135<>0,INDEX('2.2 Daten'!E$9:E$859,MATCH('2.2'!$A135,'2.2 Daten'!$B$9:$B$859,0))) -> 5264 | D135: =IF($A135<>0,INDEX('2.2 Daten'!F$9:F$859,MATCH('2.2'!$A135,'2.2 Daten'!$B$9:$B$859,0))) -> 800 | E135: =IF($A135<>0,INDEX('2.2 Daten'!G$9:G$859,MATCH('2.2'!$A135,'2.2 Daten'!$B$9:$B$859,0))) -> 976 | F135: =IF($A135<>0,INDEX('2.2 Daten'!H$9:H$859,MATCH('2.2'!$A135,'2.2 Daten'!$B$9:$B$859,0))) -> 2741 | G135: =IF($A135<>0,INDEX('2.2 Daten'!I$9:I$859,MATCH('2.2'!$A135,'2.2 Daten'!$B$9:$B$859,0))) -> 747 | H135: =IF($A135<>0,INDEX('2.2 Daten'!K$9:K$859,MATCH('2.2'!$A135,'2.2 Daten'!$B$9:$B$859,0))) -> -1.164100638 | I135: =IF($A135<>0,INDEX('2.2 Daten'!L$9:L$859,MATCH('2.2'!$A135,'2.2 Daten'!$B$9:$B$859,0))) -> 0 | J135: =IF($A135<>0,INDEX('2.2 Daten'!M$9:M$859,MATCH('2.2'!$A135,'2.2 Daten'!$B$9:$B$859,0))) -> 2.306079665 | K135: =IF($A135<>0,INDEX('2.2 Daten'!N$9:N$859,MATCH('2.2'!$A135,'2.2 Daten'!$B$9:$B$859,0))) -> -1.011195377 | L135: =IF($A135<>0,INDEX('2.2 Daten'!O$9:O$859,MATCH('2.2'!$A135,'2.2 Daten'!$B$9:$B$859,0))) -> -6.97384807
A136: =CHOOSE('2.2 Daten'!$A$2,'2.2 Daten'!B558,'2.2 Daten'!B107,'2.2 Daten'!B124,'2.2 Daten'!B141,'2.2 Daten'!B144,'2.2 Daten'!B191,'2.2 Daten'!B195,'2.2 Daten'!B250,'2.2 Daten'!B278,'2.2 Daten'!B316,'2.2 Daten'!B362,'2.2 Daten'!B460,'2.2 Daten'!B468,'2.2 Daten'!B471,'2.2 Daten'!B491,'2.2 Daten'!B501,'2.2 Daten'!B516,'2.2 Daten'!B532,x) -> Wuppertal, Stadt | B136: =IF($A136<>0,INDEX('2.2 Daten'!C$9:C$859,MATCH('2.2'!$A136,'2.2 Daten'!$B$9:$B$859,0))," ") -> 05124000 | C136: =IF($A136<>0,INDEX('2.2 Daten'!E$9:E$859,MATCH('2.2'!$A136,'2.2 Daten'!$B$9:$B$859,0))) -> 16627 | D136: =IF($A136<>0,INDEX('2.2 Daten'!F$9:F$859,MATCH('2.2'!$A136,'2.2 Daten'!$B$9:$B$859,0))) -> 2242 | E136: =IF($A136<>0,INDEX('2.2 Daten'!G$9:G$859,MATCH('2.2'!$A136,'2.2 Daten'!$B$9:$B$859,0))) -> 2936 | F136: =IF($A136<>0,INDEX('2.2 Daten'!H$9:H$859,MATCH('2.2'!$A136,'2.2 Daten'!$B$9:$B$859,0))) -> 8790 | G136: =IF($A136<>0,INDEX('2.2 Daten'!I$9:I$859,MATCH('2.2'!$A136,'2.2 Daten'!$B$9:$B$859,0))) -> 2659 | H136: =IF($A136<>0,INDEX('2.2 Daten'!K$9:K$859,MATCH('2.2'!$A136,'2.2 Daten'!$B$9:$B$859,0))) -> -4.480955937 | I136: =IF($A136<>0,INDEX('2.2 Daten'!L$9:L$859,MATCH('2.2'!$A136,'2.2 Daten'!$B$9:$B$859,0))) -> -10.32 | J136: =IF($A136<>0,INDEX('2.2 Daten'!M$9:M$859,MATCH('2.2'!$A136,'2.2 Daten'!$B$9:$B$859,0))) -> -8.135168961 | K136: =IF($A136<>0,INDEX('2.2 Daten'!N$9:N$859,MATCH('2.2'!$A136,'2.2 Daten'!$B$9:$B$859,0))) -> -2.947996025 | L136: =IF($A136<>0,INDEX('2.2 Daten'!O$9:O$859,MATCH('2.2'!$A136,'2.2 Daten'!$B$9:$B$859,0))) -> 0.1883948757
A137: =CHOOSE('2.2 Daten'!$A$2,'2.2 Daten'!B559,'2.2 Daten'!B108,'2.2 Daten'!B125,'2.2 Daten'!B142,'2.2 Daten'!B145,'2.2 Daten'!B192,'2.2 Daten'!B196,'2.2 Daten'!B251,'2.2 Daten'!B279,'2.2 Daten'!B317,'2.2 Daten'!B363,'2.2 Daten'!B461,'2.2 Daten'!B469,'2.2 Daten'!B472,'2.2 Daten'!B492,'2.2 Daten'!B502,'2.2 Daten'!B517,'2.2 Daten'!B533,x) -> Kleve | B137: =IF($A137<>0,INDEX('2.2 Daten'!C$9:C$859,MATCH('2.2'!$A137,'2.2 Daten'!$B$9:$B$859,0))," ") -> 05154000 | C137: =IF($A137<>0,INDEX('2.2 Daten'!E$9:E$859,MATCH('2.2'!$A137,'2.2 Daten'!$B$9:$B$859,0))) -> 6077 | D137: =IF($A137<>0,INDEX('2.2 Daten'!F$9:F$859,MATCH('2.2'!$A137,'2.2 Daten'!$B$9:$B$859,0))) -> 871 | E137: =IF($A137<>0,INDEX('2.2 Daten'!G$9:G$859,MATCH('2.2'!$A137,'2.2 Daten'!$B$9:$B$859,0))) -> 1082 | F137: =IF($A137<>0,INDEX('2.2 Daten'!H$9:H$859,MATCH('2.2'!$A137,'2.2 Daten'!$B$9:$B$859,0))) -> 3171 | G137: =IF($A137<>0,INDEX('2.2 Daten'!I$9:I$859,MATCH('2.2'!$A137,'2.2 Daten'!$B$9:$B$859,0))) -> 953 | H137: =IF($A137<>0,INDEX('2.2 Daten'!K$9:K$859,MATCH('2.2'!$A137,'2.2 Daten'!$B$9:$B$859,0))) -> 1.775247027 | I137: =IF($A137<>0,INDEX('2.2 Daten'!L$9:L$859,MATCH('2.2'!$A137,'2.2 Daten'!$B$9:$B$859,0))) -> -5.735930736 | J137: =IF($A137<>0,INDEX('2.2 Daten'!M$9:M$859,MATCH('2.2'!$A137,'2.2 Daten'!$B$9:$B$859,0))) -> -0.7339449541 | K137: =IF($A137<>0,INDEX('2.2 Daten'!N$9:N$859,MATCH('2.2'!$A137,'2.2 Daten'!$B$9:$B$859,0))) -> 3.28990228 | L137: =IF($A137<>0,INDEX('2.2 Daten'!O$9:O$859,MATCH('2.2'!$A137,'2.2 Daten'!$B$9:$B$859,0))) -> 7.440811725
A138: =CHOOSE('2.2 Daten'!$A$2,'2.2 Daten'!B560,'2.2 Daten'!B109,'2.2 Daten'!B126,'2.2 Daten'!B143,'2.2 Daten'!B146,'2.2 Daten'!B193,'2.2 Daten'!B197,'2.2 Daten'!B252,'2.2 Daten'!B280,'2.2 Daten'!B318,'2.2 Daten'!B364,'2.2 Daten'!B462,'2.2 Daten'!B470,'2.2 Daten'!B473,'2.2 Daten'!B493,'2.2 Daten'!B503,'2.2 Daten'!B518,'2.2 Daten'!B534,x) -> Mettmann | B138: =IF($A138<>0,INDEX('2.2 Daten'!C$9:C$859,MATCH('2.2'!$A138,'2.2 Daten'!$B$9:$B$859,0))," ") -> 05158000 | C138: =IF($A138<>0,INDEX('2.2 Daten'!E$9:E$859,MATCH('2.2'!$A138,'2.2 Daten'!$B$9:$B$859,0))) -> 13638 | D138: =IF($A138<>0,INDEX('2.2 Daten'!F$9:F$859,MATCH('2.2'!$A138,'2.2 Daten'!$B$9:$B$859,0))) -> 2045 | E138: =IF($A138<>0,INDEX('2.2 Daten'!G$9:G$859,MATCH('2.2'!$A138,'2.2 Daten'!$B$9:$B$859,0))) -> 2408 | F138: =IF($A138<>0,INDEX('2.2 Daten'!H$9:H$859,MATCH('2.2'!$A138,'2.2 Daten'!$B$9:$B$859,0))) -> 7157 | G138: =IF($A138<>0,INDEX('2.2 Daten'!I$9:I$859,MATCH('2.2'!$A138,'2.2 Daten'!$B$9:$B$859,0))) -> 2028 | H138: =IF($A138<>0,INDEX('2.2 Daten'!K$9:K$859,MATCH('2.2'!$A138,'2.2 Daten'!$B$9:$B$859,0))) -> -0.9729886727 | I138: =IF($A138<>0,INDEX('2.2 Daten'!L$9:L$859,MATCH('2.2'!$A138,'2.2 Daten'!$B$9:$B$859,0))) -> -2.942572378 | J138: =IF($A138<>0,INDEX('2.2 Daten'!M$9:M$859,MATCH('2.2'!$A138,'2.2 Daten'!$B$9:$B$859,0))) -> -7.134593135 | K138: =IF($A138<>0,INDEX('2.2 Daten'!N$9:N$859,MATCH('2.2'!$A138,'2.2 Daten'!$B$9:$B$859,0))) -> 1.676374485 | L138: =IF($A138<>0,INDEX('2.2 Daten'!O$9:O$859,MATCH('2.2'!$A138,'2.2 Daten'!$B$9:$B$859,0))) -> -0.2459419577
A139: =CHOOSE('2.2 Daten'!$A$2,'2.2 Daten'!B561,'2.2 Daten'!B110,'2.2 Daten'!B127,'2.2 Daten'!B144,'2.2 Daten'!B147,'2.2 Daten'!B194,'2.2 Daten'!B198,'2.2 Daten'!B253,'2.2 Daten'!B281,'2.2 Daten'!B319,'2.2 Daten'!B365,'2.2 Daten'!B463,'2.2 Daten'!B471,'2.2 Daten'!B474,'2.2 Daten'!B494,'2.2 Daten'!B504,'2.2 Daten'!B519,'2.2 Daten'!B535,x) -> Rhein-Kreis Neuss | B139: =IF($A139<>0,INDEX('2.2 Daten'!C$9:C$859,MATCH('2.2'!$A139,'2.2 Daten'!$B$9:$B$859,0))," ") -> 05162000 | C139: =IF($A139<>0,INDEX('2.2 Daten'!E$9:E$859,MATCH('2.2'!$A139,'2.2 Daten'!$B$9:$B$859,0))) -> 10647 | D139: =IF($A139<>0,INDEX('2.2 Daten'!F$9:F$859,MATCH('2.2'!$A139,'2.2 Daten'!$B$9:$B$859,0))) -> 1544 | E139: =IF($A139<>0,INDEX('2.2 Daten'!G$9:G$859,MATCH('2.2'!$A139,'2.2 Daten'!$B$9:$B$859,0))) -> 1781 | F139: =IF($A139<>0,INDEX('2.2 Daten'!H$9:H$859,MATCH('2.2'!$A139,'2.2 Daten'!$B$9:$B$859,0))) -> 5655 | G139: =IF($A139<>0,INDEX('2.2 Daten'!I$9:I$859,MATCH('2.2'!$A139,'2.2 Daten'!$B$9:$B$859,0))) -> 1667 | H139: =IF($A139<>0,INDEX('2.2 Daten'!K$9:K$859,MATCH('2.2'!$A139,'2.2 Daten'!$B$9:$B$859,0))) -> -4.528335725 | I139: =IF($A139<>0,INDEX('2.2 Daten'!L$9:L$859,MATCH('2.2'!$A139,'2.2 Daten'!$B$9:$B$859,0))) -> -5.450091855 | J139: =IF($A139<>0,INDEX('2.2 Daten'!M$9:M$859,MATCH('2.2'!$A139,'2.2 Daten'!$B$9:$B$859,0))) -> -8.243173622 | K139: =IF($A139<>0,INDEX('2.2 Daten'!N$9:N$859,MATCH('2.2'!$A139,'2.2 Daten'!$B$9:$B$859,0))) -> -3.54767184 | L139: =IF($A139<>0,INDEX('2.2 Daten'!O$9:O$859,MATCH('2.2'!$A139,'2.2 Daten'!$B$9:$B$859,0))) -> -2.798833819
A140: =CHOOSE('2.2 Daten'!$A$2,'2.2 Daten'!B562,'2.2 Daten'!B111,'2.2 Daten'!B128,'2.2 Daten'!B145,'2.2 Daten'!B148,'2.2 Daten'!B195,'2.2 Daten'!B199,'2.2 Daten'!B254,'2.2 Daten'!B282,'2.2 Daten'!B320,'2.2 Daten'!B366,'2.2 Daten'!B464,'2.2 Daten'!B472,'2.2 Daten'!B475,'2.2 Daten'!B495,'2.2 Daten'!B505,'2.2 Daten'!B520,'2.2 Daten'!B536,x) -> Viersen | B140: =IF($A140<>0,INDEX('2.2 Daten'!C$9:C$859,MATCH('2.2'!$A140,'2.2 Daten'!$B$9:$B$859,0))," ") -> 05166000 | C140: =IF($A140<>0,INDEX('2.2 Daten'!E$9:E$859,MATCH('2.2'!$A140,'2.2 Daten'!$B$9:$B$859,0))) -> 5671 | D140: =IF($A140<>0,INDEX('2.2 Daten'!F$9:F$859,MATCH('2.2'!$A140,'2.2 Daten'!$B$9:$B$859,0))) -> 850 | E140: =IF($A140<>0,INDEX('2.2 Daten'!G$9:G$859,MATCH('2.2'!$A140,'2.2 Daten'!$B$9:$B$859,0))) -> 1003 | F140: =IF($A140<>0,INDEX('2.2 Daten'!H$9:H$859,MATCH('2.2'!$A140,'2.2 Daten'!$B$9:$B$859,0))) -> 2995 | G140: =IF($A140<>0,INDEX('2.2 Daten'!I$9:I$859,MATCH('2.2'!$A140,'2.2 Daten'!$B$9:$B$859,0))) -> 823 | H140: =IF($A140<>0,INDEX('2.2 Daten'!K$9:K$859,MATCH('2.2'!$A140,'2.2 Daten'!$B$9:$B$859,0))) -> -1.476719944 | I140: =IF($A140<>0,INDEX('2.2 Daten'!L$9:L$859,MATCH('2.2'!$A140,'2.2 Daten'!$B$9:$B$859,0))) -> 0 | J140: =IF($A140<>0,INDEX('2.2 Daten'!M$9:M$859,MATCH('2.2'!$A140,'2.2 Daten'!$B$9:$B$859,0))) -> -3.09178744 | K140: =IF($A140<>0,INDEX('2.2 Daten'!N$9:N$859,MATCH('2.2'!$A140,'2.2 Daten'!$B$9:$B$859,0))) -> -1.220316623 | L140: =IF($A140<>0,INDEX('2.2 Daten'!O$9:O$859,MATCH('2.2'!$A140,'2.2 Daten'!$B$9:$B$859,0))) -> -1.907032181
A141: =CHOOSE('2.2 Daten'!$A$2,'2.2 Daten'!B563,'2.2 Daten'!B112,'2.2 Daten'!B129,'2.2 Daten'!B146,'2.2 Daten'!B149,'2.2 Daten'!B196,'2.2 Daten'!B200,'2.2 Daten'!B255,'2.2 Daten'!B283,'2.2 Daten'!B321,'2.2 Daten'!B367,'2.2 Daten'!B465,'2.2 Daten'!B473,'2.2 Daten'!B476,'2.2 Daten'!B496,'2.2 Daten'!B506,'2.2 Daten'!B521,'2.2 Daten'!B537,x) -> Wesel | B141: =IF($A141<>0,INDEX('2.2 Daten'!C$9:C$859,MATCH('2.2'!$A141,'2.2 Daten'!$B$9:$B$859,0))," ") -> 05170000 | C141: =IF($A141<>0,INDEX('2.2 Daten'!E$9:E$859,MATCH('2.2'!$A141,'2.2 Daten'!$B$9:$B$859,0))) -> 11448 | D141: =IF($A141<>0,INDEX('2.2 Daten'!F$9:F$859,MATCH('2.2'!$A141,'2.2 Daten'!$B$9:$B$859,0))) -> 1681 | E141: =IF($A141<>0,INDEX('2.2 Daten'!G$9:G$859,MATCH('2.2'!$A141,'2.2 Daten'!$B$9:$B$859,0))) -> 2032 | F141: =IF($A141<>0,INDEX('2.2 Daten'!H$9:H$859,MATCH('2.2'!$A141,'2.2 Daten'!$B$9:$B$859,0))) -> 5985 | G141: =IF($A141<>0,INDEX('2.2 Daten'!I$9:I$859,MATCH('2.2'!$A141,'2.2 Daten'!$B$9:$B$859,0))) -> 1750 | H141: =IF($A141<>0,INDEX('2.2 Daten'!K$9:K$859,MATCH('2.2'!$A141,'2.2 Daten'!$B$9:$B$859,0))) -> -1.344364012 | I141: =IF($A141<>0,INDEX('2.2 Daten'!L$9:L$859,MATCH('2.2'!$A141,'2.2 Daten'!$B$9:$B$859,0))) -> -2.153667055 | J141: =IF($A141<>0,INDEX('2.2 Daten'!M$9:M$859,MATCH('2.2'!$A141,'2.2 Daten'!$B$9:$B$859,0))) -> -4.286387188 | K141: =IF($A141<>0,INDEX('2.2 Daten'!N$9:N$859,MATCH('2.2'!$A141,'2.2 Daten'!$B$9:$B$859,0))) -> -1.253918495 | L141: =IF($A141<>0,INDEX('2.2 Daten'!O$9:O$859,MATCH('2.2'!$A141,'2.2 Daten'!$B$9:$B$859,0))) -> 2.820211516
A142: =CHOOSE('2.2 Daten'!$A$2,'2.2 Daten'!B564,'2.2 Daten'!B113,'2.2 Daten'!B130,'2.2 Daten'!B147,'2.2 Daten'!B150,'2.2 Daten'!B197,'2.2 Daten'!B201,'2.2 Daten'!B256,'2.2 Daten'!B284,'2.2 Daten'!B322,'2.2 Daten'!B368,'2.2 Daten'!B466,'2.2 Daten'!B474,'2.2 Daten'!B477,'2.2 Daten'!B497,'2.2 Daten'!B507,'2.2 Daten'!B522,'2.2 Daten'!B538,x) -> Bonn, Stadt | B142: =IF($A142<>0,INDEX('2.2 Daten'!C$9:C$859,MATCH('2.2'!$A142,'2.2 Daten'!$B$9:$B$859,0))," ") -> 05314000 | C142: =IF($A142<>0,INDEX('2.2 Daten'!E$9:E$859,MATCH('2.2'!$A142,'2.2 Daten'!$B$9:$B$859,0))) -> 10055 | D142: =IF($A142<>0,INDEX('2.2 Daten'!F$9:F$859,MATCH('2.2'!$A142,'2.2 Daten'!$B$9:$B$859,0))) -> 1326 | E142: =IF($A142<>0,INDEX('2.2 Daten'!G$9:G$859,MATCH('2.2'!$A142,'2.2 Daten'!$B$9:$B$859,0))) -> 1599 | F142: =IF($A142<>0,INDEX('2.2 Daten'!H$9:H$859,MATCH('2.2'!$A142,'2.2 Daten'!$B$9:$B$859,0))) -> 5384 | G142: =IF($A142<>0,INDEX('2.2 Daten'!I$9:I$859,MATCH('2.2'!$A142,'2.2 Daten'!$B$9:$B$859,0))) -> 1746 | H142: =IF($A142<>0,INDEX('2.2 Daten'!K$9:K$859,MATCH('2.2'!$A142,'2.2 Daten'!$B$9:$B$859,0))) -> -5.266628981 | I142: =IF($A142<>0,INDEX('2.2 Daten'!L$9:L$859,MATCH('2.2'!$A142,'2.2 Daten'!$B$9:$B$859,0))) -> -6.024096386 | J142: =IF($A142<>0,INDEX('2.2 Daten'!M$9:M$859,MATCH('2.2'!$A142,'2.2 Daten'!$B$9:$B$859,0))) -> -9.096077317 | K142: =IF($A142<>0,INDEX('2.2 Daten'!N$9:N$859,MATCH('2.2'!$A142,'2.2 Daten'!$B$9:$B$859,0))) -> -4.572846508 | L142: =IF($A142<>0,INDEX('2.2 Daten'!O$9:O$859,MATCH('2.2'!$A142,'2.2 Daten'!$B$9:$B$859,0))) -> -3.107658158
A143: =CHOOSE('2.2 Daten'!$A$2,'2.2 Daten'!B565,'2.2 Daten'!B114,'2.2 Daten'!B131,'2.2 Daten'!B148,'2.2 Daten'!B151,'2.2 Daten'!B198,'2.2 Daten'!B202,'2.2 Daten'!B257,'2.2 Daten'!B285,'2.2 Daten'!B323,'2.2 Daten'!B369,'2.2 Daten'!B467,'2.2 Daten'!B475,'2.2 Daten'!B478,'2.2 Daten'!B498,'2.2 Daten'!B508,'2.2 Daten'!B523,'2.2 Daten'!B539,x) -> Köln, Stadt | B143: =IF($A143<>0,INDEX('2.2 Daten'!C$9:C$859,MATCH('2.2'!$A143,'2.2 Daten'!$B$9:$B$859,0))," ") -> 05315000 | C143: =IF($A143<>0,INDEX('2.2 Daten'!E$9:E$859,MATCH('2.2'!$A143,'2.2 Daten'!$B$9:$B$859,0))) -> 36075 | D143: =IF($A143<>0,INDEX('2.2 Daten'!F$9:F$859,MATCH('2.2'!$A143,'2.2 Daten'!$B$9:$B$859,0))) -> 5169 | E143: =IF($A143<>0,INDEX('2.2 Daten'!G$9:G$859,MATCH('2.2'!$A143,'2.2 Daten'!$B$9:$B$859,0))) -> 6070 | F143: =IF($A143<>0,INDEX('2.2 Daten'!H$9:H$859,MATCH('2.2'!$A143,'2.2 Daten'!$B$9:$B$859,0))) -> 18895 | G143: =IF($A143<>0,INDEX('2.2 Daten'!I$9:I$859,MATCH('2.2'!$A143,'2.2 Daten'!$B$9:$B$859,0))) -> 5941 | H143: =IF($A143<>0,INDEX('2.2 Daten'!K$9:K$859,MATCH('2.2'!$A143,'2.2 Daten'!$B$9:$B$859,0))) -> -4.368687538 | I143: =IF($A143<>0,INDEX('2.2 Daten'!L$9:L$859,MATCH('2.2'!$A143,'2.2 Daten'!$B$9:$B$859,0))) -> -7.877383711 | J143: =IF($A143<>0,INDEX('2.2 Daten'!M$9:M$859,MATCH('2.2'!$A143,'2.2 Daten'!$B$9:$B$859,0))) -> -6.557881773 | K143: =IF($A143<>0,INDEX('2.2 Daten'!N$9:N$859,MATCH('2.2'!$A143,'2.2 Daten'!$B$9:$B$859,0))) -> -4.091162885 | L143: =IF($A143<>0,INDEX('2.2 Daten'!O$9:O$859,MATCH('2.2'!$A143,'2.2 Daten'!$B$9:$B$859,0))) -> 0.4395604396
A144: =CHOOSE('2.2 Daten'!$A$2,'2.2 Daten'!B566,'2.2 Daten'!B115,'2.2 Daten'!B132,'2.2 Daten'!B149,'2.2 Daten'!B152,'2.2 Daten'!B199,'2.2 Daten'!B203,'2.2 Daten'!B258,'2.2 Daten'!B286,'2.2 Daten'!B324,'2.2 Daten'!B370,'2.2 Daten'!B468,'2.2 Daten'!B476,'2.2 Daten'!B479,'2.2 Daten'!B499,'2.2 Daten'!B509,'2.2 Daten'!B524,'2.2 Daten'!B540,x) -> Leverkusen, Stadt | B144: =IF($A144<>0,INDEX('2.2 Daten'!C$9:C$859,MATCH('2.2'!$A144,'2.2 Daten'!$B$9:$B$859,0))," ") -> 05316000 | C144: =IF($A144<>0,INDEX('2.2 Daten'!E$9:E$859,MATCH('2.2'!$A144,'2.2 Daten'!$B$9:$B$859,0))) -> 5894 | D144: =IF($A144<>0,INDEX('2.2 Daten'!F$9:F$859,MATCH('2.2'!$A144,'2.2 Daten'!$B$9:$B$859,0))) -> 899 | E144: =IF($A144<>0,INDEX('2.2 Daten'!G$9:G$859,MATCH('2.2'!$A144,'2.2 Daten'!$B$9:$B$859,0))) -> 1048 | F144: =IF($A144<>0,INDEX('2.2 Daten'!H$9:H$859,MATCH('2.2'!$A144,'2.2 Daten'!$B$9:$B$859,0))) -> 3012 | G144: =IF($A144<>0,INDEX('2.2 Daten'!I$9:I$859,MATCH('2.2'!$A144,'2.2 Daten'!$B$9:$B$859,0))) -> 935 | H144: =IF($A144<>0,INDEX('2.2 Daten'!K$9:K$859,MATCH('2.2'!$A144,'2.2 Daten'!$B$9:$B$859,0))) -> -3.424545306 | I144: =IF($A144<>0,INDEX('2.2 Daten'!L$9:L$859,MATCH('2.2'!$A144,'2.2 Daten'!$B$9:$B$859,0))) -> -5.666316894 | J144: =IF($A144<>0,INDEX('2.2 Daten'!M$9:M$859,MATCH('2.2'!$A144,'2.2 Daten'!$B$9:$B$859,0))) -> -6.844444444 | K144: =IF($A144<>0,INDEX('2.2 Daten'!N$9:N$859,MATCH('2.2'!$A144,'2.2 Daten'!$B$9:$B$859,0))) -> -3.337612323 | L144: =IF($A144<>0,INDEX('2.2 Daten'!O$9:O$859,MATCH('2.2'!$A144,'2.2 Daten'!$B$9:$B$859,0))) -> 2.860286029
A145: =CHOOSE('2.2 Daten'!$A$2,'2.2 Daten'!B567,'2.2 Daten'!B116,'2.2 Daten'!B133,'2.2 Daten'!B150,'2.2 Daten'!B153,'2.2 Daten'!B200,'2.2 Daten'!B204,'2.2 Daten'!B259,'2.2 Daten'!B287,'2.2 Daten'!B325,'2.2 Daten'!B371,'2.2 Daten'!B469,'2.2 Daten'!B477,'2.2 Daten'!B480,'2.2 Daten'!B500,'2.2 Daten'!B510,'2.2 Daten'!B525,'2.2 Daten'!B541,x) -> Städteregion Aachen | B145: =IF($A145<>0,INDEX('2.2 Daten'!C$9:C$859,MATCH('2.2'!$A145,'2.2 Daten'!$B$9:$B$859,0))," ") -> 05334000 | C145: =IF($A145<>0,INDEX('2.2 Daten'!E$9:E$859,MATCH('2.2'!$A145,'2.2 Daten'!$B$9:$B$859,0))) -> 15909 | D145: =IF($A145<>0,INDEX('2.2 Daten'!F$9:F$859,MATCH('2.2'!$A145,'2.2 Daten'!$B$9:$B$859,0))) -> 2379 | E145: =IF($A145<>0,INDEX('2.2 Daten'!G$9:G$859,MATCH('2.2'!$A145,'2.2 Daten'!$B$9:$B$859,0))) -> 2804 | F145: =IF($A145<>0,INDEX('2.2 Daten'!H$9:H$859,MATCH('2.2'!$A145,'2.2 Daten'!$B$9:$B$859,0))) -> 8321 | G145: =IF($A145<>0,INDEX('2.2 Daten'!I$9:I$859,MATCH('2.2'!$A145,'2.2 Daten'!$B$9:$B$859,0))) -> 2405 | H145: =IF($A145<>0,INDEX('2.2 Daten'!K$9:K$859,MATCH('2.2'!$A145,'2.2 Daten'!$B$9:$B$859,0))) -> -2.827999023 | I145: =IF($A145<>0,INDEX('2.2 Daten'!L$9:L$859,MATCH('2.2'!$A145,'2.2 Daten'!$B$9:$B$859,0))) -> -4.99201278 | J145: =IF($A145<>0,INDEX('2.2 Daten'!M$9:M$859,MATCH('2.2'!$A145,'2.2 Daten'!$B$9:$B$859,0))) -> -4.365620737 | K145: =IF($A145<>0,INDEX('2.2 Daten'!N$9:N$859,MATCH('2.2'!$A145,'2.2 Daten'!$B$9:$B$859,0))) -> -2.128910845 | L145: =IF($A145<>0,INDEX('2.2 Daten'!O$9:O$859,MATCH('2.2'!$A145,'2.2 Daten'!$B$9:$B$859,0))) -> -1.191454396
A146: =CHOOSE('2.2 Daten'!$A$2,'2.2 Daten'!B568,'2.2 Daten'!B117,'2.2 Daten'!B134,'2.2 Daten'!B151,'2.2 Daten'!B154,'2.2 Daten'!B201,'2.2 Daten'!B205,'2.2 Daten'!B260,'2.2 Daten'!B288,'2.2 Daten'!B326,'2.2 Daten'!B372,'2.2 Daten'!B470,'2.2 Daten'!B478,'2.2 Daten'!B481,'2.2 Daten'!B501,'2.2 Daten'!B511,'2.2 Daten'!B526,'2.2 Daten'!B542,x) -> Düren | B146: =IF($A146<>0,INDEX('2.2 Daten'!C$9:C$859,MATCH('2.2'!$A146,'2.2 Daten'!$B$9:$B$859,0))," ") -> 05358000 | C146: =IF($A146<>0,INDEX('2.2 Daten'!E$9:E$859,MATCH('2.2'!$A146,'2.2 Daten'!$B$9:$B$859,0))) -> 7534 | D146: =IF($A146<>0,INDEX('2.2 Daten'!F$9:F$859,MATCH('2.2'!$A146,'2.2 Daten'!$B$9:$B$859,0))) -> 1168 | E146: =IF($A146<>0,INDEX('2.2 Daten'!G$9:G$859,MATCH('2.2'!$A146,'2.2 Daten'!$B$9:$B$859,0))) -> 1343 | F146: =IF($A146<>0,INDEX('2.2 Daten'!H$9:H$859,MATCH('2.2'!$A146,'2.2 Daten'!$B$9:$B$859,0))) -> 3844 | G146: =IF($A146<>0,INDEX('2.2 Daten'!I$9:I$859,MATCH('2.2'!$A146,'2.2 Daten'!$B$9:$B$859,0))) -> 1179 | H146: =IF($A146<>0,INDEX('2.2 Daten'!K$9:K$859,MATCH('2.2'!$A146,'2.2 Daten'!$B$9:$B$859,0))) -> -3.607983623 | I146: =IF($A146<>0,INDEX('2.2 Daten'!L$9:L$859,MATCH('2.2'!$A146,'2.2 Daten'!$B$9:$B$859,0))) -> -8.392156863 | J146: =IF($A146<>0,INDEX('2.2 Daten'!M$9:M$859,MATCH('2.2'!$A146,'2.2 Daten'!$B$9:$B$859,0))) -> -1.25 | K146: =IF($A146<>0,INDEX('2.2 Daten'!N$9:N$859,MATCH('2.2'!$A146,'2.2 Daten'!$B$9:$B$859,0))) -> -3.75563345 | L146: =IF($A146<>0,INDEX('2.2 Daten'!O$9:O$859,MATCH('2.2'!$A146,'2.2 Daten'!$B$9:$B$859,0))) -> -0.6739679865
A147: =CHOOSE('2.2 Daten'!$A$2,'2.2 Daten'!B569,'2.2 Daten'!B118,'2.2 Daten'!B135,'2.2 Daten'!B152,'2.2 Daten'!B155,'2.2 Daten'!B202,'2.2 Daten'!B206,'2.2 Daten'!B261,'2.2 Daten'!B289,'2.2 Daten'!B327,'2.2 Daten'!B373,'2.2 Daten'!B471,'2.2 Daten'!B479,'2.2 Daten'!B482,'2.2 Daten'!B502,'2.2 Daten'!B512,'2.2 Daten'!B527,'2.2 Daten'!B543,x) -> Rhein-Erft-Kreis | B147: =IF($A147<>0,INDEX('2.2 Daten'!C$9:C$859,MATCH('2.2'!$A147,'2.2 Daten'!$B$9:$B$859,0))," ") -> 05362000 | C147: =IF($A147<>0,INDEX('2.2 Daten'!E$9:E$859,MATCH('2.2'!$A147,'2.2 Daten'!$B$9:$B$859,0))) -> 11555 | D147: =IF($A147<>0,INDEX('2.2 Daten'!F$9:F$859,MATCH('2.2'!$A147,'2.2 Daten'!$B$9:$B$859,0))) -> 1649 | E147: =IF($A147<>0,INDEX('2.2 Daten'!G$9:G$859,MATCH('2.2'!$A147,'2.2 Daten'!$B$9:$B$859,0))) -> 2028 | F147: =IF($A147<>0,INDEX('2.2 Daten'!H$9:H$859,MATCH('2.2'!$A147,'2.2 Daten'!$B$9:$B$859,0))) -> 6011 | G147: =IF($A147<>0,INDEX('2.2 Daten'!I$9:I$859,MATCH('2.2'!$A147,'2.2 Daten'!$B$9:$B$859,0))) -> 1867 | H147: =IF($A147<>0,INDEX('2.2 Daten'!K$9:K$859,MATCH('2.2'!$A147,'2.2 Daten'!$B$9:$B$859,0))) -> -2.923632698 | I147: =IF($A147<>0,INDEX('2.2 Daten'!L$9:L$859,MATCH('2.2'!$A147,'2.2 Daten'!$B$9:$B$859,0))) -> -6.783493499 | J147: =IF($A147<>0,INDEX('2.2 Daten'!M$9:M$859,MATCH('2.2'!$A147,'2.2 Daten'!$B$9:$B$859,0))) -> -6.0676239 | K147: =IF($A147<>0,INDEX('2.2 Daten'!N$9:N$859,MATCH('2.2'!$A147,'2.2 Daten'!$B$9:$B$859,0))) -> -2.228366949 | L147: =IF($A147<>0,INDEX('2.2 Daten'!O$9:O$859,MATCH('2.2'!$A147,'2.2 Daten'!$B$9:$B$859,0))) -> 2.1893815
A148: =CHOOSE('2.2 Daten'!$A$2,'2.2 Daten'!B570,'2.2 Daten'!B119,'2.2 Daten'!B136,'2.2 Daten'!B153,'2.2 Daten'!B156,'2.2 Daten'!B203,'2.2 Daten'!B207,'2.2 Daten'!B262,'2.2 Daten'!B290,'2.2 Daten'!B328,'2.2 Daten'!B374,'2.2 Daten'!B472,'2.2 Daten'!B480,'2.2 Daten'!B483,'2.2 Daten'!B503,'2.2 Daten'!B513,'2.2 Daten'!B528,'2.2 Daten'!B544,x) -> Euskirchen | B148: =IF($A148<>0,INDEX('2.2 Daten'!C$9:C$859,MATCH('2.2'!$A148,'2.2 Daten'!$B$9:$B$859,0))," ") -> 05366000 | C148: =IF($A148<>0,INDEX('2.2 Daten'!E$9:E$859,MATCH('2.2'!$A148,'2.2 Daten'!$B$9:$B$859,0))) -> 3878 | D148: =IF($A148<>0,INDEX('2.2 Daten'!F$9:F$859,MATCH('2.2'!$A148,'2.2 Daten'!$B$9:$B$859,0))) -> 551 | E148: =IF($A148<>0,INDEX('2.2 Daten'!G$9:G$859,MATCH('2.2'!$A148,'2.2 Daten'!$B$9:$B$859,0))) -> 626 | F148: =IF($A148<>0,INDEX('2.2 Daten'!H$9:H$859,MATCH('2.2'!$A148,'2.2 Daten'!$B$9:$B$859,0))) -> 2100 | G148: =IF($A148<>0,INDEX('2.2 Daten'!I$9:I$859,MATCH('2.2'!$A148,'2.2 Daten'!$B$9:$B$859,0))) -> 601 | H148: =IF($A148<>0,INDEX('2.2 Daten'!K$9:K$859,MATCH('2.2'!$A148,'2.2 Daten'!$B$9:$B$859,0))) -> -0.5641025641 | I148: =IF($A148<>0,INDEX('2.2 Daten'!L$9:L$859,MATCH('2.2'!$A148,'2.2 Daten'!$B$9:$B$859,0))) -> -5.972696246 | J148: =IF($A148<>0,INDEX('2.2 Daten'!M$9:M$859,MATCH('2.2'!$A148,'2.2 Daten'!$B$9:$B$859,0))) -> -7.259259259 | K148: =IF($A148<>0,INDEX('2.2 Daten'!N$9:N$859,MATCH('2.2'!$A148,'2.2 Daten'!$B$9:$B$859,0))) -> 2.140077821 | L148: =IF($A148<>0,INDEX('2.2 Daten'!O$9:O$859,MATCH('2.2'!$A148,'2.2 Daten'!$B$9:$B$859,0))) -> 3.087478559
A149: =CHOOSE('2.2 Daten'!$A$2,'2.2 Daten'!B571,'2.2 Daten'!B120,'2.2 Daten'!B137,'2.2 Daten'!B154,'2.2 Daten'!B157,'2.2 Daten'!B204,'2.2 Daten'!B208,'2.2 Daten'!B263,'2.2 Daten'!B291,'2.2 Daten'!B329,'2.2 Daten'!B375,'2.2 Daten'!B473,'2.2 Daten'!B481,'2.2 Daten'!B484,'2.2 Daten'!B504,'2.2 Daten'!B514,'2.2 Daten'!B529,'2.2 Daten'!B545,x) -> Heinsberg | B149: =IF($A149<>0,INDEX('2.2 Daten'!C$9:C$859,MATCH('2.2'!$A149,'2.2 Daten'!$B$9:$B$859,0))," ") -> 05370000 | C149: =IF($A149<>0,INDEX('2.2 Daten'!E$9:E$859,MATCH('2.2'!$A149,'2.2 Daten'!$B$9:$B$859,0))) -> 5752 | D149: =IF($A149<>0,INDEX('2.2 Daten'!F$9:F$859,MATCH('2.2'!$A149,'2.2 Daten'!$B$9:$B$859,0))) -> 883 | E149: =IF($A149<>0,INDEX('2.2 Daten'!G$9:G$859,MATCH('2.2'!$A149,'2.2 Daten'!$B$9:$B$859,0))) -> 1036 | F149: =IF($A149<>0,INDEX('2.2 Daten'!H$9:H$859,MATCH('2.2'!$A149,'2.2 Daten'!$B$9:$B$859,0))) -> 2964 | G149: =IF($A149<>0,INDEX('2.2 Daten'!I$9:I$859,MATCH('2.2'!$A149,'2.2 Daten'!$B$9:$B$859,0))) -> 869 | H149: =IF($A149<>0,INDEX('2.2 Daten'!K$9:K$859,MATCH('2.2'!$A149,'2.2 Daten'!$B$9:$B$859,0))) -> -0.5360539512 | I149: =IF($A149<>0,INDEX('2.2 Daten'!L$9:L$859,MATCH('2.2'!$A149,'2.2 Daten'!$B$9:$B$859,0))) -> -1.230425056 | J149: =IF($A149<>0,INDEX('2.2 Daten'!M$9:M$859,MATCH('2.2'!$A149,'2.2 Daten'!$B$9:$B$859,0))) -> -0.7662835249 | K149: =IF($A149<>0,INDEX('2.2 Daten'!N$9:N$859,MATCH('2.2'!$A149,'2.2 Daten'!$B$9:$B$859,0))) -> -1.528239203 | L149: =IF($A149<>0,INDEX('2.2 Daten'!O$9:O$859,MATCH('2.2'!$A149,'2.2 Daten'!$B$9:$B$859,0))) -> 4.071856287
A150: =CHOOSE('2.2 Daten'!$A$2,'2.2 Daten'!B572,'2.2 Daten'!B121,'2.2 Daten'!B138,'2.2 Daten'!B155,'2.2 Daten'!B158,'2.2 Daten'!B205,'2.2 Daten'!B209,'2.2 Daten'!B264,'2.2 Daten'!B292,'2.2 Daten'!B330,'2.2 Daten'!B376,'2.2 Daten'!B474,'2.2 Daten'!B482,'2.2 Daten'!B485,'2.2 Daten'!B505,'2.2 Daten'!B515,'2.2 Daten'!B530,'2.2 Daten'!B546,x) -> Oberbergischer Kreis | B150: =IF($A150<>0,INDEX('2.2 Daten'!C$9:C$859,MATCH('2.2'!$A150,'2.2 Daten'!$B$9:$B$859,0))," ") -> 05374000 | C150: =IF($A150<>0,INDEX('2.2 Daten'!E$9:E$859,MATCH('2.2'!$A150,'2.2 Daten'!$B$9:$B$859,0))) -> 5233 | D150: =IF($A150<>0,INDEX('2.2 Daten'!F$9:F$859,MATCH('2.2'!$A150,'2.2 Daten'!$B$9:$B$859,0))) -> 770 | E150: =IF($A150<>0,INDEX('2.2 Daten'!G$9:G$859,MATCH('2.2'!$A150,'2.2 Daten'!$B$9:$B$859,0))) -> 924 | F150: =IF($A150<>0,INDEX('2.2 Daten'!H$9:H$859,MATCH('2.2'!$A150,'2.2 Daten'!$B$9:$B$859,0))) -> 2766 | G150: =IF($A150<>0,INDEX('2.2 Daten'!I$9:I$859,MATCH('2.2'!$A150,'2.2 Daten'!$B$9:$B$859,0))) -> 773 | H150: =IF($A150<>0,INDEX('2.2 Daten'!K$9:K$859,MATCH('2.2'!$A150,'2.2 Daten'!$B$9:$B$859,0))) -> -1.91190253 | I150: =IF($A150<>0,INDEX('2.2 Daten'!L$9:L$859,MATCH('2.2'!$A150,'2.2 Daten'!$B$9:$B$859,0))) -> -1.282051282 | J150: =IF($A150<>0,INDEX('2.2 Daten'!M$9:M$859,MATCH('2.2'!$A150,'2.2 Daten'!$B$9:$B$859,0))) -> -5.327868852 | K150: =IF($A150<>0,INDEX('2.2 Daten'!N$9:N$859,MATCH('2.2'!$A150,'2.2 Daten'!$B$9:$B$859,0))) -> -2.330508475 | L150: =IF($A150<>0,INDEX('2.2 Daten'!O$9:O$859,MATCH('2.2'!$A150,'2.2 Daten'!$B$9:$B$859,0))) -> 3.480589023
A151: =CHOOSE('2.2 Daten'!$A$2,'2.2 Daten'!B573,'2.2 Daten'!B122,'2.2 Daten'!B139,'2.2 Daten'!B156,'2.2 Daten'!B159,'2.2 Daten'!B206,'2.2 Daten'!B210,'2.2 Daten'!B265,'2.2 Daten'!B293,'2.2 Daten'!B331,'2.2 Daten'!B377,'2.2 Daten'!B475,'2.2 Daten'!B483,'2.2 Daten'!B486,'2.2 Daten'!B506,'2.2 Daten'!B516,'2.2 Daten'!B531,'2.2 Daten'!B547,x) -> Rheinisch-Bergischer Kreis | B151: =IF($A151<>0,INDEX('2.2 Daten'!C$9:C$859,MATCH('2.2'!$A151,'2.2 Daten'!$B$9:$B$859,0))," ") -> 05378000 | C151: =IF($A151<>0,INDEX('2.2 Daten'!E$9:E$859,MATCH('2.2'!$A151,'2.2 Daten'!$B$9:$B$859,0))) -> 5831 | D151: =IF($A151<>0,INDEX('2.2 Daten'!F$9:F$859,MATCH('2.2'!$A151,'2.2 Daten'!$B$9:$B$859,0))) -> 832 | E151: =IF($A151<>0,INDEX('2.2 Daten'!G$9:G$859,MATCH('2.2'!$A151,'2.2 Daten'!$B$9:$B$859,0))) -> 991 | F151: =IF($A151<>0,INDEX('2.2 Daten'!H$9:H$859,MATCH('2.2'!$A151,'2.2 Daten'!$B$9:$B$859,0))) -> 3061 | G151: =IF($A151<>0,INDEX('2.2 Daten'!I$9:I$859,MATCH('2.2'!$A151,'2.2 Daten'!$B$9:$B$859,0))) -> 947 | H151: =IF($A151<>0,INDEX('2.2 Daten'!K$9:K$859,MATCH('2.2'!$A151,'2.2 Daten'!$B$9:$B$859,0))) -> -2.180842141 | I151: =IF($A151<>0,INDEX('2.2 Daten'!L$9:L$859,MATCH('2.2'!$A151,'2.2 Daten'!$B$9:$B$859,0))) -> -2.23266745 | J151: =IF($A151<>0,INDEX('2.2 Daten'!M$9:M$859,MATCH('2.2'!$A151,'2.2 Daten'!$B$9:$B$859,0))) -> -4.803073967 | K151: =IF($A151<>0,INDEX('2.2 Daten'!N$9:N$859,MATCH('2.2'!$A151,'2.2 Daten'!$B$9:$B$859,0))) -> -1.891025641 | L151: =IF($A151<>0,INDEX('2.2 Daten'!O$9:O$859,MATCH('2.2'!$A151,'2.2 Daten'!$B$9:$B$859,0))) -> -0.210748156
A152: =CHOOSE('2.2 Daten'!$A$2,'2.2 Daten'!B574,'2.2 Daten'!B123,'2.2 Daten'!B140,'2.2 Daten'!B157,'2.2 Daten'!B160,'2.2 Daten'!B207,'2.2 Daten'!B211,'2.2 Daten'!B266,'2.2 Daten'!B294,'2.2 Daten'!B332,'2.2 Daten'!B378,'2.2 Daten'!B476,'2.2 Daten'!B484,'2.2 Daten'!B487,'2.2 Daten'!B507,'2.2 Daten'!B517,'2.2 Daten'!B532,'2.2 Daten'!B548,x) -> Rhein-Sieg-Kreis | B152: =IF($A152<>0,INDEX('2.2 Daten'!C$9:C$859,MATCH('2.2'!$A152,'2.2 Daten'!$B$9:$B$859,0))," ") -> 05382000 | C152: =IF($A152<>0,INDEX('2.2 Daten'!E$9:E$859,MATCH('2.2'!$A152,'2.2 Daten'!$B$9:$B$859,0))) -> 12237 | D152: =IF($A152<>0,INDEX('2.2 Daten'!F$9:F$859,MATCH('2.2'!$A152,'2.2 Daten'!$B$9:$B$859,0))) -> 1745 | E152: =IF($A152<>0,INDEX('2.2 Daten'!G$9:G$859,MATCH('2.2'!$A152,'2.2 Daten'!$B$9:$B$859,0))) -> 2079 | F152: =IF($A152<>0,INDEX('2.2 Daten'!H$9:H$859,MATCH('2.2'!$A152,'2.2 Daten'!$B$9:$B$859,0))) -> 6488 | G152: =IF($A152<>0,INDEX('2.2 Daten'!I$9:I$859,MATCH('2.2'!$A152,'2.2 Daten'!$B$9:$B$859,0))) -> 1925 | H152: =IF($A152<>0,INDEX('2.2 Daten'!K$9:K$859,MATCH('2.2'!$A152,'2.2 Daten'!$B$9:$B$859,0))) -> -1.576449771 | I152: =IF($A152<>0,INDEX('2.2 Daten'!L$9:L$859,MATCH('2.2'!$A152,'2.2 Daten'!$B$9:$B$859,0))) -> -2.839643653 | J152: =IF($A152<>0,INDEX('2.2 Daten'!M$9:M$859,MATCH('2.2'!$A152,'2.2 Daten'!$B$9:$B$859,0))) -> -5.842391304 | K152: =IF($A152<>0,INDEX('2.2 Daten'!N$9:N$859,MATCH('2.2'!$A152,'2.2 Daten'!$B$9:$B$859,0))) -> -0.8405930002 | L152: =IF($A152<>0,INDEX('2.2 Daten'!O$9:O$859,MATCH('2.2'!$A152,'2.2 Daten'!$B$9:$B$859,0))) -> 2.067868505
A153: =CHOOSE('2.2 Daten'!$A$2,'2.2 Daten'!B575,'2.2 Daten'!B124,'2.2 Daten'!B141,'2.2 Daten'!B158,'2.2 Daten'!B161,'2.2 Daten'!B208,'2.2 Daten'!B212,'2.2 Daten'!B267,'2.2 Daten'!B295,'2.2 Daten'!B333,'2.2 Daten'!B379,'2.2 Daten'!B477,'2.2 Daten'!B485,'2.2 Daten'!B488,'2.2 Daten'!B508,'2.2 Daten'!B518,'2.2 Daten'!B533,'2.2 Daten'!B549,x) -> Bottrop, Stadt | B153: =IF($A153<>0,INDEX('2.2 Daten'!C$9:C$859,MATCH('2.2'!$A153,'2.2 Daten'!$B$9:$B$859,0))," ") -> 05512000 | C153: =IF($A153<>0,INDEX('2.2 Daten'!E$9:E$859,MATCH('2.2'!$A153,'2.2 Daten'!$B$9:$B$859,0))) -> 3772 | D153: =IF($A153<>0,INDEX('2.2 Daten'!F$9:F$859,MATCH('2.2'!$A153,'2.2 Daten'!$B$9:$B$859,0))) -> 576 | E153: =IF($A153<>0,INDEX('2.2 Daten'!G$9:G$859,MATCH('2.2'!$A153,'2.2 Daten'!$B$9:$B$859,0))) -> 691 | F153: =IF($A153<>0,INDEX('2.2 Daten'!H$9:H$859,MATCH('2.2'!$A153,'2.2 Daten'!$B$9:$B$859,0))) -> 1942 | G153: =IF($A153<>0,INDEX('2.2 Daten'!I$9:I$859,MATCH('2.2'!$A153,'2.2 Daten'!$B$9:$B$859,0))) -> 563 | H153: =IF($A153<>0,INDEX('2.2 Daten'!K$9:K$859,MATCH('2.2'!$A153,'2.2 Daten'!$B$9:$B$859,0))) -> 0.1593202337 | I153: =IF($A153<>0,INDEX('2.2 Daten'!L$9:L$859,MATCH('2.2'!$A153,'2.2 Daten'!$B$9:$B$859,0))) -> -7.096774194 | J153: =IF($A153<>0,INDEX('2.2 Daten'!M$9:M$859,MATCH('2.2'!$A153,'2.2 Daten'!$B$9:$B$859,0))) -> 0.290275762 | K153: =IF($A153<>0,INDEX('2.2 Daten'!N$9:N$859,MATCH('2.2'!$A153,'2.2 Daten'!$B$9:$B$859,0))) -> 1.145833333 | L153: =IF($A153<>0,INDEX('2.2 Daten'!O$9:O$859,MATCH('2.2'!$A153,'2.2 Daten'!$B$9:$B$859,0))) -> 4.841713222
A154: =CHOOSE('2.2 Daten'!$A$2,'2.2 Daten'!B576,'2.2 Daten'!B125,'2.2 Daten'!B142,'2.2 Daten'!B159,'2.2 Daten'!B162,'2.2 Daten'!B209,'2.2 Daten'!B213,'2.2 Daten'!B268,'2.2 Daten'!B296,'2.2 Daten'!B334,'2.2 Daten'!B380,'2.2 Daten'!B478,'2.2 Daten'!B486,'2.2 Daten'!B489,'2.2 Daten'!B509,'2.2 Daten'!B519,'2.2 Daten'!B534,'2.2 Daten'!B550,x) -> Gelsenkirchen, Stadt | B154: =IF($A154<>0,INDEX('2.2 Daten'!C$9:C$859,MATCH('2.2'!$A154,'2.2 Daten'!$B$9:$B$859,0))," ") -> 05513000 | C154: =IF($A154<>0,INDEX('2.2 Daten'!E$9:E$859,MATCH('2.2'!$A154,'2.2 Daten'!$B$9:$B$859,0))) -> 19008 | D154: =IF($A154<>0,INDEX('2.2 Daten'!F$9:F$859,MATCH('2.2'!$A154,'2.2 Daten'!$B$9:$B$859,0))) -> 3115 | E154: =IF($A154<>0,INDEX('2.2 Daten'!G$9:G$859,MATCH('2.2'!$A154,'2.2 Daten'!$B$9:$B$859,0))) -> 3454 | F154: =IF($A154<>0,INDEX('2.2 Daten'!H$9:H$859,MATCH('2.2'!$A154,'2.2 Daten'!$B$9:$B$859,0))) -> 9669 | G154: =IF($A154<>0,INDEX('2.2 Daten'!I$9:I$859,MATCH('2.2'!$A154,'2.2 Daten'!$B$9:$B$859,0))) -> 2770 | H154: =IF($A154<>0,INDEX('2.2 Daten'!K$9:K$859,MATCH('2.2'!$A154,'2.2 Daten'!$B$9:$B$859,0))) -> -4.410359568 | I154: =IF($A154<>0,INDEX('2.2 Daten'!L$9:L$859,MATCH('2.2'!$A154,'2.2 Daten'!$B$9:$B$859,0))) -> -7.731042654 | J154: =IF($A154<>0,INDEX('2.2 Daten'!M$9:M$859,MATCH('2.2'!$A154,'2.2 Daten'!$B$9:$B$859,0))) -> -6.799784134 | K154: =IF($A154<>0,INDEX('2.2 Daten'!N$9:N$859,MATCH('2.2'!$A154,'2.2 Daten'!$B$9:$B$859,0))) -> -3.493362611 | L154: =IF($A154<>0,INDEX('2.2 Daten'!O$9:O$859,MATCH('2.2'!$A154,'2.2 Daten'!$B$9:$B$859,0))) -> -0.5028735632
A155: =CHOOSE('2.2 Daten'!$A$2,'2.2 Daten'!B577,'2.2 Daten'!B126,'2.2 Daten'!B143,'2.2 Daten'!B160,'2.2 Daten'!B163,'2.2 Daten'!B210,'2.2 Daten'!B214,'2.2 Daten'!B269,'2.2 Daten'!B297,'2.2 Daten'!B335,'2.2 Daten'!B381,'2.2 Daten'!B479,'2.2 Daten'!B487,'2.2 Daten'!B490,'2.2 Daten'!B510,'2.2 Daten'!B520,'2.2 Daten'!B535,'2.2 Daten'!B551,x) -> Münster, Stadt | B155: =IF($A155<>0,INDEX('2.2 Daten'!C$9:C$859,MATCH('2.2'!$A155,'2.2 Daten'!$B$9:$B$859,0))," ") -> 05515000 | C155: =IF($A155<>0,INDEX('2.2 Daten'!E$9:E$859,MATCH('2.2'!$A155,'2.2 Daten'!$B$9:$B$859,0))) -> 6554 | D155: =IF($A155<>0,INDEX('2.2 Daten'!F$9:F$859,MATCH('2.2'!$A155,'2.2 Daten'!$B$9:$B$859,0))) -> 934 | E155: =IF($A155<>0,INDEX('2.2 Daten'!G$9:G$859,MATCH('2.2'!$A155,'2.2 Daten'!$B$9:$B$859,0))) -> 1086 | F155: =IF($A155<>0,INDEX('2.2 Daten'!H$9:H$859,MATCH('2.2'!$A155,'2.2 Daten'!$B$9:$B$859,0))) -> 3471 | G155: =IF($A155<>0,INDEX('2.2 Daten'!I$9:I$859,MATCH('2.2'!$A155,'2.2 Daten'!$B$9:$B$859,0))) -> 1063 | H155: =IF($A155<>0,INDEX('2.2 Daten'!K$9:K$859,MATCH('2.2'!$A155,'2.2 Daten'!$B$9:$B$859,0))) -> -5.289017341 | I155: =IF($A155<>0,INDEX('2.2 Daten'!L$9:L$859,MATCH('2.2'!$A155,'2.2 Daten'!$B$9:$B$859,0))) -> -10.10587103 | J155: =IF($A155<>0,INDEX('2.2 Daten'!M$9:M$859,MATCH('2.2'!$A155,'2.2 Daten'!$B$9:$B$859,0))) -> -11.34693878 | K155: =IF($A155<>0,INDEX('2.2 Daten'!N$9:N$859,MATCH('2.2'!$A155,'2.2 Daten'!$B$9:$B$859,0))) -> -4.274682846 | L155: =IF($A155<>0,INDEX('2.2 Daten'!O$9:O$859,MATCH('2.2'!$A155,'2.2 Daten'!$B$9:$B$859,0))) -> 3.203883495
A156: =CHOOSE('2.2 Daten'!$A$2,'2.2 Daten'!B578,'2.2 Daten'!B127,'2.2 Daten'!B144,'2.2 Daten'!B161,'2.2 Daten'!B164,'2.2 Daten'!B211,'2.2 Daten'!B215,'2.2 Daten'!B270,'2.2 Daten'!B298,'2.2 Daten'!B336,'2.2 Daten'!B382,'2.2 Daten'!B480,'2.2 Daten'!B488,'2.2 Daten'!B491,'2.2 Daten'!B511,'2.2 Daten'!B521,'2.2 Daten'!B536,'2.2 Daten'!B552,x) -> Borken | B156: =IF($A156<>0,INDEX('2.2 Daten'!C$9:C$859,MATCH('2.2'!$A156,'2.2 Daten'!$B$9:$B$859,0))," ") -> 05554000 | C156: =IF($A156<>0,INDEX('2.2 Daten'!E$9:E$859,MATCH('2.2'!$A156,'2.2 Daten'!$B$9:$B$859,0))) -> 6036 | D156: =IF($A156<>0,INDEX('2.2 Daten'!F$9:F$859,MATCH('2.2'!$A156,'2.2 Daten'!$B$9:$B$859,0))) -> 890 | E156: =IF($A156<>0,INDEX('2.2 Daten'!G$9:G$859,MATCH('2.2'!$A156,'2.2 Daten'!$B$9:$B$859,0))) -> 1027 | F156: =IF($A156<>0,INDEX('2.2 Daten'!H$9:H$859,MATCH('2.2'!$A156,'2.2 Daten'!$B$9:$B$859,0))) -> 3201 | G156: =IF($A156<>0,INDEX('2.2 Daten'!I$9:I$859,MATCH('2.2'!$A156,'2.2 Daten'!$B$9:$B$859,0))) -> 918 | H156: =IF($A156<>0,INDEX('2.2 Daten'!K$9:K$859,MATCH('2.2'!$A156,'2.2 Daten'!$B$9:$B$859,0))) -> 1.15635998 | I156: =IF($A156<>0,INDEX('2.2 Daten'!L$9:L$859,MATCH('2.2'!$A156,'2.2 Daten'!$B$9:$B$859,0))) -> -2.625820569 | J156: =IF($A156<>0,INDEX('2.2 Daten'!M$9:M$859,MATCH('2.2'!$A156,'2.2 Daten'!$B$9:$B$859,0))) -> -2.376425856 | K156: =IF($A156<>0,INDEX('2.2 Daten'!N$9:N$859,MATCH('2.2'!$A156,'2.2 Daten'!$B$9:$B$859,0))) -> 2.203065134 | L156: =IF($A156<>0,INDEX('2.2 Daten'!O$9:O$859,MATCH('2.2'!$A156,'2.2 Daten'!$B$9:$B$859,0))) -> 5.638665132
A157: =CHOOSE('2.2 Daten'!$A$2,'2.2 Daten'!B579,'2.2 Daten'!B128,'2.2 Daten'!B145,'2.2 Daten'!B162,'2.2 Daten'!B165,'2.2 Daten'!B212,'2.2 Daten'!B216,'2.2 Daten'!B271,'2.2 Daten'!B299,'2.2 Daten'!B337,'2.2 Daten'!B383,'2.2 Daten'!B481,'2.2 Daten'!B489,'2.2 Daten'!B492,'2.2 Daten'!B512,'2.2 Daten'!B522,'2.2 Daten'!B537,'2.2 Daten'!B553,x) -> Coesfeld | B157: =IF($A157<>0,INDEX('2.2 Daten'!C$9:C$859,MATCH('2.2'!$A157,'2.2 Daten'!$B$9:$B$859,0))," ") -> 05558000 | C157: =IF($A157<>0,INDEX('2.2 Daten'!E$9:E$859,MATCH('2.2'!$A157,'2.2 Daten'!$B$9:$B$859,0))) -> 3464 | D157: =IF($A157<>0,INDEX('2.2 Daten'!F$9:F$859,MATCH('2.2'!$A157,'2.2 Daten'!$B$9:$B$859,0))) -> 527 | E157: =IF($A157<>0,INDEX('2.2 Daten'!G$9:G$859,MATCH('2.2'!$A157,'2.2 Daten'!$B$9:$B$859,0))) -> 605 | F157: =IF($A157<>0,INDEX('2.2 Daten'!H$9:H$859,MATCH('2.2'!$A157,'2.2 Daten'!$B$9:$B$859,0))) -> 1798 | G157: =IF($A157<>0,INDEX('2.2 Daten'!I$9:I$859,MATCH('2.2'!$A157,'2.2 Daten'!$B$9:$B$859,0))) -> 534 | H157: =IF($A157<>0,INDEX('2.2 Daten'!K$9:K$859,MATCH('2.2'!$A157,'2.2 Daten'!$B$9:$B$859,0))) -> 3.033908388 | I157: =IF($A157<>0,INDEX('2.2 Daten'!L$9:L$859,MATCH('2.2'!$A157,'2.2 Daten'!$B$9:$B$859,0))) -> 2.330097087 | J157: =IF($A157<>0,INDEX('2.2 Daten'!M$9:M$859,MATCH('2.2'!$A157,'2.2 Daten'!$B$9:$B$859,0))) -> -1.305057096 | K157: =IF($A157<>0,INDEX('2.2 Daten'!N$9:N$859,MATCH('2.2'!$A157,'2.2 Daten'!$B$9:$B$859,0))) -> 3.333333333 | L157: =IF($A157<>0,INDEX('2.2 Daten'!O$9:O$859,MATCH('2.2'!$A157,'2.2 Daten'!$B$9:$B$859,0))) -> 8.097165992
A158: =CHOOSE('2.2 Daten'!$A$2,'2.2 Daten'!B580,'2.2 Daten'!B129,'2.2 Daten'!B146,'2.2 Daten'!B163,'2.2 Daten'!B166,'2.2 Daten'!B213,'2.2 Daten'!B217,'2.2 Daten'!B272,'2.2 Daten'!B300,'2.2 Daten'!B338,'2.2 Daten'!B384,'2.2 Daten'!B482,'2.2 Daten'!B490,'2.2 Daten'!B493,'2.2 Daten'!B513,'2.2 Daten'!B523,'2.2 Daten'!B538,'2.2 Daten'!B554,x) -> Recklinghausen | B158: =IF($A158<>0,INDEX('2.2 Daten'!C$9:C$859,MATCH('2.2'!$A158,'2.2 Daten'!$B$9:$B$859,0))," ") -> 05562000 | C158: =IF($A158<>0,INDEX('2.2 Daten'!E$9:E$859,MATCH('2.2'!$A158,'2.2 Daten'!$B$9:$B$859,0))) -> 23114 | D158: =IF($A158<>0,INDEX('2.2 Daten'!F$9:F$859,MATCH('2.2'!$A158,'2.2 Daten'!$B$9:$B$859,0))) -> 3429 | E158: =IF($A158<>0,INDEX('2.2 Daten'!G$9:G$859,MATCH('2.2'!$A158,'2.2 Daten'!$B$9:$B$859,0))) -> 4050 | F158: =IF($A158<>0,INDEX('2.2 Daten'!H$9:H$859,MATCH('2.2'!$A158,'2.2 Daten'!$B$9:$B$859,0))) -> 12062 | G158: =IF($A158<>0,INDEX('2.2 Daten'!I$9:I$859,MATCH('2.2'!$A158,'2.2 Daten'!$B$9:$B$859,0))) -> 3573 | H158: =IF($A158<>0,INDEX('2.2 Daten'!K$9:K$859,MATCH('2.2'!$A158,'2.2 Daten'!$B$9:$B$859,0))) -> -3.943814155 | I158: =IF($A158<>0,INDEX('2.2 Daten'!L$9:L$859,MATCH('2.2'!$A158,'2.2 Daten'!$B$9:$B$859,0))) -> -6.921824104 | J158: =IF($A158<>0,INDEX('2.2 Daten'!M$9:M$859,MATCH('2.2'!$A158,'2.2 Daten'!$B$9:$B$859,0))) -> -7.449725777 | K158: =IF($A158<>0,INDEX('2.2 Daten'!N$9:N$859,MATCH('2.2'!$A158,'2.2 Daten'!$B$9:$B$859,0))) -> -2.827680657 | L158: =IF($A158<>0,INDEX('2.2 Daten'!O$9:O$859,MATCH('2.2'!$A158,'2.2 Daten'!$B$9:$B$859,0))) -> -0.4735376045
A159: =CHOOSE('2.2 Daten'!$A$2,'2.2 Daten'!B581,'2.2 Daten'!B130,'2.2 Daten'!B147,'2.2 Daten'!B164,'2.2 Daten'!B167,'2.2 Daten'!B214,'2.2 Daten'!B218,'2.2 Daten'!B273,'2.2 Daten'!B301,'2.2 Daten'!B339,'2.2 Daten'!B385,'2.2 Daten'!B483,'2.2 Daten'!B491,'2.2 Daten'!B494,'2.2 Daten'!B514,'2.2 Daten'!B524,'2.2 Daten'!B539,'2.2 Daten'!B555,x) -> Steinfurt | B159: =IF($A159<>0,INDEX('2.2 Daten'!C$9:C$859,MATCH('2.2'!$A159,'2.2 Daten'!$B$9:$B$859,0))," ") -> 05566000 | C159: =IF($A159<>0,INDEX('2.2 Daten'!E$9:E$859,MATCH('2.2'!$A159,'2.2 Daten'!$B$9:$B$859,0))) -> 8372 | D159: =IF($A159<>0,INDEX('2.2 Daten'!F$9:F$859,MATCH('2.2'!$A159,'2.2 Daten'!$B$9:$B$859,0))) -> 1248 | E159: =IF($A159<>0,INDEX('2.2 Daten'!G$9:G$859,MATCH('2.2'!$A159,'2.2 Daten'!$B$9:$B$859,0))) -> 1514 | F159: =IF($A159<>0,INDEX('2.2 Daten'!H$9:H$859,MATCH('2.2'!$A159,'2.2 Daten'!$B$9:$B$859,0))) -> 4388 | G159: =IF($A159<>0,INDEX('2.2 Daten'!I$9:I$859,MATCH('2.2'!$A159,'2.2 Daten'!$B$9:$B$859,0))) -> 1222 | H159: =IF($A159<>0,INDEX('2.2 Daten'!K$9:K$859,MATCH('2.2'!$A159,'2.2 Daten'!$B$9:$B$859,0))) -> 0.6129071025 | I159: =IF($A159<>0,INDEX('2.2 Daten'!L$9:L$859,MATCH('2.2'!$A159,'2.2 Daten'!$B$9:$B$859,0))) -> -3.703703704 | J159: =IF($A159<>0,INDEX('2.2 Daten'!M$9:M$859,MATCH('2.2'!$A159,'2.2 Daten'!$B$9:$B$859,0))) -> -3.75079466 | K159: =IF($A159<>0,INDEX('2.2 Daten'!N$9:N$859,MATCH('2.2'!$A159,'2.2 Daten'!$B$9:$B$859,0))) -> 1.550566998 | L159: =IF($A159<>0,INDEX('2.2 Daten'!O$9:O$859,MATCH('2.2'!$A159,'2.2 Daten'!$B$9:$B$859,0))) -> 8.045977011
A160: =CHOOSE('2.2 Daten'!$A$2,'2.2 Daten'!B582,'2.2 Daten'!B131,'2.2 Daten'!B148,'2.2 Daten'!B165,'2.2 Daten'!B168,'2.2 Daten'!B215,'2.2 Daten'!B219,'2.2 Daten'!B274,'2.2 Daten'!B302,'2.2 Daten'!B340,'2.2 Daten'!B386,'2.2 Daten'!B484,'2.2 Daten'!B492,'2.2 Daten'!B495,'2.2 Daten'!B515,'2.2 Daten'!B525,'2.2 Daten'!B540,'2.2 Daten'!B556,x) -> Warendorf | B160: =IF($A160<>0,INDEX('2.2 Daten'!C$9:C$859,MATCH('2.2'!$A160,'2.2 Daten'!$B$9:$B$859,0))," ") -> 05570000 | C160: =IF($A160<>0,INDEX('2.2 Daten'!E$9:E$859,MATCH('2.2'!$A160,'2.2 Daten'!$B$9:$B$859,0))) -> 5609 | D160: =IF($A160<>0,INDEX('2.2 Daten'!F$9:F$859,MATCH('2.2'!$A160,'2.2 Daten'!$B$9:$B$859,0))) -> 793 | E160: =IF($A160<>0,INDEX('2.2 Daten'!G$9:G$859,MATCH('2.2'!$A160,'2.2 Daten'!$B$9:$B$859,0))) -> 995 | F160: =IF($A160<>0,INDEX('2.2 Daten'!H$9:H$859,MATCH('2.2'!$A160,'2.2 Daten'!$B$9:$B$859,0))) -> 2918 | G160: =IF($A160<>0,INDEX('2.2 Daten'!I$9:I$859,MATCH('2.2'!$A160,'2.2 Daten'!$B$9:$B$859,0))) -> 903 | H160: =IF($A160<>0,INDEX('2.2 Daten'!K$9:K$859,MATCH('2.2'!$A160,'2.2 Daten'!$B$9:$B$859,0))) -> 0.5918220947 | I160: =IF($A160<>0,INDEX('2.2 Daten'!L$9:L$859,MATCH('2.2'!$A160,'2.2 Daten'!$B$9:$B$859,0))) -> -3.527980535 | J160: =IF($A160<>0,INDEX('2.2 Daten'!M$9:M$859,MATCH('2.2'!$A160,'2.2 Daten'!$B$9:$B$859,0))) -> -0.5 | K160: =IF($A160<>0,INDEX('2.2 Daten'!N$9:N$859,MATCH('2.2'!$A160,'2.2 Daten'!$B$9:$B$859,0))) -> 1.143847487 | L160: =IF($A160<>0,INDEX('2.2 Daten'!O$9:O$859,MATCH('2.2'!$A160,'2.2 Daten'!$B$9:$B$859,0))) -> 3.912543153
A161: =CHOOSE('2.2 Daten'!$A$2,'2.2 Daten'!B583,'2.2 Daten'!B132,'2.2 Daten'!B149,'2.2 Daten'!B166,'2.2 Daten'!B169,'2.2 Daten'!B216,'2.2 Daten'!B220,'2.2 Daten'!B275,'2.2 Daten'!B303,'2.2 Daten'!B341,'2.2 Daten'!B387,'2.2 Daten'!B485,'2.2 Daten'!B493,'2.2 Daten'!B496,'2.2 Daten'!B516,'2.2 Daten'!B526,'2.2 Daten'!B541,'2.2 Daten'!B557,x) -> Bielefeld, Stadt | B161: =IF($A161<>0,INDEX('2.2 Daten'!C$9:C$859,MATCH('2.2'!$A161,'2.2 Daten'!$B$9:$B$859,0))," ") -> 05711000 | C161: =IF($A161<>0,INDEX('2.2 Daten'!E$9:E$859,MATCH('2.2'!$A161,'2.2 Daten'!$B$9:$B$859,0))) -> 11478 | D161: =IF($A161<>0,INDEX('2.2 Daten'!F$9:F$859,MATCH('2.2'!$A161,'2.2 Daten'!$B$9:$B$859,0))) -> 1691 | E161: =IF($A161<>0,INDEX('2.2 Daten'!G$9:G$859,MATCH('2.2'!$A161,'2.2 Daten'!$B$9:$B$859,0))) -> 1982 | F161: =IF($A161<>0,INDEX('2.2 Daten'!H$9:H$859,MATCH('2.2'!$A161,'2.2 Daten'!$B$9:$B$859,0))) -> 5925 | G161: =IF($A161<>0,INDEX('2.2 Daten'!I$9:I$859,MATCH('2.2'!$A161,'2.2 Daten'!$B$9:$B$859,0))) -> 1880 | H161: =IF($A161<>0,INDEX('2.2 Daten'!K$9:K$859,MATCH('2.2'!$A161,'2.2 Daten'!$B$9:$B$859,0))) -> -6.63738409 | I161: =IF($A161<>0,INDEX('2.2 Daten'!L$9:L$859,MATCH('2.2'!$A161,'2.2 Daten'!$B$9:$B$859,0))) -> -10.1487779 | J161: =IF($A161<>0,INDEX('2.2 Daten'!M$9:M$859,MATCH('2.2'!$A161,'2.2 Daten'!$B$9:$B$859,0))) -> -7.985143918 | K161: =IF($A161<>0,INDEX('2.2 Daten'!N$9:N$859,MATCH('2.2'!$A161,'2.2 Daten'!$B$9:$B$859,0))) -> -5.2 | L161: =IF($A161<>0,INDEX('2.2 Daten'!O$9:O$859,MATCH('2.2'!$A161,'2.2 Daten'!$B$9:$B$859,0))) -> -6.374501992
A162: =CHOOSE('2.2 Daten'!$A$2,'2.2 Daten'!B584,'2.2 Daten'!B133,'2.2 Daten'!B150,'2.2 Daten'!B167,'2.2 Daten'!B170,'2.2 Daten'!B217,'2.2 Daten'!B221,'2.2 Daten'!B276,'2.2 Daten'!B304,'2.2 Daten'!B342,'2.2 Daten'!B388,'2.2 Daten'!B486,'2.2 Daten'!B494,'2.2 Daten'!B497,'2.2 Daten'!B517,'2.2 Daten'!B527,'2.2 Daten'!B542,'2.2 Daten'!B558,x) -> Gütersloh | B162: =IF($A162<>0,INDEX('2.2 Daten'!C$9:C$859,MATCH('2.2'!$A162,'2.2 Daten'!$B$9:$B$859,0))," ") -> 05754000 | C162: =IF($A162<>0,INDEX('2.2 Daten'!E$9:E$859,MATCH('2.2'!$A162,'2.2 Daten'!$B$9:$B$859,0))) -> 6769 | D162: =IF($A162<>0,INDEX('2.2 Daten'!F$9:F$859,MATCH('2.2'!$A162,'2.2 Daten'!$B$9:$B$859,0))) -> 992 | E162: =IF($A162<>0,INDEX('2.2 Daten'!G$9:G$859,MATCH('2.2'!$A162,'2.2 Daten'!$B$9:$B$859,0))) -> 1166 | F162: =IF($A162<>0,INDEX('2.2 Daten'!H$9:H$859,MATCH('2.2'!$A162,'2.2 Daten'!$B$9:$B$859,0))) -> 3574 | G162: =IF($A162<>0,INDEX('2.2 Daten'!I$9:I$859,MATCH('2.2'!$A162,'2.2 Daten'!$B$9:$B$859,0))) -> 1037 | H162: =IF($A162<>0,INDEX('2.2 Daten'!K$9:K$859,MATCH('2.2'!$A162,'2.2 Daten'!$B$9:$B$859,0))) -> 2.374470659 | I162: =IF($A162<>0,INDEX('2.2 Daten'!L$9:L$859,MATCH('2.2'!$A162,'2.2 Daten'!$B$9:$B$859,0))) -> 4.973544974 | J162: =IF($A162<>0,INDEX('2.2 Daten'!M$9:M$859,MATCH('2.2'!$A162,'2.2 Daten'!$B$9:$B$859,0))) -> 1.215277778 | K162: =IF($A162<>0,INDEX('2.2 Daten'!N$9:N$859,MATCH('2.2'!$A162,'2.2 Daten'!$B$9:$B$859,0))) -> 1.794360581 | L162: =IF($A162<>0,INDEX('2.2 Daten'!O$9:O$859,MATCH('2.2'!$A162,'2.2 Daten'!$B$9:$B$859,0))) -> 3.28685259
A163: =CHOOSE('2.2 Daten'!$A$2,'2.2 Daten'!B585,'2.2 Daten'!B134,'2.2 Daten'!B151,'2.2 Daten'!B168,'2.2 Daten'!B171,'2.2 Daten'!B218,'2.2 Daten'!B222,'2.2 Daten'!B277,'2.2 Daten'!B305,'2.2 Daten'!B343,'2.2 Daten'!B389,'2.2 Daten'!B487,'2.2 Daten'!B495,'2.2 Daten'!B498,'2.2 Daten'!B518,'2.2 Daten'!B528,'2.2 Daten'!B543,'2.2 Daten'!B559,x) -> Herford | B163: =IF($A163<>0,INDEX('2.2 Daten'!C$9:C$859,MATCH('2.2'!$A163,'2.2 Daten'!$B$9:$B$859,0))," ") -> 05758000 | C163: =IF($A163<>0,INDEX('2.2 Daten'!E$9:E$859,MATCH('2.2'!$A163,'2.2 Daten'!$B$9:$B$859,0))) -> 5868 | D163: =IF($A163<>0,INDEX('2.2 Daten'!F$9:F$859,MATCH('2.2'!$A163,'2.2 Daten'!$B$9:$B$859,0))) -> 877 | E163: =IF($A163<>0,INDEX('2.2 Daten'!G$9:G$859,MATCH('2.2'!$A163,'2.2 Daten'!$B$9:$B$859,0))) -> 1034 | F163: =IF($A163<>0,INDEX('2.2 Daten'!H$9:H$859,MATCH('2.2'!$A163,'2.2 Daten'!$B$9:$B$859,0))) -> 3062 | G163: =IF($A163<>0,INDEX('2.2 Daten'!I$9:I$859,MATCH('2.2'!$A163,'2.2 Daten'!$B$9:$B$859,0))) -> 895 | H163: =IF($A163<>0,INDEX('2.2 Daten'!K$9:K$859,MATCH('2.2'!$A163,'2.2 Daten'!$B$9:$B$859,0))) -> -2.767191384 | I163: =IF($A163<>0,INDEX('2.2 Daten'!L$9:L$859,MATCH('2.2'!$A163,'2.2 Daten'!$B$9:$B$859,0))) -> -6.998939555 | J163: =IF($A163<>0,INDEX('2.2 Daten'!M$9:M$859,MATCH('2.2'!$A163,'2.2 Daten'!$B$9:$B$859,0))) -> -4.612546125 | K163: =IF($A163<>0,INDEX('2.2 Daten'!N$9:N$859,MATCH('2.2'!$A163,'2.2 Daten'!$B$9:$B$859,0))) -> -1.764517164 | L163: =IF($A163<>0,INDEX('2.2 Daten'!O$9:O$859,MATCH('2.2'!$A163,'2.2 Daten'!$B$9:$B$859,0))) -> 0.4489337823
A164: =CHOOSE('2.2 Daten'!$A$2,'2.2 Daten'!B586,'2.2 Daten'!B135,'2.2 Daten'!B152,'2.2 Daten'!B169,'2.2 Daten'!B172,'2.2 Daten'!B219,'2.2 Daten'!B223,'2.2 Daten'!B278,'2.2 Daten'!B306,'2.2 Daten'!B344,'2.2 Daten'!B390,'2.2 Daten'!B488,'2.2 Daten'!B496,'2.2 Daten'!B499,'2.2 Daten'!B519,'2.2 Daten'!B529,'2.2 Daten'!B544,'2.2 Daten'!B560,x) -> Höxter | B164: =IF($A164<>0,INDEX('2.2 Daten'!C$9:C$859,MATCH('2.2'!$A164,'2.2 Daten'!$B$9:$B$859,0))," ") -> 05762000 | C164: =IF($A164<>0,INDEX('2.2 Daten'!E$9:E$859,MATCH('2.2'!$A164,'2.2 Daten'!$B$9:$B$859,0))) -> 2571 | D164: =IF($A164<>0,INDEX('2.2 Daten'!F$9:F$859,MATCH('2.2'!$A164,'2.2 Daten'!$B$9:$B$859,0))) -> 386 | E164: =IF($A164<>0,INDEX('2.2 Daten'!G$9:G$859,MATCH('2.2'!$A164,'2.2 Daten'!$B$9:$B$859,0))) -> 453 | F164: =IF($A164<>0,INDEX('2.2 Daten'!H$9:H$859,MATCH('2.2'!$A164,'2.2 Daten'!$B$9:$B$859,0))) -> 1337 | G164: =IF($A164<>0,INDEX('2.2 Daten'!I$9:I$859,MATCH('2.2'!$A164,'2.2 Daten'!$B$9:$B$859,0))) -> 395 | H164: =IF($A164<>0,INDEX('2.2 Daten'!K$9:K$859,MATCH('2.2'!$A164,'2.2 Daten'!$B$9:$B$859,0))) -> -3.090840558 | I164: =IF($A164<>0,INDEX('2.2 Daten'!L$9:L$859,MATCH('2.2'!$A164,'2.2 Daten'!$B$9:$B$859,0))) -> -2.770780856 | J164: =IF($A164<>0,INDEX('2.2 Daten'!M$9:M$859,MATCH('2.2'!$A164,'2.2 Daten'!$B$9:$B$859,0))) -> -9.940357853 | K164: =IF($A164<>0,INDEX('2.2 Daten'!N$9:N$859,MATCH('2.2'!$A164,'2.2 Daten'!$B$9:$B$859,0))) -> -3.045685279 | L164: =IF($A164<>0,INDEX('2.2 Daten'!O$9:O$859,MATCH('2.2'!$A164,'2.2 Daten'!$B$9:$B$859,0))) -> 5.614973262
A165: =CHOOSE('2.2 Daten'!$A$2,'2.2 Daten'!B587,'2.2 Daten'!B136,'2.2 Daten'!B153,'2.2 Daten'!B170,'2.2 Daten'!B173,'2.2 Daten'!B220,'2.2 Daten'!B224,'2.2 Daten'!B279,'2.2 Daten'!B307,'2.2 Daten'!B345,'2.2 Daten'!B391,'2.2 Daten'!B489,'2.2 Daten'!B497,'2.2 Daten'!B500,'2.2 Daten'!B520,'2.2 Daten'!B530,'2.2 Daten'!B545,'2.2 Daten'!B561,x) -> Lippe | B165: =IF($A165<>0,INDEX('2.2 Daten'!C$9:C$859,MATCH('2.2'!$A165,'2.2 Daten'!$B$9:$B$859,0))," ") -> 05766000 | C165: =IF($A165<>0,INDEX('2.2 Daten'!E$9:E$859,MATCH('2.2'!$A165,'2.2 Daten'!$B$9:$B$859,0))) -> 8944 | D165: =IF($A165<>0,INDEX('2.2 Daten'!F$9:F$859,MATCH('2.2'!$A165,'2.2 Daten'!$B$9:$B$859,0))) -> 1332 | E165: =IF($A165<>0,INDEX('2.2 Daten'!G$9:G$859,MATCH('2.2'!$A165,'2.2 Daten'!$B$9:$B$859,0))) -> 1572 | F165: =IF($A165<>0,INDEX('2.2 Daten'!H$9:H$859,MATCH('2.2'!$A165,'2.2 Daten'!$B$9:$B$859,0))) -> 4639 | G165: =IF($A165<>0,INDEX('2.2 Daten'!I$9:I$859,MATCH('2.2'!$A165,'2.2 Daten'!$B$9:$B$859,0))) -> 1401 | H165: =IF($A165<>0,INDEX('2.2 Daten'!K$9:K$859,MATCH('2.2'!$A165,'2.2 Daten'!$B$9:$B$859,0))) -> -2.25136612 | I165: =IF($A165<>0,INDEX('2.2 Daten'!L$9:L$859,MATCH('2.2'!$A165,'2.2 Daten'!$B$9:$B$859,0))) -> -4.447632712 | J165: =IF($A165<>0,INDEX('2.2 Daten'!M$9:M$859,MATCH('2.2'!$A165,'2.2 Daten'!$B$9:$B$859,0))) -> -4.727272727 | K165: =IF($A165<>0,INDEX('2.2 Daten'!N$9:N$859,MATCH('2.2'!$A165,'2.2 Daten'!$B$9:$B$859,0))) -> -1.423714407 | L165: =IF($A165<>0,INDEX('2.2 Daten'!O$9:O$859,MATCH('2.2'!$A165,'2.2 Daten'!$B$9:$B$859,0))) -> 0.07142857143
A166: =CHOOSE('2.2 Daten'!$A$2,'2.2 Daten'!B588,'2.2 Daten'!B137,'2.2 Daten'!B154,'2.2 Daten'!B171,'2.2 Daten'!B174,'2.2 Daten'!B221,'2.2 Daten'!B225,'2.2 Daten'!B280,'2.2 Daten'!B308,'2.2 Daten'!B346,'2.2 Daten'!B392,'2.2 Daten'!B490,'2.2 Daten'!B498,'2.2 Daten'!B501,'2.2 Daten'!B521,'2.2 Daten'!B531,'2.2 Daten'!B546,'2.2 Daten'!B562,x) -> Minden-Lübbecke | B166: =IF($A166<>0,INDEX('2.2 Daten'!C$9:C$859,MATCH('2.2'!$A166,'2.2 Daten'!$B$9:$B$859,0))," ") -> 05770000 | C166: =IF($A166<>0,INDEX('2.2 Daten'!E$9:E$859,MATCH('2.2'!$A166,'2.2 Daten'!$B$9:$B$859,0))) -> 9135 | D166: =IF($A166<>0,INDEX('2.2 Daten'!F$9:F$859,MATCH('2.2'!$A166,'2.2 Daten'!$B$9:$B$859,0))) -> 1301 | E166: =IF($A166<>0,INDEX('2.2 Daten'!G$9:G$859,MATCH('2.2'!$A166,'2.2 Daten'!$B$9:$B$859,0))) -> 1562 | F166: =IF($A166<>0,INDEX('2.2 Daten'!H$9:H$859,MATCH('2.2'!$A166,'2.2 Daten'!$B$9:$B$859,0))) -> 4863 | G166: =IF($A166<>0,INDEX('2.2 Daten'!I$9:I$859,MATCH('2.2'!$A166,'2.2 Daten'!$B$9:$B$859,0))) -> 1409 | H166: =IF($A166<>0,INDEX('2.2 Daten'!K$9:K$859,MATCH('2.2'!$A166,'2.2 Daten'!$B$9:$B$859,0))) -> -0.8681497558 | I166: =IF($A166<>0,INDEX('2.2 Daten'!L$9:L$859,MATCH('2.2'!$A166,'2.2 Daten'!$B$9:$B$859,0))) -> -5.724637681 | J166: =IF($A166<>0,INDEX('2.2 Daten'!M$9:M$859,MATCH('2.2'!$A166,'2.2 Daten'!$B$9:$B$859,0))) -> -4.406364749 | K166: =IF($A166<>0,INDEX('2.2 Daten'!N$9:N$859,MATCH('2.2'!$A166,'2.2 Daten'!$B$9:$B$859,0))) -> 1.143926789 | L166: =IF($A166<>0,INDEX('2.2 Daten'!O$9:O$859,MATCH('2.2'!$A166,'2.2 Daten'!$B$9:$B$859,0))) -> 1.148600144
A167: =CHOOSE('2.2 Daten'!$A$2,'2.2 Daten'!B589,'2.2 Daten'!B138,'2.2 Daten'!B155,'2.2 Daten'!B172,'2.2 Daten'!B175,'2.2 Daten'!B222,'2.2 Daten'!B226,'2.2 Daten'!B281,'2.2 Daten'!B309,'2.2 Daten'!B347,'2.2 Daten'!B393,'2.2 Daten'!B491,'2.2 Daten'!B499,'2.2 Daten'!B502,'2.2 Daten'!B522,'2.2 Daten'!B532,'2.2 Daten'!B547,'2.2 Daten'!B563,x) -> Paderborn | B167: =IF($A167<>0,INDEX('2.2 Daten'!C$9:C$859,MATCH('2.2'!$A167,'2.2 Daten'!$B$9:$B$859,0))," ") -> 05774000 | C167: =IF($A167<>0,INDEX('2.2 Daten'!E$9:E$859,MATCH('2.2'!$A167,'2.2 Daten'!$B$9:$B$859,0))) -> 6692 | D167: =IF($A167<>0,INDEX('2.2 Daten'!F$9:F$859,MATCH('2.2'!$A167,'2.2 Daten'!$B$9:$B$859,0))) -> 1020 | E167: =IF($A167<>0,INDEX('2.2 Daten'!G$9:G$859,MATCH('2.2'!$A167,'2.2 Daten'!$B$9:$B$859,0))) -> 1146 | F167: =IF($A167<>0,INDEX('2.2 Daten'!H$9:H$859,MATCH('2.2'!$A167,'2.2 Daten'!$B$9:$B$859,0))) -> 3473 | G167: =IF($A167<>0,INDEX('2.2 Daten'!I$9:I$859,MATCH('2.2'!$A167,'2.2 Daten'!$B$9:$B$859,0))) -> 1053 | H167: =IF($A167<>0,INDEX('2.2 Daten'!K$9:K$859,MATCH('2.2'!$A167,'2.2 Daten'!$B$9:$B$859,0))) -> -4.699515807 | I167: =IF($A167<>0,INDEX('2.2 Daten'!L$9:L$859,MATCH('2.2'!$A167,'2.2 Daten'!$B$9:$B$859,0))) -> -5.555555556 | J167: =IF($A167<>0,INDEX('2.2 Daten'!M$9:M$859,MATCH('2.2'!$A167,'2.2 Daten'!$B$9:$B$859,0))) -> -4.975124378 | K167: =IF($A167<>0,INDEX('2.2 Daten'!N$9:N$859,MATCH('2.2'!$A167,'2.2 Daten'!$B$9:$B$859,0))) -> -5.855245324 | L167: =IF($A167<>0,INDEX('2.2 Daten'!O$9:O$859,MATCH('2.2'!$A167,'2.2 Daten'!$B$9:$B$859,0))) -> 0.5730659026
A168: =CHOOSE('2.2 Daten'!$A$2,'2.2 Daten'!B590,'2.2 Daten'!B139,'2.2 Daten'!B156,'2.2 Daten'!B173,'2.2 Daten'!B176,'2.2 Daten'!B223,'2.2 Daten'!B227,'2.2 Daten'!B282,'2.2 Daten'!B310,'2.2 Daten'!B348,'2.2 Daten'!B394,'2.2 Daten'!B492,'2.2 Daten'!B500,'2.2 Daten'!B503,'2.2 Daten'!B523,'2.2 Daten'!B533,'2.2 Daten'!B548,'2.2 Daten'!B564,x) -> Bochum, Stadt | B168: =IF($A168<>0,INDEX('2.2 Daten'!C$9:C$859,MATCH('2.2'!$A168,'2.2 Daten'!$B$9:$B$859,0))," ") -> 05911000 | C168: =IF($A168<>0,INDEX('2.2 Daten'!E$9:E$859,MATCH('2.2'!$A168,'2.2 Daten'!$B$9:$B$859,0))) -> 13071 | D168: =IF($A168<>0,INDEX('2.2 Daten'!F$9:F$859,MATCH('2.2'!$A168,'2.2 Daten'!$B$9:$B$859,0))) -> 1963 | E168: =IF($A168<>0,INDEX('2.2 Daten'!G$9:G$859,MATCH('2.2'!$A168,'2.2 Daten'!$B$9:$B$859,0))) -> 2302 | F168: =IF($A168<>0,INDEX('2.2 Daten'!H$9:H$859,MATCH('2.2'!$A168,'2.2 Daten'!$B$9:$B$859,0))) -> 6727 | G168: =IF($A168<>0,INDEX('2.2 Daten'!I$9:I$859,MATCH('2.2'!$A168,'2.2 Daten'!$B$9:$B$859,0))) -> 2079 | H168: =IF($A168<>0,INDEX('2.2 Daten'!K$9:K$859,MATCH('2.2'!$A168,'2.2 Daten'!$B$9:$B$859,0))) -> -3.270924295 | I168: =IF($A168<>0,INDEX('2.2 Daten'!L$9:L$859,MATCH('2.2'!$A168,'2.2 Daten'!$B$9:$B$859,0))) -> -3.821656051 | J168: =IF($A168<>0,INDEX('2.2 Daten'!M$9:M$859,MATCH('2.2'!$A168,'2.2 Daten'!$B$9:$B$859,0))) -> -6.574675325 | K168: =IF($A168<>0,INDEX('2.2 Daten'!N$9:N$859,MATCH('2.2'!$A168,'2.2 Daten'!$B$9:$B$859,0))) -> -3.236478711 | L168: =IF($A168<>0,INDEX('2.2 Daten'!O$9:O$859,MATCH('2.2'!$A168,'2.2 Daten'!$B$9:$B$859,0))) -> 1.118677043
A169: =CHOOSE('2.2 Daten'!$A$2,'2.2 Daten'!B591,'2.2 Daten'!B140,'2.2 Daten'!B157,'2.2 Daten'!B174,'2.2 Daten'!B177,'2.2 Daten'!B224,'2.2 Daten'!B228,'2.2 Daten'!B283,'2.2 Daten'!B311,'2.2 Daten'!B349,'2.2 Daten'!B395,'2.2 Daten'!B493,'2.2 Daten'!B501,'2.2 Daten'!B504,'2.2 Daten'!B524,'2.2 Daten'!B534,'2.2 Daten'!B549,'2.2 Daten'!B565,x) -> Dortmund, Stadt | B169: =IF($A169<>0,INDEX('2.2 Daten'!C$9:C$859,MATCH('2.2'!$A169,'2.2 Daten'!$B$9:$B$859,0))," ") -> 05913000 | C169: =IF($A169<>0,INDEX('2.2 Daten'!E$9:E$859,MATCH('2.2'!$A169,'2.2 Daten'!$B$9:$B$859,0))) -> 31137 | D169: =IF($A169<>0,INDEX('2.2 Daten'!F$9:F$859,MATCH('2.2'!$A169,'2.2 Daten'!$B$9:$B$859,0))) -> 4912 | E169: =IF($A169<>0,INDEX('2.2 Daten'!G$9:G$859,MATCH('2.2'!$A169,'2.2 Daten'!$B$9:$B$859,0))) -> 5632 | F169: =IF($A169<>0,INDEX('2.2 Daten'!H$9:H$859,MATCH('2.2'!$A169,'2.2 Daten'!$B$9:$B$859,0))) -> 15924 | G169: =IF($A169<>0,INDEX('2.2 Daten'!I$9:I$859,MATCH('2.2'!$A169,'2.2 Daten'!$B$9:$B$859,0))) -> 4669 | H169: =IF($A169<>0,INDEX('2.2 Daten'!K$9:K$859,MATCH('2.2'!$A169,'2.2 Daten'!$B$9:$B$859,0))) -> 0.3998323284 | I169: =IF($A169<>0,INDEX('2.2 Daten'!L$9:L$859,MATCH('2.2'!$A169,'2.2 Daten'!$B$9:$B$859,0))) -> -2.751930311 | J169: =IF($A169<>0,INDEX('2.2 Daten'!M$9:M$859,MATCH('2.2'!$A169,'2.2 Daten'!$B$9:$B$859,0))) -> -1.864436313 | K169: =IF($A169<>0,INDEX('2.2 Daten'!N$9:N$859,MATCH('2.2'!$A169,'2.2 Daten'!$B$9:$B$859,0))) -> 1.336387934 | L169: =IF($A169<>0,INDEX('2.2 Daten'!O$9:O$859,MATCH('2.2'!$A169,'2.2 Daten'!$B$9:$B$859,0))) -> 3.548458638
A170: =CHOOSE('2.2 Daten'!$A$2,'2.2 Daten'!B592,'2.2 Daten'!B141,'2.2 Daten'!B158,'2.2 Daten'!B175,'2.2 Daten'!B178,'2.2 Daten'!B225,'2.2 Daten'!B229,'2.2 Daten'!B284,'2.2 Daten'!B312,'2.2 Daten'!B350,'2.2 Daten'!B396,'2.2 Daten'!B494,'2.2 Daten'!B502,'2.2 Daten'!B505,'2.2 Daten'!B525,'2.2 Daten'!B535,'2.2 Daten'!B550,'2.2 Daten'!B566,x) -> Hagen, Stadt der FernUniversität | B170: =IF($A170<>0,INDEX('2.2 Daten'!C$9:C$859,MATCH('2.2'!$A170,'2.2 Daten'!$B$9:$B$859,0))," ") -> 05914000 | C170: =IF($A170<>0,INDEX('2.2 Daten'!E$9:E$859,MATCH('2.2'!$A170,'2.2 Daten'!$B$9:$B$859,0))) -> 9944 | D170: =IF($A170<>0,INDEX('2.2 Daten'!F$9:F$859,MATCH('2.2'!$A170,'2.2 Daten'!$B$9:$B$859,0))) -> 1495 | E170: =IF($A170<>0,INDEX('2.2 Daten'!G$9:G$859,MATCH('2.2'!$A170,'2.2 Daten'!$B$9:$B$859,0))) -> 1822 | F170: =IF($A170<>0,INDEX('2.2 Daten'!H$9:H$859,MATCH('2.2'!$A170,'2.2 Daten'!$B$9:$B$859,0))) -> 5115 | G170: =IF($A170<>0,INDEX('2.2 Daten'!I$9:I$859,MATCH('2.2'!$A170,'2.2 Daten'!$B$9:$B$859,0))) -> 1512 | H170: =IF($A170<>0,INDEX('2.2 Daten'!K$9:K$859,MATCH('2.2'!$A170,'2.2 Daten'!$B$9:$B$859,0))) -> -3.904136065 | I170: =IF($A170<>0,INDEX('2.2 Daten'!L$9:L$859,MATCH('2.2'!$A170,'2.2 Daten'!$B$9:$B$859,0))) -> -9.667673716 | J170: =IF($A170<>0,INDEX('2.2 Daten'!M$9:M$859,MATCH('2.2'!$A170,'2.2 Daten'!$B$9:$B$859,0))) -> -5.202913632 | K170: =IF($A170<>0,INDEX('2.2 Daten'!N$9:N$859,MATCH('2.2'!$A170,'2.2 Daten'!$B$9:$B$859,0))) -> -2.682648402 | L170: =IF($A170<>0,INDEX('2.2 Daten'!O$9:O$859,MATCH('2.2'!$A170,'2.2 Daten'!$B$9:$B$859,0))) -> -0.198019802
A171: =CHOOSE('2.2 Daten'!$A$2,'2.2 Daten'!B593,'2.2 Daten'!B142,'2.2 Daten'!B159,'2.2 Daten'!B176,'2.2 Daten'!B179,'2.2 Daten'!B226,'2.2 Daten'!B230,'2.2 Daten'!B285,'2.2 Daten'!B313,'2.2 Daten'!B351,'2.2 Daten'!B397,'2.2 Daten'!B495,'2.2 Daten'!B503,'2.2 Daten'!B506,'2.2 Daten'!B526,'2.2 Daten'!B536,'2.2 Daten'!B551,'2.2 Daten'!B567,x) -> Hamm, Stadt | B171: =IF($A171<>0,INDEX('2.2 Daten'!C$9:C$859,MATCH('2.2'!$A171,'2.2 Daten'!$B$9:$B$859,0))," ") -> 05915000 | C171: =IF($A171<>0,INDEX('2.2 Daten'!E$9:E$859,MATCH('2.2'!$A171,'2.2 Daten'!$B$9:$B$859,0))) -> 5322 | D171: =IF($A171<>0,INDEX('2.2 Daten'!F$9:F$859,MATCH('2.2'!$A171,'2.2 Daten'!$B$9:$B$859,0))) -> 854 | E171: =IF($A171<>0,INDEX('2.2 Daten'!G$9:G$859,MATCH('2.2'!$A171,'2.2 Daten'!$B$9:$B$859,0))) -> 930 | F171: =IF($A171<>0,INDEX('2.2 Daten'!H$9:H$859,MATCH('2.2'!$A171,'2.2 Daten'!$B$9:$B$859,0))) -> 2765 | G171: =IF($A171<>0,INDEX('2.2 Daten'!I$9:I$859,MATCH('2.2'!$A171,'2.2 Daten'!$B$9:$B$859,0))) -> 773 | H171: =IF($A171<>0,INDEX('2.2 Daten'!K$9:K$859,MATCH('2.2'!$A171,'2.2 Daten'!$B$9:$B$859,0))) -> -5.821978411 | I171: =IF($A171<>0,INDEX('2.2 Daten'!L$9:L$859,MATCH('2.2'!$A171,'2.2 Daten'!$B$9:$B$859,0))) -> -8.172043011 | J171: =IF($A171<>0,INDEX('2.2 Daten'!M$9:M$859,MATCH('2.2'!$A171,'2.2 Daten'!$B$9:$B$859,0))) -> -8.374384236 | K171: =IF($A171<>0,INDEX('2.2 Daten'!N$9:N$859,MATCH('2.2'!$A171,'2.2 Daten'!$B$9:$B$859,0))) -> -3.456703911 | L171: =IF($A171<>0,INDEX('2.2 Daten'!O$9:O$859,MATCH('2.2'!$A171,'2.2 Daten'!$B$9:$B$859,0))) -> -8.194774347
A172: =CHOOSE('2.2 Daten'!$A$2,'2.2 Daten'!B594,'2.2 Daten'!B143,'2.2 Daten'!B160,'2.2 Daten'!B177,'2.2 Daten'!B180,'2.2 Daten'!B227,'2.2 Daten'!B231,'2.2 Daten'!B286,'2.2 Daten'!B314,'2.2 Daten'!B352,'2.2 Daten'!B398,'2.2 Daten'!B496,'2.2 Daten'!B504,'2.2 Daten'!B507,'2.2 Daten'!B527,'2.2 Daten'!B537,'2.2 Daten'!B552,'2.2 Daten'!B568,x) -> Herne, Stadt | B172: =IF($A172<>0,INDEX('2.2 Daten'!C$9:C$859,MATCH('2.2'!$A172,'2.2 Daten'!$B$9:$B$859,0))," ") -> 05916000 | C172: =IF($A172<>0,INDEX('2.2 Daten'!E$9:E$859,MATCH('2.2'!$A172,'2.2 Daten'!$B$9:$B$859,0))) -> 7831 | D172: =IF($A172<>0,INDEX('2.2 Daten'!F$9:F$859,MATCH('2.2'!$A172,'2.2 Daten'!$B$9:$B$859,0))) -> 1264 | E172: =IF($A172<>0,INDEX('2.2 Daten'!G$9:G$859,MATCH('2.2'!$A172,'2.2 Daten'!$B$9:$B$859,0))) -> 1450 | F172: =IF($A172<>0,INDEX('2.2 Daten'!H$9:H$859,MATCH('2.2'!$A172,'2.2 Daten'!$B$9:$B$859,0))) -> 3968 | G172: =IF($A172<>0,INDEX('2.2 Daten'!I$9:I$859,MATCH('2.2'!$A172,'2.2 Daten'!$B$9:$B$859,0))) -> 1149 | H172: =IF($A172<>0,INDEX('2.2 Daten'!K$9:K$859,MATCH('2.2'!$A172,'2.2 Daten'!$B$9:$B$859,0))) -> -2.198076683 | I172: =IF($A172<>0,INDEX('2.2 Daten'!L$9:L$859,MATCH('2.2'!$A172,'2.2 Daten'!$B$9:$B$859,0))) -> -3.805175038 | J172: =IF($A172<>0,INDEX('2.2 Daten'!M$9:M$859,MATCH('2.2'!$A172,'2.2 Daten'!$B$9:$B$859,0))) -> -0.6849315068 | K172: =IF($A172<>0,INDEX('2.2 Daten'!N$9:N$859,MATCH('2.2'!$A172,'2.2 Daten'!$B$9:$B$859,0))) -> -2.145499383 | L172: =IF($A172<>0,INDEX('2.2 Daten'!O$9:O$859,MATCH('2.2'!$A172,'2.2 Daten'!$B$9:$B$859,0))) -> -2.46179966
A173: =CHOOSE('2.2 Daten'!$A$2,'2.2 Daten'!B595,'2.2 Daten'!B144,'2.2 Daten'!B161,'2.2 Daten'!B178,'2.2 Daten'!B181,'2.2 Daten'!B228,'2.2 Daten'!B232,'2.2 Daten'!B287,'2.2 Daten'!B315,'2.2 Daten'!B353,'2.2 Daten'!B399,'2.2 Daten'!B497,'2.2 Daten'!B505,'2.2 Daten'!B508,'2.2 Daten'!B528,'2.2 Daten'!B538,'2.2 Daten'!B553,'2.2 Daten'!B569,x) -> Ennepe-Ruhr-Kreis | B173: =IF($A173<>0,INDEX('2.2 Daten'!C$9:C$859,MATCH('2.2'!$A173,'2.2 Daten'!$B$9:$B$859,0))," ") -> 05954000 | C173: =IF($A173<>0,INDEX('2.2 Daten'!E$9:E$859,MATCH('2.2'!$A173,'2.2 Daten'!$B$9:$B$859,0))) -> 8988 | D173: =IF($A173<>0,INDEX('2.2 Daten'!F$9:F$859,MATCH('2.2'!$A173,'2.2 Daten'!$B$9:$B$859,0))) -> 1319 | E173: =IF($A173<>0,INDEX('2.2 Daten'!G$9:G$859,MATCH('2.2'!$A173,'2.2 Daten'!$B$9:$B$859,0))) -> 1559 | F173: =IF($A173<>0,INDEX('2.2 Daten'!H$9:H$859,MATCH('2.2'!$A173,'2.2 Daten'!$B$9:$B$859,0))) -> 4754 | G173: =IF($A173<>0,INDEX('2.2 Daten'!I$9:I$859,MATCH('2.2'!$A173,'2.2 Daten'!$B$9:$B$859,0))) -> 1356 | H173: =IF($A173<>0,INDEX('2.2 Daten'!K$9:K$859,MATCH('2.2'!$A173,'2.2 Daten'!$B$9:$B$859,0))) -> 1.284651792 | I173: =IF($A173<>0,INDEX('2.2 Daten'!L$9:L$859,MATCH('2.2'!$A173,'2.2 Daten'!$B$9:$B$859,0))) -> 0.5335365854 | J173: =IF($A173<>0,INDEX('2.2 Daten'!M$9:M$859,MATCH('2.2'!$A173,'2.2 Daten'!$B$9:$B$859,0))) -> -4.238329238 | K173: =IF($A173<>0,INDEX('2.2 Daten'!N$9:N$859,MATCH('2.2'!$A173,'2.2 Daten'!$B$9:$B$859,0))) -> 3.280469259 | L173: =IF($A173<>0,INDEX('2.2 Daten'!O$9:O$859,MATCH('2.2'!$A173,'2.2 Daten'!$B$9:$B$859,0))) -> 1.878287002
A174: =CHOOSE('2.2 Daten'!$A$2,'2.2 Daten'!B596,'2.2 Daten'!B145,'2.2 Daten'!B162,'2.2 Daten'!B179,'2.2 Daten'!B182,'2.2 Daten'!B229,'2.2 Daten'!B233,'2.2 Daten'!B288,'2.2 Daten'!B316,'2.2 Daten'!B354,'2.2 Daten'!B400,'2.2 Daten'!B498,'2.2 Daten'!B506,'2.2 Daten'!B509,'2.2 Daten'!B529,'2.2 Daten'!B539,'2.2 Daten'!B554,'2.2 Daten'!B570,x) -> Hochsauerlandkreis | B174: =IF($A174<>0,INDEX('2.2 Daten'!C$9:C$859,MATCH('2.2'!$A174,'2.2 Daten'!$B$9:$B$859,0))," ") -> 05958000 | C174: =IF($A174<>0,INDEX('2.2 Daten'!E$9:E$859,MATCH('2.2'!$A174,'2.2 Daten'!$B$9:$B$859,0))) -> 4485 | D174: =IF($A174<>0,INDEX('2.2 Daten'!F$9:F$859,MATCH('2.2'!$A174,'2.2 Daten'!$B$9:$B$859,0))) -> 628 | E174: =IF($A174<>0,INDEX('2.2 Daten'!G$9:G$859,MATCH('2.2'!$A174,'2.2 Daten'!$B$9:$B$859,0))) -> 790 | F174: =IF($A174<>0,INDEX('2.2 Daten'!H$9:H$859,MATCH('2.2'!$A174,'2.2 Daten'!$B$9:$B$859,0))) -> 2378 | G174: =IF($A174<>0,INDEX('2.2 Daten'!I$9:I$859,MATCH('2.2'!$A174,'2.2 Daten'!$B$9:$B$859,0))) -> 689 | H174: =IF($A174<>0,INDEX('2.2 Daten'!K$9:K$859,MATCH('2.2'!$A174,'2.2 Daten'!$B$9:$B$859,0))) -> -2.181025082 | I174: =IF($A174<>0,INDEX('2.2 Daten'!L$9:L$859,MATCH('2.2'!$A174,'2.2 Daten'!$B$9:$B$859,0))) -> -6.128550075 | J174: =IF($A174<>0,INDEX('2.2 Daten'!M$9:M$859,MATCH('2.2'!$A174,'2.2 Daten'!$B$9:$B$859,0))) -> -2.348578492 | K174: =IF($A174<>0,INDEX('2.2 Daten'!N$9:N$859,MATCH('2.2'!$A174,'2.2 Daten'!$B$9:$B$859,0))) -> -2.899142507 | L174: =IF($A174<>0,INDEX('2.2 Daten'!O$9:O$859,MATCH('2.2'!$A174,'2.2 Daten'!$B$9:$B$859,0))) -> 4.711246201
A175: =CHOOSE('2.2 Daten'!$A$2,'2.2 Daten'!B597,'2.2 Daten'!B146,'2.2 Daten'!B163,'2.2 Daten'!B180,'2.2 Daten'!B183,'2.2 Daten'!B230,'2.2 Daten'!B234,'2.2 Daten'!B289,'2.2 Daten'!B317,'2.2 Daten'!B355,'2.2 Daten'!B401,'2.2 Daten'!B499,'2.2 Daten'!B507,'2.2 Daten'!B510,'2.2 Daten'!B530,'2.2 Daten'!B540,'2.2 Daten'!B555,'2.2 Daten'!B571,x) -> Märkischer Kreis | B175: =IF($A175<>0,INDEX('2.2 Daten'!C$9:C$859,MATCH('2.2'!$A175,'2.2 Daten'!$B$9:$B$859,0))," ") -> 05962000 | C175: =IF($A175<>0,INDEX('2.2 Daten'!E$9:E$859,MATCH('2.2'!$A175,'2.2 Daten'!$B$9:$B$859,0))) -> 11140 | D175: =IF($A175<>0,INDEX('2.2 Daten'!F$9:F$859,MATCH('2.2'!$A175,'2.2 Daten'!$B$9:$B$859,0))) -> 1754 | E175: =IF($A175<>0,INDEX('2.2 Daten'!G$9:G$859,MATCH('2.2'!$A175,'2.2 Daten'!$B$9:$B$859,0))) -> 2007 | F175: =IF($A175<>0,INDEX('2.2 Daten'!H$9:H$859,MATCH('2.2'!$A175,'2.2 Daten'!$B$9:$B$859,0))) -> 5626 | G175: =IF($A175<>0,INDEX('2.2 Daten'!I$9:I$859,MATCH('2.2'!$A175,'2.2 Daten'!$B$9:$B$859,0))) -> 1753 | H175: =IF($A175<>0,INDEX('2.2 Daten'!K$9:K$859,MATCH('2.2'!$A175,'2.2 Daten'!$B$9:$B$859,0))) -> -0.4290311048 | I175: =IF($A175<>0,INDEX('2.2 Daten'!L$9:L$859,MATCH('2.2'!$A175,'2.2 Daten'!$B$9:$B$859,0))) -> -1.626472238 | J175: =IF($A175<>0,INDEX('2.2 Daten'!M$9:M$859,MATCH('2.2'!$A175,'2.2 Daten'!$B$9:$B$859,0))) -> -2.949709865 | K175: =IF($A175<>0,INDEX('2.2 Daten'!N$9:N$859,MATCH('2.2'!$A175,'2.2 Daten'!$B$9:$B$859,0))) -> 0.3746654773 | L175: =IF($A175<>0,INDEX('2.2 Daten'!O$9:O$859,MATCH('2.2'!$A175,'2.2 Daten'!$B$9:$B$859,0))) -> 1.212471132
A176: =CHOOSE('2.2 Daten'!$A$2,'2.2 Daten'!B598,'2.2 Daten'!B147,'2.2 Daten'!B164,'2.2 Daten'!B181,'2.2 Daten'!B184,'2.2 Daten'!B231,'2.2 Daten'!B235,'2.2 Daten'!B290,'2.2 Daten'!B318,'2.2 Daten'!B356,'2.2 Daten'!B402,'2.2 Daten'!B500,'2.2 Daten'!B508,'2.2 Daten'!B511,'2.2 Daten'!B531,'2.2 Daten'!B541,'2.2 Daten'!B556,'2.2 Daten'!B572,x) -> Olpe | B176: =IF($A176<>0,INDEX('2.2 Daten'!C$9:C$859,MATCH('2.2'!$A176,'2.2 Daten'!$B$9:$B$859,0))," ") -> 05966000 | C176: =IF($A176<>0,INDEX('2.2 Daten'!E$9:E$859,MATCH('2.2'!$A176,'2.2 Daten'!$B$9:$B$859,0))) -> 1971 | D176: =IF($A176<>0,INDEX('2.2 Daten'!F$9:F$859,MATCH('2.2'!$A176,'2.2 Daten'!$B$9:$B$859,0))) -> 274 | E176: =IF($A176<>0,INDEX('2.2 Daten'!G$9:G$859,MATCH('2.2'!$A176,'2.2 Daten'!$B$9:$B$859,0))) -> 322 | F176: =IF($A176<>0,INDEX('2.2 Daten'!H$9:H$859,MATCH('2.2'!$A176,'2.2 Daten'!$B$9:$B$859,0))) -> 1065 | G176: =IF($A176<>0,INDEX('2.2 Daten'!I$9:I$859,MATCH('2.2'!$A176,'2.2 Daten'!$B$9:$B$859,0))) -> 310 | H176: =IF($A176<>0,INDEX('2.2 Daten'!K$9:K$859,MATCH('2.2'!$A176,'2.2 Daten'!$B$9:$B$859,0))) -> -1.301952929 | I176: =IF($A176<>0,INDEX('2.2 Daten'!L$9:L$859,MATCH('2.2'!$A176,'2.2 Daten'!$B$9:$B$859,0))) -> -4.861111111 | J176: =IF($A176<>0,INDEX('2.2 Daten'!M$9:M$859,MATCH('2.2'!$A176,'2.2 Daten'!$B$9:$B$859,0))) -> -0.3095975232 | K176: =IF($A176<>0,INDEX('2.2 Daten'!N$9:N$859,MATCH('2.2'!$A176,'2.2 Daten'!$B$9:$B$859,0))) -> -2.293577982 | L176: =IF($A176<>0,INDEX('2.2 Daten'!O$9:O$859,MATCH('2.2'!$A176,'2.2 Daten'!$B$9:$B$859,0))) -> 4.72972973
A177: =CHOOSE('2.2 Daten'!$A$2,'2.2 Daten'!B599,'2.2 Daten'!B148,'2.2 Daten'!B165,'2.2 Daten'!B182,'2.2 Daten'!B185,'2.2 Daten'!B232,'2.2 Daten'!B236,'2.2 Daten'!B291,'2.2 Daten'!B319,'2.2 Daten'!B357,'2.2 Daten'!B403,'2.2 Daten'!B501,'2.2 Daten'!B509,'2.2 Daten'!B512,'2.2 Daten'!B532,'2.2 Daten'!B542,'2.2 Daten'!B557,'2.2 Daten'!B573,x) -> Siegen-Wittgenstein | B177: =IF($A177<>0,INDEX('2.2 Daten'!C$9:C$859,MATCH('2.2'!$A177,'2.2 Daten'!$B$9:$B$859,0))," ") -> 05970000 | C177: =IF($A177<>0,INDEX('2.2 Daten'!E$9:E$859,MATCH('2.2'!$A177,'2.2 Daten'!$B$9:$B$859,0))) -> 6618 | D177: =IF($A177<>0,INDEX('2.2 Daten'!F$9:F$859,MATCH('2.2'!$A177,'2.2 Daten'!$B$9:$B$859,0))) -> 993 | E177: =IF($A177<>0,INDEX('2.2 Daten'!G$9:G$859,MATCH('2.2'!$A177,'2.2 Daten'!$B$9:$B$859,0))) -> 1152 | F177: =IF($A177<>0,INDEX('2.2 Daten'!H$9:H$859,MATCH('2.2'!$A177,'2.2 Daten'!$B$9:$B$859,0))) -> 3478 | G177: =IF($A177<>0,INDEX('2.2 Daten'!I$9:I$859,MATCH('2.2'!$A177,'2.2 Daten'!$B$9:$B$859,0))) -> 995 | H177: =IF($A177<>0,INDEX('2.2 Daten'!K$9:K$859,MATCH('2.2'!$A177,'2.2 Daten'!$B$9:$B$859,0))) -> 1.487501917 | I177: =IF($A177<>0,INDEX('2.2 Daten'!L$9:L$859,MATCH('2.2'!$A177,'2.2 Daten'!$B$9:$B$859,0))) -> 1.326530612 | J177: =IF($A177<>0,INDEX('2.2 Daten'!M$9:M$859,MATCH('2.2'!$A177,'2.2 Daten'!$B$9:$B$859,0))) -> -2.948609941 | K177: =IF($A177<>0,INDEX('2.2 Daten'!N$9:N$859,MATCH('2.2'!$A177,'2.2 Daten'!$B$9:$B$859,0))) -> 1.369863014 | L177: =IF($A177<>0,INDEX('2.2 Daten'!O$9:O$859,MATCH('2.2'!$A177,'2.2 Daten'!$B$9:$B$859,0))) -> 7.800650054
A178: =CHOOSE('2.2 Daten'!$A$2,'2.2 Daten'!B600,'2.2 Daten'!B149,'2.2 Daten'!B166,'2.2 Daten'!B183,'2.2 Daten'!B186,'2.2 Daten'!B233,'2.2 Daten'!B237,'2.2 Daten'!B292,'2.2 Daten'!B320,'2.2 Daten'!B358,'2.2 Daten'!B404,'2.2 Daten'!B502,'2.2 Daten'!B510,'2.2 Daten'!B513,'2.2 Daten'!B533,'2.2 Daten'!B543,'2.2 Daten'!B558,'2.2 Daten'!B574,x) -> Soest | B178: =IF($A178<>0,INDEX('2.2 Daten'!C$9:C$859,MATCH('2.2'!$A178,'2.2 Daten'!$B$9:$B$859,0))," ") -> 05974000 | C178: =IF($A178<>0,INDEX('2.2 Daten'!E$9:E$859,MATCH('2.2'!$A178,'2.2 Daten'!$B$9:$B$859,0))) -> 6013 | D178: =IF($A178<>0,INDEX('2.2 Daten'!F$9:F$859,MATCH('2.2'!$A178,'2.2 Daten'!$B$9:$B$859,0))) -> 901 | E178: =IF($A178<>0,INDEX('2.2 Daten'!G$9:G$859,MATCH('2.2'!$A178,'2.2 Daten'!$B$9:$B$859,0))) -> 1075 | F178: =IF($A178<>0,INDEX('2.2 Daten'!H$9:H$859,MATCH('2.2'!$A178,'2.2 Daten'!$B$9:$B$859,0))) -> 3104 | G178: =IF($A178<>0,INDEX('2.2 Daten'!I$9:I$859,MATCH('2.2'!$A178,'2.2 Daten'!$B$9:$B$859,0))) -> 933 | H178: =IF($A178<>0,INDEX('2.2 Daten'!K$9:K$859,MATCH('2.2'!$A178,'2.2 Daten'!$B$9:$B$859,0))) -> -0.3149867374 | I178: =IF($A178<>0,INDEX('2.2 Daten'!L$9:L$859,MATCH('2.2'!$A178,'2.2 Daten'!$B$9:$B$859,0))) -> -2.489177489 | J178: =IF($A178<>0,INDEX('2.2 Daten'!M$9:M$859,MATCH('2.2'!$A178,'2.2 Daten'!$B$9:$B$859,0))) -> -4.188948307 | K178: =IF($A178<>0,INDEX('2.2 Daten'!N$9:N$859,MATCH('2.2'!$A178,'2.2 Daten'!$B$9:$B$859,0))) -> 0.9759271308 | L178: =IF($A178<>0,INDEX('2.2 Daten'!O$9:O$859,MATCH('2.2'!$A178,'2.2 Daten'!$B$9:$B$859,0))) -> 2.302631579
A179: =CHOOSE('2.2 Daten'!$A$2,'2.2 Daten'!B601,'2.2 Daten'!B150,'2.2 Daten'!B167,'2.2 Daten'!B184,'2.2 Daten'!B187,'2.2 Daten'!B234,'2.2 Daten'!B238,'2.2 Daten'!B293,'2.2 Daten'!B321,'2.2 Daten'!B359,'2.2 Daten'!B405,'2.2 Daten'!B503,'2.2 Daten'!B511,'2.2 Daten'!B514,'2.2 Daten'!B534,'2.2 Daten'!B544,'2.2 Daten'!B559,'2.2 Daten'!B575,x) -> Unna | B179: =IF($A179<>0,INDEX('2.2 Daten'!C$9:C$859,MATCH('2.2'!$A179,'2.2 Daten'!$B$9:$B$859,0))," ") -> 05978000 | C179: =IF($A179<>0,INDEX('2.2 Daten'!E$9:E$859,MATCH('2.2'!$A179,'2.2 Daten'!$B$9:$B$859,0))) -> 11266 | D179: =IF($A179<>0,INDEX('2.2 Daten'!F$9:F$859,MATCH('2.2'!$A179,'2.2 Daten'!$B$9:$B$859,0))) -> 1717 | E179: =IF($A179<>0,INDEX('2.2 Daten'!G$9:G$859,MATCH('2.2'!$A179,'2.2 Daten'!$B$9:$B$859,0))) -> 1927 | F179: =IF($A179<>0,INDEX('2.2 Daten'!H$9:H$859,MATCH('2.2'!$A179,'2.2 Daten'!$B$9:$B$859,0))) -> 5942 | G179: =IF($A179<>0,INDEX('2.2 Daten'!I$9:I$859,MATCH('2.2'!$A179,'2.2 Daten'!$B$9:$B$859,0))) -> 1680 | H179: =IF($A179<>0,INDEX('2.2 Daten'!K$9:K$859,MATCH('2.2'!$A179,'2.2 Daten'!$B$9:$B$859,0))) -> -1.572601782 | I179: =IF($A179<>0,INDEX('2.2 Daten'!L$9:L$859,MATCH('2.2'!$A179,'2.2 Daten'!$B$9:$B$859,0))) -> -3.863381859 | J179: =IF($A179<>0,INDEX('2.2 Daten'!M$9:M$859,MATCH('2.2'!$A179,'2.2 Daten'!$B$9:$B$859,0))) -> -8.586337761 | K179: =IF($A179<>0,INDEX('2.2 Daten'!N$9:N$859,MATCH('2.2'!$A179,'2.2 Daten'!$B$9:$B$859,0))) -> 0.9685641461 | L179: =IF($A179<>0,INDEX('2.2 Daten'!O$9:O$859,MATCH('2.2'!$A179,'2.2 Daten'!$B$9:$B$859,0))) -> 0.7798440312
A180: =CHOOSE('2.2 Daten'!$A$2,'2.2 Daten'!B602,'2.2 Daten'!B151,'2.2 Daten'!B168,'2.2 Daten'!B185,'2.2 Daten'!B188,'2.2 Daten'!B235,'2.2 Daten'!B239,'2.2 Daten'!B294,'2.2 Daten'!B322,'2.2 Daten'!B360,'2.2 Daten'!B406,'2.2 Daten'!B504,'2.2 Daten'!B512,'2.2 Daten'!B515,'2.2 Daten'!B535,'2.2 Daten'!B545,'2.2 Daten'!B560,'2.2 Daten'!B576,x) -> 0 | B180: =IF($A180<>0,INDEX('2.2 Daten'!C$9:C$859,MATCH('2.2'!$A180,'2.2 Daten'!$B$9:$B$859,0))," ") ->  | C180: =IF($A180<>0,INDEX('2.2 Daten'!E$9:E$859,MATCH('2.2'!$A180,'2.2 Daten'!$B$9:$B$859,0))) -> FALSE | D180: =IF($A180<>0,INDEX('2.2 Daten'!F$9:F$859,MATCH('2.2'!$A180,'2.2 Daten'!$B$9:$B$859,0))) -> FALSE | E180: =IF($A180<>0,INDEX('2.2 Daten'!G$9:G$859,MATCH('2.2'!$A180,'2.2 Daten'!$B$9:$B$859,0))) -> FALSE | F180: =IF($A180<>0,INDEX('2.2 Daten'!H$9:H$859,MATCH('2.2'!$A180,'2.2 Daten'!$B$9:$B$859,0))) -> FALSE | G180: =IF($A180<>0,INDEX('2.2 Daten'!I$9:I$859,MATCH('2.2'!$A180,'2.2 Daten'!$B$9:$B$859,0))) -> FALSE | H180: =IF($A180<>0,INDEX('2.2 Daten'!K$9:K$859,MATCH('2.2'!$A180,'2.2 Daten'!$B$9:$B$859,0))) -> FALSE | I180: =IF($A180<>0,INDEX('2.2 Daten'!L$9:L$859,MATCH('2.2'!$A180,'2.2 Daten'!$B$9:$B$859,0))) -> FALSE | J180: =IF($A180<>0,INDEX('2.2 Daten'!M$9:M$859,MATCH('2.2'!$A180,'2.2 Daten'!$B$9:$B$859,0))) -> FALSE | K180: =IF($A180<>0,INDEX('2.2 Daten'!N$9:N$859,MATCH('2.2'!$A180,'2.2 Daten'!$B$9:$B$859,0))) -> FALSE | L180: =IF($A180<>0,INDEX('2.2 Daten'!O$9:O$859,MATCH('2.2'!$A180,'2.2 Daten'!$B$9:$B$859,0))) -> FALSE
A181: =CHOOSE('2.2 Daten'!$A$2,'2.2 Daten'!B603,'2.2 Daten'!B152,'2.2 Daten'!B169,'2.2 Daten'!B186,'2.2 Daten'!B189,'2.2 Daten'!B236,'2.2 Daten'!B240,'2.2 Daten'!B295,'2.2 Daten'!B323,'2.2 Daten'!B361,'2.2 Daten'!B407,'2.2 Daten'!B505,'2.2 Daten'!B513,'2.2 Daten'!B516,'2.2 Daten'!B536,'2.2 Daten'!B546,'2.2 Daten'!B561,'2.2 Daten'!B577,x) -> Hessen | B181: =IF($A181<>0,INDEX('2.2 Daten'!C$9:C$859,MATCH('2.2'!$A181,'2.2 Daten'!$B$9:$B$859,0))," ") -> 06 | C181: =IF($A181<>0,INDEX('2.2 Daten'!E$9:E$859,MATCH('2.2'!$A181,'2.2 Daten'!$B$9:$B$859,0))) -> 150602 | D181: =IF($A181<>0,INDEX('2.2 Daten'!F$9:F$859,MATCH('2.2'!$A181,'2.2 Daten'!$B$9:$B$859,0))) -> 22208 | E181: =IF($A181<>0,INDEX('2.2 Daten'!G$9:G$859,MATCH('2.2'!$A181,'2.2 Daten'!$B$9:$B$859,0))) -> 26680 | F181: =IF($A181<>0,INDEX('2.2 Daten'!H$9:H$859,MATCH('2.2'!$A181,'2.2 Daten'!$B$9:$B$859,0))) -> 78790 | G181: =IF($A181<>0,INDEX('2.2 Daten'!I$9:I$859,MATCH('2.2'!$A181,'2.2 Daten'!$B$9:$B$859,0))) -> 22924 | H181: =IF($A181<>0,INDEX('2.2 Daten'!K$9:K$859,MATCH('2.2'!$A181,'2.2 Daten'!$B$9:$B$859,0))) -> -1.681061778 | I181: =IF($A181<>0,INDEX('2.2 Daten'!L$9:L$859,MATCH('2.2'!$A181,'2.2 Daten'!$B$9:$B$859,0))) -> -5.385139741 | J181: =IF($A181<>0,INDEX('2.2 Daten'!M$9:M$859,MATCH('2.2'!$A181,'2.2 Daten'!$B$9:$B$859,0))) -> -4.738101189 | K181: =IF($A181<>0,INDEX('2.2 Daten'!N$9:N$859,MATCH('2.2'!$A181,'2.2 Daten'!$B$9:$B$859,0))) -> -0.8007453479 | L181: =IF($A181<>0,INDEX('2.2 Daten'!O$9:O$859,MATCH('2.2'!$A181,'2.2 Daten'!$B$9:$B$859,0))) -> 2.927442529
A182: =CHOOSE('2.2 Daten'!$A$2,'2.2 Daten'!B604,'2.2 Daten'!B153,'2.2 Daten'!B170,'2.2 Daten'!B187,'2.2 Daten'!B190,'2.2 Daten'!B237,'2.2 Daten'!B241,'2.2 Daten'!B296,'2.2 Daten'!B324,'2.2 Daten'!B362,'2.2 Daten'!B408,'2.2 Daten'!B506,'2.2 Daten'!B514,'2.2 Daten'!B517,'2.2 Daten'!B537,'2.2 Daten'!B547,'2.2 Daten'!B562,'2.2 Daten'!B578,x) -> Darmstadt, Wissenschaftsstadt | B182: =IF($A182<>0,INDEX('2.2 Daten'!C$9:C$859,MATCH('2.2'!$A182,'2.2 Daten'!$B$9:$B$859,0))," ") -> 06411000 | C182: =IF($A182<>0,INDEX('2.2 Daten'!E$9:E$859,MATCH('2.2'!$A182,'2.2 Daten'!$B$9:$B$859,0))) -> 5060 | D182: =IF($A182<>0,INDEX('2.2 Daten'!F$9:F$859,MATCH('2.2'!$A182,'2.2 Daten'!$B$9:$B$859,0))) -> 732 | E182: =IF($A182<>0,INDEX('2.2 Daten'!G$9:G$859,MATCH('2.2'!$A182,'2.2 Daten'!$B$9:$B$859,0))) -> 926 | F182: =IF($A182<>0,INDEX('2.2 Daten'!H$9:H$859,MATCH('2.2'!$A182,'2.2 Daten'!$B$9:$B$859,0))) -> 2630 | G182: =IF($A182<>0,INDEX('2.2 Daten'!I$9:I$859,MATCH('2.2'!$A182,'2.2 Daten'!$B$9:$B$859,0))) -> 772 | H182: =IF($A182<>0,INDEX('2.2 Daten'!K$9:K$859,MATCH('2.2'!$A182,'2.2 Daten'!$B$9:$B$859,0))) -> 0.8369868473 | I182: =IF($A182<>0,INDEX('2.2 Daten'!L$9:L$859,MATCH('2.2'!$A182,'2.2 Daten'!$B$9:$B$859,0))) -> -1.081081081 | J182: =IF($A182<>0,INDEX('2.2 Daten'!M$9:M$859,MATCH('2.2'!$A182,'2.2 Daten'!$B$9:$B$859,0))) -> -2.423603793 | K182: =IF($A182<>0,INDEX('2.2 Daten'!N$9:N$859,MATCH('2.2'!$A182,'2.2 Daten'!$B$9:$B$859,0))) -> 2.13592233 | L182: =IF($A182<>0,INDEX('2.2 Daten'!O$9:O$859,MATCH('2.2'!$A182,'2.2 Daten'!$B$9:$B$859,0))) -> 2.387267905
A183: =CHOOSE('2.2 Daten'!$A$2,'2.2 Daten'!B605,'2.2 Daten'!B154,'2.2 Daten'!B171,'2.2 Daten'!B188,'2.2 Daten'!B191,'2.2 Daten'!B238,'2.2 Daten'!B242,'2.2 Daten'!B297,'2.2 Daten'!B325,'2.2 Daten'!B363,'2.2 Daten'!B409,'2.2 Daten'!B507,'2.2 Daten'!B515,'2.2 Daten'!B518,'2.2 Daten'!B538,'2.2 Daten'!B548,'2.2 Daten'!B563,'2.2 Daten'!B579,x) -> Frankfurt am Main, Stadt | B183: =IF($A183<>0,INDEX('2.2 Daten'!C$9:C$859,MATCH('2.2'!$A183,'2.2 Daten'!$B$9:$B$859,0))," ") -> 06412000 | C183: =IF($A183<>0,INDEX('2.2 Daten'!E$9:E$859,MATCH('2.2'!$A183,'2.2 Daten'!$B$9:$B$859,0))) -> 21367 | D183: =IF($A183<>0,INDEX('2.2 Daten'!F$9:F$859,MATCH('2.2'!$A183,'2.2 Daten'!$B$9:$B$859,0))) -> 3220 | E183: =IF($A183<>0,INDEX('2.2 Daten'!G$9:G$859,MATCH('2.2'!$A183,'2.2 Daten'!$B$9:$B$859,0))) -> 3822 | F183: =IF($A183<>0,INDEX('2.2 Daten'!H$9:H$859,MATCH('2.2'!$A183,'2.2 Daten'!$B$9:$B$859,0))) -> 11078 | G183: =IF($A183<>0,INDEX('2.2 Daten'!I$9:I$859,MATCH('2.2'!$A183,'2.2 Daten'!$B$9:$B$859,0))) -> 3247 | H183: =IF($A183<>0,INDEX('2.2 Daten'!K$9:K$859,MATCH('2.2'!$A183,'2.2 Daten'!$B$9:$B$859,0))) -> -5.447384724 | I183: =IF($A183<>0,INDEX('2.2 Daten'!L$9:L$859,MATCH('2.2'!$A183,'2.2 Daten'!$B$9:$B$859,0))) -> -9.829179502 | J183: =IF($A183<>0,INDEX('2.2 Daten'!M$9:M$859,MATCH('2.2'!$A183,'2.2 Daten'!$B$9:$B$859,0))) -> -9.064953605 | K183: =IF($A183<>0,INDEX('2.2 Daten'!N$9:N$859,MATCH('2.2'!$A183,'2.2 Daten'!$B$9:$B$859,0))) -> -3.953528698 | L183: =IF($A183<>0,INDEX('2.2 Daten'!O$9:O$859,MATCH('2.2'!$A183,'2.2 Daten'!$B$9:$B$859,0))) -> -1.306990881
A184: =CHOOSE('2.2 Daten'!$A$2,'2.2 Daten'!B606,'2.2 Daten'!B155,'2.2 Daten'!B172,'2.2 Daten'!B189,'2.2 Daten'!B192,'2.2 Daten'!B239,'2.2 Daten'!B243,'2.2 Daten'!B298,'2.2 Daten'!B326,'2.2 Daten'!B364,'2.2 Daten'!B410,'2.2 Daten'!B508,'2.2 Daten'!B516,'2.2 Daten'!B519,'2.2 Daten'!B539,'2.2 Daten'!B549,'2.2 Daten'!B564,'2.2 Daten'!B580,x) -> Offenbach am Main, Stadt | B184: =IF($A184<>0,INDEX('2.2 Daten'!C$9:C$859,MATCH('2.2'!$A184,'2.2 Daten'!$B$9:$B$859,0))," ") -> 06413000 | C184: =IF($A184<>0,INDEX('2.2 Daten'!E$9:E$859,MATCH('2.2'!$A184,'2.2 Daten'!$B$9:$B$859,0))) -> 5007 | D184: =IF($A184<>0,INDEX('2.2 Daten'!F$9:F$859,MATCH('2.2'!$A184,'2.2 Daten'!$B$9:$B$859,0))) -> 709 | E184: =IF($A184<>0,INDEX('2.2 Daten'!G$9:G$859,MATCH('2.2'!$A184,'2.2 Daten'!$B$9:$B$859,0))) -> 891 | F184: =IF($A184<>0,INDEX('2.2 Daten'!H$9:H$859,MATCH('2.2'!$A184,'2.2 Daten'!$B$9:$B$859,0))) -> 2590 | G184: =IF($A184<>0,INDEX('2.2 Daten'!I$9:I$859,MATCH('2.2'!$A184,'2.2 Daten'!$B$9:$B$859,0))) -> 817 | H184: =IF($A184<>0,INDEX('2.2 Daten'!K$9:K$859,MATCH('2.2'!$A184,'2.2 Daten'!$B$9:$B$859,0))) -> -1.823529412 | I184: =IF($A184<>0,INDEX('2.2 Daten'!L$9:L$859,MATCH('2.2'!$A184,'2.2 Daten'!$B$9:$B$859,0))) -> -3.40599455 | J184: =IF($A184<>0,INDEX('2.2 Daten'!M$9:M$859,MATCH('2.2'!$A184,'2.2 Daten'!$B$9:$B$859,0))) -> -4.60385439 | K184: =IF($A184<>0,INDEX('2.2 Daten'!N$9:N$859,MATCH('2.2'!$A184,'2.2 Daten'!$B$9:$B$859,0))) -> -1.633118116 | L184: =IF($A184<>0,INDEX('2.2 Daten'!O$9:O$859,MATCH('2.2'!$A184,'2.2 Daten'!$B$9:$B$859,0))) -> 2.25281602
A185: =CHOOSE('2.2 Daten'!$A$2,'2.2 Daten'!B607,'2.2 Daten'!B156,'2.2 Daten'!B173,'2.2 Daten'!B190,'2.2 Daten'!B193,'2.2 Daten'!B240,'2.2 Daten'!B244,'2.2 Daten'!B299,'2.2 Daten'!B327,'2.2 Daten'!B365,'2.2 Daten'!B411,'2.2 Daten'!B509,'2.2 Daten'!B517,'2.2 Daten'!B520,'2.2 Daten'!B540,'2.2 Daten'!B550,'2.2 Daten'!B565,'2.2 Daten'!B581,x) -> Wiesbaden, Landeshauptstadt | B185: =IF($A185<>0,INDEX('2.2 Daten'!C$9:C$859,MATCH('2.2'!$A185,'2.2 Daten'!$B$9:$B$859,0))," ") -> 06414000 | C185: =IF($A185<>0,INDEX('2.2 Daten'!E$9:E$859,MATCH('2.2'!$A185,'2.2 Daten'!$B$9:$B$859,0))) -> 10752 | D185: =IF($A185<>0,INDEX('2.2 Daten'!F$9:F$859,MATCH('2.2'!$A185,'2.2 Daten'!$B$9:$B$859,0))) -> 1564 | E185: =IF($A185<>0,INDEX('2.2 Daten'!G$9:G$859,MATCH('2.2'!$A185,'2.2 Daten'!$B$9:$B$859,0))) -> 1846 | F185: =IF($A185<>0,INDEX('2.2 Daten'!H$9:H$859,MATCH('2.2'!$A185,'2.2 Daten'!$B$9:$B$859,0))) -> 5608 | G185: =IF($A185<>0,INDEX('2.2 Daten'!I$9:I$859,MATCH('2.2'!$A185,'2.2 Daten'!$B$9:$B$859,0))) -> 1734 | H185: =IF($A185<>0,INDEX('2.2 Daten'!K$9:K$859,MATCH('2.2'!$A185,'2.2 Daten'!$B$9:$B$859,0))) -> -0.7843499123 | I185: =IF($A185<>0,INDEX('2.2 Daten'!L$9:L$859,MATCH('2.2'!$A185,'2.2 Daten'!$B$9:$B$859,0))) -> -5.726341169 | J185: =IF($A185<>0,INDEX('2.2 Daten'!M$9:M$859,MATCH('2.2'!$A185,'2.2 Daten'!$B$9:$B$859,0))) -> -3.097112861 | K185: =IF($A185<>0,INDEX('2.2 Daten'!N$9:N$859,MATCH('2.2'!$A185,'2.2 Daten'!$B$9:$B$859,0))) -> -0.6730428622 | L185: =IF($A185<>0,INDEX('2.2 Daten'!O$9:O$859,MATCH('2.2'!$A185,'2.2 Daten'!$B$9:$B$859,0))) -> 6.576521205
A186: =CHOOSE('2.2 Daten'!$A$2,'2.2 Daten'!B608,'2.2 Daten'!B157,'2.2 Daten'!B174,'2.2 Daten'!B191,'2.2 Daten'!B194,'2.2 Daten'!B241,'2.2 Daten'!B245,'2.2 Daten'!B300,'2.2 Daten'!B328,'2.2 Daten'!B366,'2.2 Daten'!B412,'2.2 Daten'!B510,'2.2 Daten'!B518,'2.2 Daten'!B521,'2.2 Daten'!B541,'2.2 Daten'!B551,'2.2 Daten'!B566,'2.2 Daten'!B582,x) -> Bergstraße | B186: =IF($A186<>0,INDEX('2.2 Daten'!C$9:C$859,MATCH('2.2'!$A186,'2.2 Daten'!$B$9:$B$859,0))," ") -> 06431000 | C186: =IF($A186<>0,INDEX('2.2 Daten'!E$9:E$859,MATCH('2.2'!$A186,'2.2 Daten'!$B$9:$B$859,0))) -> 5350 | D186: =IF($A186<>0,INDEX('2.2 Daten'!F$9:F$859,MATCH('2.2'!$A186,'2.2 Daten'!$B$9:$B$859,0))) -> 730 | E186: =IF($A186<>0,INDEX('2.2 Daten'!G$9:G$859,MATCH('2.2'!$A186,'2.2 Daten'!$B$9:$B$859,0))) -> 985 | F186: =IF($A186<>0,INDEX('2.2 Daten'!H$9:H$859,MATCH('2.2'!$A186,'2.2 Daten'!$B$9:$B$859,0))) -> 2824 | G186: =IF($A186<>0,INDEX('2.2 Daten'!I$9:I$859,MATCH('2.2'!$A186,'2.2 Daten'!$B$9:$B$859,0))) -> 811 | H186: =IF($A186<>0,INDEX('2.2 Daten'!K$9:K$859,MATCH('2.2'!$A186,'2.2 Daten'!$B$9:$B$859,0))) -> -3.481869024 | I186: =IF($A186<>0,INDEX('2.2 Daten'!L$9:L$859,MATCH('2.2'!$A186,'2.2 Daten'!$B$9:$B$859,0))) -> -9.653465347 | J186: =IF($A186<>0,INDEX('2.2 Daten'!M$9:M$859,MATCH('2.2'!$A186,'2.2 Daten'!$B$9:$B$859,0))) -> -7.598499062 | K186: =IF($A186<>0,INDEX('2.2 Daten'!N$9:N$859,MATCH('2.2'!$A186,'2.2 Daten'!$B$9:$B$859,0))) -> -2.72132277 | L186: =IF($A186<>0,INDEX('2.2 Daten'!O$9:O$859,MATCH('2.2'!$A186,'2.2 Daten'!$B$9:$B$859,0))) -> 5.874673629
A187: =CHOOSE('2.2 Daten'!$A$2,'2.2 Daten'!B609,'2.2 Daten'!B158,'2.2 Daten'!B175,'2.2 Daten'!B192,'2.2 Daten'!B195,'2.2 Daten'!B242,'2.2 Daten'!B246,'2.2 Daten'!B301,'2.2 Daten'!B329,'2.2 Daten'!B367,'2.2 Daten'!B413,'2.2 Daten'!B511,'2.2 Daten'!B519,'2.2 Daten'!B522,'2.2 Daten'!B542,'2.2 Daten'!B552,'2.2 Daten'!B567,'2.2 Daten'!B583,x) -> Darmstadt-Dieburg | B187: =IF($A187<>0,INDEX('2.2 Daten'!C$9:C$859,MATCH('2.2'!$A187,'2.2 Daten'!$B$9:$B$859,0))," ") -> 06432000 | C187: =IF($A187<>0,INDEX('2.2 Daten'!E$9:E$859,MATCH('2.2'!$A187,'2.2 Daten'!$B$9:$B$859,0))) -> 5863 | D187: =IF($A187<>0,INDEX('2.2 Daten'!F$9:F$859,MATCH('2.2'!$A187,'2.2 Daten'!$B$9:$B$859,0))) -> 795 | E187: =IF($A187<>0,INDEX('2.2 Daten'!G$9:G$859,MATCH('2.2'!$A187,'2.2 Daten'!$B$9:$B$859,0))) -> 1055 | F187: =IF($A187<>0,INDEX('2.2 Daten'!H$9:H$859,MATCH('2.2'!$A187,'2.2 Daten'!$B$9:$B$859,0))) -> 3129 | G187: =IF($A187<>0,INDEX('2.2 Daten'!I$9:I$859,MATCH('2.2'!$A187,'2.2 Daten'!$B$9:$B$859,0))) -> 884 | H187: =IF($A187<>0,INDEX('2.2 Daten'!K$9:K$859,MATCH('2.2'!$A187,'2.2 Daten'!$B$9:$B$859,0))) -> -1.445621113 | I187: =IF($A187<>0,INDEX('2.2 Daten'!L$9:L$859,MATCH('2.2'!$A187,'2.2 Daten'!$B$9:$B$859,0))) -> -11.56840934 | J187: =IF($A187<>0,INDEX('2.2 Daten'!M$9:M$859,MATCH('2.2'!$A187,'2.2 Daten'!$B$9:$B$859,0))) -> 0.1899335233 | K187: =IF($A187<>0,INDEX('2.2 Daten'!N$9:N$859,MATCH('2.2'!$A187,'2.2 Daten'!$B$9:$B$859,0))) -> -1.510859301 | L187: =IF($A187<>0,INDEX('2.2 Daten'!O$9:O$859,MATCH('2.2'!$A187,'2.2 Daten'!$B$9:$B$859,0))) -> 7.804878049
A188: =CHOOSE('2.2 Daten'!$A$2,'2.2 Daten'!B610,'2.2 Daten'!B159,'2.2 Daten'!B176,'2.2 Daten'!B193,'2.2 Daten'!B196,'2.2 Daten'!B243,'2.2 Daten'!B247,'2.2 Daten'!B302,'2.2 Daten'!B330,'2.2 Daten'!B368,'2.2 Daten'!B414,'2.2 Daten'!B512,'2.2 Daten'!B520,'2.2 Daten'!B523,'2.2 Daten'!B543,'2.2 Daten'!B553,'2.2 Daten'!B568,'2.2 Daten'!B584,x) -> Groß-Gerau | B188: =IF($A188<>0,INDEX('2.2 Daten'!C$9:C$859,MATCH('2.2'!$A188,'2.2 Daten'!$B$9:$B$859,0))," ") -> 06433000 | C188: =IF($A188<>0,INDEX('2.2 Daten'!E$9:E$859,MATCH('2.2'!$A188,'2.2 Daten'!$B$9:$B$859,0))) -> 7584 | D188: =IF($A188<>0,INDEX('2.2 Daten'!F$9:F$859,MATCH('2.2'!$A188,'2.2 Daten'!$B$9:$B$859,0))) -> 1110 | E188: =IF($A188<>0,INDEX('2.2 Daten'!G$9:G$859,MATCH('2.2'!$A188,'2.2 Daten'!$B$9:$B$859,0))) -> 1324 | F188: =IF($A188<>0,INDEX('2.2 Daten'!H$9:H$859,MATCH('2.2'!$A188,'2.2 Daten'!$B$9:$B$859,0))) -> 3930 | G188: =IF($A188<>0,INDEX('2.2 Daten'!I$9:I$859,MATCH('2.2'!$A188,'2.2 Daten'!$B$9:$B$859,0))) -> 1220 | H188: =IF($A188<>0,INDEX('2.2 Daten'!K$9:K$859,MATCH('2.2'!$A188,'2.2 Daten'!$B$9:$B$859,0))) -> 0.2776675922 | I188: =IF($A188<>0,INDEX('2.2 Daten'!L$9:L$859,MATCH('2.2'!$A188,'2.2 Daten'!$B$9:$B$859,0))) -> -6.801007557 | J188: =IF($A188<>0,INDEX('2.2 Daten'!M$9:M$859,MATCH('2.2'!$A188,'2.2 Daten'!$B$9:$B$859,0))) -> -0.07547169811 | K188: =IF($A188<>0,INDEX('2.2 Daten'!N$9:N$859,MATCH('2.2'!$A188,'2.2 Daten'!$B$9:$B$859,0))) -> 1.367036368 | L188: =IF($A188<>0,INDEX('2.2 Daten'!O$9:O$859,MATCH('2.2'!$A188,'2.2 Daten'!$B$9:$B$859,0))) -> 4.273504274
A189: =CHOOSE('2.2 Daten'!$A$2,'2.2 Daten'!B611,'2.2 Daten'!B160,'2.2 Daten'!B177,'2.2 Daten'!B194,'2.2 Daten'!B197,'2.2 Daten'!B244,'2.2 Daten'!B248,'2.2 Daten'!B303,'2.2 Daten'!B331,'2.2 Daten'!B369,'2.2 Daten'!B415,'2.2 Daten'!B513,'2.2 Daten'!B521,'2.2 Daten'!B524,'2.2 Daten'!B544,'2.2 Daten'!B554,'2.2 Daten'!B569,'2.2 Daten'!B585,x) -> Hochtaunuskreis | B189: =IF($A189<>0,INDEX('2.2 Daten'!C$9:C$859,MATCH('2.2'!$A189,'2.2 Daten'!$B$9:$B$859,0))," ") -> 06434000 | C189: =IF($A189<>0,INDEX('2.2 Daten'!E$9:E$859,MATCH('2.2'!$A189,'2.2 Daten'!$B$9:$B$859,0))) -> 4087 | D189: =IF($A189<>0,INDEX('2.2 Daten'!F$9:F$859,MATCH('2.2'!$A189,'2.2 Daten'!$B$9:$B$859,0))) -> 568 | E189: =IF($A189<>0,INDEX('2.2 Daten'!G$9:G$859,MATCH('2.2'!$A189,'2.2 Daten'!$B$9:$B$859,0))) -> 688 | F189: =IF($A189<>0,INDEX('2.2 Daten'!H$9:H$859,MATCH('2.2'!$A189,'2.2 Daten'!$B$9:$B$859,0))) -> 2210 | G189: =IF($A189<>0,INDEX('2.2 Daten'!I$9:I$859,MATCH('2.2'!$A189,'2.2 Daten'!$B$9:$B$859,0))) -> 621 | H189: =IF($A189<>0,INDEX('2.2 Daten'!K$9:K$859,MATCH('2.2'!$A189,'2.2 Daten'!$B$9:$B$859,0))) -> -4.643023798 | I189: =IF($A189<>0,INDEX('2.2 Daten'!L$9:L$859,MATCH('2.2'!$A189,'2.2 Daten'!$B$9:$B$859,0))) -> -3.071672355 | J189: =IF($A189<>0,INDEX('2.2 Daten'!M$9:M$859,MATCH('2.2'!$A189,'2.2 Daten'!$B$9:$B$859,0))) -> -8.994708995 | K189: =IF($A189<>0,INDEX('2.2 Daten'!N$9:N$859,MATCH('2.2'!$A189,'2.2 Daten'!$B$9:$B$859,0))) -> -4.411764706 | L189: =IF($A189<>0,INDEX('2.2 Daten'!O$9:O$859,MATCH('2.2'!$A189,'2.2 Daten'!$B$9:$B$859,0))) -> -1.740506329
A190: =CHOOSE('2.2 Daten'!$A$2,'2.2 Daten'!B612,'2.2 Daten'!B161,'2.2 Daten'!B178,'2.2 Daten'!B195,'2.2 Daten'!B198,'2.2 Daten'!B245,'2.2 Daten'!B249,'2.2 Daten'!B304,'2.2 Daten'!B332,'2.2 Daten'!B370,'2.2 Daten'!B416,'2.2 Daten'!B514,'2.2 Daten'!B522,'2.2 Daten'!B525,'2.2 Daten'!B545,'2.2 Daten'!B555,'2.2 Daten'!B570,'2.2 Daten'!B586,x) -> Main-Kinzig-Kreis | B190: =IF($A190<>0,INDEX('2.2 Daten'!C$9:C$859,MATCH('2.2'!$A190,'2.2 Daten'!$B$9:$B$859,0))," ") -> 06435000 | C190: =IF($A190<>0,INDEX('2.2 Daten'!E$9:E$859,MATCH('2.2'!$A190,'2.2 Daten'!$B$9:$B$859,0))) -> 9880 | D190: =IF($A190<>0,INDEX('2.2 Daten'!F$9:F$859,MATCH('2.2'!$A190,'2.2 Daten'!$B$9:$B$859,0))) -> 1365 | E190: =IF($A190<>0,INDEX('2.2 Daten'!G$9:G$859,MATCH('2.2'!$A190,'2.2 Daten'!$B$9:$B$859,0))) -> 1736 | F190: =IF($A190<>0,INDEX('2.2 Daten'!H$9:H$859,MATCH('2.2'!$A190,'2.2 Daten'!$B$9:$B$859,0))) -> 5218 | G190: =IF($A190<>0,INDEX('2.2 Daten'!I$9:I$859,MATCH('2.2'!$A190,'2.2 Daten'!$B$9:$B$859,0))) -> 1561 | H190: =IF($A190<>0,INDEX('2.2 Daten'!K$9:K$859,MATCH('2.2'!$A190,'2.2 Daten'!$B$9:$B$859,0))) -> -0.2423263328 | I190: =IF($A190<>0,INDEX('2.2 Daten'!L$9:L$859,MATCH('2.2'!$A190,'2.2 Daten'!$B$9:$B$859,0))) -> -5.862068966 | J190: =IF($A190<>0,INDEX('2.2 Daten'!M$9:M$859,MATCH('2.2'!$A190,'2.2 Daten'!$B$9:$B$859,0))) -> -2.086858432 | K190: =IF($A190<>0,INDEX('2.2 Daten'!N$9:N$859,MATCH('2.2'!$A190,'2.2 Daten'!$B$9:$B$859,0))) -> 0.1151189563 | L190: =IF($A190<>0,INDEX('2.2 Daten'!O$9:O$859,MATCH('2.2'!$A190,'2.2 Daten'!$B$9:$B$859,0))) -> 6.262763785
A191: =CHOOSE('2.2 Daten'!$A$2,'2.2 Daten'!B613,'2.2 Daten'!B162,'2.2 Daten'!B179,'2.2 Daten'!B196,'2.2 Daten'!B199,'2.2 Daten'!B246,'2.2 Daten'!B250,'2.2 Daten'!B305,'2.2 Daten'!B333,'2.2 Daten'!B371,'2.2 Daten'!B417,'2.2 Daten'!B515,'2.2 Daten'!B523,'2.2 Daten'!B526,'2.2 Daten'!B546,'2.2 Daten'!B556,'2.2 Daten'!B571,'2.2 Daten'!B587,x) -> Main-Taunus-Kreis | B191: =IF($A191<>0,INDEX('2.2 Daten'!C$9:C$859,MATCH('2.2'!$A191,'2.2 Daten'!$B$9:$B$859,0))," ") -> 06436000 | C191: =IF($A191<>0,INDEX('2.2 Daten'!E$9:E$859,MATCH('2.2'!$A191,'2.2 Daten'!$B$9:$B$859,0))) -> 4402 | D191: =IF($A191<>0,INDEX('2.2 Daten'!F$9:F$859,MATCH('2.2'!$A191,'2.2 Daten'!$B$9:$B$859,0))) -> 587 | E191: =IF($A191<>0,INDEX('2.2 Daten'!G$9:G$859,MATCH('2.2'!$A191,'2.2 Daten'!$B$9:$B$859,0))) -> 745 | F191: =IF($A191<>0,INDEX('2.2 Daten'!H$9:H$859,MATCH('2.2'!$A191,'2.2 Daten'!$B$9:$B$859,0))) -> 2369 | G191: =IF($A191<>0,INDEX('2.2 Daten'!I$9:I$859,MATCH('2.2'!$A191,'2.2 Daten'!$B$9:$B$859,0))) -> 701 | H191: =IF($A191<>0,INDEX('2.2 Daten'!K$9:K$859,MATCH('2.2'!$A191,'2.2 Daten'!$B$9:$B$859,0))) -> -0.9450945095 | I191: =IF($A191<>0,INDEX('2.2 Daten'!L$9:L$859,MATCH('2.2'!$A191,'2.2 Daten'!$B$9:$B$859,0))) -> -1.178451178 | J191: =IF($A191<>0,INDEX('2.2 Daten'!M$9:M$859,MATCH('2.2'!$A191,'2.2 Daten'!$B$9:$B$859,0))) -> -3.246753247 | K191: =IF($A191<>0,INDEX('2.2 Daten'!N$9:N$859,MATCH('2.2'!$A191,'2.2 Daten'!$B$9:$B$859,0))) -> -1.209341118 | L191: =IF($A191<>0,INDEX('2.2 Daten'!O$9:O$859,MATCH('2.2'!$A191,'2.2 Daten'!$B$9:$B$859,0))) -> 2.785923754
A192: =CHOOSE('2.2 Daten'!$A$2,'2.2 Daten'!B614,'2.2 Daten'!B163,'2.2 Daten'!B180,'2.2 Daten'!B197,'2.2 Daten'!B200,'2.2 Daten'!B247,'2.2 Daten'!B251,'2.2 Daten'!B306,'2.2 Daten'!B334,'2.2 Daten'!B372,'2.2 Daten'!B418,'2.2 Daten'!B516,'2.2 Daten'!B524,'2.2 Daten'!B527,'2.2 Daten'!B547,'2.2 Daten'!B557,'2.2 Daten'!B572,'2.2 Daten'!B588,x) -> Odenwaldkreis | B192: =IF($A192<>0,INDEX('2.2 Daten'!C$9:C$859,MATCH('2.2'!$A192,'2.2 Daten'!$B$9:$B$859,0))," ") -> 06437000 | C192: =IF($A192<>0,INDEX('2.2 Daten'!E$9:E$859,MATCH('2.2'!$A192,'2.2 Daten'!$B$9:$B$859,0))) -> 1827 | D192: =IF($A192<>0,INDEX('2.2 Daten'!F$9:F$859,MATCH('2.2'!$A192,'2.2 Daten'!$B$9:$B$859,0))) -> 286 | E192: =IF($A192<>0,INDEX('2.2 Daten'!G$9:G$859,MATCH('2.2'!$A192,'2.2 Daten'!$B$9:$B$859,0))) -> 343 | F192: =IF($A192<>0,INDEX('2.2 Daten'!H$9:H$859,MATCH('2.2'!$A192,'2.2 Daten'!$B$9:$B$859,0))) -> 937 | G192: =IF($A192<>0,INDEX('2.2 Daten'!I$9:I$859,MATCH('2.2'!$A192,'2.2 Daten'!$B$9:$B$859,0))) -> 261 | H192: =IF($A192<>0,INDEX('2.2 Daten'!K$9:K$859,MATCH('2.2'!$A192,'2.2 Daten'!$B$9:$B$859,0))) -> -3.230932203 | I192: =IF($A192<>0,INDEX('2.2 Daten'!L$9:L$859,MATCH('2.2'!$A192,'2.2 Daten'!$B$9:$B$859,0))) -> -8.626198083 | J192: =IF($A192<>0,INDEX('2.2 Daten'!M$9:M$859,MATCH('2.2'!$A192,'2.2 Daten'!$B$9:$B$859,0))) -> -2 | K192: =IF($A192<>0,INDEX('2.2 Daten'!N$9:N$859,MATCH('2.2'!$A192,'2.2 Daten'!$B$9:$B$859,0))) -> 0.6444683136 | L192: =IF($A192<>0,INDEX('2.2 Daten'!O$9:O$859,MATCH('2.2'!$A192,'2.2 Daten'!$B$9:$B$859,0))) -> -11.2244898
A193: =CHOOSE('2.2 Daten'!$A$2,'2.2 Daten'!B615,'2.2 Daten'!B164,'2.2 Daten'!B181,'2.2 Daten'!B198,'2.2 Daten'!B201,'2.2 Daten'!B248,'2.2 Daten'!B252,'2.2 Daten'!B307,'2.2 Daten'!B335,'2.2 Daten'!B373,'2.2 Daten'!B419,'2.2 Daten'!B517,'2.2 Daten'!B525,'2.2 Daten'!B528,'2.2 Daten'!B548,'2.2 Daten'!B558,'2.2 Daten'!B573,'2.2 Daten'!B589,x) -> Offenbach | B193: =IF($A193<>0,INDEX('2.2 Daten'!C$9:C$859,MATCH('2.2'!$A193,'2.2 Daten'!$B$9:$B$859,0))," ") -> 06438000 | C193: =IF($A193<>0,INDEX('2.2 Daten'!E$9:E$859,MATCH('2.2'!$A193,'2.2 Daten'!$B$9:$B$859,0))) -> 8422 | D193: =IF($A193<>0,INDEX('2.2 Daten'!F$9:F$859,MATCH('2.2'!$A193,'2.2 Daten'!$B$9:$B$859,0))) -> 1228 | E193: =IF($A193<>0,INDEX('2.2 Daten'!G$9:G$859,MATCH('2.2'!$A193,'2.2 Daten'!$B$9:$B$859,0))) -> 1524 | F193: =IF($A193<>0,INDEX('2.2 Daten'!H$9:H$859,MATCH('2.2'!$A193,'2.2 Daten'!$B$9:$B$859,0))) -> 4385 | G193: =IF($A193<>0,INDEX('2.2 Daten'!I$9:I$859,MATCH('2.2'!$A193,'2.2 Daten'!$B$9:$B$859,0))) -> 1285 | H193: =IF($A193<>0,INDEX('2.2 Daten'!K$9:K$859,MATCH('2.2'!$A193,'2.2 Daten'!$B$9:$B$859,0))) -> 0.02375296912 | I193: =IF($A193<>0,INDEX('2.2 Daten'!L$9:L$859,MATCH('2.2'!$A193,'2.2 Daten'!$B$9:$B$859,0))) -> -3.761755486 | J193: =IF($A193<>0,INDEX('2.2 Daten'!M$9:M$859,MATCH('2.2'!$A193,'2.2 Daten'!$B$9:$B$859,0))) -> -0.1964636542 | K193: =IF($A193<>0,INDEX('2.2 Daten'!N$9:N$859,MATCH('2.2'!$A193,'2.2 Daten'!$B$9:$B$859,0))) -> 0 | L193: =IF($A193<>0,INDEX('2.2 Daten'!O$9:O$859,MATCH('2.2'!$A193,'2.2 Daten'!$B$9:$B$859,0))) -> 4.301948052
A194: =CHOOSE('2.2 Daten'!$A$2,'2.2 Daten'!B616,'2.2 Daten'!B165,'2.2 Daten'!B182,'2.2 Daten'!B199,'2.2 Daten'!B202,'2.2 Daten'!B249,'2.2 Daten'!B253,'2.2 Daten'!B308,'2.2 Daten'!B336,'2.2 Daten'!B374,'2.2 Daten'!B420,'2.2 Daten'!B518,'2.2 Daten'!B526,'2.2 Daten'!B529,'2.2 Daten'!B549,'2.2 Daten'!B559,'2.2 Daten'!B574,'2.2 Daten'!B590,x) -> Rheingau-Taunus-Kreis | B194: =IF($A194<>0,INDEX('2.2 Daten'!C$9:C$859,MATCH('2.2'!$A194,'2.2 Daten'!$B$9:$B$859,0))," ") -> 06439000 | C194: =IF($A194<>0,INDEX('2.2 Daten'!E$9:E$859,MATCH('2.2'!$A194,'2.2 Daten'!$B$9:$B$859,0))) -> 3729 | D194: =IF($A194<>0,INDEX('2.2 Daten'!F$9:F$859,MATCH('2.2'!$A194,'2.2 Daten'!$B$9:$B$859,0))) -> 501 | E194: =IF($A194<>0,INDEX('2.2 Daten'!G$9:G$859,MATCH('2.2'!$A194,'2.2 Daten'!$B$9:$B$859,0))) -> 608 | F194: =IF($A194<>0,INDEX('2.2 Daten'!H$9:H$859,MATCH('2.2'!$A194,'2.2 Daten'!$B$9:$B$859,0))) -> 2036 | G194: =IF($A194<>0,INDEX('2.2 Daten'!I$9:I$859,MATCH('2.2'!$A194,'2.2 Daten'!$B$9:$B$859,0))) -> 584 | H194: =IF($A194<>0,INDEX('2.2 Daten'!K$9:K$859,MATCH('2.2'!$A194,'2.2 Daten'!$B$9:$B$859,0))) -> -0.56 | I194: =IF($A194<>0,INDEX('2.2 Daten'!L$9:L$859,MATCH('2.2'!$A194,'2.2 Daten'!$B$9:$B$859,0))) -> -3.838771593 | J194: =IF($A194<>0,INDEX('2.2 Daten'!M$9:M$859,MATCH('2.2'!$A194,'2.2 Daten'!$B$9:$B$859,0))) -> -10.85043988 | K194: =IF($A194<>0,INDEX('2.2 Daten'!N$9:N$859,MATCH('2.2'!$A194,'2.2 Daten'!$B$9:$B$859,0))) -> 2.828282828 | L194: =IF($A194<>0,INDEX('2.2 Daten'!O$9:O$859,MATCH('2.2'!$A194,'2.2 Daten'!$B$9:$B$859,0))) -> 2.998236332
A195: =CHOOSE('2.2 Daten'!$A$2,'2.2 Daten'!B617,'2.2 Daten'!B166,'2.2 Daten'!B183,'2.2 Daten'!B200,'2.2 Daten'!B203,'2.2 Daten'!B250,'2.2 Daten'!B254,'2.2 Daten'!B309,'2.2 Daten'!B337,'2.2 Daten'!B375,'2.2 Daten'!B421,'2.2 Daten'!B519,'2.2 Daten'!B527,'2.2 Daten'!B530,'2.2 Daten'!B550,'2.2 Daten'!B560,'2.2 Daten'!B575,'2.2 Daten'!B591,x) -> Wetteraukreis | B195: =IF($A195<>0,INDEX('2.2 Daten'!C$9:C$859,MATCH('2.2'!$A195,'2.2 Daten'!$B$9:$B$859,0))," ") -> 06440000 | C195: =IF($A195<>0,INDEX('2.2 Daten'!E$9:E$859,MATCH('2.2'!$A195,'2.2 Daten'!$B$9:$B$859,0))) -> 5559 | D195: =IF($A195<>0,INDEX('2.2 Daten'!F$9:F$859,MATCH('2.2'!$A195,'2.2 Daten'!$B$9:$B$859,0))) -> 841 | E195: =IF($A195<>0,INDEX('2.2 Daten'!G$9:G$859,MATCH('2.2'!$A195,'2.2 Daten'!$B$9:$B$859,0))) -> 958 | F195: =IF($A195<>0,INDEX('2.2 Daten'!H$9:H$859,MATCH('2.2'!$A195,'2.2 Daten'!$B$9:$B$859,0))) -> 2918 | G195: =IF($A195<>0,INDEX('2.2 Daten'!I$9:I$859,MATCH('2.2'!$A195,'2.2 Daten'!$B$9:$B$859,0))) -> 842 | H195: =IF($A195<>0,INDEX('2.2 Daten'!K$9:K$859,MATCH('2.2'!$A195,'2.2 Daten'!$B$9:$B$859,0))) -> -1.558349566 | I195: =IF($A195<>0,INDEX('2.2 Daten'!L$9:L$859,MATCH('2.2'!$A195,'2.2 Daten'!$B$9:$B$859,0))) -> -0.8254716981 | J195: =IF($A195<>0,INDEX('2.2 Daten'!M$9:M$859,MATCH('2.2'!$A195,'2.2 Daten'!$B$9:$B$859,0))) -> -3.036437247 | K195: =IF($A195<>0,INDEX('2.2 Daten'!N$9:N$859,MATCH('2.2'!$A195,'2.2 Daten'!$B$9:$B$859,0))) -> -0.815771584 | L195: =IF($A195<>0,INDEX('2.2 Daten'!O$9:O$859,MATCH('2.2'!$A195,'2.2 Daten'!$B$9:$B$859,0))) -> -3.107019563
A196: =CHOOSE('2.2 Daten'!$A$2,'2.2 Daten'!B618,'2.2 Daten'!B167,'2.2 Daten'!B184,'2.2 Daten'!B201,'2.2 Daten'!B204,'2.2 Daten'!B251,'2.2 Daten'!B255,'2.2 Daten'!B310,'2.2 Daten'!B338,'2.2 Daten'!B376,'2.2 Daten'!B422,'2.2 Daten'!B520,'2.2 Daten'!B528,'2.2 Daten'!B531,'2.2 Daten'!B551,'2.2 Daten'!B561,'2.2 Daten'!B576,'2.2 Daten'!B592,x) -> Gießen | B196: =IF($A196<>0,INDEX('2.2 Daten'!C$9:C$859,MATCH('2.2'!$A196,'2.2 Daten'!$B$9:$B$859,0))," ") -> 06531000 | C196: =IF($A196<>0,INDEX('2.2 Daten'!E$9:E$859,MATCH('2.2'!$A196,'2.2 Daten'!$B$9:$B$859,0))) -> 7642 | D196: =IF($A196<>0,INDEX('2.2 Daten'!F$9:F$859,MATCH('2.2'!$A196,'2.2 Daten'!$B$9:$B$859,0))) -> 1185 | E196: =IF($A196<>0,INDEX('2.2 Daten'!G$9:G$859,MATCH('2.2'!$A196,'2.2 Daten'!$B$9:$B$859,0))) -> 1392 | F196: =IF($A196<>0,INDEX('2.2 Daten'!H$9:H$859,MATCH('2.2'!$A196,'2.2 Daten'!$B$9:$B$859,0))) -> 3971 | G196: =IF($A196<>0,INDEX('2.2 Daten'!I$9:I$859,MATCH('2.2'!$A196,'2.2 Daten'!$B$9:$B$859,0))) -> 1094 | H196: =IF($A196<>0,INDEX('2.2 Daten'!K$9:K$859,MATCH('2.2'!$A196,'2.2 Daten'!$B$9:$B$859,0))) -> 0.8046431869 | I196: =IF($A196<>0,INDEX('2.2 Daten'!L$9:L$859,MATCH('2.2'!$A196,'2.2 Daten'!$B$9:$B$859,0))) -> -2.549342105 | J196: =IF($A196<>0,INDEX('2.2 Daten'!M$9:M$859,MATCH('2.2'!$A196,'2.2 Daten'!$B$9:$B$859,0))) -> -2.996515679 | K196: =IF($A196<>0,INDEX('2.2 Daten'!N$9:N$859,MATCH('2.2'!$A196,'2.2 Daten'!$B$9:$B$859,0))) -> 2.63634014 | L196: =IF($A196<>0,INDEX('2.2 Daten'!O$9:O$859,MATCH('2.2'!$A196,'2.2 Daten'!$B$9:$B$859,0))) -> 3.110273327
A197: =CHOOSE('2.2 Daten'!$A$2,'2.2 Daten'!B619,'2.2 Daten'!B168,'2.2 Daten'!B185,'2.2 Daten'!B202,'2.2 Daten'!B205,'2.2 Daten'!B252,'2.2 Daten'!B256,'2.2 Daten'!B311,'2.2 Daten'!B339,'2.2 Daten'!B377,'2.2 Daten'!B423,'2.2 Daten'!B521,'2.2 Daten'!B529,'2.2 Daten'!B532,'2.2 Daten'!B552,'2.2 Daten'!B562,'2.2 Daten'!B577,'2.2 Daten'!B593,x) -> Lahn-Dill-Kreis | B197: =IF($A197<>0,INDEX('2.2 Daten'!C$9:C$859,MATCH('2.2'!$A197,'2.2 Daten'!$B$9:$B$859,0))," ") -> 06532000 | C197: =IF($A197<>0,INDEX('2.2 Daten'!E$9:E$859,MATCH('2.2'!$A197,'2.2 Daten'!$B$9:$B$859,0))) -> 6873 | D197: =IF($A197<>0,INDEX('2.2 Daten'!F$9:F$859,MATCH('2.2'!$A197,'2.2 Daten'!$B$9:$B$859,0))) -> 1048 | E197: =IF($A197<>0,INDEX('2.2 Daten'!G$9:G$859,MATCH('2.2'!$A197,'2.2 Daten'!$B$9:$B$859,0))) -> 1235 | F197: =IF($A197<>0,INDEX('2.2 Daten'!H$9:H$859,MATCH('2.2'!$A197,'2.2 Daten'!$B$9:$B$859,0))) -> 3556 | G197: =IF($A197<>0,INDEX('2.2 Daten'!I$9:I$859,MATCH('2.2'!$A197,'2.2 Daten'!$B$9:$B$859,0))) -> 1034 | H197: =IF($A197<>0,INDEX('2.2 Daten'!K$9:K$859,MATCH('2.2'!$A197,'2.2 Daten'!$B$9:$B$859,0))) -> 2.643369176 | I197: =IF($A197<>0,INDEX('2.2 Daten'!L$9:L$859,MATCH('2.2'!$A197,'2.2 Daten'!$B$9:$B$859,0))) -> 1.256038647 | J197: =IF($A197<>0,INDEX('2.2 Daten'!M$9:M$859,MATCH('2.2'!$A197,'2.2 Daten'!$B$9:$B$859,0))) -> -0.1616814875 | K197: =IF($A197<>0,INDEX('2.2 Daten'!N$9:N$859,MATCH('2.2'!$A197,'2.2 Daten'!$B$9:$B$859,0))) -> 2.154553289 | L197: =IF($A197<>0,INDEX('2.2 Daten'!O$9:O$859,MATCH('2.2'!$A197,'2.2 Daten'!$B$9:$B$859,0))) -> 9.650053022
A198: =CHOOSE('2.2 Daten'!$A$2,'2.2 Daten'!B620,'2.2 Daten'!B169,'2.2 Daten'!B186,'2.2 Daten'!B203,'2.2 Daten'!B206,'2.2 Daten'!B253,'2.2 Daten'!B257,'2.2 Daten'!B312,'2.2 Daten'!B340,'2.2 Daten'!B378,'2.2 Daten'!B424,'2.2 Daten'!B522,'2.2 Daten'!B530,'2.2 Daten'!B533,'2.2 Daten'!B553,'2.2 Daten'!B563,'2.2 Daten'!B578,'2.2 Daten'!B594,x) -> Limburg-Weilburg | B198: =IF($A198<>0,INDEX('2.2 Daten'!C$9:C$859,MATCH('2.2'!$A198,'2.2 Daten'!$B$9:$B$859,0))," ") -> 06533000 | C198: =IF($A198<>0,INDEX('2.2 Daten'!E$9:E$859,MATCH('2.2'!$A198,'2.2 Daten'!$B$9:$B$859,0))) -> 3862 | D198: =IF($A198<>0,INDEX('2.2 Daten'!F$9:F$859,MATCH('2.2'!$A198,'2.2 Daten'!$B$9:$B$859,0))) -> 596 | E198: =IF($A198<>0,INDEX('2.2 Daten'!G$9:G$859,MATCH('2.2'!$A198,'2.2 Daten'!$B$9:$B$859,0))) -> 615 | F198: =IF($A198<>0,INDEX('2.2 Daten'!H$9:H$859,MATCH('2.2'!$A198,'2.2 Daten'!$B$9:$B$859,0))) -> 2028 | G198: =IF($A198<>0,INDEX('2.2 Daten'!I$9:I$859,MATCH('2.2'!$A198,'2.2 Daten'!$B$9:$B$859,0))) -> 623 | H198: =IF($A198<>0,INDEX('2.2 Daten'!K$9:K$859,MATCH('2.2'!$A198,'2.2 Daten'!$B$9:$B$859,0))) -> 2.603613177 | I198: =IF($A198<>0,INDEX('2.2 Daten'!L$9:L$859,MATCH('2.2'!$A198,'2.2 Daten'!$B$9:$B$859,0))) -> 2.405498282 | J198: =IF($A198<>0,INDEX('2.2 Daten'!M$9:M$859,MATCH('2.2'!$A198,'2.2 Daten'!$B$9:$B$859,0))) -> -7.934131737 | K198: =IF($A198<>0,INDEX('2.2 Daten'!N$9:N$859,MATCH('2.2'!$A198,'2.2 Daten'!$B$9:$B$859,0))) -> 4.428424305 | L198: =IF($A198<>0,INDEX('2.2 Daten'!O$9:O$859,MATCH('2.2'!$A198,'2.2 Daten'!$B$9:$B$859,0))) -> 8.916083916
A199: =CHOOSE('2.2 Daten'!$A$2,'2.2 Daten'!B621,'2.2 Daten'!B170,'2.2 Daten'!B187,'2.2 Daten'!B204,'2.2 Daten'!B207,'2.2 Daten'!B254,'2.2 Daten'!B258,'2.2 Daten'!B313,'2.2 Daten'!B341,'2.2 Daten'!B379,'2.2 Daten'!B425,'2.2 Daten'!B523,'2.2 Daten'!B531,'2.2 Daten'!B534,'2.2 Daten'!B554,'2.2 Daten'!B564,'2.2 Daten'!B579,'2.2 Daten'!B595,x) -> Marburg-Biedenkopf | B199: =IF($A199<>0,INDEX('2.2 Daten'!C$9:C$859,MATCH('2.2'!$A199,'2.2 Daten'!$B$9:$B$859,0))," ") -> 06534000 | C199: =IF($A199<>0,INDEX('2.2 Daten'!E$9:E$859,MATCH('2.2'!$A199,'2.2 Daten'!$B$9:$B$859,0))) -> 4725 | D199: =IF($A199<>0,INDEX('2.2 Daten'!F$9:F$859,MATCH('2.2'!$A199,'2.2 Daten'!$B$9:$B$859,0))) -> 721 | E199: =IF($A199<>0,INDEX('2.2 Daten'!G$9:G$859,MATCH('2.2'!$A199,'2.2 Daten'!$B$9:$B$859,0))) -> 837 | F199: =IF($A199<>0,INDEX('2.2 Daten'!H$9:H$859,MATCH('2.2'!$A199,'2.2 Daten'!$B$9:$B$859,0))) -> 2435 | G199: =IF($A199<>0,INDEX('2.2 Daten'!I$9:I$859,MATCH('2.2'!$A199,'2.2 Daten'!$B$9:$B$859,0))) -> 732 | H199: =IF($A199<>0,INDEX('2.2 Daten'!K$9:K$859,MATCH('2.2'!$A199,'2.2 Daten'!$B$9:$B$859,0))) -> 1.242768374 | I199: =IF($A199<>0,INDEX('2.2 Daten'!L$9:L$859,MATCH('2.2'!$A199,'2.2 Daten'!$B$9:$B$859,0))) -> 0.9803921569 | J199: =IF($A199<>0,INDEX('2.2 Daten'!M$9:M$859,MATCH('2.2'!$A199,'2.2 Daten'!$B$9:$B$859,0))) -> -1.180637544 | K199: =IF($A199<>0,INDEX('2.2 Daten'!N$9:N$859,MATCH('2.2'!$A199,'2.2 Daten'!$B$9:$B$859,0))) -> 0.08220304151 | L199: =IF($A199<>0,INDEX('2.2 Daten'!O$9:O$859,MATCH('2.2'!$A199,'2.2 Daten'!$B$9:$B$859,0))) -> 8.766716196
A200: =CHOOSE('2.2 Daten'!$A$2,'2.2 Daten'!B622,'2.2 Daten'!B171,'2.2 Daten'!B188,'2.2 Daten'!B205,'2.2 Daten'!B208,'2.2 Daten'!B255,'2.2 Daten'!B259,'2.2 Daten'!B314,'2.2 Daten'!B342,'2.2 Daten'!B380,'2.2 Daten'!B426,'2.2 Daten'!B524,'2.2 Daten'!B532,'2.2 Daten'!B535,'2.2 Daten'!B555,'2.2 Daten'!B565,'2.2 Daten'!B580,'2.2 Daten'!B596,x) -> Vogelsbergkreis | B200: =IF($A200<>0,INDEX('2.2 Daten'!C$9:C$859,MATCH('2.2'!$A200,'2.2 Daten'!$B$9:$B$859,0))," ") -> 06535000 | C200: =IF($A200<>0,INDEX('2.2 Daten'!E$9:E$859,MATCH('2.2'!$A200,'2.2 Daten'!$B$9:$B$859,0))) -> 1715 | D200: =IF($A200<>0,INDEX('2.2 Daten'!F$9:F$859,MATCH('2.2'!$A200,'2.2 Daten'!$B$9:$B$859,0))) -> 279 | E200: =IF($A200<>0,INDEX('2.2 Daten'!G$9:G$859,MATCH('2.2'!$A200,'2.2 Daten'!$B$9:$B$859,0))) -> 304 | F200: =IF($A200<>0,INDEX('2.2 Daten'!H$9:H$859,MATCH('2.2'!$A200,'2.2 Daten'!$B$9:$B$859,0))) -> 888 | G200: =IF($A200<>0,INDEX('2.2 Daten'!I$9:I$859,MATCH('2.2'!$A200,'2.2 Daten'!$B$9:$B$859,0))) -> 244 | H200: =IF($A200<>0,INDEX('2.2 Daten'!K$9:K$859,MATCH('2.2'!$A200,'2.2 Daten'!$B$9:$B$859,0))) -> 0.4098360656 | I200: =IF($A200<>0,INDEX('2.2 Daten'!L$9:L$859,MATCH('2.2'!$A200,'2.2 Daten'!$B$9:$B$859,0))) -> 0.3597122302 | J200: =IF($A200<>0,INDEX('2.2 Daten'!M$9:M$859,MATCH('2.2'!$A200,'2.2 Daten'!$B$9:$B$859,0))) -> -6.748466258 | K200: =IF($A200<>0,INDEX('2.2 Daten'!N$9:N$859,MATCH('2.2'!$A200,'2.2 Daten'!$B$9:$B$859,0))) -> 2.068965517 | L200: =IF($A200<>0,INDEX('2.2 Daten'!O$9:O$859,MATCH('2.2'!$A200,'2.2 Daten'!$B$9:$B$859,0))) -> 4.273504274
A201: =CHOOSE('2.2 Daten'!$A$2,'2.2 Daten'!B623,'2.2 Daten'!B172,'2.2 Daten'!B189,'2.2 Daten'!B206,'2.2 Daten'!B209,'2.2 Daten'!B256,'2.2 Daten'!B260,'2.2 Daten'!B315,'2.2 Daten'!B343,'2.2 Daten'!B381,'2.2 Daten'!B427,'2.2 Daten'!B525,'2.2 Daten'!B533,'2.2 Daten'!B536,'2.2 Daten'!B556,'2.2 Daten'!B566,'2.2 Daten'!B581,'2.2 Daten'!B597,x) -> Kassel, documenta-Stadt | B201: =IF($A201<>0,INDEX('2.2 Daten'!C$9:C$859,MATCH('2.2'!$A201,'2.2 Daten'!$B$9:$B$859,0))," ") -> 06611000 | C201: =IF($A201<>0,INDEX('2.2 Daten'!E$9:E$859,MATCH('2.2'!$A201,'2.2 Daten'!$B$9:$B$859,0))) -> 8681 | D201: =IF($A201<>0,INDEX('2.2 Daten'!F$9:F$859,MATCH('2.2'!$A201,'2.2 Daten'!$B$9:$B$859,0))) -> 1423 | E201: =IF($A201<>0,INDEX('2.2 Daten'!G$9:G$859,MATCH('2.2'!$A201,'2.2 Daten'!$B$9:$B$859,0))) -> 1598 | F201: =IF($A201<>0,INDEX('2.2 Daten'!H$9:H$859,MATCH('2.2'!$A201,'2.2 Daten'!$B$9:$B$859,0))) -> 4392 | G201: =IF($A201<>0,INDEX('2.2 Daten'!I$9:I$859,MATCH('2.2'!$A201,'2.2 Daten'!$B$9:$B$859,0))) -> 1268 | H201: =IF($A201<>0,INDEX('2.2 Daten'!K$9:K$859,MATCH('2.2'!$A201,'2.2 Daten'!$B$9:$B$859,0))) -> -4.844897512 | I201: =IF($A201<>0,INDEX('2.2 Daten'!L$9:L$859,MATCH('2.2'!$A201,'2.2 Daten'!$B$9:$B$859,0))) -> -8.31185567 | J201: =IF($A201<>0,INDEX('2.2 Daten'!M$9:M$859,MATCH('2.2'!$A201,'2.2 Daten'!$B$9:$B$859,0))) -> -8.789954338 | K201: =IF($A201<>0,INDEX('2.2 Daten'!N$9:N$859,MATCH('2.2'!$A201,'2.2 Daten'!$B$9:$B$859,0))) -> -3.684210526 | L201: =IF($A201<>0,INDEX('2.2 Daten'!O$9:O$859,MATCH('2.2'!$A201,'2.2 Daten'!$B$9:$B$859,0))) -> 0.714853058
A202: =CHOOSE('2.2 Daten'!$A$2,'2.2 Daten'!B624,'2.2 Daten'!B173,'2.2 Daten'!B190,'2.2 Daten'!B207,'2.2 Daten'!B210,'2.2 Daten'!B257,'2.2 Daten'!B261,'2.2 Daten'!B316,'2.2 Daten'!B344,'2.2 Daten'!B382,'2.2 Daten'!B428,'2.2 Daten'!B526,'2.2 Daten'!B534,'2.2 Daten'!B537,'2.2 Daten'!B557,'2.2 Daten'!B567,'2.2 Daten'!B582,'2.2 Daten'!B598,x) -> Fulda | B202: =IF($A202<>0,INDEX('2.2 Daten'!C$9:C$859,MATCH('2.2'!$A202,'2.2 Daten'!$B$9:$B$859,0))," ") -> 06631000 | C202: =IF($A202<>0,INDEX('2.2 Daten'!E$9:E$859,MATCH('2.2'!$A202,'2.2 Daten'!$B$9:$B$859,0))) -> 3809 | D202: =IF($A202<>0,INDEX('2.2 Daten'!F$9:F$859,MATCH('2.2'!$A202,'2.2 Daten'!$B$9:$B$859,0))) -> 563 | E202: =IF($A202<>0,INDEX('2.2 Daten'!G$9:G$859,MATCH('2.2'!$A202,'2.2 Daten'!$B$9:$B$859,0))) -> 699 | F202: =IF($A202<>0,INDEX('2.2 Daten'!H$9:H$859,MATCH('2.2'!$A202,'2.2 Daten'!$B$9:$B$859,0))) -> 1995 | G202: =IF($A202<>0,INDEX('2.2 Daten'!I$9:I$859,MATCH('2.2'!$A202,'2.2 Daten'!$B$9:$B$859,0))) -> 552 | H202: =IF($A202<>0,INDEX('2.2 Daten'!K$9:K$859,MATCH('2.2'!$A202,'2.2 Daten'!$B$9:$B$859,0))) -> -0.3401360544 | I202: =IF($A202<>0,INDEX('2.2 Daten'!L$9:L$859,MATCH('2.2'!$A202,'2.2 Daten'!$B$9:$B$859,0))) -> -7.855973813 | J202: =IF($A202<>0,INDEX('2.2 Daten'!M$9:M$859,MATCH('2.2'!$A202,'2.2 Daten'!$B$9:$B$859,0))) -> 3.097345133 | K202: =IF($A202<>0,INDEX('2.2 Daten'!N$9:N$859,MATCH('2.2'!$A202,'2.2 Daten'!$B$9:$B$859,0))) -> -0.20010005 | L202: =IF($A202<>0,INDEX('2.2 Daten'!O$9:O$859,MATCH('2.2'!$A202,'2.2 Daten'!$B$9:$B$859,0))) -> 3.370786517
A203: =CHOOSE('2.2 Daten'!$A$2,'2.2 Daten'!B625,'2.2 Daten'!B174,'2.2 Daten'!B191,'2.2 Daten'!B208,'2.2 Daten'!B211,'2.2 Daten'!B258,'2.2 Daten'!B262,'2.2 Daten'!B317,'2.2 Daten'!B345,'2.2 Daten'!B383,'2.2 Daten'!B429,'2.2 Daten'!B527,'2.2 Daten'!B535,'2.2 Daten'!B538,'2.2 Daten'!B558,'2.2 Daten'!B568,'2.2 Daten'!B583,'2.2 Daten'!B599,x) -> Hersfeld-Rotenburg | B203: =IF($A203<>0,INDEX('2.2 Daten'!C$9:C$859,MATCH('2.2'!$A203,'2.2 Daten'!$B$9:$B$859,0))," ") -> 06632000 | C203: =IF($A203<>0,INDEX('2.2 Daten'!E$9:E$859,MATCH('2.2'!$A203,'2.2 Daten'!$B$9:$B$859,0))) -> 2277 | D203: =IF($A203<>0,INDEX('2.2 Daten'!F$9:F$859,MATCH('2.2'!$A203,'2.2 Daten'!$B$9:$B$859,0))) -> 329 | E203: =IF($A203<>0,INDEX('2.2 Daten'!G$9:G$859,MATCH('2.2'!$A203,'2.2 Daten'!$B$9:$B$859,0))) -> 409 | F203: =IF($A203<>0,INDEX('2.2 Daten'!H$9:H$859,MATCH('2.2'!$A203,'2.2 Daten'!$B$9:$B$859,0))) -> 1210 | G203: =IF($A203<>0,INDEX('2.2 Daten'!I$9:I$859,MATCH('2.2'!$A203,'2.2 Daten'!$B$9:$B$859,0))) -> 329 | H203: =IF($A203<>0,INDEX('2.2 Daten'!K$9:K$859,MATCH('2.2'!$A203,'2.2 Daten'!$B$9:$B$859,0))) -> -2.692307692 | I203: =IF($A203<>0,INDEX('2.2 Daten'!L$9:L$859,MATCH('2.2'!$A203,'2.2 Daten'!$B$9:$B$859,0))) -> -10.8401084 | J203: =IF($A203<>0,INDEX('2.2 Daten'!M$9:M$859,MATCH('2.2'!$A203,'2.2 Daten'!$B$9:$B$859,0))) -> -3.537735849 | K203: =IF($A203<>0,INDEX('2.2 Daten'!N$9:N$859,MATCH('2.2'!$A203,'2.2 Daten'!$B$9:$B$859,0))) -> -2.261712439 | L203: =IF($A203<>0,INDEX('2.2 Daten'!O$9:O$859,MATCH('2.2'!$A203,'2.2 Daten'!$B$9:$B$859,0))) -> 6.472491909
A204: =CHOOSE('2.2 Daten'!$A$2,'2.2 Daten'!B626,'2.2 Daten'!B175,'2.2 Daten'!B192,'2.2 Daten'!B209,'2.2 Daten'!B212,'2.2 Daten'!B259,'2.2 Daten'!B263,'2.2 Daten'!B318,'2.2 Daten'!B346,'2.2 Daten'!B384,'2.2 Daten'!B430,'2.2 Daten'!B528,'2.2 Daten'!B536,'2.2 Daten'!B539,'2.2 Daten'!B559,'2.2 Daten'!B569,'2.2 Daten'!B584,'2.2 Daten'!B600,x) -> Kassel | B204: =IF($A204<>0,INDEX('2.2 Daten'!C$9:C$859,MATCH('2.2'!$A204,'2.2 Daten'!$B$9:$B$859,0))," ") -> 06633000 | C204: =IF($A204<>0,INDEX('2.2 Daten'!E$9:E$859,MATCH('2.2'!$A204,'2.2 Daten'!$B$9:$B$859,0))) -> 4252 | D204: =IF($A204<>0,INDEX('2.2 Daten'!F$9:F$859,MATCH('2.2'!$A204,'2.2 Daten'!$B$9:$B$859,0))) -> 640 | E204: =IF($A204<>0,INDEX('2.2 Daten'!G$9:G$859,MATCH('2.2'!$A204,'2.2 Daten'!$B$9:$B$859,0))) -> 736 | F204: =IF($A204<>0,INDEX('2.2 Daten'!H$9:H$859,MATCH('2.2'!$A204,'2.2 Daten'!$B$9:$B$859,0))) -> 2266 | G204: =IF($A204<>0,INDEX('2.2 Daten'!I$9:I$859,MATCH('2.2'!$A204,'2.2 Daten'!$B$9:$B$859,0))) -> 610 | H204: =IF($A204<>0,INDEX('2.2 Daten'!K$9:K$859,MATCH('2.2'!$A204,'2.2 Daten'!$B$9:$B$859,0))) -> -2.811428571 | I204: =IF($A204<>0,INDEX('2.2 Daten'!L$9:L$859,MATCH('2.2'!$A204,'2.2 Daten'!$B$9:$B$859,0))) -> -7.780979827 | J204: =IF($A204<>0,INDEX('2.2 Daten'!M$9:M$859,MATCH('2.2'!$A204,'2.2 Daten'!$B$9:$B$859,0))) -> -9.693251534 | K204: =IF($A204<>0,INDEX('2.2 Daten'!N$9:N$859,MATCH('2.2'!$A204,'2.2 Daten'!$B$9:$B$859,0))) -> 1.98019802 | L204: =IF($A204<>0,INDEX('2.2 Daten'!O$9:O$859,MATCH('2.2'!$A204,'2.2 Daten'!$B$9:$B$859,0))) -> -5.279503106
A205: =CHOOSE('2.2 Daten'!$A$2,'2.2 Daten'!B627,'2.2 Daten'!B176,'2.2 Daten'!B193,'2.2 Daten'!B210,'2.2 Daten'!B213,'2.2 Daten'!B260,'2.2 Daten'!B264,'2.2 Daten'!B319,'2.2 Daten'!B347,'2.2 Daten'!B385,'2.2 Daten'!B431,'2.2 Daten'!B529,'2.2 Daten'!B537,'2.2 Daten'!B540,'2.2 Daten'!B560,'2.2 Daten'!B570,'2.2 Daten'!B585,'2.2 Daten'!B601,x) -> Schwalm-Eder-Kreis | B205: =IF($A205<>0,INDEX('2.2 Daten'!C$9:C$859,MATCH('2.2'!$A205,'2.2 Daten'!$B$9:$B$859,0))," ") -> 06634000 | C205: =IF($A205<>0,INDEX('2.2 Daten'!E$9:E$859,MATCH('2.2'!$A205,'2.2 Daten'!$B$9:$B$859,0))) -> 3264 | D205: =IF($A205<>0,INDEX('2.2 Daten'!F$9:F$859,MATCH('2.2'!$A205,'2.2 Daten'!$B$9:$B$859,0))) -> 467 | E205: =IF($A205<>0,INDEX('2.2 Daten'!G$9:G$859,MATCH('2.2'!$A205,'2.2 Daten'!$B$9:$B$859,0))) -> 563 | F205: =IF($A205<>0,INDEX('2.2 Daten'!H$9:H$859,MATCH('2.2'!$A205,'2.2 Daten'!$B$9:$B$859,0))) -> 1773 | G205: =IF($A205<>0,INDEX('2.2 Daten'!I$9:I$859,MATCH('2.2'!$A205,'2.2 Daten'!$B$9:$B$859,0))) -> 461 | H205: =IF($A205<>0,INDEX('2.2 Daten'!K$9:K$859,MATCH('2.2'!$A205,'2.2 Daten'!$B$9:$B$859,0))) -> -2.683363148 | I205: =IF($A205<>0,INDEX('2.2 Daten'!L$9:L$859,MATCH('2.2'!$A205,'2.2 Daten'!$B$9:$B$859,0))) -> -4.693877551 | J205: =IF($A205<>0,INDEX('2.2 Daten'!M$9:M$859,MATCH('2.2'!$A205,'2.2 Daten'!$B$9:$B$859,0))) -> -9.775641026 | K205: =IF($A205<>0,INDEX('2.2 Daten'!N$9:N$859,MATCH('2.2'!$A205,'2.2 Daten'!$B$9:$B$859,0))) -> -1.881571666 | L205: =IF($A205<>0,INDEX('2.2 Daten'!O$9:O$859,MATCH('2.2'!$A205,'2.2 Daten'!$B$9:$B$859,0))) -> 6.466512702
A206: =CHOOSE('2.2 Daten'!$A$2,'2.2 Daten'!B628,'2.2 Daten'!B177,'2.2 Daten'!B194,'2.2 Daten'!B211,'2.2 Daten'!B214,'2.2 Daten'!B261,'2.2 Daten'!B265,'2.2 Daten'!B320,'2.2 Daten'!B348,'2.2 Daten'!B386,'2.2 Daten'!B432,'2.2 Daten'!B530,'2.2 Daten'!B538,'2.2 Daten'!B541,'2.2 Daten'!B561,'2.2 Daten'!B571,'2.2 Daten'!B586,'2.2 Daten'!B602,x) -> Waldeck-Frankenberg | B206: =IF($A206<>0,INDEX('2.2 Daten'!C$9:C$859,MATCH('2.2'!$A206,'2.2 Daten'!$B$9:$B$859,0))," ") -> 06635000 | C206: =IF($A206<>0,INDEX('2.2 Daten'!E$9:E$859,MATCH('2.2'!$A206,'2.2 Daten'!$B$9:$B$859,0))) -> 2659 | D206: =IF($A206<>0,INDEX('2.2 Daten'!F$9:F$859,MATCH('2.2'!$A206,'2.2 Daten'!$B$9:$B$859,0))) -> 403 | E206: =IF($A206<>0,INDEX('2.2 Daten'!G$9:G$859,MATCH('2.2'!$A206,'2.2 Daten'!$B$9:$B$859,0))) -> 476 | F206: =IF($A206<>0,INDEX('2.2 Daten'!H$9:H$859,MATCH('2.2'!$A206,'2.2 Daten'!$B$9:$B$859,0))) -> 1398 | G206: =IF($A206<>0,INDEX('2.2 Daten'!I$9:I$859,MATCH('2.2'!$A206,'2.2 Daten'!$B$9:$B$859,0))) -> 382 | H206: =IF($A206<>0,INDEX('2.2 Daten'!K$9:K$859,MATCH('2.2'!$A206,'2.2 Daten'!$B$9:$B$859,0))) -> -2.457813646 | I206: =IF($A206<>0,INDEX('2.2 Daten'!L$9:L$859,MATCH('2.2'!$A206,'2.2 Daten'!$B$9:$B$859,0))) -> -3.818615752 | J206: =IF($A206<>0,INDEX('2.2 Daten'!M$9:M$859,MATCH('2.2'!$A206,'2.2 Daten'!$B$9:$B$859,0))) -> -3.643724696 | K206: =IF($A206<>0,INDEX('2.2 Daten'!N$9:N$859,MATCH('2.2'!$A206,'2.2 Daten'!$B$9:$B$859,0))) -> -3.118503119 | L206: =IF($A206<>0,INDEX('2.2 Daten'!O$9:O$859,MATCH('2.2'!$A206,'2.2 Daten'!$B$9:$B$859,0))) -> 3.243243243
A207: =CHOOSE('2.2 Daten'!$A$2,'2.2 Daten'!B629,'2.2 Daten'!B178,'2.2 Daten'!B195,'2.2 Daten'!B212,'2.2 Daten'!B215,'2.2 Daten'!B262,'2.2 Daten'!B266,'2.2 Daten'!B321,'2.2 Daten'!B349,'2.2 Daten'!B387,'2.2 Daten'!B433,'2.2 Daten'!B531,'2.2 Daten'!B539,'2.2 Daten'!B542,'2.2 Daten'!B562,'2.2 Daten'!B572,'2.2 Daten'!B587,'2.2 Daten'!B603,x) -> Werra-Meißner-Kreis | B207: =IF($A207<>0,INDEX('2.2 Daten'!C$9:C$859,MATCH('2.2'!$A207,'2.2 Daten'!$B$9:$B$859,0))," ") -> 06636000 | C207: =IF($A207<>0,INDEX('2.2 Daten'!E$9:E$859,MATCH('2.2'!$A207,'2.2 Daten'!$B$9:$B$859,0))) -> 1954 | D207: =IF($A207<>0,INDEX('2.2 Daten'!F$9:F$859,MATCH('2.2'!$A207,'2.2 Daten'!$B$9:$B$859,0))) -> 318 | E207: =IF($A207<>0,INDEX('2.2 Daten'!G$9:G$859,MATCH('2.2'!$A207,'2.2 Daten'!$B$9:$B$859,0))) -> 365 | F207: =IF($A207<>0,INDEX('2.2 Daten'!H$9:H$859,MATCH('2.2'!$A207,'2.2 Daten'!$B$9:$B$859,0))) -> 1016 | G207: =IF($A207<>0,INDEX('2.2 Daten'!I$9:I$859,MATCH('2.2'!$A207,'2.2 Daten'!$B$9:$B$859,0))) -> 255 | H207: =IF($A207<>0,INDEX('2.2 Daten'!K$9:K$859,MATCH('2.2'!$A207,'2.2 Daten'!$B$9:$B$859,0))) -> -5.785920926 | I207: =IF($A207<>0,INDEX('2.2 Daten'!L$9:L$859,MATCH('2.2'!$A207,'2.2 Daten'!$B$9:$B$859,0))) -> -1.242236025 | J207: =IF($A207<>0,INDEX('2.2 Daten'!M$9:M$859,MATCH('2.2'!$A207,'2.2 Daten'!$B$9:$B$859,0))) -> -14.31924883 | K207: =IF($A207<>0,INDEX('2.2 Daten'!N$9:N$859,MATCH('2.2'!$A207,'2.2 Daten'!$B$9:$B$859,0))) -> -3.878902554 | L207: =IF($A207<>0,INDEX('2.2 Daten'!O$9:O$859,MATCH('2.2'!$A207,'2.2 Daten'!$B$9:$B$859,0))) -> -5.204460967
A208: =CHOOSE('2.2 Daten'!$A$2,'2.2 Daten'!B630,'2.2 Daten'!B179,'2.2 Daten'!B196,'2.2 Daten'!B213,'2.2 Daten'!B216,'2.2 Daten'!B263,'2.2 Daten'!B267,'2.2 Daten'!B322,'2.2 Daten'!B350,'2.2 Daten'!B388,'2.2 Daten'!B434,'2.2 Daten'!B532,'2.2 Daten'!B540,'2.2 Daten'!B543,'2.2 Daten'!B563,'2.2 Daten'!B573,'2.2 Daten'!B588,'2.2 Daten'!B604,x) -> 0 | B208: =IF($A208<>0,INDEX('2.2 Daten'!C$9:C$859,MATCH('2.2'!$A208,'2.2 Daten'!$B$9:$B$859,0))," ") ->  | C208: =IF($A208<>0,INDEX('2.2 Daten'!E$9:E$859,MATCH('2.2'!$A208,'2.2 Daten'!$B$9:$B$859,0))) -> FALSE | D208: =IF($A208<>0,INDEX('2.2 Daten'!F$9:F$859,MATCH('2.2'!$A208,'2.2 Daten'!$B$9:$B$859,0))) -> FALSE | E208: =IF($A208<>0,INDEX('2.2 Daten'!G$9:G$859,MATCH('2.2'!$A208,'2.2 Daten'!$B$9:$B$859,0))) -> FALSE | F208: =IF($A208<>0,INDEX('2.2 Daten'!H$9:H$859,MATCH('2.2'!$A208,'2.2 Daten'!$B$9:$B$859,0))) -> FALSE | G208: =IF($A208<>0,INDEX('2.2 Daten'!I$9:I$859,MATCH('2.2'!$A208,'2.2 Daten'!$B$9:$B$859,0))) -> FALSE | H208: =IF($A208<>0,INDEX('2.2 Daten'!K$9:K$859,MATCH('2.2'!$A208,'2.2 Daten'!$B$9:$B$859,0))) -> FALSE | I208: =IF($A208<>0,INDEX('2.2 Daten'!L$9:L$859,MATCH('2.2'!$A208,'2.2 Daten'!$B$9:$B$859,0))) -> FALSE | J208: =IF($A208<>0,INDEX('2.2 Daten'!M$9:M$859,MATCH('2.2'!$A208,'2.2 Daten'!$B$9:$B$859,0))) -> FALSE | K208: =IF($A208<>0,INDEX('2.2 Daten'!N$9:N$859,MATCH('2.2'!$A208,'2.2 Daten'!$B$9:$B$859,0))) -> FALSE | L208: =IF($A208<>0,INDEX('2.2 Daten'!O$9:O$859,MATCH('2.2'!$A208,'2.2 Daten'!$B$9:$B$859,0))) -> FALSE
A209: =CHOOSE('2.2 Daten'!$A$2,'2.2 Daten'!B631,'2.2 Daten'!B180,'2.2 Daten'!B197,'2.2 Daten'!B214,'2.2 Daten'!B217,'2.2 Daten'!B264,'2.2 Daten'!B268,'2.2 Daten'!B323,'2.2 Daten'!B351,'2.2 Daten'!B389,'2.2 Daten'!B435,'2.2 Daten'!B533,'2.2 Daten'!B541,'2.2 Daten'!B544,'2.2 Daten'!B564,'2.2 Daten'!B574,'2.2 Daten'!B589,'2.2 Daten'!B605,x) -> Rheinland-Pfalz | B209: =IF($A209<>0,INDEX('2.2 Daten'!C$9:C$859,MATCH('2.2'!$A209,'2.2 Daten'!$B$9:$B$859,0))," ") -> 07 | C209: =IF($A209<>0,INDEX('2.2 Daten'!E$9:E$859,MATCH('2.2'!$A209,'2.2 Daten'!$B$9:$B$859,0))) -> 80248 | D209: =IF($A209<>0,INDEX('2.2 Daten'!F$9:F$859,MATCH('2.2'!$A209,'2.2 Daten'!$B$9:$B$859,0))) -> 12492 | E209: =IF($A209<>0,INDEX('2.2 Daten'!G$9:G$859,MATCH('2.2'!$A209,'2.2 Daten'!$B$9:$B$859,0))) -> 14461 | F209: =IF($A209<>0,INDEX('2.2 Daten'!H$9:H$859,MATCH('2.2'!$A209,'2.2 Daten'!$B$9:$B$859,0))) -> 41591 | G209: =IF($A209<>0,INDEX('2.2 Daten'!I$9:I$859,MATCH('2.2'!$A209,'2.2 Daten'!$B$9:$B$859,0))) -> 11704 | H209: =IF($A209<>0,INDEX('2.2 Daten'!K$9:K$859,MATCH('2.2'!$A209,'2.2 Daten'!$B$9:$B$859,0))) -> -1.476961609 | I209: =IF($A209<>0,INDEX('2.2 Daten'!L$9:L$859,MATCH('2.2'!$A209,'2.2 Daten'!$B$9:$B$859,0))) -> -3.663144906 | J209: =IF($A209<>0,INDEX('2.2 Daten'!M$9:M$859,MATCH('2.2'!$A209,'2.2 Daten'!$B$9:$B$859,0))) -> -4.181023059 | K209: =IF($A209<>0,INDEX('2.2 Daten'!N$9:N$859,MATCH('2.2'!$A209,'2.2 Daten'!$B$9:$B$859,0))) -> -0.7635227029 | L209: =IF($A209<>0,INDEX('2.2 Daten'!O$9:O$859,MATCH('2.2'!$A209,'2.2 Daten'!$B$9:$B$859,0))) -> 1.942339517
A210: =CHOOSE('2.2 Daten'!$A$2,'2.2 Daten'!B632,'2.2 Daten'!B181,'2.2 Daten'!B198,'2.2 Daten'!B215,'2.2 Daten'!B218,'2.2 Daten'!B265,'2.2 Daten'!B269,'2.2 Daten'!B324,'2.2 Daten'!B352,'2.2 Daten'!B390,'2.2 Daten'!B436,'2.2 Daten'!B534,'2.2 Daten'!B542,'2.2 Daten'!B545,'2.2 Daten'!B565,'2.2 Daten'!B575,'2.2 Daten'!B590,'2.2 Daten'!B606,x) -> Koblenz, kreisfreie Stadt | B210: =IF($A210<>0,INDEX('2.2 Daten'!C$9:C$859,MATCH('2.2'!$A210,'2.2 Daten'!$B$9:$B$859,0))," ") -> 07111000 | C210: =IF($A210<>0,INDEX('2.2 Daten'!E$9:E$859,MATCH('2.2'!$A210,'2.2 Daten'!$B$9:$B$859,0))) -> 3142 | D210: =IF($A210<>0,INDEX('2.2 Daten'!F$9:F$859,MATCH('2.2'!$A210,'2.2 Daten'!$B$9:$B$859,0))) -> 480 | E210: =IF($A210<>0,INDEX('2.2 Daten'!G$9:G$859,MATCH('2.2'!$A210,'2.2 Daten'!$B$9:$B$859,0))) -> 589 | F210: =IF($A210<>0,INDEX('2.2 Daten'!H$9:H$859,MATCH('2.2'!$A210,'2.2 Daten'!$B$9:$B$859,0))) -> 1596 | G210: =IF($A210<>0,INDEX('2.2 Daten'!I$9:I$859,MATCH('2.2'!$A210,'2.2 Daten'!$B$9:$B$859,0))) -> 477 | H210: =IF($A210<>0,INDEX('2.2 Daten'!K$9:K$859,MATCH('2.2'!$A210,'2.2 Daten'!$B$9:$B$859,0))) -> -2.904820766 | I210: =IF($A210<>0,INDEX('2.2 Daten'!L$9:L$859,MATCH('2.2'!$A210,'2.2 Daten'!$B$9:$B$859,0))) -> -10.11235955 | J210: =IF($A210<>0,INDEX('2.2 Daten'!M$9:M$859,MATCH('2.2'!$A210,'2.2 Daten'!$B$9:$B$859,0))) -> -1.505016722 | K210: =IF($A210<>0,INDEX('2.2 Daten'!N$9:N$859,MATCH('2.2'!$A210,'2.2 Daten'!$B$9:$B$859,0))) -> -4.0288635 | L210: =IF($A210<>0,INDEX('2.2 Daten'!O$9:O$859,MATCH('2.2'!$A210,'2.2 Daten'!$B$9:$B$859,0))) -> 8.163265306
A211: =CHOOSE('2.2 Daten'!$A$2,'2.2 Daten'!B633,'2.2 Daten'!B182,'2.2 Daten'!B199,'2.2 Daten'!B216,'2.2 Daten'!B219,'2.2 Daten'!B266,'2.2 Daten'!B270,'2.2 Daten'!B325,'2.2 Daten'!B353,'2.2 Daten'!B391,'2.2 Daten'!B437,'2.2 Daten'!B535,'2.2 Daten'!B543,'2.2 Daten'!B546,'2.2 Daten'!B566,'2.2 Daten'!B576,'2.2 Daten'!B591,'2.2 Daten'!B607,x) -> Ahrweiler | B211: =IF($A211<>0,INDEX('2.2 Daten'!C$9:C$859,MATCH('2.2'!$A211,'2.2 Daten'!$B$9:$B$859,0))," ") -> 07131000 | C211: =IF($A211<>0,INDEX('2.2 Daten'!E$9:E$859,MATCH('2.2'!$A211,'2.2 Daten'!$B$9:$B$859,0))) -> 1789 | D211: =IF($A211<>0,INDEX('2.2 Daten'!F$9:F$859,MATCH('2.2'!$A211,'2.2 Daten'!$B$9:$B$859,0))) -> 291 | E211: =IF($A211<>0,INDEX('2.2 Daten'!G$9:G$859,MATCH('2.2'!$A211,'2.2 Daten'!$B$9:$B$859,0))) -> 334 | F211: =IF($A211<>0,INDEX('2.2 Daten'!H$9:H$859,MATCH('2.2'!$A211,'2.2 Daten'!$B$9:$B$859,0))) -> 924 | G211: =IF($A211<>0,INDEX('2.2 Daten'!I$9:I$859,MATCH('2.2'!$A211,'2.2 Daten'!$B$9:$B$859,0))) -> 240 | H211: =IF($A211<>0,INDEX('2.2 Daten'!K$9:K$859,MATCH('2.2'!$A211,'2.2 Daten'!$B$9:$B$859,0))) -> 7.382953181 | I211: =IF($A211<>0,INDEX('2.2 Daten'!L$9:L$859,MATCH('2.2'!$A211,'2.2 Daten'!$B$9:$B$859,0))) -> 5.054151625 | J211: =IF($A211<>0,INDEX('2.2 Daten'!M$9:M$859,MATCH('2.2'!$A211,'2.2 Daten'!$B$9:$B$859,0))) -> -0.2985074627 | K211: =IF($A211<>0,INDEX('2.2 Daten'!N$9:N$859,MATCH('2.2'!$A211,'2.2 Daten'!$B$9:$B$859,0))) -> 9.608540925 | L211: =IF($A211<>0,INDEX('2.2 Daten'!O$9:O$859,MATCH('2.2'!$A211,'2.2 Daten'!$B$9:$B$859,0))) -> 13.74407583
A212: =CHOOSE('2.2 Daten'!$A$2,'2.2 Daten'!B634,'2.2 Daten'!B183,'2.2 Daten'!B200,'2.2 Daten'!B217,'2.2 Daten'!B220,'2.2 Daten'!B267,'2.2 Daten'!B271,'2.2 Daten'!B326,'2.2 Daten'!B354,'2.2 Daten'!B392,'2.2 Daten'!B438,'2.2 Daten'!B536,'2.2 Daten'!B544,'2.2 Daten'!B547,'2.2 Daten'!B567,'2.2 Daten'!B577,'2.2 Daten'!B592,'2.2 Daten'!B608,x) -> Altenkirchen (Westerwald) | B212: =IF($A212<>0,INDEX('2.2 Daten'!C$9:C$859,MATCH('2.2'!$A212,'2.2 Daten'!$B$9:$B$859,0))," ") -> 07132000 | C212: =IF($A212<>0,INDEX('2.2 Daten'!E$9:E$859,MATCH('2.2'!$A212,'2.2 Daten'!$B$9:$B$859,0))) -> 2590 | D212: =IF($A212<>0,INDEX('2.2 Daten'!F$9:F$859,MATCH('2.2'!$A212,'2.2 Daten'!$B$9:$B$859,0))) -> 389 | E212: =IF($A212<>0,INDEX('2.2 Daten'!G$9:G$859,MATCH('2.2'!$A212,'2.2 Daten'!$B$9:$B$859,0))) -> 448 | F212: =IF($A212<>0,INDEX('2.2 Daten'!H$9:H$859,MATCH('2.2'!$A212,'2.2 Daten'!$B$9:$B$859,0))) -> 1378 | G212: =IF($A212<>0,INDEX('2.2 Daten'!I$9:I$859,MATCH('2.2'!$A212,'2.2 Daten'!$B$9:$B$859,0))) -> 375 | H212: =IF($A212<>0,INDEX('2.2 Daten'!K$9:K$859,MATCH('2.2'!$A212,'2.2 Daten'!$B$9:$B$859,0))) -> 2.493074792 | I212: =IF($A212<>0,INDEX('2.2 Daten'!L$9:L$859,MATCH('2.2'!$A212,'2.2 Daten'!$B$9:$B$859,0))) -> -3.712871287 | J212: =IF($A212<>0,INDEX('2.2 Daten'!M$9:M$859,MATCH('2.2'!$A212,'2.2 Daten'!$B$9:$B$859,0))) -> -3.655913978 | K212: =IF($A212<>0,INDEX('2.2 Daten'!N$9:N$859,MATCH('2.2'!$A212,'2.2 Daten'!$B$9:$B$859,0))) -> 3.921568627 | L212: =IF($A212<>0,INDEX('2.2 Daten'!O$9:O$859,MATCH('2.2'!$A212,'2.2 Daten'!$B$9:$B$859,0))) -> 12.95180723
A213: =CHOOSE('2.2 Daten'!$A$2,'2.2 Daten'!B635,'2.2 Daten'!B184,'2.2 Daten'!B201,'2.2 Daten'!B218,'2.2 Daten'!B221,'2.2 Daten'!B268,'2.2 Daten'!B272,'2.2 Daten'!B327,'2.2 Daten'!B355,'2.2 Daten'!B393,'2.2 Daten'!B439,'2.2 Daten'!B537,'2.2 Daten'!B545,'2.2 Daten'!B548,'2.2 Daten'!B568,'2.2 Daten'!B578,'2.2 Daten'!B593,'2.2 Daten'!B609,x) -> Bad Kreuznach | B213: =IF($A213<>0,INDEX('2.2 Daten'!C$9:C$859,MATCH('2.2'!$A213,'2.2 Daten'!$B$9:$B$859,0))," ") -> 07133000 | C213: =IF($A213<>0,INDEX('2.2 Daten'!E$9:E$859,MATCH('2.2'!$A213,'2.2 Daten'!$B$9:$B$859,0))) -> 3596 | D213: =IF($A213<>0,INDEX('2.2 Daten'!F$9:F$859,MATCH('2.2'!$A213,'2.2 Daten'!$B$9:$B$859,0))) -> 526 | E213: =IF($A213<>0,INDEX('2.2 Daten'!G$9:G$859,MATCH('2.2'!$A213,'2.2 Daten'!$B$9:$B$859,0))) -> 611 | F213: =IF($A213<>0,INDEX('2.2 Daten'!H$9:H$859,MATCH('2.2'!$A213,'2.2 Daten'!$B$9:$B$859,0))) -> 1896 | G213: =IF($A213<>0,INDEX('2.2 Daten'!I$9:I$859,MATCH('2.2'!$A213,'2.2 Daten'!$B$9:$B$859,0))) -> 563 | H213: =IF($A213<>0,INDEX('2.2 Daten'!K$9:K$859,MATCH('2.2'!$A213,'2.2 Daten'!$B$9:$B$859,0))) -> 0.3068340307 | I213: =IF($A213<>0,INDEX('2.2 Daten'!L$9:L$859,MATCH('2.2'!$A213,'2.2 Daten'!$B$9:$B$859,0))) -> -2.592592593 | J213: =IF($A213<>0,INDEX('2.2 Daten'!M$9:M$859,MATCH('2.2'!$A213,'2.2 Daten'!$B$9:$B$859,0))) -> -6.717557252 | K213: =IF($A213<>0,INDEX('2.2 Daten'!N$9:N$859,MATCH('2.2'!$A213,'2.2 Daten'!$B$9:$B$859,0))) -> 2.541914548 | L213: =IF($A213<>0,INDEX('2.2 Daten'!O$9:O$859,MATCH('2.2'!$A213,'2.2 Daten'!$B$9:$B$859,0))) -> 4.066543438
A214: =CHOOSE('2.2 Daten'!$A$2,'2.2 Daten'!B636,'2.2 Daten'!B185,'2.2 Daten'!B202,'2.2 Daten'!B219,'2.2 Daten'!B222,'2.2 Daten'!B269,'2.2 Daten'!B273,'2.2 Daten'!B328,'2.2 Daten'!B356,'2.2 Daten'!B394,'2.2 Daten'!B440,'2.2 Daten'!B538,'2.2 Daten'!B546,'2.2 Daten'!B549,'2.2 Daten'!B569,'2.2 Daten'!B579,'2.2 Daten'!B594,'2.2 Daten'!B610,x) -> Birkenfeld | B214: =IF($A214<>0,INDEX('2.2 Daten'!C$9:C$859,MATCH('2.2'!$A214,'2.2 Daten'!$B$9:$B$859,0))," ") -> 07134000 | C214: =IF($A214<>0,INDEX('2.2 Daten'!E$9:E$859,MATCH('2.2'!$A214,'2.2 Daten'!$B$9:$B$859,0))) -> 2303 | D214: =IF($A214<>0,INDEX('2.2 Daten'!F$9:F$859,MATCH('2.2'!$A214,'2.2 Daten'!$B$9:$B$859,0))) -> 361 | E214: =IF($A214<>0,INDEX('2.2 Daten'!G$9:G$859,MATCH('2.2'!$A214,'2.2 Daten'!$B$9:$B$859,0))) -> 445 | F214: =IF($A214<>0,INDEX('2.2 Daten'!H$9:H$859,MATCH('2.2'!$A214,'2.2 Daten'!$B$9:$B$859,0))) -> 1204 | G214: =IF($A214<>0,INDEX('2.2 Daten'!I$9:I$859,MATCH('2.2'!$A214,'2.2 Daten'!$B$9:$B$859,0))) -> 293 | H214: =IF($A214<>0,INDEX('2.2 Daten'!K$9:K$859,MATCH('2.2'!$A214,'2.2 Daten'!$B$9:$B$859,0))) -> -3.640167364 | I214: =IF($A214<>0,INDEX('2.2 Daten'!L$9:L$859,MATCH('2.2'!$A214,'2.2 Daten'!$B$9:$B$859,0))) -> -6.718346253 | J214: =IF($A214<>0,INDEX('2.2 Daten'!M$9:M$859,MATCH('2.2'!$A214,'2.2 Daten'!$B$9:$B$859,0))) -> -8.24742268 | K214: =IF($A214<>0,INDEX('2.2 Daten'!N$9:N$859,MATCH('2.2'!$A214,'2.2 Daten'!$B$9:$B$859,0))) -> -1.874490628 | L214: =IF($A214<>0,INDEX('2.2 Daten'!O$9:O$859,MATCH('2.2'!$A214,'2.2 Daten'!$B$9:$B$859,0))) -> 0.6872852234
A215: =CHOOSE('2.2 Daten'!$A$2,'2.2 Daten'!B637,'2.2 Daten'!B186,'2.2 Daten'!B203,'2.2 Daten'!B220,'2.2 Daten'!B223,'2.2 Daten'!B270,'2.2 Daten'!B274,'2.2 Daten'!B329,'2.2 Daten'!B357,'2.2 Daten'!B395,'2.2 Daten'!B441,'2.2 Daten'!B539,'2.2 Daten'!B547,'2.2 Daten'!B550,'2.2 Daten'!B570,'2.2 Daten'!B580,'2.2 Daten'!B595,'2.2 Daten'!B611,x) -> Cochem-Zell | B215: =IF($A215<>0,INDEX('2.2 Daten'!C$9:C$859,MATCH('2.2'!$A215,'2.2 Daten'!$B$9:$B$859,0))," ") -> 07135000 | C215: =IF($A215<>0,INDEX('2.2 Daten'!E$9:E$859,MATCH('2.2'!$A215,'2.2 Daten'!$B$9:$B$859,0))) -> 824 | D215: =IF($A215<>0,INDEX('2.2 Daten'!F$9:F$859,MATCH('2.2'!$A215,'2.2 Daten'!$B$9:$B$859,0))) -> 130 | E215: =IF($A215<>0,INDEX('2.2 Daten'!G$9:G$859,MATCH('2.2'!$A215,'2.2 Daten'!$B$9:$B$859,0))) -> 152 | F215: =IF($A215<>0,INDEX('2.2 Daten'!H$9:H$859,MATCH('2.2'!$A215,'2.2 Daten'!$B$9:$B$859,0))) -> 443 | G215: =IF($A215<>0,INDEX('2.2 Daten'!I$9:I$859,MATCH('2.2'!$A215,'2.2 Daten'!$B$9:$B$859,0))) -> 99 | H215: =IF($A215<>0,INDEX('2.2 Daten'!K$9:K$859,MATCH('2.2'!$A215,'2.2 Daten'!$B$9:$B$859,0))) -> -11.01511879 | I215: =IF($A215<>0,INDEX('2.2 Daten'!L$9:L$859,MATCH('2.2'!$A215,'2.2 Daten'!$B$9:$B$859,0))) -> -3.703703704 | J215: =IF($A215<>0,INDEX('2.2 Daten'!M$9:M$859,MATCH('2.2'!$A215,'2.2 Daten'!$B$9:$B$859,0))) -> -15.08379888 | K215: =IF($A215<>0,INDEX('2.2 Daten'!N$9:N$859,MATCH('2.2'!$A215,'2.2 Daten'!$B$9:$B$859,0))) -> -11.4 | L215: =IF($A215<>0,INDEX('2.2 Daten'!O$9:O$859,MATCH('2.2'!$A215,'2.2 Daten'!$B$9:$B$859,0))) -> -11.60714286
A216: =CHOOSE('2.2 Daten'!$A$2,'2.2 Daten'!B638,'2.2 Daten'!B187,'2.2 Daten'!B204,'2.2 Daten'!B221,'2.2 Daten'!B224,'2.2 Daten'!B271,'2.2 Daten'!B275,'2.2 Daten'!B330,'2.2 Daten'!B358,'2.2 Daten'!B396,'2.2 Daten'!B442,'2.2 Daten'!B540,'2.2 Daten'!B548,'2.2 Daten'!B551,'2.2 Daten'!B571,'2.2 Daten'!B581,'2.2 Daten'!B596,'2.2 Daten'!B612,x) -> Mayen-Koblenz | B216: =IF($A216<>0,INDEX('2.2 Daten'!C$9:C$859,MATCH('2.2'!$A216,'2.2 Daten'!$B$9:$B$859,0))," ") -> 07137000 | C216: =IF($A216<>0,INDEX('2.2 Daten'!E$9:E$859,MATCH('2.2'!$A216,'2.2 Daten'!$B$9:$B$859,0))) -> 3512 | D216: =IF($A216<>0,INDEX('2.2 Daten'!F$9:F$859,MATCH('2.2'!$A216,'2.2 Daten'!$B$9:$B$859,0))) -> 535 | E216: =IF($A216<>0,INDEX('2.2 Daten'!G$9:G$859,MATCH('2.2'!$A216,'2.2 Daten'!$B$9:$B$859,0))) -> 635 | F216: =IF($A216<>0,INDEX('2.2 Daten'!H$9:H$859,MATCH('2.2'!$A216,'2.2 Daten'!$B$9:$B$859,0))) -> 1817 | G216: =IF($A216<>0,INDEX('2.2 Daten'!I$9:I$859,MATCH('2.2'!$A216,'2.2 Daten'!$B$9:$B$859,0))) -> 525 | H216: =IF($A216<>0,INDEX('2.2 Daten'!K$9:K$859,MATCH('2.2'!$A216,'2.2 Daten'!$B$9:$B$859,0))) -> -4.642954113 | I216: =IF($A216<>0,INDEX('2.2 Daten'!L$9:L$859,MATCH('2.2'!$A216,'2.2 Daten'!$B$9:$B$859,0))) -> -10.23489933 | J216: =IF($A216<>0,INDEX('2.2 Daten'!M$9:M$859,MATCH('2.2'!$A216,'2.2 Daten'!$B$9:$B$859,0))) -> -3.348554033 | K216: =IF($A216<>0,INDEX('2.2 Daten'!N$9:N$859,MATCH('2.2'!$A216,'2.2 Daten'!$B$9:$B$859,0))) -> -4.418726986 | L216: =IF($A216<>0,INDEX('2.2 Daten'!O$9:O$859,MATCH('2.2'!$A216,'2.2 Daten'!$B$9:$B$859,0))) -> -0.7561436673
A217: =CHOOSE('2.2 Daten'!$A$2,'2.2 Daten'!B639,'2.2 Daten'!B188,'2.2 Daten'!B205,'2.2 Daten'!B222,'2.2 Daten'!B225,'2.2 Daten'!B272,'2.2 Daten'!B276,'2.2 Daten'!B331,'2.2 Daten'!B359,'2.2 Daten'!B397,'2.2 Daten'!B443,'2.2 Daten'!B541,'2.2 Daten'!B549,'2.2 Daten'!B552,'2.2 Daten'!B572,'2.2 Daten'!B582,'2.2 Daten'!B597,'2.2 Daten'!B613,x) -> Neuwied | B217: =IF($A217<>0,INDEX('2.2 Daten'!C$9:C$859,MATCH('2.2'!$A217,'2.2 Daten'!$B$9:$B$859,0))," ") -> 07138000 | C217: =IF($A217<>0,INDEX('2.2 Daten'!E$9:E$859,MATCH('2.2'!$A217,'2.2 Daten'!$B$9:$B$859,0))) -> 3764 | D217: =IF($A217<>0,INDEX('2.2 Daten'!F$9:F$859,MATCH('2.2'!$A217,'2.2 Daten'!$B$9:$B$859,0))) -> 605 | E217: =IF($A217<>0,INDEX('2.2 Daten'!G$9:G$859,MATCH('2.2'!$A217,'2.2 Daten'!$B$9:$B$859,0))) -> 690 | F217: =IF($A217<>0,INDEX('2.2 Daten'!H$9:H$859,MATCH('2.2'!$A217,'2.2 Daten'!$B$9:$B$859,0))) -> 1940 | G217: =IF($A217<>0,INDEX('2.2 Daten'!I$9:I$859,MATCH('2.2'!$A217,'2.2 Daten'!$B$9:$B$859,0))) -> 529 | H217: =IF($A217<>0,INDEX('2.2 Daten'!K$9:K$859,MATCH('2.2'!$A217,'2.2 Daten'!$B$9:$B$859,0))) -> -2.537545313 | I217: =IF($A217<>0,INDEX('2.2 Daten'!L$9:L$859,MATCH('2.2'!$A217,'2.2 Daten'!$B$9:$B$859,0))) -> 0.3316749585 | J217: =IF($A217<>0,INDEX('2.2 Daten'!M$9:M$859,MATCH('2.2'!$A217,'2.2 Daten'!$B$9:$B$859,0))) -> -4.564315353 | K217: =IF($A217<>0,INDEX('2.2 Daten'!N$9:N$859,MATCH('2.2'!$A217,'2.2 Daten'!$B$9:$B$859,0))) -> -2.316213494 | L217: =IF($A217<>0,INDEX('2.2 Daten'!O$9:O$859,MATCH('2.2'!$A217,'2.2 Daten'!$B$9:$B$859,0))) -> -3.818181818
A218: =CHOOSE('2.2 Daten'!$A$2,'2.2 Daten'!B640,'2.2 Daten'!B189,'2.2 Daten'!B206,'2.2 Daten'!B223,'2.2 Daten'!B226,'2.2 Daten'!B273,'2.2 Daten'!B277,'2.2 Daten'!B332,'2.2 Daten'!B360,'2.2 Daten'!B398,'2.2 Daten'!B444,'2.2 Daten'!B542,'2.2 Daten'!B550,'2.2 Daten'!B553,'2.2 Daten'!B573,'2.2 Daten'!B583,'2.2 Daten'!B598,'2.2 Daten'!B614,x) -> Rhein-Hunsrück-Kreis | B218: =IF($A218<>0,INDEX('2.2 Daten'!C$9:C$859,MATCH('2.2'!$A218,'2.2 Daten'!$B$9:$B$859,0))," ") -> 07140000 | C218: =IF($A218<>0,INDEX('2.2 Daten'!E$9:E$859,MATCH('2.2'!$A218,'2.2 Daten'!$B$9:$B$859,0))) -> 1469 | D218: =IF($A218<>0,INDEX('2.2 Daten'!F$9:F$859,MATCH('2.2'!$A218,'2.2 Daten'!$B$9:$B$859,0))) -> 242 | E218: =IF($A218<>0,INDEX('2.2 Daten'!G$9:G$859,MATCH('2.2'!$A218,'2.2 Daten'!$B$9:$B$859,0))) -> 256 | F218: =IF($A218<>0,INDEX('2.2 Daten'!H$9:H$859,MATCH('2.2'!$A218,'2.2 Daten'!$B$9:$B$859,0))) -> 770 | G218: =IF($A218<>0,INDEX('2.2 Daten'!I$9:I$859,MATCH('2.2'!$A218,'2.2 Daten'!$B$9:$B$859,0))) -> 201 | H218: =IF($A218<>0,INDEX('2.2 Daten'!K$9:K$859,MATCH('2.2'!$A218,'2.2 Daten'!$B$9:$B$859,0))) -> -9.096534653 | I218: =IF($A218<>0,INDEX('2.2 Daten'!L$9:L$859,MATCH('2.2'!$A218,'2.2 Daten'!$B$9:$B$859,0))) -> -10.37037037 | J218: =IF($A218<>0,INDEX('2.2 Daten'!M$9:M$859,MATCH('2.2'!$A218,'2.2 Daten'!$B$9:$B$859,0))) -> -9.540636042 | K218: =IF($A218<>0,INDEX('2.2 Daten'!N$9:N$859,MATCH('2.2'!$A218,'2.2 Daten'!$B$9:$B$859,0))) -> -10.25641026 | L218: =IF($A218<>0,INDEX('2.2 Daten'!O$9:O$859,MATCH('2.2'!$A218,'2.2 Daten'!$B$9:$B$859,0))) -> -1.951219512
A219: =CHOOSE('2.2 Daten'!$A$2,'2.2 Daten'!B641,'2.2 Daten'!B190,'2.2 Daten'!B207,'2.2 Daten'!B224,'2.2 Daten'!B227,'2.2 Daten'!B274,'2.2 Daten'!B278,'2.2 Daten'!B333,'2.2 Daten'!B361,'2.2 Daten'!B399,'2.2 Daten'!B445,'2.2 Daten'!B543,'2.2 Daten'!B551,'2.2 Daten'!B554,'2.2 Daten'!B574,'2.2 Daten'!B584,'2.2 Daten'!B599,'2.2 Daten'!B615,x) -> Rhein-Lahn-Kreis | B219: =IF($A219<>0,INDEX('2.2 Daten'!C$9:C$859,MATCH('2.2'!$A219,'2.2 Daten'!$B$9:$B$859,0))," ") -> 07141000 | C219: =IF($A219<>0,INDEX('2.2 Daten'!E$9:E$859,MATCH('2.2'!$A219,'2.2 Daten'!$B$9:$B$859,0))) -> 1956 | D219: =IF($A219<>0,INDEX('2.2 Daten'!F$9:F$859,MATCH('2.2'!$A219,'2.2 Daten'!$B$9:$B$859,0))) -> 296 | E219: =IF($A219<>0,INDEX('2.2 Daten'!G$9:G$859,MATCH('2.2'!$A219,'2.2 Daten'!$B$9:$B$859,0))) -> 357 | F219: =IF($A219<>0,INDEX('2.2 Daten'!H$9:H$859,MATCH('2.2'!$A219,'2.2 Daten'!$B$9:$B$859,0))) -> 1008 | G219: =IF($A219<>0,INDEX('2.2 Daten'!I$9:I$859,MATCH('2.2'!$A219,'2.2 Daten'!$B$9:$B$859,0))) -> 295 | H219: =IF($A219<>0,INDEX('2.2 Daten'!K$9:K$859,MATCH('2.2'!$A219,'2.2 Daten'!$B$9:$B$859,0))) -> -4.023552502 | I219: =IF($A219<>0,INDEX('2.2 Daten'!L$9:L$859,MATCH('2.2'!$A219,'2.2 Daten'!$B$9:$B$859,0))) -> -10.57401813 | J219: =IF($A219<>0,INDEX('2.2 Daten'!M$9:M$859,MATCH('2.2'!$A219,'2.2 Daten'!$B$9:$B$859,0))) -> -8.461538462 | K219: =IF($A219<>0,INDEX('2.2 Daten'!N$9:N$859,MATCH('2.2'!$A219,'2.2 Daten'!$B$9:$B$859,0))) -> -2.608695652 | L219: =IF($A219<>0,INDEX('2.2 Daten'!O$9:O$859,MATCH('2.2'!$A219,'2.2 Daten'!$B$9:$B$859,0))) -> 4.609929078
